Workbook

Sheet Kuntakortti
A1: Valtiovarainministeriö/Kunta- ja aluehallinto-osasto, 6.2.2020
A2: KUNTIEN LOPULLISET TP:T 2017-2018 ja Tpa 2019 | G2: Valitse kunta valikosta:
A4: =INDEX(Luvut!$B$3:'Luvut'!$B$298,$A$7) -> KOKO MAA (Manner-Suomi) | D4: 2017 | G4: 2018 | J4: 2019
A6: Asukasluku | D6: =VLOOKUP($A$4,Luvut!$B$3:$AT$298,2) -> 5483641 | G6: =VLOOKUP($A$4,Luvut!$B$3:$ED$298,46) -> 5488130 | I6: =((G6/D6)-1)*100 -> 0.08186166819 | J6: =VLOOKUP($A$4,Luvut!$B$3:$ED$298,90) -> 5495408 | L6: =((J6/G6)-1)*100 -> 0.1326134767 | R6: Kunta
A7: 96 | S7: 2017 | T7: 2018 | U7: 2019a
A8: Tunnuslukuja | R8: Vuosikate | S8: =D36 -> 3266069 | T8: =G36 -> 2065203 | U8: =J36 -> 1747616
I9: muut.% | L9: muut.% | N9: Konsernivelka, € | O9: Konsernivelka, € | P9: Konsernivelka, € | R9: Poistot | S9: =D38 -> 2195625 | T9: =G38 -> 2192453 | U9: =J38 -> 2305725
A10: Lainat, euro/as | D10: =E67 -> 2940.67573 | G10: =H67 -> 3048.393715 | I10: =((G10/D10)-1)*100 -> 3.663035139 | J10: =K67 -> 3351.896165 | L10: =((J10/G10)-1)*100 -> 9.956143403 | N10: 2017 | O10: 2018 | P10: 2019 | R10: Tilikauden tulos | S10: =D41 -> 1193203 | T10: =G41 -> -107421 | U10: =J41 -> -164092
A11: Konsernilainat, euro/as | D11: =VLOOKUP($A$4,Luvut!$B$3:$FM$298,167) -> 6314.227901 | G11: =VLOOKUP($A$4,Luvut!$B$3:$FM$298,168) -> 6557.643678 | I11: =((G11/D11)-1)*100 -> 3.855036298 | J11: =VLOOKUP($A$4,Luvut!$B$3:$FN$298,169) -> 7105.3243 | L11: =((J11/G11)-1)*100 -> 8.351789888 | N11: =D11*D6 -> 34624959000 | O11: =G11*G6 -> 35989201000 | P11: =J11*J6 -> 39046656000 | R11: Taseen kertynyt ali-/ylijäämä | S11: =D47 -> 11311167 | T11: =G47 -> 11261407 | U11: =J47 -> 11087957
A12: Lainanhoitokate | D12: =VLOOKUP($A$4,Luvut!$B$3:$AT$298,4) -> 1.84 | G12: =VLOOKUP($A$4,Luvut!$B$3:$ED$298,48) -> 1.121866706 | J12: =VLOOKUP($A$4,Luvut!$B$3:$ED$298,92) -> 0.7093755419 | R12: Toiminnan ja investointien rahavirta | S12: =D60 -> 465219 | T12: =G60 -> -1214884 | U12: =J60 -> -1434149 | V12: (2019 ei vielä lukuja)
A13: Suhteellinen velkaantuneisuus, % | D13: =VLOOKUP($A$4,Luvut!$B$3:$AT$298,5) -> 56.23004609 | G13: =VLOOKUP($A$4,Luvut!$B$3:$ED$298,49) -> 58.68132053 | J13: =VLOOKUP($A$4,Luvut!$B$3:$ED$298,93) -> 62.06715478 | R13: Lainakanta | S13: =D67 -> 16125610 | T13: =G67 -> 16729981 | U13: =J67 -> 18420037
A14: Rahoitusvarallisuus, euro/as | D14: =VLOOKUP($A$4,Luvut!$B$3:$AT$298,6) -> -2554.71538 | G14: =VLOOKUP($A$4,Luvut!$B$3:$ED$298,50) -> -2782.626505 | J14: =VLOOKUP($A$4,Luvut!$B$3:$ED$298,94) -> -3029.554312 | R14: Lainanhoitokate | S14: =D12 -> 1.84 | T14: =G12 -> 1.121866706 | U14: =J12 -> 0.7093755419 | V14: (2019 ei vielä lukuja)
A15: Omavaraisuusaste, % | D15: =VLOOKUP($A$4,Luvut!$B$3:$AT$298,10) -> 60.7 | G15: =VLOOKUP($A$4,Luvut!$B$3:$ED$298,54) -> 59.51387859 | J15: =VLOOKUP($A$4,Luvut!$B$3:$ED$298,98) -> 57.82762771 | R15: Veroprosentti | S15: =D72 -> 19.92 | T15: =G72 -> 19.87 | U15: =J72 -> 19.9
A17: Rahavarat, euro/as | D17: =VLOOKUP($A$4,Luvut!$B$3:$AT$298,11) -> 945 | G17: =VLOOKUP($A$4,Luvut!$B$3:$ED$298,55) -> 888.605044 | J17: =VLOOKUP($A$4,Luvut!$B$3:$ED$298,99) -> 920.9359887 | R17: Asukasluku | S17: =D6 -> 5483641 | T17: =G6 -> 5488130 | U17: =J6 -> 5495408
A18: Kassan riittävyys, pv | D18: =VLOOKUP($A$4,Luvut!$B$3:$AT$298,12) -> 46 | G18: =VLOOKUP($A$4,Luvut!$B$3:$ED$298,56) -> 41.79885351 | J18: =VLOOKUP($A$4,Luvut!$B$3:$ED$298,100) -> 41.94892614
A19: Kassastamaksut, euro/as | D19: =VLOOKUP($A$4,Luvut!$B$3:$AT$298,13) -> 7503.456736 | G19: =VLOOKUP($A$4,Luvut!$B$3:$ED$298,57) -> 7759.563093 | J19: =VLOOKUP($A$4,Luvut!$B$3:$ED$298,101) -> 8013.116588 | N19: 2017 - 2018 | O19: 2018 - 2019
A20: Tuloslaskelma | D20: 1000 | E20: euro/as | G20: 1000 | H20: euro/as | I20: muut.% | J20: 1000 | K20: euro/as | L20: muut.% | N20: €/as | O20: €/as
A22: Henkilöstömenot (palkat+sivukulut) | D22: =VLOOKUP($A$4,Luvut!$B$3:$AX$298,14) -> 13444149 | E22: =D22*1000/$D$6 -> 2451.682924 | G22: =VLOOKUP($A$4,Luvut!$B$3:$ED$298,58) -> 13574638 | H22: =G22*1000/$G$6 -> 2473.454164 | I22: =((G22/D22)-1)*100 -> 0.970600668 | J22: =VLOOKUP($A$4,Luvut!$B$3:$ED$298,102) -> 13513374 | K22: =J22*1000/$J$6 -> 2459.030158 | L22: =((J22/G22)-1)*100 -> -0.4513122192 | N22: =((H22/E22)-1)*100 -> 0.8880120583 | O22: =((K22/H22)-1)*100 -> -0.5831523573
A23: Palvelujen ostot | D23: =VLOOKUP($A$4,Luvut!$B$3:$EF$298,134) -> 17305811 | E23: =D23*1000/$D$6 -> 3155.897879 | G23: =VLOOKUP($A$4,Luvut!$B$3:$EF$298,135) -> 18314272 | H23: =G23*1000/$G$6 -> 3337.069639 | I23: =((G23/D23)-1)*100 -> 5.82729697 | J23: =VLOOKUP($A$4,Luvut!$B$3:$EG$298,136) -> 19288076 | K23: =J23*1000/$J$6 -> 3509.853318 | L23: =((J23/G23)-1)*100 -> 5.317186509 | N23: =((H23/E23)-1)*100 -> 5.740735839 | O23: =((K23/H23)-1)*100 -> 5.177706695
A24: Toimintatuotot, sis. valmistus omaan käyt. | D24: =VLOOKUP($A$4,Luvut!$B$3:$AT$298,15) -> 7566028 | E24: =D24*1000/$D$6 -> 1379.745319 | G24: =VLOOKUP($A$4,Luvut!$B$3:$ED$298,59) -> 7812168 | H24: =G24*1000/$G$6 -> 1423.466281 | I24: 3.253226131 | J24: =VLOOKUP($A$4,Luvut!$B$3:$ED$298,103) -> 7215627 | K24: =J24*1000/$J$6 -> 1313.028441 | L24: -7.636049302 | N24: 3.168770455 | O24: -7.758374129
A25: Toimintakulut | D25: =VLOOKUP($A$4,Luvut!$B$3:$AT$298,16) -> 35690549 | E25: =D25*1000/$D$6 -> 6508.54952 | G25: =VLOOKUP($A$4,Luvut!$B$3:$ED$298,60) -> 36914895 | H25: =G25*1000/$G$6 -> 6726.315703 | I25: 3.430448772 | J25: =VLOOKUP($A$4,Luvut!$B$3:$ED$298,104) -> 37903026 | K25: =J25*1000/$J$6 -> 6897.217823 | L25: 2.676781283 | N25: 3.345848137 | O25: 2.540798365
A26: Toimintakate | D26: =VLOOKUP($A$4,Luvut!$B$3:$AT$298,17) -> -28124521 | E26: -5128.804201 | G26: =VLOOKUP($A$4,Luvut!$B$3:$ED$298,61) -> -29102727 | H26: -5302.849422 | I26: 3.478125014 | J26: =VLOOKUP($A$4,Luvut!$B$3:$ED$298,105) -> -30356936 | K26: =J26*1000/$J$6 -> -5524.054993 | L26: =((J26/G26)-1)*100 -> 4.309592706 | N26: 3.393485382 | O26: =((K26/H26)-1)*100 -> 4.171447328
A28: Verotulot | D28: =VLOOKUP($A$4,Luvut!$B$3:$AT$298,18) -> 22434785 | E28: 4091.220596 | G28: =VLOOKUP($A$4,Luvut!$B$3:$ED$298,62) -> 22321220 | H28: 4067.181353 | I28: -0.5062005274 | J28: =VLOOKUP($A$4,Luvut!$B$3:$ED$298,106) -> 22912315 | K28: =J28*1000/$J$6 -> 4169.356488 | L28: 2.648130344 | N28: -0.5875811919 | O28: 2.512185371
A29: Valtionosuudet, | D29: =VLOOKUP($A$4,Luvut!$B$3:$AT$298,19) -> 8503554 | E29: 1550.713112 | G29: =VLOOKUP($A$4,Luvut!$B$3:$ED$298,63) -> 8456755 | H29: 1540.917398 | I29: -0.5503463611 | J29: =VLOOKUP($A$4,Luvut!$B$3:$ED$298,107) -> 8640795 | K29: =J29*1000/$J$6 -> 1572.366419 | L29: 2.176248455 | N29: -0.6316909165 | O29: 2.040928432
A30: josta hark.var. korotus | D30: (ei määrärahaa 2015) | G30: (ei määrärahaa 2016) | J30: =VLOOKUP($A$4,Luvut!$B$3:$EJ$298,139) -> 10000 | K30: =J30*1000/$J$6 -> 1.819701103
A31: Verorahoitus | D31: =SUM(D28:D29) -> 30938339 | E31: 5641.933708 | G31: =SUM(G28:G29) -> 30777975 | H31: 5608.098751 | I31: -0.518334226 | J31: =SUM(J28:J29) -> 31553110 | K31: =J31*1000/$J$6 -> 5741.722908 | L31: 2.518473031 | N31: -0.5997049657 | O31: 2.382699774
A32: Käyttökate | D32: =D31+D26 -> 2813818 | E32: 513.1295065 | G32: =G26+G31 -> 1675248 | H32: 305.249329 | J32: =J26+J31 -> 1196174 | K32: =J32*1000/$J$6 -> 217.6679147
A34: Korkotuotot/-menot, netto | D34: =VLOOKUP($A$4,Luvut!$B$3:$AT$298,22) -> 76889 | E34: 14.02152329 | G34: =VLOOKUP($A$4,Luvut!$B$3:$ED$298,66) -> 77497 | H34: 14.12083897 | J34: =VLOOKUP($A$4,Luvut!$B$3:$ED$298,110) -> 68795 | K34: =J34*1000/$J$6 -> 12.51863374
A35: Muut rahoituskulut/-tuotot, netto | D35: =VLOOKUP($A$4,Luvut!$B$3:$AT$298,23) -> 375362 | E35: 68.45123523 | G35: =VLOOKUP($A$4,Luvut!$B$3:$ED$298,67) -> 312458 | H35: 56.93341812 | J35: =VLOOKUP($A$4,Luvut!$B$3:$ED$298,111) -> 482647 | K35: =J35*1000/$J$6 -> 87.82732783
A36: Vuosikate | D36: =VLOOKUP($A$4,Luvut!$B$3:$AT$298,24) -> 3266069 | E36: 595.602265 | G36: =VLOOKUP($A$4,Luvut!$B$3:$ED$298,68) -> 2065203 | H36: 376.3035861 | J36: =VLOOKUP($A$4,Luvut!$B$3:$ED$298,112) -> 1747616 | K36: =J36*1000/$J$6 -> 318.0138763
A38: Suunnitelman mukaiset poistot ja arvonalen. | D38: =VLOOKUP($A$4,Luvut!$B$3:$AT$298,25) -> 2195625 | E38: 400.3954672 | G38: =VLOOKUP($A$4,Luvut!$B$3:$ED$298,69) -> 2192453 | H38: 399.4899902 | I38: -0.1444691147 | J38: =VLOOKUP($A$4,Luvut!$B$3:$ED$298,113) -> 2305725 | K38: =J38*1000/$J$6 -> 419.5730326 | L38: 5.166450546
A39: Satunnaiset tuotot | D39: =VLOOKUP($A$4,Luvut!$B$3:$AT$298,26) -> 152502 | E39: 27.81035447 | G39: =VLOOKUP($A$4,Luvut!$B$3:$ED$298,70) -> 45943 | H39: 8.3713396 | J39: =VLOOKUP($A$4,Luvut!$B$3:$ED$298,114) -> 403902 | K39: =J39*1000/$J$6 -> 73.4980915
A40: Satunnaiset kulut | D40: =VLOOKUP($A$4,Luvut!$B$3:$AT$298,27) -> 29743 | E40: 5.423950984 | G40: =VLOOKUP($A$4,Luvut!$B$3:$ED$298,71) -> 26114 | H40: 4.75826921 | J40: =VLOOKUP($A$4,Luvut!$B$3:$ED$298,115) -> 9885 | K40: =J40*1000/$J$6 -> 1.79877454
A41: Tilikauden tulos | D41: =VLOOKUP($A$4,Luvut!$B$3:$AT$298,28) -> 1193203 | E41: 217.5932013 | G41: =VLOOKUP($A$4,Luvut!$B$3:$ED$298,72) -> -107421 | H41: -19.57333372 | J41: =VLOOKUP($A$4,Luvut!$B$3:$ED$298,116) -> -164092 | K41: =J41*1000/$J$6 -> -29.85983934
A43: Poistoeron lisäys(-) tai vähennys(+) | D43: =VLOOKUP($A$4,Luvut!$B$3:$AT$298,29) -> 16321 | E43: 2.976307165 | G43: =VLOOKUP($A$4,Luvut!$B$3:$ED$298,73) -> -11544 | H43: -2.103448716 | J43: =VLOOKUP($A$4,Luvut!$B$3:$ED$298,117) -> -4535 | K43: =J43*1000/$J$6 -> -0.8252344503
A44: Varausten lisäys(-) tai vähennys(+) | D44: =VLOOKUP($A$4,Luvut!$B$3:$AT$298,30) -> -50981 | E44: -9.296925163 | G44: =VLOOKUP($A$4,Luvut!$B$3:$ED$298,74) -> 49922 | H44: 9.096358869 | J44: =VLOOKUP($A$4,Luvut!$B$3:$ED$298,118) -> 8374 | K44: =J44*1000/$J$6 -> 1.523817704
A45: Rahastojen lisäys(-) tai vähennys(+) | D45: =VLOOKUP($A$4,Luvut!$B$3:$AT$298,31) -> 16773 | E45: 3.058734151 | G45: =VLOOKUP($A$4,Luvut!$B$3:$ED$298,75) -> 44732 | H45: 8.150681562 | J45: =VLOOKUP($A$4,Luvut!$B$3:$ED$298,119) -> 28188 | K45: =J45*1000/$J$6 -> 5.12937347
A46: Tilikauden yli-/alijäämä | D46: =VLOOKUP($A$4,Luvut!$B$3:$AT$298,32) -> 1175316 | E46: 214.3313175 | G46: =VLOOKUP($A$4,Luvut!$B$3:$ED$298,76) -> -24311 | H46: -4.429742007 | J46: =VLOOKUP($A$4,Luvut!$B$3:$ED$298,120) -> -132065 | K46: =J46*1000/$J$6 -> -24.03188262
A47: Taseen kertynyt yli-/alijäämä | D47: =VLOOKUP($A$4,Luvut!$B$3:$AU$298,33) -> 11311167 | E47: 2062.711071 | G47: =VLOOKUP($A$4,Luvut!$B$3:$ED$298,77) -> 11261407 | H47: 2051.957042 | I47: -0.4399192409 | J47: =VLOOKUP($A$4,Luvut!$B$3:$ED$298,121) -> 11087957 | K47: =J47*1000/$J$6 -> 2017.676758 | L47: -1.540216067 | N47: -0.5213541199 | O47: -1.670614084
A49: Rahoituslaskelma | D49: 1000 | E49: euro/as | G49: 1000 | H49: euro/as | J49: 1000 | K49: euro/as
A51: Toiminnan rahavirta | D51: =VLOOKUP($A$4,Luvut!$B$3:$AT$298,34) -> 2844484 | E51: 518.7217763 | G51: =VLOOKUP($A$4,Luvut!$B$3:$ED$298,78) -> 1569289 | H51: =G51*1000/$G$6 -> 285.9423884 | J51: =VLOOKUP($A$4,Luvut!$B$3:$ED$298,122) -> 1298911 | K51: =J51*1000/$J$6 -> 236.362978
A52: Investoinnit, netto | D52: =D53+D54+D55 -> -2379265 | E52: -433.8841656 | G52: =G53+G54+G55 -> -2784173 | H52: -507.3081359 | I52: 17.0181968 | J52: =J53+J54+J55 -> -2733060 | K52: -497.3352297 | L52: -1.835841379
A53: - Investointimenot | D53: =VLOOKUP($A$4,Luvut!$B$3:$EP$298,140) -> -3490721 | E53: -636.5699359 | G53: =VLOOKUP($A$4,Luvut!$B$3:$EP$298,143) -> -3649545 | H53: -664.9888031 | I53: 4.549890982 | J53: =VLOOKUP($A$4,Luvut!$B$3:$FM$298,146) -> -4048365 | K53: -736.6814257 | L53: 10.92793759
A54: + Rahoitusosuudet investointimenoihin | D54: =VLOOKUP($A$4,Luvut!$B$3:$EP$298,141) -> 137475 | E54: 25.07002191 | G54: =VLOOKUP($A$4,Luvut!$B$3:$EP$298,144) -> 120782 | H54: 22.0078606 | I54: =((G54/D54)-1)*100 -> -12.14257138 | J54: =VLOOKUP($A$4,Luvut!$B$3:$FM$298,147) -> 138051 | K54: 25.1211557 | L54: 14.29766025
A55: + Investointihyödykkeiden luovutustulot | D55: =VLOOKUP($A$4,Luvut!$B$3:$EP$298,142) -> 973981 | E55: 177.6157484 | G55: =VLOOKUP($A$4,Luvut!$B$3:$EP$298,145) -> 744590 | H55: 135.6728066 | I55: =((G55/D55)-1)*100 -> -23.5518968 | J55: =VLOOKUP($A$4,Luvut!$B$3:$FM$298,148) -> 1177254 | K55: 214.2250403 | L55: 58.10768342
A56: Saamisten muutos | D56: =VLOOKUP($A$4,Luvut!$B$3:$AT$298,36) -> 151773 | E56: 27.6774136 | G56: =VLOOKUP($A$4,Luvut!$B$3:$ED$298,80) -> -95006 | H56: -17.31117885 | J56: =VLOOKUP($A$4,Luvut!$B$3:$ED$298,124) -> -66136 | K56: -12.03477522
A57: Pitkäaikaisten lainojen vähennys | D57: =VLOOKUP($A$4,Luvut!$B$3:$AT$298,37) -> -1846546 | E57: -336.7372153 | G57: =VLOOKUP($A$4,Luvut!$B$3:$ED$298,81) -> -1822844 | H57: -332.1430068 | J57: =VLOOKUP($A$4,Luvut!$B$3:$ED$298,125) -> -1779142 | K57: -323.750666
A58: Pitkäaikaisten lainojen lisäys | D58: =VLOOKUP($A$4,Luvut!$B$3:$EY$298,149) -> 1696115 | E58: 309.3045296 | G58: =VLOOKUP($A$4,Luvut!$B$3:$EY$298,151) -> 2263664 | H58: 412.4654482 | J58: =VLOOKUP($A$4,Luvut!$B$3:$EY$298,153) -> 2830766 | K58: 515.1148013
A59: ± Lyhytaikaisten lainojen muutos | D59: =VLOOKUP($A$4,Luvut!$B$3:$EY$298,150) -> 173004 | E59: 31.54911126 | G59: =VLOOKUP($A$4,Luvut!$B$3:$EY$298,152) -> 148751 | H59: 27.10413201 | J59: =VLOOKUP($A$4,Luvut!$B$3:$EY$298,154) -> 632620 | K59: 115.1179312 | N59: 2016 - 2017 | O59: 2017 - 2018
A60: Toiminnan ja investointien rahavirta | D60: =VLOOKUP($A$4,Luvut!$B$3:$AT$298,38) -> 465219 | E60: 84.83761063 | G60: =VLOOKUP($A$4,Luvut!$B$3:$ED$298,82) -> -1214884 | H60: -221.3657475 | J60: =VLOOKUP($A$4,Luvut!$B$3:$ED$298,126) -> -1434149 | K60: -260.9722517 | N60: €/as | O60: €/as
A62: Verotulot | D62: =VLOOKUP($A$4,Luvut!$B$3:$AT$298,39) -> 22434785 | E62: 4091.220596 | G62: =VLOOKUP($A$4,Luvut!$B$3:$ED$298,83) -> 22321220 | H62: 4067.181353 | I62: =((G62/D62)-1)*100 -> -0.5062005274 | J62: =VLOOKUP($A$4,Luvut!$B$3:$ED$298,127) -> 22912315 | K62: =J62*1000/$J$6 -> 4169.356488 | L62: =((J62/G62)-1)*100 -> 2.648130344 | N62: =((H62/E62)-1)*100 -> -0.5875811919 | O62: =((K62/H62)-1)*100 -> 2.512185371
A63: Kunnallisvero | D63: =VLOOKUP($A$4,Luvut!$B$3:$AT$298,40) -> 18827691 | E63: 3433.428811 | G63: =VLOOKUP($A$4,Luvut!$B$3:$ED$298,84) -> 18664568 | H63: 3400.897573 | I63: =((G63/D63)-1)*100 -> -0.8663993901 | J63: =VLOOKUP($A$4,Luvut!$B$3:$ED$298,128) -> 19142606 | K63: =J63*1000/$J$6 -> 3483.382126 | L63: =((J63/G63)-1)*100 -> 2.56120581 | N63: =((H63/E63)-1)*100 -> -0.9474854309 | O63: =((K63/H63)-1)*100 -> 2.425375958
A64: Yhteisövero | D64: =VLOOKUP($A$4,Luvut!$B$3:$AT$298,41) -> 1887798 | E64: 344.2599543 | G64: =VLOOKUP($A$4,Luvut!$B$3:$ED$298,85) -> 1866127 | H64: 340.029664 | I64: -1.147951211 | J64: =VLOOKUP($A$4,Luvut!$B$3:$ED$298,129) -> 1902907 | K64: =J64*1000/$J$6 -> 346.2721967 | L64: 1.970926952 | N64: -1.228806957 | O64: 1.835878852
A65: Kiinteistövero | D65: =VLOOKUP($A$4,Luvut!$B$3:$AT$298,42) -> 1719296 | E65: 313.5318304 | G65: =VLOOKUP($A$4,Luvut!$B$3:$ED$298,86) -> 1790525 | H65: 326.2541157 | I65: 4.142916636 | J65: =VLOOKUP($A$4,Luvut!$B$3:$ED$298,130) -> 1866802 | K65: =J65*1000/$J$6 -> 339.7021659 | L65: 4.260035464 | N65: 4.057733239 | O65: 4.121955719
A67: Lainakanta, | D67: =VLOOKUP($A$4,Luvut!$B$3:$FG$298,155) -> 16125610 | E67: 2940.67573 | G67: =VLOOKUP($A$4,Luvut!$B$3:$FG$298,159) -> 16729981 | H67: 3048.393715 | I67: 3.747895428 | J67: =VLOOKUP($A$4,Luvut!$B$3:$FM$298,163) -> 18420037 | K67: =J67*1000/$J$6 -> 3351.896165 | L67: 10.10196007 | N67: 3.663035139 | O67: 9.956143403
A68: josta pitkäaikainen laina | D68: =VLOOKUP($A$4,Luvut!$B$3:$FG$298,156) -> 11274403 | E68: 2056.006766 | G68: =VLOOKUP($A$4,Luvut!$B$3:$FG$298,160) -> 11682746 | H68: 2128.729822 | J68: =VLOOKUP($A$4,Luvut!$B$3:$FM$298,164) -> 12599485 | K68: =J68*1000/$J$6 -> 2292.729675 | M68: =J68+J69 -> 18420037 | N68: 3.537101981 | O68: 7.704117794
A69: josta lyhytaikainen laina | D69: =VLOOKUP($A$4,Luvut!$B$3:$FG$298,157) -> 4851207 | E69: 884.6689636 | G69: =VLOOKUP($A$4,Luvut!$B$3:$FG$298,161) -> 5047235 | H69: 919.6638928 | J69: =VLOOKUP($A$4,Luvut!$B$3:$FM$298,165) -> 5820552 | K69: =J69*1000/$J$6 -> 1059.16649 | N69: 3.955708936 | O69: 15.16886744
A70: Lainasaamiset | D70: =VLOOKUP($A$4,Luvut!$B$3:$FG$298,158) -> 5712937 | E70: 1041.814554 | G70: =VLOOKUP($A$4,Luvut!$B$3:$FG$298,162) -> 5765559 | H70: 1050.550734 | J70: =VLOOKUP($A$4,Luvut!$B$3:$FM$298,166) -> 5548348 | K70: =J70*1000/$J$6 -> 1009.633498 | N70: 0.8385542805 | O70: -3.894836782
A72: Tuloveroprosentti | D72: =VLOOKUP($A$4,Luvut!$B$3:$AT$298,43) -> 19.92 | G72: =VLOOKUP($A$4,Luvut!$B$3:$ED$298,87) -> 19.87 | J72: =VLOOKUP($A$4,Luvut!$B$3:$ED$298,131) -> 19.9
A73: Veroprosenttiyksikön tuotto | D73: =D63/D72 -> 945165.2108 | E73: =D73*1000/$D$6 -> 172.3608841 | G73: =G63/G72 -> 939334.0715 | H73: =G73*1000/$G$6 -> 171.1574018 | J73: =J63/J72 -> 961940 | K73: =J73*1000/$J$6 -> 175.0443279
A75: Sijoitus vuosikatteen (euro/as) mukaan | D75: =VLOOKUP($A$4,Luvut!$B$3:$AT$298,45) -> - | G75: =VLOOKUP($A$4,Luvut!$B$3:$ED$298,89) -> - | J75: =VLOOKUP($A$4,Luvut!$B$3:$ED$298,133) -> -
A76: Lähde: Tilastokeskus
A78: Rahoitusvarallisuus = ((saamiset + rahoitusarvopaperit + rahat ja pankkisaamiset) - (vieras pääoma - saadut ennakot))
A79: Kunnat vuoden 2018 kuntajaolla

Sheet Luvut
C1: 2017 | D1: hakee muualta | E1: 92 | F1: 93 | G1: 94 | H1: 95 | I1: 96 | J1: 97 | K1: 98 | L1: 99 | M1: 100 | N1: 101 | O1: 102 | P1: 103 | Q1: 104 | R1: 105 | S1: 106 | T1: 107 | U1: 108 | W1: 110 | X1: 111 | Y1: 112 | Z1: 113 | AA1: 114 | AB1: 115 | AC1: 116 | AD1: 117 | AE1: 118 | AF1: 119 | AG1: 120 | AH1: 121 | AI1: 122 | AK1: 124 | AL1: 125 | AM1: 126 | AN1: 127 | AO1: 128 | AP1: 129 | AQ1: 130 | AR1: 131 | AS1: 132 | AT1: 133 | AU1: 2018 | AW1: 92 | AX1: 93 | AY1: 94 | AZ1: 95 | BA1: 96 | BB1: 97 | BC1: 98 | BD1: 99 | BE1: 100 | BF1: 101 | BG1: 102 | BH1: 103 | BI1: 104 | BJ1: 105 | BK1: 106 | BL1: 107 | BM1: 108 | BN1: 109 | BO1: 110 | BP1: 111 | BQ1: 112 | BR1: 113 | BS1: 114 | BT1: 115 | BU1: 116 | BV1: 117 | BW1: 118 | BX1: 119 | BY1: 120 | BZ1: 121 | CA1: 122 | CB1: 123 | CC1: 124 | CD1: 125 | CE1: 126 | CF1: 127 | CG1: 128 | CH1: 129 | CI1: 130 | CJ1: 131 | CK1: 132 | CL1: 133 | CM1: 2019 | CO1: 92 | CP1: 93 | CQ1: 94 | CR1: 95 | CS1: 96 | CT1: 97 | CU1: 98 | CV1: 99 | CW1: 100 | CX1: 101 | CY1: 102 | CZ1: 103 | DA1: 104 | DB1: 105 | DC1: 106 | DD1: 107 | DE1: 108 | DF1: summana | DG1: 110 | DH1: 111 | DI1: 112 | DJ1: 113 | DK1: 114 | DL1: 115 | DM1: 116 | DN1: 117 | DO1: 118 | DP1: 119 | DQ1: 120 | DR1: 121 | DS1: 122 | DT1: 123 | DU1: 124 | DV1: 125 | DW1: 126 | DX1: 127 | DY1: 128 | DZ1: 129 | EA1: 130 | EB1: 131 | EC1: 132 | ED1: 133 | EE1: Erillistiedot | EF1: 135 | EG1: 136 | EH1: 137 | EI1: 138 | EJ1: 139 | EK1: 2017 | EL1: 144 | EM1: 145 | EN1: 2018 | EO1: 147 | EP1: 148 | EQ1: 2019 | ER1: 147 | ES1: 148 | ET1: 2017 | EU1: 152 | EV1: 2018 | EW1: 154 | EX1: 2019 | EZ1: 2017 | FA1: 160 | FB1: 161 | FC1: 162 | FD1: 2018 | FE1: 164 | FF1: 165 | FG1: 166 | FH1: 2019 | FI1: 164 | FJ1: 165 | FK1: 166 | FL1: 2017 | FM1: 2018 | FN1: 2019 | FO1: Yhden vero%:n | FP1: Yhden vero%:n
A2: Kunta nro | B2: Kunta | C2: Asukasluku | D2: Lainat e/asukas | E2: Lainanhoitokate | F2: Suhteellinen velkaantuneisuus-% | G2: Rahoitusvarallisuus, e/as | K2: Omavaraisuusaste, % | L2: Rahavarat e/as | M2: Kassan riittävyys, pv | N2: Kassasta maksut, €/as | O2: Henkilöstökulut | P2: Toimintatuotot | Q2: Toimintakulut | R2: Toimintakate | S2: Verotulot | T2: Valtionosuudet | U2: Alv-takaisinperintä | W2: Korkotuotot/-menot, netto | X2: Muut rahoitustuotot/-menot, netto (sis Osinkotuotot) | Y2: Vuosikate | Z2: Suunnitelman mukaiset poistot ja arvonalet | AA2: Satunnaiset tuotot | AB2: Satunnaiset kulut | AC2: Tilikauden tulos | AD2: Poistoeron lisäys(-) tai vähennys(+) | AE2: Varausten lisäys(-) tai vähennys(+) | AF2: Rahastojen lisäys(-) tai vähennys(+) | AG2: Tilikauden yli- tai alijäämä | AH2: Kumulat yli/alij | AI2: Tulorah (toiminnan rahavirta) | AK2: Saamisten muutos | AL2: Pitkäaikaisten lainojen vähennys | AM2: Toim ja inv rahavirta | AN2: Verotulot | AO2: Kunnallisvero | AP2: Osuus yhteisöveron tuotosta | AQ2: Kiinteistövero | AR2: Tuloveroprosentti | AT2: Sijoitus vuosikatteen mukaan | AU2: Asukasluku | AW2: Lainanhoitokate | AX2: Suht. velkaantuneisuus-% | AY2: Rahoitusvarallisuus, e/as | BC2: Omavaraisuusaste, % | BD2: Rahavarat e/as | BE2: Kassan riittävyys, pv | BF2: Kassasta maksut, €/as | BG2: Henkilöstökulut | BH2: Toimintatuotot | BI2: Toimintakulut | BJ2: Toimintakate | BK2: Verotulot | BL2: Valtionosuudet | BO2: Korkotuotot/-menot, netto | BP2: Muut rahoitustuotot/-menot, netto (sis Osinkotuotot) | BQ2: Vuosikate | BR2: Suunnitelman mukaiset poistot ja arvonalet | BS2: Satu. tuotot | BT2: Satu. kulut | BU2: Tilikauden tulos | BV2: Poistoeron lisäys(-) tai vähennys(+) | BW2: Varausten lisäys(-) tai vähennys(+) | BX2: Rahastojen lisäys(-) tai vähennys(+) | BY2: Tilikauden yli- tai alijäämä | BZ2: Kumulat yli/alij | CA2: Tulorah (toiminnan rahavirta) | CC2: Saamisten muutos | CD2: Pitkäaikaisten lainojen vähennys | CE2: Toim ja inv rahavirta | CF2: Verotulot | CG2: Kunnallisvero | CH2: Osuus yhteisöveron tuotosta | CI2: Kiinteistövero | CJ2: Tuloveroprosentti | CL2: Sijoitus vuosikatteen mukaan | CM2: Asukasluku | CO2: Lainanhoitokate | CP2: Suht. velkaantuneisuus-% | CQ2: Rahoitusvarallisuus, e/as | CU2: Omavaraisuusaste, % | CV2: Rahavarat e/as | CW2: Kassan riittävyys, pv | CX2: Kassasta maksut, €/as | CY2: Henkilöstökulut | CZ2: Toimintatuotot | DA2: Toimintakulut | DB2: Toimintakate | DC2: Verotulot | DD2: Valtionosuudet | DE2: Alv-takaisinperintä | DF2: Käyttökate | DG2: Korkotuotot/-menot, netto | DH2: Muut rahoitustuotot/-menot, netto (sis Osinkotuotot) | DI2: Vuosikate | DJ2: Suunnitelman mukaiset poistot ja arvonalet | DK2: Satu. tuotot | DL2: Satu. kulut | DM2: Tilikauden tulos | DN2: Poistoeron lisäys(-) tai vähennys(+) | DO2: Varausten lisäys(-) tai vähennys(+) | DP2: Rahastojen lisäys(-) tai vähennys(+) | DQ2: Tilikauden yli- tai alijäämä | DR2: Kumulat yli/alij | DS2: Toiminnan rahavirta | DU2: Saamisten muutos | DV2: Pitkäaikaisten lainojen vähennys | DW2: Toim ja inv rahavirta | DX2: Verotulot | DY2: Kunnallisvero | DZ2: Osuus yhteisöveron tuotosta | EA2: Kiinteistövero | EB2: Tuloveroprosentti | ED2: Sijoitus vuosikatteen mukaan | EE2: Palvelujen ostot 2017 | EF2: Palvelujen ostot 2018 | EG2: Palvelujen ostot 2019 | EH2: Harkvar2017 | EI2: Harkvar2018 | EJ2: Harkvar2019 | EK2: - Investointimenot | EL2: + Rahoitusos. investointimenoihin | EM2: + Investointihyödykk. luovutustulot | EN2: - Investointimenot | EO2: + Rahoitusosuudet investointimenoihin | EP2: + Investointihyödykkeiden luovutustulot | EQ2: - Investointimenot | ER2: + Rahoitusosuudet investointimenoihin | ES2: + Investointihyödykkeiden luovutustulot | ET2: Pitkäaikaisten lainojen lisäys | EU2: ± Lyhytaikaisten lainojen muutos | EV2: Pitkäaikaisten lainojen lisäys | EW2: ± Lyhytaikaisten lainojen muutos | EX2: Pitkäaikaisten lainojen lisäys | EY2: ± Lyhytaikaisten lainojen muutos | EZ2: Lainakanta | FA2: josta pitkäaik | FB2: josta lyhytaik | FC2: Lainasaamiset | FD2: Lainakanta | FE2: josta pitkäaik | FF2: josta lyhytaik | FG2: Lainasaamiset | FH2: Lainakanta | FI2: josta pitkäaik | FJ2: josta lyhytaik | FK2: Lainasaamiset | FL2: Konsernilainat €/as | FM2: Konsernilainat €/as | FN2: Konsernilainat €/as | FO2: tuotto | FP2: tuotto, €/as
A3: 20 | B3: Akaa | C3: 16769 | E3: 1.008890898 | F3: 59.6654824 | G3: -3534.31928 | K3: 28.18752473 | L3: 209.4340748 | M3: 11.16085499 | N3: 6849.245632 | P3: 21856 | Q3: 106289 | R3: -84433 | S3: 59399 | T3: 30488 | W3: -111 | X3: 865 | Y3: 6208 | Z3: 4695 | AA3: 0 | AB3: 0 | AC3: 1513 | AD3: 28 | AE3: 0 | AF3: 0 | AG3: 1541 | AH3: -6564 | AI3: 5413 | AK3: -310 | AL3: -6149 | AM3: 4429 | AN3: 59399 | AO3: 54017 | AP3: 1893 | AQ3: 3489 | AR3: 21.25 | AT3: 213 | AU3: 16611 | AW3: 0.4041204437 | AX3: 62.29812932 | AY3: -3676.900849 | BC3: 25.82998042 | BD3: 248.6304256 | BE3: 12.61453879 | BF3: 7194.088255 | BG3: 44053 | BH3: 20752 | BI3: 108994 | BJ3: -88242 | BK3: 59625 | BL3: 29905 | BO3: 62 | BP3: 878 | BQ3: 2228 | BR3: 4577 | BS3: 0 | BT3: 0 | BU3: -2349 | BV3: 27 | BW3: 0 | BX3: 0 | BY3: -2322 | BZ3: -8886 | CA3: 1932 | CC3: 398 | CD3: -5988 | CE3: -1357 | CF3: 59625 | CG3: 54693 | CH3: 1613 | CI3: 3319 | CJ3: 21.75 | CL3: 206 | CM3: 16475 | CO3: 0.8032317577 | CP3: 59.0755326 | CQ3: -3668.710167 | CU3: 25.89965286 | CV3: 178.6949924 | CW3: 8.835897478 | CX3: 7381.669196 | CY3: 44817 | CZ3: 21733 | DA3: 110542 | DB3: -88791 | DC3: 62993 | DD3: 31449 | DG3: 85 | DH3: 321 | DI3: 6057 | DJ3: 6043 | DK3: 0 | DL3: 0 | DM3: 14 | DN3: 26 | DO3: 0 | DP3: 0 | DQ3: 40 | DR3: -8846 | DS3: 5908 | DU3: -1750 | DV3: -5507 | DW3: 778 | DX3: =DC3 -> 62993 | DY3: 57840 | DZ3: 1596 | EA3: 3557 | EB3: 22.25 | ED3: 66 | EE3: 47917 | EF3: 50584 | EG3: 49394 | EJ3: 1000 | EK3: -1929 | EL3: 95 | EM3: 850 | EN3: -3773 | EO3: 130 | EP3: 354 | EQ3: -5323 | ER3: 34 | ES3: 159 | ET3: 0 | EU3: 987 | EV3: 7500 | EW3: -56 | EX3: 0 | EY3: 5020 | EZ3: 52640 | FA3: 36938 | FB3: 15702 | FC3: 7219 | FD3: 54097 | FE3: 38470 | FF3: 15627 | FG3: 7639 | FH3: 53609 | FI3: 33398 | FJ3: 20211 | FK3: 7639 | FL3: 3927.723776 | FM3: 4285.714286 | FN3: 4463.186646 | FO3: =(DY3/EB3) -> 2599.550562 | FP3: =(FO3/CM3)*1000 -> 157.787591 | FV3: 4670 | FW3: =FV3*-1 -> -4670
A4: 5 | B4: Alajärvi | C4: 9831 | E4: 1.823733333 | F4: 34.9710891 | G4: -2238.938053 | K4: 50.97161907 | L4: 440.5452141 | M4: 15.81558332 | N4: 10167.1244 | O4: 40714 | P4: 29143 | Q4: 87940 | R4: -58797 | S4: 29659 | T4: 35799 | W4: -193 | X4: 158 | Y4: 6626 | Z4: 3001 | AA4: 0 | AB4: 0 | AC4: 3625 | AD4: 0 | AE4: 0 | AF4: 0 | AG4: 3625 | AH4: 8644 | AI4: 6523 | AK4: -1698 | AL4: -3537 | AM4: -916 | AN4: 29659 | AO4: 25065 | AP4: 2438 | AQ4: 2156 | AR4: 21.75 | AT4: 61 | AU4: 9700 | AW4: 0.7670940171 | AX4: 39.34223807 | AY4: -2770.927835 | BC4: 47.73535822 | BD4: 405.5670103 | BE4: 14.024476 | BF4: 10555.25773 | BG4: 41606 | BH4: 29186 | BI4: 90428 | BJ4: -61242 | BK4: 28893 | BL4: 35055 | BO4: -193 | BP4: 147 | BQ4: 2660 | BR4: 3573 | BS4: 0 | BT4: 0 | BU4: -913 | BV4: 0 | BW4: 0 | BX4: 0 | BY4: -913 | BZ4: 7731 | CA4: 2602 | CC4: 911 | CD4: -3532 | CE4: -4891 | CF4: 28893 | CG4: 24613 | CH4: 2142 | CI4: 2138 | CJ4: 21.75 | CL4: 123 | CM4: 9562 | CO4: 0.3420010823 | CP4: 38.19911387 | CQ4: -3405.772851 | CU4: 43.1400054 | CV4: 352.5413093 | CW4: 10.2928284 | CX4: 12501.67329 | CY4: 45948 | CZ4: 44709 | DA4: 107678 | DB4: -62969 | DC4: 29512 | DD4: 34792 | DG4: -202 | DH4: 150 | DI4: 1283 | DJ4: 3246 | DK4: 0 | DL4: 0 | DM4: -1963 | DN4: 0 | DO4: 0 | DP4: 0 | DQ4: -1963 | DR4: 5768 | DS4: 1301 | DU4: 125 | DV4: -3838 | DW4: -5586 | DX4: =DC4 -> 29512 | DY4: 25292 | DZ4: 2066 | EA4: 2154 | EB4: 21.75 | ED4: 162 | EE4: 36649 | EF4: 38046 | EG4: 49572 | EK4: -8254 | EL4: 647 | EM4: 168 | EN4: -8209 | EO4: 576 | EP4: 140 | EQ4: -7703 | ER4: 779 | ES4: 37 | ET4: 4000 | EU4: 2000 | EV4: 4000 | EW4: 2000 | EX4: 8070 | EY4: 0 | EZ4: 21157 | FA4: 15626 | FB4: 5531 | FC4: 458 | FD4: 23626 | FE4: 15945 | FF4: 7681 | FG4: 451 | FH4: 27858 | FI4: 19714 | FJ4: 8144 | FK4: 543 | FL4: 4235.072729 | FM4: 4713.505155 | FN4: 5270.550094 | FO4: 1162.850575 | FP4: 121.6116476 | FV4: 3040 | FW4: -3040
A5: 9 | B5: Alavieska | C5: 2610 | E5: 1.188180404 | F5: 60.20046849 | G5: -3405.747126 | K5: 39.52726677 | L5: 345.210728 | M5: 17.20725199 | N5: 7322.605364 | O5: 4205 | P5: 2156 | Q5: 17600 | R5: -15444 | S5: 7284 | T5: 8917 | W5: -43 | X5: 7 | Y5: 721 | Z5: 817 | AA5: 0 | AB5: 0 | AC5: -96 | AD5: 0 | AE5: 0 | AF5: 0 | AG5: -96 | AH5: -290 | AI5: 721 | AK5: 629 | AL5: -600 | AM5: 51 | AN5: 7284 | AO5: 6494 | AP5: 285 | AQ5: 505 | AR5: 21.5 | AT5: 256 | AU5: 2573 | AW5: 2.195777351 | AX5: 57.30781567 | AY5: -3238.631947 | BC5: 41.54699739 | BD5: 672.7555383 | BE5: 33.43998095 | BF5: 7343.179168 | BG5: 4254 | BH5: 2153 | BI5: 17572 | BJ5: -15419 | BK5: 7528 | BL5: 9025 | BO5: -28 | BP5: 10 | BQ5: 1116 | BR5: 719 | BS5: 0 | BT5: 0 | BU5: 397 | BV5: 0 | BW5: 0 | BX5: 0 | BY5: 397 | BZ5: 107 | CA5: 1028 | CC5: 605 | CD5: -493 | CE5: 553 | CF5: 7528 | CG5: 6537 | CH5: 259 | CI5: 732 | CJ5: 21.5 | CL5: 63 | CM5: 2519 | CO5: 1.149043108 | CP5: 56.66544253 | CQ5: -3183.009131 | CU5: 43.54897566 | CV5: 720.1270345 | CW5: 34.64549212 | CX5: 7586.74077 | CY5: 4470 | CZ5: 2190 | DA5: 17586 | DB5: -15396 | DC5: 7962 | DD5: 8909 | DG5: -26 | DH5: 11 | DI5: 1460 | DJ5: 745 | DK5: 0 | DL5: 0 | DM5: 715 | DN5: 0 | DO5: 0 | DP5: 0 | DQ5: 715 | DR5: 823 | DS5: 1460 | DU5: -313 | DV5: -344 | DW5: 324 | DX5: 7962 | DY5: 6931 | DZ5: 263 | EA5: 768 | EB5: 22 | ED5: 17 | EE5: 11750 | EF5: 11724 | EG5: 11440 | EK5: -859 | EL5: 189 | EM5: 0 | EN5: -796 | EO5: 144 | EP5: 177 | EQ5: -1151 | ER5: 0 | ES5: 15 | ET5: 0 | EU5: -2000 | EV5: 0 | EW5: 1500 | EX5: 0 | EY5: 1000 | EZ5: 7801 | FA5: 4308 | FB5: 3493 | FC5: 84 | FD5: 8807 | FE5: 3963 | FF5: 4844 | FG5: 84 | FH5: 9463 | FI5: 833 | FJ5: 8630 | FK5: 84 | FL5: 3182.375479 | FM5: 3589.972794 | FN5: 4017.467249 | FO5: 315.0454545 | FP5: 125.0676675 | FV5: 792 | FW5: -792
A6: 10 | B6: Alavus | C6: 11713 | E6: 0.9546364243 | F6: 53.3893564 | G6: -2373.943482 | K6: 51.30732692 | L6: 1244.856143 | M6: 57.18715078 | N6: 7945.359857 | O6: 23076 | P6: 12152 | Q6: 81802 | R6: -69650 | S6: 35218 | T6: 38629 | W6: -66 | X6: 1332 | Y6: 5463 | Z6: 3217 | AA6: 0 | AB6: 0 | AC6: 2246 | AD6: 0 | AE6: 0 | AF6: 0 | AG6: 2246 | AH6: 15165 | AI6: 5428 | AK6: 338 | AL6: -5735 | AM6: 1987 | AN6: 35218 | AO6: 29789 | AP6: 2699 | AQ6: 2730 | AR6: 21.25 | AT6: 167 | AU6: 11544 | AW6: 0.1395472467 | AX6: 55.82281353 | AY6: -2585.49896 | BC6: 50.60492718 | BD6: 1225.831601 | BE6: 46.87292412 | BF6: 9545.564796 | BG6: 23328 | BH6: 11762 | BI6: 82024 | BJ6: -70262 | BK6: 33901 | BL6: 38294 | BO6: -32 | BP6: 999 | BQ6: 2900 | BR6: 3286 | BS6: 0 | BT6: 0 | BU6: -386 | BV6: 0 | BW6: 0 | BX6: 0 | BY6: -386 | BZ6: 14779 | CA6: 2686 | CC6: 694 | CD6: -22323 | CE6: -2411 | CF6: 33901 | CG6: 28747 | CH6: 2398 | CI6: 2756 | CJ6: 21.25 | CL6: 138 | CM6: 11468 | CO6: 0.2171916409 | CP6: 63.28590826 | CQ6: -2337.286362 | CU6: 50.38705717 | CV6: 1263.167074 | CW6: 54.93049784 | CX6: 8393.442623 | CY6: 24125 | CZ6: 11960 | DA6: 84410 | DB6: -72208 | DC6: 34663 | DD6: 38072 | DG6: -71 | DH6: 620 | DI6: 1076 | DJ6: 3653 | DK6: 9142 | DL6: 0 | DM6: 6565 | DN6: 0 | DO6: 0 | DP6: 0 | DQ6: 6565 | DR6: 21344 | DS6: 886 | DU6: -9544 | DV6: -3177 | DW6: 1926 | DX6: 34663 | DY6: 29279 | DZ6: 2585 | EA6: 2799 | EB6: 21.25 | ED6: 183 | EE6: 51412 | EF6: 51990 | EG6: 53095 | EK6: -4099 | EL6: 258 | EM6: 400 | EN6: -5594 | EO6: 131 | EP6: 366 | EQ6: -8782 | ER6: 156 | ES6: 9666 | ET6: 6760 | EU6: -1000 | EV6: 23000 | EW6: -1000 | EX6: 8000 | EY6: 2000 | EZ6: 38742 | FA6: 32437 | FB6: 6305 | FC6: 8634 | FD6: 38419 | FE6: 34242 | FF6: 4177 | FG6: 8286 | FH6: 45243 | FI6: 38265 | FJ6: 6978 | FK6: 7374 | FL6: 6004.183386 | FM6: 6158.350658 | FN6: 6850.453436 | FO6: 1377.835294 | FP6: 120.1460842 | FV6: 2706 | FW6: -2706
A7: 16 | B7: Asikkala | C7: 8248 | E7: 70.66176471 | F7: 28.39358481 | G7: -1464.839961 | K7: 70.56718691 | L7: 120.514064 | M7: 7.021811918 | N7: 6264.42774 | O7: 13221 | P7: 6285 | Q7: 48775 | R7: -42490 | S7: 29701 | T7: 17513 | W7: -41 | X7: 80 | Y7: 4763 | Z7: 2353 | AA7: 0 | AB7: 0 | AC7: 2410 | AD7: 94 | AE7: -2400 | AF7: 0 | AG7: 104 | AH7: 10152 | AI7: 4310 | AK7: 1152 | AL7: -26 | AM7: 2623 | AN7: 29701 | AO7: 25298 | AP7: 1616 | AQ7: 2787 | AR7: 20.75 | AT7: 95 | AU7: 8149 | AW7: 48.33870968 | AX7: 27.15997717 | AY7: -1227.267149 | BC7: 72.14943275 | BD7: 359.3078905 | BE7: 20.99027791 | BF7: 6248.00589 | BG7: 13175 | BH7: 6194 | BI7: 49448 | BJ7: -43254 | BK7: 28838 | BL7: 17538 | BO7: -41 | BP7: -126 | BQ7: 2955 | BR7: 2255 | BS7: 0 | BT7: 0 | BU7: 700 | BV7: 94 | BW7: 0 | BX7: 0 | BY7: 794 | BZ7: 10946 | CA7: 2847 | CC7: 765 | CD7: -20 | CE7: 1928 | CF7: 28838 | CG7: 24509 | CH7: 1436 | CI7: 2893 | CJ7: 20.75 | CL7: 90 | CM7: 8083 | CO7: 2.166910688 | CP7: 21.97468075 | CQ7: -1233.947792 | CU7: 75.35789158 | CV7: 123.2215761 | CW7: 6.70478228 | CX7: 6708.029197 | CY7: 13729 | CZ7: 6112 | DA7: 52010 | DB7: -45898 | DC7: 29745 | DD7: 18410 | DG7: -40 | DH7: 147 | DI7: 2364 | DJ7: 2215 | DK7: 0 | DL7: 182 | DM7: -33 | DN7: 94 | DO7: 0 | DP7: 0 | DQ7: 61 | DR7: 11007 | DS7: 2079 | DU7: 396 | DV7: -15 | DW7: 145 | DX7: 29745 | DY7: 25296 | DZ7: 1538 | EA7: 2911 | EB7: 20.75 | ED7: 90 | EE7: 31830 | EF7: 32499 | EG7: 34689 | EK7: -2633 | EL7: 190 | EM7: 756 | EN7: -1179 | EO7: 95 | EP7: 165 | EQ7: -2006 | ER7: 0 | ES7: 72 | ET7: 0 | EU7: -3000 | EV7: 0 | EW7: -1500 | EX7: 0 | EY7: -3000 | EZ7: 11990 | FA7: 1469 | FB7: 10521 | FC7: 807 | FD7: 10470 | FE7: 1455 | FF7: 9015 | FG7: 810 | FH7: 7455 | FI7: 1445 | FJ7: 6010 | FK7: 810 | FL7: 3014.42774 | FM7: 2835.68536 | FN7: 2404.676482 | FO7: 1219.084337 | FP7: 150.8207766 | FV7: 380 | FW7: -380
A8: 18 | B8: Askola | C8: 4990 | E8: 0.9365853659 | F8: 74.17460525 | G8: -3914.428858 | K8: 22.13725545 | L8: 345.490982 | M8: 18.33027469 | N8: 6879.559118 | O8: 12945 | P8: 4571 | Q8: 29968 | R8: -25397 | S8: 18756 | T8: 7325 | W8: -131 | X8: 276 | Y8: 829 | Z8: 1338 | AA8: 0 | AB8: 0 | AC8: -509 | AD8: 0 | AE8: 0 | AF8: 0 | AG8: -509 | AH8: -1309 | AI8: 644 | AK8: -300 | AL8: -894 | AM8: -2389 | AN8: 18756 | AO8: 16579 | AP8: 1038 | AQ8: 1139 | AR8: 20.75 | AT8: 279 | AU8: 4958 | AW8: -0.01378122308 | AX8: 81.33990148 | AY8: -3928.801936 | BC8: 22.15593713 | BD8: 793.6668011 | BE8: 42.15535206 | BF8: 6871.924163 | BG8: 13618 | BH8: 4412 | BI8: 30745 | BJ8: -26333 | BK8: 18547 | BL8: 7491 | BO8: -182 | BP8: 279 | BQ8: -198 | BR8: 1255 | BS8: 2228 | BT8: 0 | BU8: 775 | BV8: 0 | BW8: 0 | BX8: 0 | BY8: 775 | BZ8: -699 | CA8: 1965 | CC8: 125 | CD8: -979 | CE8: 189 | CF8: 18547 | CG8: 16454 | CH8: 949 | CI8: 1144 | CJ8: 20.75 | CL8: 264 | CM8: 4943 | CO8: 0.7301846222 | CP8: 84.09020889 | CQ8: -3763.301639 | CU8: 27.0308983 | CV8: 1226.178434 | CW8: 61.51845054 | CX8: 7275.136557 | CY8: 13781 | CZ8: 4448 | DA8: 30316 | DB8: -25868 | DC8: 19707 | DD8: 8303 | DG8: -231 | DH8: 319 | DI8: 2230 | DJ8: 1274 | DK8: 2496 | DL8: 0 | DM8: 3452 | DN8: 0 | DO8: 0 | DP8: 0 | DQ8: 3452 | DR8: 2648 | DS8: 4638 | DU8: -1278 | DV8: -1238 | DW8: 1046 | DX8: 19707 | DY8: 17550 | DZ8: 957 | EA8: 1200 | EB8: 21.5 | ED8: 43 | EE8: 13213 | EF8: 13333 | EG8: 12858 | EJ8: 680 | EK8: -3320 | EL8: 6 | EM8: 281 | EN8: -2145 | EO8: 13 | EP8: 356 | EQ8: -4153 | ER8: 308 | ES8: 253 | ET8: 2000 | EU8: 1751 | EV8: 5000 | EW8: -2243 | EX8: 5000 | EY8: -2000 | EZ8: 19431 | FA8: 11811 | FB8: 7620 | FC8: 0 | FD8: 21209 | FE8: 15576 | FF8: 5633 | FG8: 0 | FH8: 22972 | FI8: 18999 | FJ8: 3973 | FK8: 0 | FL8: 4928.657315 | FM8: 5681.323114 | FN8: 6031.762088 | FO8: 816.2790698 | FP8: 165.1383916 | FV8: 699 | FW8: -699
A9: 19 | B9: Aura | C9: 3991 | E9: 3.841746248 | F9: 58.2643769 | G9: -2959.40867 | K9: 27.22614034 | L9: 361.8140817 | M9: 23.19193875 | N9: 5694.312202 | O9: 6178 | P9: 3192 | Q9: 21251 | R9: -18059 | S9: 14873 | T9: 5984 | W9: -19 | X9: 18 | Y9: 2797 | Z9: 752 | AA9: 0 | AB9: 0 | AC9: 2045 | AD9: 28 | AE9: 0 | AF9: 0 | AG9: 2073 | AH9: 136 | AI9: 2830 | AK9: -185 | AL9: -714 | AM9: 2215 | AN9: 14873 | AO9: 13597 | AP9: 745 | AQ9: 531 | AR9: 21.75 | AT9: 51 | AU9: 3984 | AW9: 1.144032922 | AX9: 60.2366658 | AY9: -3204.568273 | BC9: 27.08311928 | BD9: 26.85742972 | BE9: 1.582006724 | BF9: 6196.536145 | BG9: 6172 | BH9: 2672 | BI9: 22180 | BJ9: -19508 | BK9: 14314 | BL9: 6000 | BO9: -15 | BP9: 28 | BQ9: 819 | BR9: 804 | BS9: 0 | BT9: 0 | BU9: 15 | BV9: 28 | BW9: 0 | BX9: 0 | BY9: 43 | BZ9: 179 | CA9: 643 | CC9: -215 | CD9: -714 | CE9: -977 | CF9: 14314 | CG9: 12992 | CH9: 571 | CI9: 751 | CJ9: 21.75 | CL9: 163 | CM9: 3941 | CO9: 0.354077863 | CP9: 64.10344237 | CQ9: -3314.640954 | CU9: 24.50479389 | CV9: 248.9215935 | CW9: 14.53952978 | CX9: 6248.921594 | CY9: 6514 | CZ9: 2647 | DA9: 22749 | DB9: -20102 | DC9: 14707 | DD9: 6002 | DG9: -13 | DH9: 16 | DI9: 610 | DJ9: 847 | DK9: 0 | DL9: 0 | DM9: -237 | DN9: 28 | DO9: 0 | DP9: 0 | DQ9: -209 | DR9: -30 | DS9: 747 | DU9: 44 | DV9: -714 | DW9: -317 | DX9: 14707 | DY9: 13353 | DZ9: 603 | EA9: 751 | EB9: 21.75 | ED9: 153 | EE9: 12654 | EF9: 12947 | EG9: 12935 | EK9: -739 | EL9: 0 | EM9: 124 | EN9: -1759 | EO9: 0 | EP9: 139 | EQ9: -1132 | ER9: 22 | ES9: 46 | ET9: 0 | EU9: -590 | EV9: 0 | EW9: 200 | EX9: 5000 | EY9: -2700 | EZ9: 11976 | FA9: 2262 | FB9: 9714 | FC9: 0 | FD9: 11462 | FE9: 1548 | FF9: 9914 | FG9: 0 | FH9: 13047 | FI9: 5333 | FJ9: 7714 | FK9: 0 | FL9: 3702.079679 | FM9: 3577.058233 | FN9: 3948.236488 | FO9: 613.9310345 | FP9: 155.7805213 | FV9: 607 | FW9: -607
A10: 46 | B10: Enonkoski | C10: 1416 | F10: 10.11904762 | G10: 1542.372881 | K10: 90.50097593 | L10: 1900.423729 | M10: 79.85487805 | N10: 8686.440678 | O10: 2388 | P10: 1299 | Q10: 10844 | R10: -9545 | S10: 4853 | T10: 5272 | W10: 26 | X10: 40 | Y10: 646 | Z10: 513 | AA10: 294 | AB10: 50 | AC10: 377 | AD10: 0 | AE10: 0 | AF10: 0 | AG10: 377 | AH10: 6119 | AI10: 597 | AK10: -367 | AL10: 0 | AM10: -156 | AN10: 4853 | AO10: 3723 | AP10: 595 | AQ10: 535 | AR10: 21 | AT10: 174 | AU10: 1405 | AX10: 13.2867759 | AY10: 1288.967972 | BC10: 87.91235446 | BD10: 1987.900356 | BE10: 86.86477505 | BF10: 8353.024911 | BG10: 2372 | BH10: 1385 | BI10: 10931 | BJ10: -9546 | BK10: 4481 | BL10: 5335 | BO10: 17 | BP10: 52 | BQ10: 339 | BR10: 595 | BS10: 0 | BT10: 0 | BU10: -256 | BV10: 0 | BW10: 0 | BX10: 1 | BY10: -255 | BZ10: 5864 | CA10: 339 | CC10: 147 | CD10: 0 | CE10: -357 | CF10: 4481 | CG10: 3379 | CH10: 569 | CI10: 533 | CJ10: 21 | CL10: 143 | CM10: 1361 | CO10: 7.608847497 | CP10: 10.68259685 | CQ10: 1544.452608 | CU10: 89.9853205 | CV10: 2108.008817 | CW10: 93.26549697 | CX10: 8249.816312 | CY10: 2446 | CZ10: 1423 | DA10: 10689 | DB10: -9244 | DC10: 4713 | DD10: 5247 | DG10: 12 | DH10: 89 | DI10: 817 | DJ10: 655 | DK10: 0 | DL10: 0 | DM10: 162 | DN10: 0 | DO10: 0 | DP10: 0 | DQ10: 162 | DR10: 6025 | DS10: 817 | DU10: 54 | DV10: 0 | DW10: 267 | DX10: 4713 | DY10: 3580 | DZ10: 597 | EA10: 536 | EB10: 21 | ED10: 15 | EE10: 7520 | EF10: 7560 | EG10: 7318 | EK10: -1453 | EL10: 3 | EM10: 697 | EN10: -780 | EO10: 80 | EP10: 4 | EQ10: -558 | ER10: 0 | ES10: 8 | ET10: 0 | EU10: 0 | EV10: 0 | EW10: 0 | EX10: 0 | EY10: 0 | EZ10: 0 | FA10: 0 | FB10: 0 | FC10: 346 | FD10: 0 | FE10: 0 | FF10: 0 | FG10: 286 | FH10: 0 | FI10: 0 | FJ10: 0 | FK10: 261 | FL10: 766.2429379 | FM10: 770.1067616 | FN10: 590.7421014 | FO10: 170.4761905 | FP10: 125.2580386 | FV10: 63 | FW10: -63
A11: 47 | B11: Enontekiö | C11: 1893 | E11: 1.80988024 | F11: 36.63907192 | G11: -2693.079768 | K11: 53.29441761 | L11: 238.2461701 | M11: 8.121916321 | N11: 10706.81458 | O11: 6594 | P11: 2730 | Q11: 16897 | R11: -14167 | S11: 6203 | T11: 8824 | W11: -60 | X11: 349 | Y11: 1149 | Z11: 348 | AA11: 0 | AB11: 0 | AC11: 801 | AD11: 0 | AE11: 0 | AF11: 0 | AG11: 801 | AH11: 1265 | AI11: 1149 | AK11: -17 | AL11: -608 | AM11: 777 | AN11: 6203 | AO11: 4963 | AP11: 410 | AQ11: 830 | AR11: 21.25 | AT11: 77 | AU11: 1852 | AW11: 0.8892261002 | AX11: 34.84302914 | AY11: -2738.12095 | BC11: 54.99221553 | BD11: 183.0453564 | BE11: 6.478950675 | BF11: 10312.09503 | BG11: 7223 | BH11: 2808 | BI11: 17628 | BJ11: -14820 | BK11: 6362 | BL11: 8604 | BO11: -5 | BP11: 394 | BQ11: 535 | BR11: 354 | BS11: 0 | BT11: 0 | BU11: 181 | BV11: 0 | BW11: 0 | BX11: 0 | BY11: 181 | BZ11: 1446 | CA11: 487 | CC11: 174 | CD11: -608 | CE11: 171 | CF11: 6362 | CG11: 5155 | CH11: 384 | CI11: 823 | CJ11: 21.25 | CL11: 115 | CM11: 1838 | CO11: 0.6010039813 | CP11: 37.61112377 | CQ11: -3074.537541 | CU11: 53.8997764 | CV11: 26.6594124 | CW11: 0.8930443901 | CX11: 10896.0827 | CY11: 6826 | CZ11: 2496 | DA11: 17495 | DB11: -14999 | DC11: 6263 | DD11: 8789 | DG11: -32 | DH11: 376 | DI11: 397 | DJ11: 366 | DK11: 0 | DL11: 0 | DM11: 31 | DN11: -40 | DO11: 41 | DP11: 0 | DQ11: 32 | DR11: 1478 | DS11: 323 | DU11: -116 | DV11: -600 | DW11: -615 | DX11: 6263 | DY11: 5043 | DZ11: 391 | EA11: 829 | EB11: 21.25 | ED11: 121 | EE11: 8260 | EF11: 8489 | EG11: 8657 | EK11: -2514 | EL11: 2142 | EM11: 0 | EN11: -522 | EO11: 97 | EP11: 109 | EQ11: -1632 | ER11: 480 | ES11: 214 | ET11: 0 | EU11: -363 | EV11: 0 | EW11: 50 | EX11: 0 | EY11: 792 | EZ11: 4511 | FA11: 3203 | FB11: 1308 | FC11: 1666 | FD11: 3953 | FE11: 2595 | FF11: 1358 | FG11: 1751 | FH11: 4145 | FI11: 1995 | FJ11: 2150 | FK11: 1614 | FL11: 5492.340201 | FM11: 5075.053996 | FN11: 4935.255713 | FO11: 237.3176471 | FP11: 129.117327 | FV11: 874 | FW11: -874
A12: 49 | B12: Espoo | C12: 279044 | E12: 3.626956152 | F12: 57.0762015 | G12: 91.88873439 | K12: 71.6036233 | L12: 3413.50468 | M12: 169.6356291 | N12: 7344.737747 | O12: 619229 | P12: 336891 | Q12: 1679858 | R12: -1342967 | S12: 1490270 | T12: 36400 | W12: 7246 | X12: 39974 | Y12: 230923 | Z12: 144454 | AA12: 0 | AB12: 0 | AC12: 86469 | AD12: 11874 | AE12: 0 | AF12: -41 | AG12: 98302 | AH12: 487912 | AI12: 204136 | AK12: 44571 | AL12: -58022 | AM12: -29967 | AN12: 1490270 | AO12: 1236961 | AP12: 137156 | AQ12: 116153 | AR12: 18 | AT12: 28 | AU12: 283632 | AW12: 3.24498695 | AX12: 54.03828645 | AY12: -198.7786992 | BC12: 72.12528071 | BD12: 2995.264991 | BE12: 143.6256168 | BF12: 7611.954928 | BG12: 641447 | BH12: 392012 | BI12: 1767910 | BJ12: -1375898 | BK12: 1501986 | BL12: 43067 | BO12: 6717 | BP12: 19657 | BQ12: 195529 | BR12: 161134 | BS12: 0 | BT12: 0 | BU12: 34395 | BV12: -1606 | BW12: 0 | BX12: 12468 | BY12: 45257 | BZ12: 525559 | CA12: 133450 | CC12: -5982 | CD12: -54463 | CE12: -72387 | CF12: 1501986 | CG12: 1259684 | CH12: 125298 | CI12: 117004 | CJ12: 18 | CL12: 14 | CM12: 289731 | CO12: 1.26798289 | CP12: 62.60994252 | CQ12: -612.4336022 | CU12: 68.23903248 | CV12: 3083.725939 | CW12: 140.1805034 | CX12: 8029.361718 | CY12: 672439 | CZ12: 418078 | DA12: 1886234 | DB12: -1455718 | DC12: 1521184 | DD12: 60874 | DG12: 6894 | DH12: 38178 | DI12: 171412 | DJ12: 178942 | DK12: 0 | DL12: 0 | DM12: -7530 | DN12: -2232 | DO12: 0 | DP12: 15025 | DQ12: 5263 | DR12: 511808 | DS12: 85823 | DU12: -46854 | DV12: -57850 | DW12: -115870 | DX12: 1521184 | DY12: 1272287 | DZ12: 128604 | EA12: 120293 | EB12: 18 | ED12: 16 | EE12: 769017 | EF12: 819880 | EG12: 881701 | EK12: -308439 | EL12: 42229 | EM12: 32107 | EN12: -306855 | EO12: 36316 | EP12: 64702 | EQ12: -351520 | ER12: 57414 | ES12: 92413 | ET12: 30000 | EU12: -23582 | EV12: 100000 | EW12: -52872 | EX12: 220000 | EY12: 28508 | EZ12: 805600 | FA12: 632921 | FB12: 172679 | FC12: 290265 | FD12: 798266 | FE12: 674452 | FF12: 123814 | FG12: 308687 | FH12: 988922 | FI12: 829753 | FJ12: 159169 | FK12: 337799 | FL12: 12290.81794 | FM12: 12349.20954 | FN12: 13125.06774 | FO12: 70682.61111 | FP12: 243.9594352 | FV12: 55179 | FW12: -55179
A13: 50 | B13: Eura | C13: 11910 | E13: 2.678404972 | F13: 50.81183024 | G13: -2931.905961 | K13: 48.09633524 | L13: 162.3845508 | M13: 8.562400689 | N13: 6922.166247 | O13: 34664 | P13: 11832 | Q13: 74927 | R13: -63095 | S13: 44397 | T13: 23837 | W13: -10 | X13: -4 | Y13: 5125 | Z13: 3535 | AA13: 0 | AB13: 0 | AC13: 1590 | AD13: 24 | AE13: 0 | AF13: 0 | AG13: 1614 | AH13: 7837 | AI13: 4653 | AK13: -569 | AL13: -1884 | AM13: 72 | AN13: 44397 | AO13: 39017 | AP13: 2303 | AQ13: 3077 | AR13: 20.5 | AT13: 186 | AU13: 11748 | AW13: -0.2377666248 | AX13: 56.97462715 | AY13: -3319.799115 | BC13: 43.377878 | BD13: 184.7974123 | BE13: 9.461671642 | BF13: 7128.873 | BG13: 35905 | BH13: 10999 | BI13: 77829 | BJ13: -66830 | BK13: 43565 | BL13: 22881 | BO13: -11 | BP13: -19 | BQ13: -414 | BR13: 3515 | BS13: 0 | BT13: 0 | BU13: -3929 | BV13: 23 | BW13: 0 | BX13: 0 | BY13: -3906 | BZ13: 3931 | CA13: -790 | CC13: 879 | CD13: -1559 | CE13: -4362 | CF13: 43565 | CG13: 38473 | CH13: 1964 | CI13: 3128 | CJ13: 20.5 | CL13: 263 | CM13: 11632 | CO13: -0.08052813909 | CP13: 68.53173739 | CQ13: -4063.961486 | CU13: 35.61180927 | CV13: 175.3782669 | CW13: 8.463575707 | CX13: 7563.359697 | CY13: 35650 | CZ13: 10626 | DA13: 78529 | DB13: -67900 | DC13: 43287 | DD13: 24118 | DG13: -38 | DH13: 10 | DI13: -523 | DJ13: 3726 | DK13: 0 | DL13: 0 | DM13: -4249 | DN13: 21 | DO13: 0 | DP13: 0 | DQ13: -4228 | DR13: -290 | DS13: -627 | DU13: -1212 | DV13: -1279 | DW13: -8289 | DX13: 43287 | DY13: 38036 | DZ13: 2057 | EA13: 3194 | EB13: 20.5 | ED13: 244 | EE13: 28965 | EF13: 29661 | EG13: 30278 | EJ13: 900 | EK13: -5390 | EL13: 164 | EM13: 645 | EN13: -4158 | EO13: 75 | EP13: 511 | EQ13: -7966 | ER13: 7 | ES13: 297 | ET13: 0 | EU13: 1600 | EV13: 0 | EW13: 4000 | EX13: 5080 | EY13: 6000 | EZ13: 28641 | FA13: 13067 | FB13: 15574 | FC13: 3280 | FD13: 31082 | FE13: 11828 | FF13: 19254 | FG13: 3023 | FH13: 40882 | FI13: 15601 | FJ13: 25281 | FK13: 2942 | FL13: 4408.564232 | FM13: 4619.16922 | FN13: 5432.685695 | FO13: 1855.414634 | FP13: 159.5095112 | FV13: 818 | FW13: -818
A14: 51 | B14: Eurajoki | C14: 9521 | E14: 6.402640264 | F14: 35.06122449 | G14: -15.85967861 | K14: 78.67097754 | L14: 2353.324231 | M14: 111.0096239 | N14: 7737.737633 | O14: 26887 | P14: 8230 | Q14: 64721 | R14: -56491 | S14: 51919 | T14: 13351 | W14: -16 | X14: 820 | Y14: 9583 | Z14: 4906 | AA14: 0 | AB14: 0 | AC14: 4677 | AD14: 5 | AE14: 0 | AF14: 0 | AG14: 4682 | AH14: 75721 | AI14: 9583 | AK14: -532 | AL14: -1398 | AM14: 3557 | AN14: 51919 | AO14: 30562 | AP14: 2028 | AQ14: 19330 | AR14: 18 | AT14: 11 | AU14: 9454 | AW14: 3.436170213 | AX14: 34.30761996 | AY14: 259.2553417 | BC14: 79.67747012 | BD14: 2576.581341 | BE14: 124.0621076 | BF14: 7580.495029 | BG14: 26361 | BH14: 8094 | BI14: 64344 | BJ14: -56250 | BK14: 50340 | BL14: 11737 | BO14: -51 | BP14: -724 | BQ14: 5052 | BR14: 5212 | BS14: 0 | BT14: 0 | BU14: -160 | BV14: 3 | BW14: 0 | BX14: 0 | BY14: -157 | BZ14: 75565 | CA14: 5052 | CC14: 1048 | CD14: -1388 | CE14: 2484 | CF14: 50340 | CG14: 28914 | CH14: 2214 | CI14: 19212 | CJ14: 18 | CL14: 38 | CM14: 9402 | CO14: 1.551227383 | CP14: 31.89414263 | CQ14: 562.3271644 | CU14: 80.06324017 | CV14: 2437.034673 | CW14: 110.4277415 | CX14: 8055.201021 | CY14: 27266 | CZ14: 8388 | DA14: 70036 | DB14: -61648 | DC14: 52060 | DD14: 11120 | DG14: 28 | DH14: 1770 | DI14: 3330 | DJ14: 4915 | DK14: 0 | DL14: 0 | DM14: -1585 | DN14: 3 | DO14: -112 | DP14: 0 | DQ14: -1694 | DR14: 73816 | DS14: 3330 | DU14: -3037 | DV14: -1088 | DW14: -773 | DX14: 52060 | DY14: 28952 | DZ14: 2581 | EA14: 20527 | EB14: 18 | ED14: 71 | EE14: 30985 | EF14: 31318 | EG14: 35296 | EK14: -6535 | EL14: 20 | EM14: 489 | EN14: -4044 | EO14: 16 | EP14: 1460 | EQ14: -4201 | ER14: 24 | ES14: 74 | ET14: 0 | EU14: -422 | EV14: 0 | EW14: -425 | EX14: 0 | EY14: -442 | EZ14: 15454 | FA14: 13759 | FB14: 1695 | FC14: 3779 | FD14: 13642 | FE14: 12023 | FF14: 1619 | FG14: 3622 | FH14: 12112 | FI14: 10456 | FJ14: 1656 | FK14: 105 | FL14: 1842.768617 | FM14: 1704.146393 | FN14: 1570.729632 | FO14: 1608.444444 | FP14: 171.0747122 | FV14: 701 | FW14: -701
A15: 52 | B15: Evijärvi | C15: 2499 | E15: 718 | F15: 32.49500333 | G15: 466.1864746 | K15: 69.96274293 | L15: 2573.429372 | M15: 128.655248 | N15: 7300.920368 | O15: 3890 | P15: 1678 | Q15: 17797 | R15: -16119 | S15: 8224 | T15: 8110 | W15: 95 | X15: 407 | Y15: 717 | Z15: 494 | AA15: 0 | AB15: 0 | AC15: 223 | AD15: 0 | AE15: 0 | AF15: 0 | AG15: 223 | AH15: 5147 | AI15: 717 | AK15: -162 | AL15: 0 | AM15: 366 | AN15: 8224 | AO15: 6674 | AP15: 827 | AQ15: 723 | AR15: 21.5 | AT15: 251 | AU15: 2473 | AX15: 36.48106415 | AY15: -57.01577032 | BC15: 65.70426473 | BD15: 2420.946219 | BE15: 110.9097599 | BF15: 7967.24626 | BG15: 4036 | BH15: 1829 | BI15: 18407 | BJ15: -16578 | BK15: 7975 | BL15: 8389 | BO15: 51 | BP15: -293 | BQ15: -456 | BR15: 514 | BS15: 0 | BT15: 0 | BU15: -970 | BV15: 0 | BW15: 0 | BX15: 0 | BY15: -970 | BZ15: 4177 | CA15: -521 | CC15: 78 | CD15: 0 | CE15: -1308 | CF15: 7975 | CG15: 6586 | CH15: 639 | CI15: 750 | CJ15: 21.5 | CL15: 284 | CM15: 2425 | CO15: -0.2546269009 | CP15: 48.0081497 | CQ15: -688.6597938 | CU15: 57.20260444 | CV15: 2752.57732 | CW15: 115.857863 | CX15: 8671.752577 | CY15: 4135 | CZ15: 1744 | DA15: 19558 | DB15: -17814 | DC15: 8047 | DD15: 8860 | DG15: 58 | DH15: 579 | DI15: -270 | DJ15: 619 | DK15: 0 | DL15: 0 | DM15: -889 | DN15: 0 | DO15: 0 | DP15: 0 | DQ15: -889 | DR15: 3287 | DS15: -275 | DU15: -101 | DV15: 0 | DW15: -1492 | DX15: 8047 | DY15: 6699 | DZ15: 584 | EA15: 764 | EB15: 21.5 | ED15: 262 | EE15: 12449 | EF15: 12714 | EG15: 13692 | EK15: -424 | EL15: 51 | EM15: 22 | EN15: -956 | EO15: 75 | EP15: 94 | EQ15: -1384 | ER15: 160 | ES15: 7 | ET15: 0 | EU15: 950 | EV15: 0 | EW15: 550 | EX15: 0 | EY15: 1000 | EZ15: 4950 | FA15: 0 | FB15: 4950 | FC15: 201 | FD15: 5500 | FE15: 0 | FF15: 5500 | FG15: 194 | FH15: 6500 | FI15: 0 | FJ15: 6500 | FK15: 187 | FL15: 2915.166066 | FM15: 3319.854428 | FN15: 3919.587629 | FO15: 311.5813953 | FP15: 128.4871733 | FV15: 500 | FW15: -500
A16: 61 | B16: Forssa | C16: 17185 | E16: 2.075708061 | F16: 43.33006643 | G16: -1705.789933 | K16: 59.02174762 | L16: 943.3226651 | M16: 49.01721438 | N16: 7024.323538 | O16: 28963 | P16: 18153 | Q16: 111805 | R16: -93652 | S16: 61074 | T16: 40152 | W16: -376 | X16: 33 | Y16: 7231 | Z16: 7029 | AA16: 0 | AB16: 0 | AC16: 202 | AD16: 109 | AE16: 0 | AF16: 0 | AG16: 311 | AH16: 9062 | AI16: 5232 | AK16: -402 | AL16: -3281 | AM16: 1047 | AN16: 61074 | AO16: 51892 | AP16: 3856 | AQ16: 5326 | AR16: 20.5 | AT16: 195 | AU16: 17028 | AW16: 1.528272657 | AX16: 45.47908232 | AY16: -1777.073056 | BC16: 59.29433559 | BD16: 1039.640592 | BE16: 52.93005292 | BF16: 7169.250646 | BG16: 29324 | BH16: 18368 | BI16: 112690 | BJ16: -94322 | BK16: 60239 | BL16: 39953 | BO16: -359 | BP16: 42 | BQ16: 5553 | BR16: 8099 | BS16: 0 | BT16: -2000 | BU16: -546 | BV16: 93 | BW16: 0 | BX16: 0 | BY16: -453 | BZ16: 8609 | CA16: 3837 | CC16: 245 | CD16: -3507 | CE16: -1029 | CF16: 60239 | CG16: 51271 | CH16: 3659 | CI16: 5309 | CJ16: 20.5 | CL16: 102 | CM16: 16901 | CO16: 0.7907403007 | CP16: 51.88099151 | CQ16: -1892.077392 | CU16: 56.36317406 | CV16: 1346.015029 | CW16: 61.88381764 | CX16: 7938.997692 | CY16: 29784 | CZ16: 18319 | DA16: 114153 | DB16: -95834 | DC16: 60706 | DD16: 40832 | DG16: -244 | DH16: 60 | DI16: 5520 | DJ16: 6058 | DK16: 100 | DL16: 125 | DM16: -563 | DN16: 94 | DO16: 0 | DP16: 0 | DQ16: -469 | DR16: 8139 | DS16: 3972 | DU16: -1499 | DV16: -13513 | DW16: -1854 | DX16: 60706 | DY16: 51722 | DZ16: 3679 | EA16: 5305 | EB16: 20.5 | ED16: 81 | EE16: 73980 | EF16: 75016 | EG16: 75782 | EK16: -5231 | EL16: 17 | EM16: 1029 | EN16: -5510 | EO16: 43 | EP16: 601 | EQ16: -6173 | ER16: 164 | ES16: 183 | ET16: 4000 | EU16: -2454 | EV16: 6383 | EW16: -1160 | EX16: 10152 | EY16: 12068 | EZ16: 43225 | FA16: 21422 | FB16: 21803 | FC16: 762 | FD16: 44942 | FE16: 24067 | FF16: 20875 | FG16: 639 | FH16: 53650 | FI16: 20810 | FJ16: 32840 | FK16: 517 | FL16: 3828.978761 | FM16: 4002.877613 | FN16: 4080.527779 | FO16: 2523.02439 | FP16: 149.2825508 | FV16: 2820 | FW16: -2820
A17: 69 | B17: Haapajärvi | C17: 7251 | E17: 0.4748024583 | F17: 73.08300772 | G17: -3172.527927 | K17: 39.06412971 | L17: 1825.403393 | M17: 78.69203329 | N17: 8466.832161 | O17: 14434 | P17: 6095 | Q17: 50266 | R17: -44171 | S17: 22750 | T17: 23620 | W17: -407 | X17: 499 | Y17: 2291 | Z17: 1751 | AA17: 25 | AB17: 50 | AC17: 515 | AD17: 85 | AE17: 0 | AF17: 0 | AG17: 600 | AH17: -146 | AI17: 2226 | AK17: -169 | AL17: -5282 | AM17: -2542 | AN17: 22750 | AO17: 19282 | AP17: 1575 | AQ17: 1893 | AR17: 22 | AT17: 241 | AU17: 7147 | AW17: 0.06125461255 | AX17: 73.09428142 | AY17: -3316.216594 | BC17: 37.02465047 | BD17: 1864.838394 | BE17: 81.37704918 | BF17: 8364.348678 | BG17: 14583 | BH17: 5885 | BI17: 52269 | BJ17: -46384 | BK17: 23161 | BL17: 23467 | BO17: -295 | BP17: 84 | BQ17: 33 | BR17: 2056 | BS17: 0 | BT17: 0 | BU17: -2023 | BV17: 85 | BW17: 0 | BX17: 0 | BY17: -1938 | BZ17: -2084 | CA17: 27 | CC17: 748 | CD17: -5121 | CE17: -1272 | CF17: 23161 | CG17: 19358 | CH17: 1560 | CI17: 2243 | CJ17: 22 | CL17: 252 | CM17: 7010 | CO17: 0.03024061206 | CP17: 83.36246806 | CQ17: -3805.848787 | CU17: 31.8881097 | CV17: 2208.131241 | CW17: 89.96839071 | CX17: 8958.345221 | CY17: 14390 | CZ17: 5171 | DA17: 53348 | DB17: -48177 | DC17: 23573 | DD17: 23313 | DG17: -328 | DH17: 1455 | DI17: -164 | DJ17: 2114 | DK17: 0 | DL17: 0 | DM17: -2278 | DN17: 85 | DO17: 0 | DP17: 0 | DQ17: -2193 | DR17: -4277 | DS17: -353 | DU17: 116 | DV17: -5040 | DW17: -3717 | DX17: 23573 | DY17: 20118 | DZ17: 1237 | EA17: 2218 | EB17: 22.5 | ED17: 237 | EE17: 32006 | EF17: 33873 | EG17: 34825 | EK17: -5179 | EL17: 211 | EM17: 200 | EN17: -1372 | EO17: 64 | EP17: 9 | EQ17: -3878 | ER17: 177 | ES17: 337 | ET17: 5710 | EU17: 1318 | EV17: 5890 | EW17: -1040 | EX17: 8005 | EY17: 2000 | EZ17: 34361 | FA17: 21879 | FB17: 12482 | FC17: 1132 | FD17: 34091 | FE17: 22649 | FF17: 11442 | FG17: 1132 | FH17: 39056 | FI17: 25816 | FJ17: 13240 | FK17: 1132 | FL17: 5934.21597 | FM17: 5898.139079 | FN17: 7411.269615 | FO17: 894.1333333 | FP17: 127.5511175 | FV17: 5099 | FW17: -5099
A18: 71 | B18: Haapavesi | C18: 6970 | E18: 1.104992436 | F18: 67.07123273 | G18: -2610.61693 | K18: 34.92258499 | L18: 1280.774749 | M18: 50.4662743 | N18: 9263.271162 | O18: 27472 | P18: 12544 | Q18: 54617 | R18: -42073 | S18: 20768 | T18: 23997 | W18: -150 | X18: 840 | Y18: 3382 | Z18: 2980 | AA18: 7563 | AB18: 0 | AC18: 7965 | AD18: 0 | AE18: 0 | AF18: 0 | AG18: 7965 | AH18: 5004 | AI18: 10747 | AK18: -5894 | AL18: -3035 | AM18: 7793 | AN18: 20768 | AO18: 17804 | AP18: 1291 | AQ18: 1673 | AR18: 22 | AT18: 151 | AU18: 6854 | AW18: 0.1634326319 | AX18: 64.90134809 | AY18: -2563.174788 | BC18: 34.61799479 | BD18: 1126.495477 | BE18: 45.51520584 | BF18: 9033.702947 | BG18: 28185 | BH18: 11262 | BI18: 55683 | BJ18: -44421 | BK18: 20219 | BL18: 24524 | BO18: -163 | BP18: 145 | BQ18: 304 | BR18: 1671 | BS18: 0 | BT18: 0 | BU18: -1367 | BV18: 0 | BW18: 0 | BX18: 0 | BY18: -1367 | BZ18: 3637 | CA18: 304 | CC18: 224 | CD18: -3365 | CE18: 28 | CF18: 20219 | CG18: 17246 | CH18: 1309 | CI18: 1664 | CJ18: 22 | CL18: 234 | CM18: 6758 | CO18: 0.3188675731 | CP18: 57.88160289 | CQ18: -2593.666765 | CU18: 34.19378295 | CV18: 1190.440959 | CW18: 44.61634886 | CX18: 9738.828056 | CY18: 30204 | CZ18: 16163 | DA18: 61497 | DB18: -45334 | DC18: 21361 | DD18: 24589 | DG18: -153 | DH18: 528 | DI18: 991 | DJ18: 1565 | DK18: 0 | DL18: 0 | DM18: -574 | DN18: 0 | DO18: 0 | DP18: 0 | DQ18: -574 | DR18: 3063 | DS18: 963 | DU18: 681 | DV18: -2833 | DW18: 255 | DX18: 21361 | DY18: 18344 | DZ18: 1310 | EA18: 1707 | EB18: 22 | ED18: 155 | EE18: 20826 | EF18: 20573 | EG18: 23684 | EK18: -6464 | EL18: 81 | EM18: 3429 | EN18: -1843 | EO18: 43 | EP18: 1524 | EQ18: -970 | ER18: 90 | ES18: 172 | ET18: 3011 | EU18: 3150 | EV18: 7000 | EW18: -6289 | EX18: 0 | EY18: 2011 | EZ18: 30900 | FA18: 7349 | FB18: 23551 | FC18: 585 | FD18: 28246 | FE18: 11166 | FF18: 17080 | FG18: 0 | FH18: 27424 | FI18: 9251 | FJ18: 18173 | FK18: 0 | FL18: 5505.164993 | FM18: 5428.6548 | FN18: 5545.723587 | FO18: 833.8181818 | FP18: 123.3823885 | FV18: 1987 | FW18: -1987
A19: 72 | B19: Hailuoto | C19: 967 | E19: 2.551428571 | F19: 36.1790442 | G19: 289.5553257 | K19: 70.83453237 | L19: 3105.480869 | M19: 126.8775321 | N19: 8933.815926 | O19: 3540 | P19: 1747 | Q19: 8120 | R19: -6373 | S19: 3691 | T19: 3476 | W19: -11 | X19: 89 | Y19: 872 | Z19: 409 | AA19: 0 | AB19: 0 | AC19: 463 | AD19: 133 | AE19: 0 | AF19: 0 | AG19: 596 | AH19: 3447 | AI19: 787 | AK19: 343 | AL19: -329 | AM19: 711 | AN19: 3691 | AO19: 3245 | AP19: 114 | AQ19: 332 | AR19: 20 | AT19: 21 | AU19: 974 | AW19: 0.2949152542 | AX19: 37.73695296 | AY19: -591.37577 | BC19: 70.11494253 | BD19: 2139.63039 | BE19: 74.5745098 | BF19: 10472.27926 | BG19: 3710 | BH19: 1631 | BI19: 8465 | BJ19: -6834 | BK19: 3469 | BL19: 3446 | BO19: -13 | BP19: 0 | BQ19: 68 | BR19: 398 | BS19: 0 | BT19: 0 | BU19: -330 | BV19: 259 | BW19: 0 | BX19: 0 | BY19: -71 | BZ19: 3376 | CA19: -47 | CC19: -64 | CD19: -276 | CE19: -852 | CF19: 3469 | CG19: 3032 | CH19: 98 | CI19: 339 | CJ19: 20.5 | CL19: 222 | CM19: 959 | CO19: -0.1309285237 | CP19: 42.87563243 | CQ19: -2590.198123 | CU19: 66.99122225 | CV19: 739.3117831 | CW19: 24.16067594 | CX19: 11168.92596 | CY19: 3781 | CZ19: 1482 | DA19: 8551 | DB19: -7069 | DC19: 3591 | DD19: 3426 | DG19: -12 | DH19: -2 | DI19: -66 | DJ19: 367 | DK19: 0 | DL19: 0 | DM19: -433 | DN19: 106 | DO19: 0 | DP19: 0 | DQ19: -327 | DR19: 3048 | DS19: -70 | DU19: 115 | DV19: -276 | DW19: -1922 | DX19: 3591 | DY19: 3153 | DZ19: 98 | EA19: 340 | EB19: 20.5 | ED19: 253 | EE19: 3416 | EF19: 3593 | EG19: 3566 | EK19: -168 | EL19: 0 | EM19: 92 | EN19: -1438 | EO19: 0 | EP19: 633 | EQ19: -1864 | ER19: 8 | ES19: 4 | ET19: 0 | EU19: 53 | EV19: 0 | EW19: 0 | EX19: 900 | EY19: 0 | EZ19: 2232 | FA19: 1956 | FB19: 276 | FC19: 0 | FD19: 1956 | FE19: 1680 | FF19: 276 | FG19: 0 | FH19: 2580 | FI19: 2244 | FJ19: 336 | FK19: 0 | FL19: 3308.169597 | FM19: 2798.767967 | FN19: 3734.098019 | FO19: 153.804878 | FP19: 160.3804776 | FV19: 0 | FW19: 0
A20: 74 | B20: Halsua | C20: 1171 | E20: 15.79310345 | F20: 50.08510155 | G20: -2977.796755 | K20: 43.5982622 | L20: 191.2894962 | M20: 9.472830495 | N20: 7370.623399 | O20: 1934 | P20: 946 | Q20: 8358 | R20: -7412 | S20: 3712 | T20: 4155 | W20: -26 | X20: 3 | Y20: 432 | Z20: 147 | AA20: 0 | AB20: 0 | AC20: 285 | AD20: 0 | AE20: 0 | AF20: 0 | AG20: 285 | AH20: 469 | AI20: 406 | AK20: -114 | AL20: -3 | AM20: 209 | AN20: 3712 | AO20: 2805 | AP20: 356 | AQ20: 551 | AR20: 22 | AT20: 214 | AU20: 1165 | AW20: 2 | AX20: 57.36355435 | AY20: -3425.751073 | BC20: 39.12627169 | BD20: 157.9399142 | BE20: 7.170617126 | BF20: 8039.484979 | BG20: 2110 | BH20: 1130 | BI20: 8862 | BJ20: -7732 | BK20: 3411 | BL20: 4327 | BO20: -22 | BP20: 1 | BQ20: -15 | BR20: 129 | BS20: 0 | BT20: 53 | BU20: -144 | BV20: 0 | BW20: 0 | BX20: 0 | BY20: -144 | BZ20: 326 | CA20: -196 | CC20: -209 | CD20: -7 | CE20: -505 | CF20: 3411 | CG20: 2623 | CH20: 432 | CI20: 356 | CJ20: 22 | CL20: 241 | CM20: 1127 | CO20: -0.2599061033 | CP20: 62.41025075 | CQ20: -4189.88465 | CU20: 34.2870435 | CV20: 364.6850044 | CW20: 15.29360791 | CX20: 8703.637977 | CY20: 2089 | CZ20: 1052 | DA20: 9229 | DB20: -8177 | DC20: 3852 | DD20: 4149 | DG20: -24 | DH20: 2 | DI20: -198 | DJ20: 123 | DK20: 0 | DL20: 0 | DM20: -321 | DN20: 0 | DO20: 0 | DP20: 0 | DQ20: -321 | DR20: 5 | DS20: -268 | DU20: 354 | DV20: -7 | DW20: -731 | DX20: 3852 | DY20: 3017 | DZ20: 414 | EA20: 421 | EB20: 22 | ED20: 268 | EE20: 5334 | EF20: 5620 | EG20: 5999 | EK20: -234 | EL20: 0 | EM20: 37 | EN20: -526 | EO20: 0 | EP20: 217 | EQ20: -548 | ER20: 14 | ES20: 71 | ET20: 0 | EU20: -100 | EV20: 0 | EW20: 450 | EX20: 0 | EY20: 550 | EZ20: 3952 | FA20: 1000 | FB20: 2952 | FC20: 95 | FD20: 4396 | FE20: 989 | FF20: 3407 | FG20: 95 | FH20: 4939 | FI20: 982 | FJ20: 3957 | FK20: 95 | FL20: 12273.27071 | FM20: 12171.67382 | FN20: 12808.34073 | FO20: 137.1363636 | FP20: 121.6826652 | FV20: 188 | FW20: -188
A21: 75 | B21: Hamina | C21: 20493 | E21: 1.186041563 | F21: 73.24713374 | G21: -4297.223442 | K21: 46.9086015 | L21: 808.6663739 | M21: 37.8018036 | N21: 7808.178402 | O21: 56876 | P21: 29928 | Q21: 134893 | R21: -104965 | S21: 82553 | T21: 37419 | W21: -365 | X21: 1142 | Y21: 15784 | Z21: 10036 | AA21: 0 | AB21: 0 | AC21: 5748 | AD21: 0 | AE21: 0 | AF21: 0 | AG21: 5748 | AH21: 6124 | AI21: 14126 | AK21: -77 | AL21: -13161 | AM21: 3938 | AN21: 82553 | AO21: 70564 | AP21: 5202 | AQ21: 6787 | AR21: 21 | AT21: 42 | AU21: 20286 | AW21: 0.6800935204 | AX21: 74.08869988 | AY21: -4571.083506 | BC21: 46.922434 | BD21: 596.0268165 | BE21: 25.7243323 | BF21: 8456.965395 | BG21: 58562 | BH21: 29958 | BI21: 141148 | BJ21: -111190 | BK21: 81202 | BL21: 37357 | BO21: -244 | BP21: 2245 | BQ21: 9370 | BR21: 8918 | BS21: 0 | BT21: 0 | BU21: 452 | BV21: 0 | BW21: 0 | BX21: 0 | BY21: 452 | BZ21: 6576 | CA21: 9488 | CC21: -66 | CD21: -14159 | CE21: -4842 | CF21: 81202 | CG21: 69190 | CH21: 5404 | CI21: 6608 | CJ21: 21 | CL21: 55 | CM21: 20111 | CO21: 0.8703051524 | CP21: 68.65713958 | CQ21: -4744.418477 | CU21: 48.58124283 | CV21: 174.481627 | CW21: 7.468003475 | CX21: 8527.820596 | CY21: 35340 | CZ21: 24531 | DA21: 140655 | DB21: -115782 | DC21: 85455 | DD21: 38153 | DG21: -33 | DH21: 2279 | DI21: 10072 | DJ21: 11140 | DK21: 0 | DL21: 0 | DM21: -1068 | DN21: 0 | DO21: 0 | DP21: 0 | DQ21: -1068 | DR21: 5507 | DS21: 9663 | DU21: 2150 | DV21: -16895 | DW21: -2304 | DX21: 85455 | DY21: 71246 | DZ21: 7415 | EA21: 6794 | EB21: 21 | ED21: 34 | EE21: 56363 | EF21: 60359 | EG21: 93085 | EK21: -11316 | EL21: 456 | EM21: 672 | EN21: -15636 | EO21: 567 | EP21: 739 | EQ21: -13086 | ER21: 129 | ES21: 990 | ET21: 13000 | EU21: 4362 | EV21: 15000 | EW21: -2994 | EX21: 17600 | EY21: 2620 | EZ21: 86021 | FA21: 66009 | FB21: 20012 | FC21: 16042 | FD21: 83868 | FE21: 63449 | FF21: 20419 | FG21: 15926 | FH21: 87192 | FI21: 69298 | FJ21: 17894 | FK21: 16138 | FL21: 7412.579905 | FM21: 7567.386375 | FN21: 7896.52429 | FO21: 3392.666667 | FP21: 168.6970646 | FV21: 9905 | FW21: -9905
A22: 77 | B22: Hankasalmi | C22: 5019 | E22: 4.023890785 | F22: 42.67371976 | G22: -2359.832636 | K22: 51.83611872 | L22: 632.1976489 | M22: 28.56795757 | N22: 8077.306236 | O22: 15004 | P22: 5835 | Q22: 38055 | R22: -32220 | S22: 15304 | T22: 19127 | W22: -70 | X22: 147 | Y22: 2288 | Z22: 1578 | AA22: 0 | AB22: 0 | AC22: 710 | AD22: 22 | AE22: 0 | AF22: 0 | AG22: 732 | AH22: -165 | AI22: 2007 | AK22: 108 | AL22: -516 | AM22: 506 | AN22: 15304 | AO22: 13142 | AP22: 854 | AQ22: 1308 | AR22: 22 | AT22: 175 | AU22: 4939 | AW22: 1.625167336 | AX22: 46.23763117 | AY22: -2479.449281 | BC22: 48.94791781 | BD22: 832.9621381 | BE22: 36.37533005 | BF22: 8358.16967 | BG22: 15779 | BH22: 6723 | BI22: 39080 | BJ22: -32357 | BK22: 14586 | BL22: 18812 | BO22: -61 | BP22: 173 | BQ22: 1153 | BR22: 1661 | BS22: 0 | BT22: 0 | BU22: -508 | BV22: 22 | BW22: 0 | BX22: 0 | BY22: -486 | BZ22: -872 | CA22: -154 | CC22: -24 | CD22: -686 | CE22: -164 | CF22: 14586 | CG22: 12406 | CH22: 873 | CI22: 1307 | CJ22: 22 | CL22: 148 | CM22: 4875 | CO22: 0.1120448179 | CP22: 44.8739882 | CQ22: -2919.384615 | CU22: 48.12586629 | CV22: 230.3589744 | CW22: 9.72675067 | CX22: 8644.307692 | CY22: 15590 | CZ22: 5265 | DA22: 39124 | DB22: -33859 | DC22: 15412 | DD22: 18486 | DG22: -61 | DH22: 176 | DI22: 154 | DJ22: 1654 | DK22: 0 | DL22: 0 | DM22: -1500 | DN22: 22 | DO22: 0 | DP22: 0 | DQ22: -1478 | DR22: -2350 | DS22: 181 | DU22: -30 | DV22: -726 | DW22: -1967 | DX22: 15412 | DY22: 13140 | DZ22: 949 | EA22: 1323 | EB22: 22 | ED22: 217 | EE22: 19017 | EF22: 18935 | EG22: 19217 | EK22: -1863 | EL22: 24 | EM22: 338 | EN22: -1445 | EO22: 0 | EP22: 1435 | EQ22: -2173 | ER22: 0 | ES22: 25 | ET22: 1700 | EU22: 0 | EV22: 0 | EW22: 1000 | EX22: 4000 | EY22: -2000 | EZ22: 11601 | FA22: 3915 | FB22: 7686 | FC22: 0 | FD22: 11916 | FE22: 3390 | FF22: 8526 | FG22: 0 | FH22: 13189 | FI22: 6258 | FJ22: 6931 | FK22: 0 | FL22: 3873.879259 | FM22: 4444.421948 | FN22: 5201.230769 | FO22: 597.2727273 | FP22: 122.5174825 | FV22: 985 | FW22: -985
A23: 78 | B23: Hanko | C23: 8517 | E23: 1.462329407 | F23: 100.2558506 | G23: -7570.15381 | K23: 38.1896222 | L23: 167.6646707 | M23: 7.170252572 | N23: 8534.93014 | O23: 27420 | P23: 17751 | Q23: 64457 | R23: -46706 | S23: 39028 | T23: 12668 | W23: 908 | X23: 1066 | Y23: 6964 | Z23: 3824 | AA23: 0 | AB23: 0 | AC23: 3140 | AD23: 10 | AE23: 0 | AF23: 0 | AG23: 3150 | AH23: 5985 | AI23: 5180 | AK23: 636 | AL23: -4491 | AM23: 3651 | AN23: 39028 | AO23: 33622 | AP23: 2782 | AQ23: 2624 | AR23: 21.75 | AT23: 30 | AU23: 8379 | AW23: 0.8788584741 | AX23: 103.1626147 | AY23: -7629.43072 | BC23: 38.30902849 | BD23: 247.4042248 | BE23: 10.19283876 | BF23: 8859.410431 | BG23: 27512 | BH23: 16376 | BI23: 65760 | BJ23: -49384 | BK23: 38680 | BL23: 12372 | BO23: 991 | BP23: 1088 | BQ23: 3747 | BR23: 3600 | BS23: 0 | BT23: 0 | BU23: 147 | BV23: 10 | BW23: 0 | BX23: 0 | BY23: 157 | BZ23: 6142 | CA23: 3333 | CC23: 206 | CD23: -4371 | CE23: 433 | CF23: 38680 | CG23: 33003 | CH23: 2734 | CI23: 2943 | CJ23: 21.75 | CL23: 59 | CM23: 8199 | CO23: 0.4355288449 | CP23: 107.6355333 | CQ23: -7875.716551 | CU23: 37.19105694 | CV23: 275.0335407 | CW23: 10.77802949 | CX23: 9314.062691 | CY23: 28636 | CZ23: 15813 | DA23: 68052 | DB23: -52014 | DC23: 39454 | DD23: 12613 | DG23: 993 | DH23: 2209 | DI23: 3255 | DJ23: 3535 | DK23: 0 | DL23: 0 | DM23: -280 | DN23: 10 | DO23: 0 | DP23: 0 | DQ23: -270 | DR23: 5871 | DS23: 3147 | DU23: -2986 | DV23: -3763 | DW23: -745 | DX23: 39454 | DY23: 33381 | DZ23: 3254 | EA23: 2819 | EB23: 21.75 | ED23: 58 | EE23: 28212 | EF23: 29106 | EG23: 30240 | EK23: -3138 | EL23: 0 | EM23: 1609 | EN23: -3358 | EO23: 0 | EP23: 458 | EQ23: -3993 | ER23: 0 | ES23: 101 | ET23: 4000 | EU23: -3000 | EV23: 3800 | EW23: -1000 | EX23: 4700 | EY23: 3000 | EZ23: 61921 | FA23: 20050 | FB23: 41871 | FC23: 31275 | FD23: 60350 | FE23: 20087 | FF23: 40263 | FG23: 30823 | FH23: 64286 | FI23: 20903 | FJ23: 43383 | FK23: 30766 | FL23: 8603.26406 | FM23: 8482.515813 | FN23: 9489.693865 | FO23: 1534.758621 | FP23: 187.1885133 | FV23: 13300 | FW23: -13300
A24: 79 | B24: Harjavalta | C24: 7151 | E24: 0.9371155161 | F24: 42.25435968 | G24: -2509.71892 | K24: 52.75991879 | L24: 236.6102643 | M24: 11.21221474 | N24: 7702.559083 | O24: 15344 | P24: 5622 | Q24: 49443 | R24: -43821 | S24: 34748 | T24: 11726 | W24: -131 | X24: 80 | Y24: 2602 | Z24: 2314 | AA24: 0 | AB24: 0 | AC24: 288 | AD24: 0 | AE24: 0 | AF24: 0 | AG24: 288 | AH24: 6955 | AI24: 2534 | AK24: 17 | AL24: -2786 | AM24: 197 | AN24: 34748 | AO24: 24137 | AP24: 8740 | AQ24: 1871 | AR24: 20.75 | AT24: 218 | AU24: 7018 | AW24: -0.02264705882 | AX24: 47.10165108 | AY24: -2870.475919 | BC24: 48.20670788 | BD24: 126.6742662 | BE24: 5.722738576 | BF24: 8079.367341 | BG24: 15573 | BH24: 5875 | BI24: 50463 | BJ24: -44588 | BK24: 33349 | BL24: 11079 | BO24: -106 | BP24: 75 | BQ24: -191 | BR24: 2373 | BS24: 0 | BT24: 0 | BU24: -2564 | BV24: 0 | BW24: 0 | BX24: 0 | BY24: -2564 | BZ24: 4391 | CA24: -238 | CC24: -281 | CD24: -3286 | CE24: -2321 | CF24: 33349 | CG24: 24048 | CH24: 7408 | CI24: 1893 | CJ24: 20.75 | CL24: 261 | CM24: 6931 | CO24: -0.379412471 | CP24: 53.97834135 | CQ24: -3538.883278 | CU24: 40.30043473 | CV24: 113.1149906 | CW24: 4.759259567 | CX24: 8675.082961 | CY24: 16471 | CZ24: 5957 | DA24: 51801 | DB24: -45821 | DC24: 34223 | DD24: 10331 | DG24: -70 | DH24: 73 | DI24: -1264 | DJ24: 2389 | DK24: 0 | DL24: 0 | DM24: -3653 | DN24: 0 | DO24: 0 | DP24: 0 | DQ24: -3653 | DR24: 738 | DS24: -1367 | DU24: 691 | DV24: -4429 | DW24: -4462 | DX24: 34223 | DY24: 24706 | DZ24: 7273 | EA24: 2244 | EB24: 21.5 | ED24: 269 | EE24: 30004 | EF24: 30754 | EG24: 31361 | EK24: -2731 | EL24: 294 | EM24: 100 | EN24: -2860 | EO24: 71 | EP24: 706 | EQ24: -3832 | ER24: 0 | ES24: 737 | ET24: 5000 | EU24: -1500 | EV24: 6000 | EW24: -1500 | EX24: 4000 | EY24: 4000 | EZ24: 16429 | FA24: 10643 | FB24: 5786 | FC24: 27 | FD24: 17643 | FE24: 12500 | FF24: 5143 | FG24: 25 | FH24: 21214 | FI24: 12071 | FJ24: 9143 | FK24: 24 | FL24: 3287.372395 | FM24: 3533.342833 | FN24: 4071.129707 | FO24: 1149.116279 | FP24: 165.7937208 | FV24: 0 | FW24: 0
A25: 81 | B25: Hartola | C25: 2882 | E25: 0.9136778116 | F25: 73.28922324 | G25: -4672.102706 | K25: 28.27715356 | L25: 410.4788341 | M25: 18.97499561 | N25: 7895.905621 | O25: 4477 | P25: 2926 | Q25: 20601 | R25: -17675 | S25: 9988 | T25: 9153 | W25: -141 | X25: 28 | Y25: 1353 | Z25: 782 | AA25: 250 | AB25: 500 | AC25: 321 | AD25: 0 | AE25: 0 | AF25: 0 | AG25: 321 | AH25: 963 | AI25: 1039 | AK25: 1589 | AL25: -1495 | AM25: 650 | AN25: 9988 | AO25: 7275 | AP25: 1391 | AQ25: 1322 | AR25: 21.5 | AT25: 163 | AU25: 2780 | AW25: 0.1577922078 | AX25: 71.88056623 | AY25: -4974.820144 | BC25: 27.14472212 | BD25: 127.6978417 | BE25: 5.557580956 | BF25: 8386.690647 | BG25: 4307 | BH25: 2650 | BI25: 21133 | BJ25: -18483 | BK25: 9796 | BL25: 8888 | BO25: -119 | BP25: 33 | BQ25: 115 | BR25: 786 | BS25: 0 | BT25: 0 | BU25: -671 | BV25: 0 | BW25: 0 | BX25: 0 | BY25: -671 | BZ25: 292 | CA25: 201 | CC25: 373 | CD25: -1412 | CE25: -394 | CF25: 9796 | CG25: 7218 | CH25: 1260 | CI25: 1318 | CJ25: 21.5 | CL25: 236 | CM25: 2697 | CO25: -0.1294929779 | CP25: 63.16551624 | CQ25: -4007.786429 | CU25: 26.30267457 | CV25: 469.7812384 | CW25: 17.4110538 | CX25: 9848.350019 | CY25: 4331 | CZ25: 2730 | DA25: 20989 | DB25: -18256 | DC25: 9355 | DD25: 8632 | DG25: -109 | DH25: 56 | DI25: -322 | DJ25: 750 | DK25: 0 | DL25: 0 | DM25: -1072 | DN25: 0 | DO25: 0 | DP25: 0 | DQ25: -1072 | DR25: -780 | DS25: -323 | DU25: 139 | DV25: -4897 | DW25: 3029 | DX25: 9355 | DY25: 6734 | DZ25: 1293 | EA25: 1328 | EB25: 21.5 | ED25: 265 | EE25: 14658 | EF25: 15436 | EG25: 15234 | EK25: -511 | EL25: 0 | EM25: 122 | EN25: -641 | EO25: 0 | EP25: 46 | EQ25: -555 | ER25: 52 | ES25: 3855 | ET25: 667 | EU25: -1100 | EV25: 0 | EW25: 500 | EX25: 1500 | EY25: 2000 | EZ25: 13468 | FA25: 11056 | FB25: 2412 | FC25: 24 | FD25: 12556 | FE25: 9883 | FF25: 2673 | FG25: 22 | FH25: 11159 | FI25: 6574 | FJ25: 4585 | FK25: 22 | FL25: 10403.88619 | FM25: 10175.89928 | FN25: 9944.382647 | FO25: 313.2093023 | FP25: 116.1324814 | FV25: 1545 | FW25: -1545
A26: 82 | B26: Hattula | C26: 9610 | E26: 0.846043578 | F26: 74.36725112 | G26: -4020.603538 | K26: 37.84245798 | L26: 5.098855359 | M26: 0.3163415109 | N26: 5883.14256 | O26: 21394 | P26: 7322 | Q26: 51691 | R26: -44369 | S26: 37543 | T26: 9659 | W26: 2 | X26: -82 | Y26: 2753 | Z26: 2081 | AA26: 0 | AB26: 0 | AC26: 672 | AD26: 0 | AE26: 0 | AF26: 0 | AG26: 672 | AH26: 5510 | AI26: 1806 | AK26: -62 | AL26: -3290 | AM26: 1159 | AN26: 37543 | AO26: 34090 | AP26: 1330 | AQ26: 2123 | AR26: 20.5 | AT26: 252 | AU26: 9475 | AW26: 0.2783080666 | AX26: 76.6255804 | AY26: -3950.290237 | BC26: 37.13222964 | BD26: 42.21635884 | BE26: 2.445069668 | BF26: 6302.058047 | BG26: 21791 | BH26: 6627 | BI26: 52354 | BJ26: -45727 | BK26: 37674 | BL26: 9329 | BO26: 41 | BP26: 11 | BQ26: 1328 | BR26: 1985 | BS26: 0 | BT26: 0 | BU26: -657 | BV26: 0 | BW26: 0 | BX26: 0 | BY26: -657 | BZ26: 4853 | CA26: 731 | CC26: -1402 | CD26: -5184 | CE26: 1198 | CF26: 37674 | CG26: 34059 | CH26: 1307 | CI26: 2308 | CJ26: 20.5 | CL26: 204 | CM26: 9422 | CO26: 0.1119562516 | CP26: 79.09412227 | CQ26: -4075.249416 | CU26: 34.74477603 | CV26: 52.96115474 | CW26: 3.150089071 | CX26: 6136.595203 | CY26: 21700 | CZ26: 6861 | DA26: 53143 | DB26: -46279 | DC26: 36891 | DD26: 9721 | DG26: 49 | DH26: 33 | DI26: 415 | DJ26: 2093 | DK26: 0 | DL26: 0 | DM26: -1678 | DN26: 0 | DO26: 0 | DP26: 0 | DQ26: -1678 | DR26: 3175 | DS26: 444 | DU26: -136 | DV26: -2938 | DW26: -945 | DX26: 36891 | DY26: 33409 | DZ26: 1229 | EA26: 2253 | EB26: 20.5 | ED26: 215 | EE26: 24061 | EF26: 24662 | EG26: 25877 | EK26: -1258 | EL26: 10 | EM26: 601 | EN26: -2008 | EO26: 0 | EP26: 2475 | EQ26: -1584 | ER26: 18 | ES26: 177 | ET26: 10002 | EU26: -7700 | EV26: 0 | EW26: 4556 | EX26: 3400 | EY26: 1141 | EZ26: 35161 | FA26: 27834 | FB26: 7327 | FC26: 4398 | FD26: 34533 | FE26: 22996 | FF26: 11537 | FG26: 4398 | FH26: 36137 | FI26: 23118 | FJ26: 13019 | FK26: 4398 | FL26: 4623.933403 | FM26: 4755.989446 | FN26: 5353.534281 | FO26: 1629.707317 | FP26: 172.9682994 | FV26: 1420 | FW26: -1420
A27: 86 | B27: Hausjärvi | C27: 8504 | E27: 0.5977301387 | F27: 53.08856363 | G27: -2895.108184 | K27: 41.95893666 | L27: 247.2953904 | M27: 13.0705638 | N27: 6905.809031 | O27: 17165 | P27: 6631 | Q27: 49034 | R27: -42403 | S27: 32232 | T27: 13575 | W27: -314 | X27: -91 | Y27: 2999 | Z27: 2117 | AA27: 0 | AB27: 0 | AC27: 882 | AD27: 0 | AE27: 0 | AF27: 0 | AG27: 882 | AH27: 6137 | AI27: 2200 | AK27: 353 | AL27: -5232 | AM27: -1166 | AN27: 32232 | AO27: 29362 | AP27: 1180 | AQ27: 1690 | AR27: 21.5 | AT27: 222 | AU27: 8417 | AW27: 0.3262642741 | AX27: 51.44377342 | AY27: -2944.87347 | BC27: 42.09485741 | BD27: 57.85909469 | BE27: 3.140936158 | BF27: 6723.654509 | BG27: 17338 | BH27: 6456 | BI27: 49778 | BJ27: -43322 | BK27: 31690 | BL27: 13374 | BO27: -241 | BP27: 52 | BQ27: 1553 | BR27: 2479 | BS27: 0 | BT27: 0 | BU27: -926 | BV27: 0 | BW27: 0 | BX27: 0 | BY27: -926 | BZ27: 5064 | CA27: 1197 | CC27: -122 | CD27: -5270 | CE27: 3 | CF27: 31690 | CG27: 28947 | CH27: 1665 | CI27: 1078 | CJ27: 21.5 | CL27: 177 | CM27: 8260 | CO27: 0.7058994902 | CP27: 53.65632097 | CQ27: -2979.05569 | CU27: 40.44674746 | CV27: 322.6392252 | CW27: 17.03516576 | CX27: 6912.953995 | CY27: 18038 | CZ27: 6733 | DA27: 50434 | DB27: -43693 | DC27: 32653 | DD27: 13454 | DG27: -215 | DH27: 4 | DI27: 2203 | DJ27: 2198 | DK27: 0 | DL27: 0 | DM27: 5 | DN27: 0 | DO27: 0 | DP27: 0 | DQ27: 5 | DR27: 5068 | DS27: 1936 | DU27: 139 | DV27: -4175 | DW27: 173 | DX27: 32653 | DY27: 29779 | DZ27: 1143 | EA27: 1731 | EB27: 21.5 | ED27: 100 | EE27: 25691 | EF27: 25980 | EG27: 26103 | EK27: -4075 | EL27: 0 | EM27: 709 | EN27: -1313 | EO27: 0 | EP27: 119 | EQ27: -2278 | ER27: 180 | ES27: 335 | ET27: 5500 | EU27: -800 | EV27: 0 | EW27: 3200 | EX27: 5000 | EY27: 800 | EZ27: 23777 | FA27: 18507 | FB27: 5270 | FC27: 122 | FD27: 21707 | FE27: 14499 | FF27: 7208 | FG27: 109 | FH27: 23332 | FI27: 15694 | FJ27: 7638 | FK27: 95 | FL27: 3116.298213 | FM27: 2871.094214 | FN27: 3190.072639 | FO27: 1385.069767 | FP27: 167.6839912 | FV27: 3465 | FW27: -3465
A28: 111 | B28: Heinola | C28: 19128 | E28: 1.18011401 | F28: 64.72315851 | G28: 218.0050188 | K28: 58.90894376 | L28: 4265.526976 | M28: 197.0849271 | N28: 7899.728147 | O28: 55115 | P28: 20060 | Q28: 125456 | R28: -105396 | S28: 69812 | T28: 42076 | W28: -471 | X28: 4109 | Y28: 10130 | Z28: 6771 | AA28: 0 | AB28: 0 | AC28: 3359 | AD28: 249 | AE28: 0 | AF28: 0 | AG28: 3608 | AH28: 20129 | AI28: 10077 | AK28: -156 | AL28: -8487 | AM28: -2246 | AN28: 69812 | AO28: 60317 | AP28: 3231 | AQ28: 6264 | AR28: 20.5 | AT28: 127 | AU28: 18889 | AW28: 1.301274499 | AX28: 63.10696058 | AY28: 99.05235852 | BC28: 59.79664329 | BD28: 4188.945947 | BE28: 191.6736906 | BF28: 7976.917783 | BG28: 55088 | BH28: 24265 | BI28: 124841 | BJ28: -100576 | BK28: 68917 | BL28: 42965 | BO28: -512 | BP28: 755 | BQ28: 11549 | BR28: 5777 | BS28: 0 | BT28: 0 | BU28: 5772 | BV28: 245 | BW28: 0 | BX28: 0 | BY28: 6017 | BZ28: 26145 | CA28: 8097 | CC28: -790 | CD28: -8736 | CE28: -2748 | CF28: 68917 | CG28: 59686 | CH28: 2988 | CI28: 6243 | CJ28: 20.5 | CL28: 18 | CM28: 18667 | CO28: 0.7729489448 | CP28: 76.7328235 | CQ28: -493.4911877 | CU28: 55.86936958 | CV28: 4490.973375 | CW28: 194.8512144 | CX28: 8412.599775 | CY28: 55428 | CZ28: 19955 | DA28: 127649 | DB28: -107188 | DC28: 68404 | DD28: 43449 | DG28: -433 | DH28: 4190 | DI28: 8422 | DJ28: 6367 | DK28: 0 | DL28: 0 | DM28: 2055 | DN28: 100 | DO28: 0 | DP28: 0 | DQ28: 2155 | DR28: 26269 | DS28: 7881 | DU28: 337 | DV28: -8288 | DW28: -12092 | DX28: 68404 | DY28: 58899 | DZ28: 3277 | EA28: 6228 | EB28: 20.5 | ED28: 42 | EE28: 52412 | EF28: 51881 | EG28: 54168 | EK28: -15276 | EL28: 1306 | EM28: 1647 | EN28: -14833 | EO28: 0 | EP28: 3988 | EQ28: -20643 | ER28: 0 | ES28: 670 | ET28: 19500 | EU28: -4000 | EV28: 8000 | EW28: 0 | EX28: 24000 | EY28: -1500 | EZ28: 66937 | FA28: 50197 | FB28: 16740 | FC28: 3667 | FD28: 66202 | FE28: 49910 | FF28: 16292 | FG28: 3623 | FH28: 80414 | FI28: 64361 | FJ28: 16053 | FK28: 3438 | FL28: 4446.465914 | FM28: 4399.068241 | FN28: 5175.711148 | FO28: 2873.121951 | FP28: 153.9144989 | FV28: 6262 | FW28: -6262
A29: 90 | B29: Heinävesi | C29: 3455 | E29: 9.48 | F29: 61.07157943 | G29: -3364.109986 | K29: 40.8747698 | L29: 1746.454414 | M29: 72.75883713 | N29: 8761.21563 | O29: 5880 | P29: 4780 | Q29: 28416 | R29: -23636 | S29: 12055 | T29: 13942 | W29: 153 | X29: -164 | Y29: 2350 | Z29: 1888 | AA29: 0 | AB29: 200 | AC29: 262 | AD29: 157 | AE29: 0 | AF29: 0 | AG29: 419 | AH29: 2595 | AI29: 2339 | AK29: 178 | AL29: -230 | AM29: 1737 | AN29: 12055 | AO29: 8594 | AP29: 2236 | AQ29: 1225 | AR29: 20.75 | AT29: 59 | AU29: 3329 | AW29: 65.25 | AX29: 66.37046013 | AY29: -3664.463803 | BC29: 37.32392167 | BD29: 1882.246921 | BE29: 78.52669528 | BF29: 8748.873536 | BG29: 5898 | BH29: 4662 | BI29: 28358 | BJ29: -23696 | BK29: 11515 | BL29: 13532 | BO29: 151 | BP29: 310 | BQ29: 1812 | BR29: 1373 | BS29: 68 | BT29: 1875 | BU29: -1368 | BV29: 157 | BW29: 0 | BX29: 0 | BY29: -1211 | BZ29: 1385 | CA29: -200 | CC29: -114 | CD29: -13 | CE29: -894 | CF29: 11515 | CG29: 8128 | CH29: 2051 | CI29: 1336 | CJ29: 21 | CL29: 33 | CM29: 3254 | CO29: 0.7577681256 | CP29: 61.48824196 | CQ29: -3410.26429 | CU29: 39.3666473 | CV29: 1780.57775 | CW29: 71.22490907 | CX29: 9124.769514 | CY29: 6098 | CZ29: 4498 | DA29: 28788 | DB29: -24290 | DC29: 11954 | DD29: 13570 | DG29: 138 | DH29: 314 | DI29: 1686 | DJ29: 1440 | DK29: 0 | DL29: 0 | DM29: 246 | DN29: 157 | DO29: 0 | DP29: 0 | DQ29: 403 | DR29: 1788 | DS29: 1686 | DU29: -14 | DV29: -13 | DW29: 1132 | DX29: 11954 | DY29: 8393 | DZ29: 2190 | EA29: 1371 | EB29: 21 | ED29: 26 | EE29: 20443 | EF29: 20480 | EG29: 20748 | EK29: -1102 | EL29: 32 | EM29: 468 | EN29: -732 | EO29: 31 | EP29: 7 | EQ29: -571 | ER29: 10 | ES29: 7 | ET29: 0 | EU29: 2100 | EV29: 0 | EW29: 800 | EX29: 0 | EY29: -1200 | EZ29: 17399 | FA29: 1986 | FB29: 15413 | FC29: 288 | FD29: 18184 | FE29: 1971 | FF29: 16213 | FG29: 54 | FH29: 16971 | FI29: 1958 | FJ29: 15013 | FK29: 54 | FL29: 6766.42547 | FM29: 6389.306098 | FN29: 6162.261832 | FO29: 399.6666667 | FP29: 122.823192 | FV29: 225 | FW29: -225
A30: 91 | B30: Helsinki | C30: 643272 | E30: 4.666510396 | F30: 47.69627438 | G30: -971.6216468 | K30: 79.55012797 | L30: 2046.662998 | M30: 98.91332377 | N30: 7552.389969 | O30: 1754139 | P30: 1314805 | Q30: 4175166 | R30: -2860361 | S30: 3380795 | T30: 220442 | W30: 61693 | X30: 35331 | Y30: 837900 | Z30: 354807 | AA30: 0 | AB30: 0 | AC30: 483093 | AD30: 3816 | AE30: -3893 | AF30: -1626 | AG30: 481390 | AH30: 5395682 | AI30: 664196 | AK30: 21757 | AL30: -165308 | AM30: 245051 | AN30: 3380795 | AO30: 2595152 | AP30: 528591 | AQ30: 257052 | AR30: 18.5 | AT30: 3 | AU30: 648042 | AW30: 6.265299304 | AX30: 45.77649168 | AY30: -907.3300805 | BC30: 80.59812863 | BD30: 1915.644356 | BE30: 90.65390119 | BF30: 7712.963049 | BG30: 1761795 | BH30: 1318252 | BI30: 4292821 | BJ30: -2974569 | BK30: 3416582 | BL30: 197308 | BO30: 60870 | BP30: 51805 | BQ30: 751996 | BR30: 346801 | BS30: 0 | BT30: 18412 | BU30: 386783 | BV30: -1308 | BW30: 1015 | BX30: 20105 | BY30: 406595 | BZ30: 5752870 | CA30: 626404 | CC30: -14884 | CD30: -105849 | CE30: 150717 | CF30: 3416582 | CG30: 2580483 | CH30: 574753 | CI30: 261346 | CJ30: 18 | CL30: 1 | CM30: 653835 | CO30: 4.224142039 | CP30: 43.74717515 | CQ30: -1006.538347 | CU30: 81.56712286 | CV30: 1700.80372 | CW30: 76.67420035 | CX30: 8096.509058 | CY30: 1764146 | CZ30: 1205175 | DA30: 4500217 | DB30: -3118484 | DC30: 3493732 | DD30: 232776 | DG30: 61221 | DH30: 72167 | DI30: 741412 | DJ30: 364436 | DK30: 0 | DL30: 0 | DM30: 376976 | DN30: -271 | DO30: -2699 | DP30: 5222 | DQ30: 379228 | DR30: 6102098 | DS30: 551214 | DU30: -33664 | DV30: -86541 | DW30: -32942 | DX30: 3493732 | DY30: 2632935 | DZ30: 586905 | EA30: 273892 | EB30: 18 | ED30: 4 | EE30: 1703349 | EF30: 1772721 | EG30: 1967058 | EK30: -621443 | EL30: 9667 | EM30: 192631 | EN30: -625292 | EO30: 11933 | EP30: 137672 | EQ30: -780382 | ER30: 15034 | ES30: 181192 | ET30: 0 | EU30: 0 | EV30: 0 | EW30: 0 | EX30: 0 | EY30: 0 | EZ30: 1205956 | FA30: 1100107 | FB30: 105849 | FC30: 1894226 | FD30: 1100107 | FE30: 1013566 | FF30: 86541 | FG30: 1943955 | FH30: 1013566 | FI30: 932025 | FJ30: 81541 | FK30: 1950332 | FL30: 7749.053278 | FM30: 7690.586413 | FN30: 7909.125391 | FO30: 146274.1667 | FP30: 223.7172477 | FV30: 116591 | FW30: -116591
A31: 97 | B31: Hirvensalmi | C31: 2236 | E31: 9.07518797 | F31: 19.19378285 | G31: 2275.49195 | K31: 79.24658626 | L31: 3713.774597 | M31: 174.5844133 | N31: 7764.31127 | O31: 3545 | P31: 2924 | Q31: 17008 | R31: -14084 | S31: 7614 | T31: 7348 | W31: 0 | X31: 329 | Y31: 1207 | Z31: 751 | AA31: 0 | AB31: 0 | AC31: 456 | AD31: 0 | AE31: 0 | AF31: 0 | AG31: 456 | AH31: 5009 | AI31: 1119 | AK31: 114 | AL31: -133 | AM31: 1041 | AN31: 7614 | AO31: 5379 | AP31: 936 | AQ31: 1299 | AR31: 20 | AT31: 117 | AU31: 2152 | AW31: 12.69343066 | AX31: 23.15174003 | AY31: 3139.869888 | BC31: 76.81066719 | BD31: 4936.802974 | BE31: 227.9694297 | BF31: 7904.275093 | BG31: 3557 | BH31: 3044 | BI31: 16271 | BJ31: -13227 | BK31: 7628 | BL31: 7115 | BO31: -4 | BP31: 223 | BQ31: 1735 | BR31: 1038 | BS31: 0 | BT31: 0 | BU31: 697 | BV31: 0 | BW31: 0 | BX31: 0 | BY31: 697 | BZ31: 5705 | CA31: 1599 | CC31: -32 | CD31: -133 | CE31: 1369 | CF31: 7628 | CG31: 5457 | CH31: 882 | CI31: 1289 | CJ31: 20 | CL31: 8 | CM31: 2136 | CO31: 4.83753258 | CP31: 25.1273539 | CQ31: 3723.314607 | CU31: 76.89669556 | CV31: 5670.411985 | CW31: 246.0281596 | CX31: 8412.453184 | CY31: 3653 | CZ31: 2784 | DA31: 17110 | DB31: -14326 | DC31: 7821 | DD31: 6866 | DG31: -1 | DH31: 335 | DI31: 695 | DJ31: 666 | DK31: 952 | DL31: 0 | DM31: 981 | DN31: 0 | DO31: 0 | DP31: 0 | DQ31: 981 | DR31: 6686 | DS31: 666 | DU31: 19 | DV31: -133 | DW31: 1568 | DX31: 7821 | DY31: 5569 | DZ31: 935 | EA31: 1317 | EB31: 20 | ED31: 82 | EE31: 11839 | EF31: 11129 | EG31: 11862 | EK31: -204 | EL31: 0 | EM31: 126 | EN31: -601 | EO31: 60 | EP31: 311 | EQ31: -654 | ER31: 21 | ES31: 1535 | ET31: 0 | EU31: 0 | EV31: 0 | EW31: 0 | EX31: 0 | EY31: 0 | EZ31: 433 | FA31: 300 | FB31: 133 | FC31: 38 | FD31: 300 | FE31: 167 | FF31: 133 | FG31: 38 | FH31: 166 | FI31: 33 | FJ31: 133 | FK31: 38 | FL31: 3693.202147 | FM31: 3827.137546 | FN31: 3953.183521 | FO31: 278.45 | FP31: 130.3604869 | FV31: 301 | FW31: -301
A32: 98 | B32: Hollola | C32: 23782 | E32: 1.752026956 | F32: 52.82068157 | G32: -2354.133378 | K32: 53.43253968 | L32: 613.2369019 | M32: 35.03046895 | N32: 6389.622403 | O32: 31037 | P32: 17236 | Q32: 129853 | R32: -112617 | S32: 91983 | T32: 36771 | W32: -661 | X32: 501 | Y32: 15977 | Z32: 10915 | AA32: 0 | AB32: 0 | AC32: 5062 | AD32: 6 | AE32: -5000 | AF32: 0 | AG32: 68 | AH32: 17959 | AI32: 15580 | AK32: 3791 | AL32: -8835 | AM32: 6617 | AN32: 91983 | AO32: 83598 | AP32: 3008 | AQ32: 5377 | AR32: 21 | AT32: 63 | AU32: 23602 | AW32: 1.098837878 | AX32: 47.41029376 | AY32: -2227.819676 | BC32: 56.35856926 | BD32: 407.5925769 | BE32: 23.36489643 | BF32: 6367.299381 | BG32: 31085 | BH32: 15322 | BI32: 132514 | BJ32: -117192 | BK32: 89740 | BL32: 36417 | BO32: -620 | BP32: 560 | BQ32: 8905 | BR32: 10437 | BS32: 0 | BT32: 583 | BU32: -2115 | BV32: 6 | BW32: 0 | BX32: 0 | BY32: -2109 | BZ32: 15851 | CA32: 7372 | CC32: 1639 | CD32: -8046 | CE32: 3504 | CF32: 89740 | CG32: 81565 | CH32: 2799 | CI32: 5376 | CJ32: 21 | CL32: 80 | CM32: 23410 | CO32: 1.352869655 | CP32: 42.65919136 | CQ32: -2104.357112 | CU32: 58.59485155 | CV32: 419.1371209 | CW32: 22.91745855 | CX32: 6675.480564 | CY32: 31886 | CZ32: 13768 | DA32: 137188 | DB32: -123350 | DC32: 92604 | DD32: 37747 | DG32: -653 | DH32: 1199 | DI32: 7547 | DJ32: 8992 | DK32: 787 | DL32: 0 | DM32: -658 | DN32: 6 | DO32: 0 | DP32: 0 | DQ32: -652 | DR32: 16371 | DS32: 7714 | DU32: 2434 | DV32: -8912 | DW32: 1907 | DX32: 92604 | DY32: 83879 | DZ32: 2949 | EA32: 5776 | EB32: 21 | ED32: 84 | EE32: 87977 | EF32: 90432 | EG32: 95795 | EK32: -10830 | EL32: 5 | EM32: 1862 | EN32: -8954 | EO32: 0 | EP32: 5086 | EQ32: -9542 | ER32: 0 | ES32: 3735 | ET32: 4000 | EU32: -4000 | EV32: 0 | EW32: 0 | EX32: 1250 | EY32: 3000 | EZ32: 53193 | FA32: 45146 | FB32: 8047 | FC32: 1867 | FD32: 45145 | FE32: 37601 | FF32: 7544 | FG32: 1948 | FH32: 40484 | FI32: 26730 | FJ32: 13754 | FK32: 1761 | FL32: 3164.199815 | FM32: 2780.442335 | FN32: 2525.331055 | FO32: 3994.238095 | FP32: 170.6210207 | FV32: 3784 | FW32: -3784
A33: 99 | B33: Honkajoki | C33: 1707 | E33: 1.307971014 | F33: 32.20338983 | G33: -2510.251904 | K33: 38.48470806 | L33: 129.466901 | M33: 4.883460467 | N33: 9676.625659 | O33: 6439 | P33: 6103 | Q33: 16104 | R33: -10001 | S33: 5978 | T33: 4380 | W33: -35 | X33: 4 | Y33: 326 | Z33: 322 | AA33: 0 | AB33: 0 | AC33: 4 | AD33: 5 | AE33: 0 | AF33: 0 | AG33: 9 | AH33: -1576 | AI33: 326 | AK33: -22 | AL33: -241 | AM33: 190 | AN33: 5978 | AO33: 4596 | AP33: 893 | AQ33: 489 | AR33: 22 | AT33: 275 | AU33: 1666 | AW33: -2.76816609 | AX33: 40.01510479 | AY33: -3163.265306 | BC33: 26.11671888 | BD33: 411.7647059 | BE33: 14.56348514 | BF33: 10319.92797 | BG33: 6397 | BH33: 6131 | BI33: 16695 | BJ33: -10564 | BK33: 5274 | BL33: 4484 | BO33: -25 | BP33: 5 | BQ33: -826 | BR33: 286 | BS33: 0 | BT33: 0 | BU33: -1112 | BV33: 5 | BW33: 0 | BX33: 0 | BY33: -1107 | BZ33: -2641 | CA33: -827 | CC33: 393 | CD33: -263 | CE33: -1025 | CF33: 5274 | CG33: 3950 | CH33: 691 | CI33: 633 | CJ33: 22 | CL33: 294 | CM33: 1620 | CO33: 1.245283019 | CP33: 37.46654253 | CQ33: -2843.82716 | CU33: 30.07698146 | CV33: 752.4691358 | CW33: 26.26689887 | CX33: 10456.17284 | CY33: 6078 | CZ33: 6439 | DA33: 16375 | DB33: -9929 | DC33: 5851 | DD33: 4896 | DG33: -23 | DH33: 6 | DI33: 801 | DJ33: 278 | DK33: 0 | DL33: 0 | DM33: 523 | DN33: 5 | DO33: 0 | DP33: 0 | DQ33: 528 | DR33: -2112 | DS33: 393 | DU33: -211 | DV33: -262 | DW33: 664 | DX33: 5851 | DY33: 4529 | DZ33: 659 | EA33: 663 | EB33: 22.5 | ED33: 35 | EE33: 8546 | EF33: 9137 | EG33: 9165 | EJ33: 230 | EK33: -136 | EL33: 0 | EM33: 0 | EN33: -208 | EO33: 8 | EP33: 2 | EQ33: -284 | ER33: 0 | ES33: 555 | ET33: 0 | EU33: 656 | EV33: 0 | EW33: 0 | EX33: 2000 | EY33: 0 | EZ33: 3091 | FA33: 1828 | FB33: 1263 | FC33: 1 | FD33: 2829 | FE33: 1567 | FF33: 1262 | FG33: 1 | FH33: 4566 | FI33: 3195 | FJ33: 1371 | FK33: 1 | FL33: 2962.507323 | FM33: 2899.759904 | FN33: 4048.765432 | FO33: 201.2888889 | FP33: 124.2524005 | FV33: 435 | FW33: -435
A34: 102 | B34: Huittinen | C34: 10207 | E34: 1.118179077 | F34: 47.08157133 | G34: -2347.114725 | K34: 54.37573838 | L34: 603.4094249 | M34: 29.28730556 | N34: 7520.133242 | O34: 30331 | P34: 11908 | Q34: 68298 | R34: -56390 | S34: 33980 | T34: 26010 | W34: -198 | X34: 109 | Y34: 3511 | Z34: 3675 | AA34: 0 | AB34: 0 | AC34: -164 | AD34: 25 | AE34: 0 | AF34: 0 | AG34: -139 | AH34: 8236 | AI34: 3376 | AK34: 252 | AL34: -3119 | AM34: -1282 | AN34: 33980 | AO34: 29763 | AP34: 1975 | AQ34: 2242 | AR34: 20.75 | AT34: 227 | AU34: 10091 | AW34: 0.08405232396 | AX34: 53.90114176 | AY34: -2876.721831 | BC34: 49.3967197 | BD34: 565.8507581 | BE34: 26.05904124 | BF34: 7925.676345 | BG34: 31593 | BH34: 11583 | BI34: 70540 | BJ34: -58957 | BK34: 32665 | BL34: 26259 | BO34: -193 | BP34: 335 | BQ34: 109 | BR34: 3715 | BS34: 0 | BT34: 0 | BU34: -3606 | BV34: 17 | BW34: 0 | BX34: 0 | BY34: -3589 | BZ34: 4648 | CA34: -331 | CC34: 344 | CD34: -3400 | CE34: -4933 | CF34: 32665 | CG34: 28530 | CH34: 1921 | CI34: 2214 | CJ34: 20.75 | CL34: 248 | CM34: 10044 | CO34: 0.1810855653 | CP34: 53.9851132 | CQ34: -3113.998407 | CU34: 46.58058216 | CV34: 350.7566706 | CW34: 16.44303927 | CX34: 7786.041418 | CY34: 31568 | CZ34: 11100 | DA34: 70130 | DB34: -59030 | DC34: 33622 | DD34: 26079 | DG34: -217 | DH34: 93 | DI34: 547 | DJ34: 4456 | DK34: 0 | DL34: 0 | DM34: -3909 | DN34: 15 | DO34: 0 | DP34: 0 | DQ34: -3894 | DR34: 725 | DS34: 533 | DU34: -233 | DV34: -4248 | DW34: -2350 | DX34: 33622 | DY34: 29044 | DZ34: 2108 | EA34: 2470 | EB34: 21 | ED34: 212 | EE34: 27599 | EF34: 28583 | EG34: 28534 | EK34: -5148 | EL34: 292 | EM34: 198 | EN34: -5696 | EO34: 416 | EP34: 678 | EQ34: -3578 | ER34: 432 | ES34: 263 | ET34: 5400 | EU34: 0 | EV34: 5500 | EW34: 0 | EX34: 6500 | EY34: 0 | EZ34: 23330 | FA34: 20105 | FB34: 3225 | FC34: 0 | FD34: 25430 | FE34: 21517 | FF34: 3913 | FG34: 140 | FH34: 27681 | FI34: 23771 | FJ34: 3910 | FK34: 140 | FL34: 2799.255413 | FM34: 3040.33297 | FN34: 3260.454002 | FO34: 1383.047619 | FP34: 137.6988868 | FV34: 1775 | FW34: -1775
A35: 103 | B35: Humppila | C35: 2290 | E35: 0.6284074605 | F35: 38.32057072 | G35: -1854.585153 | K35: 51.44179129 | L35: 44.54148472 | M35: 2.293052476 | N35: 7089.956332 | O35: 3562 | P35: 1574 | Q35: 14853 | R35: -13279 | S35: 7652 | T35: 6053 | W35: -27 | X35: 2 | Y35: 401 | Z35: 380 | AA35: 0 | AB35: 0 | AC35: 21 | AD35: 2 | AE35: 0 | AF35: 0 | AG35: 23 | AH35: -393 | AI35: 378 | AK35: -651 | AL35: -660 | AM35: -199 | AN35: 7652 | AO35: 6683 | AP35: 468 | AQ35: 501 | AR35: 22 | AT35: 278 | AU35: 2235 | AW35: -0.3909465021 | AX35: 53.91840932 | AY35: -2576.733781 | BC35: 44.62827373 | BD35: 212.0805369 | BE35: 9.827321784 | BF35: 7876.957494 | BG35: 3596 | BH35: 1512 | BI35: 14787 | BJ35: -13275 | BK35: 7252 | BL35: 5821 | BO35: -26 | BP35: 2 | BQ35: -226 | BR35: 324 | BS35: 662 | BT35: 0 | BU35: 112 | BV35: 2 | BW35: 0 | BX35: 0 | BY35: 114 | BZ35: -278 | CA35: 415 | CC35: -124 | CD35: -450 | CE35: -1802 | CF35: 7252 | CG35: 6326 | CH35: 379 | CI35: 547 | CJ35: 22 | CL35: 275 | CM35: 2184 | CO35: 0.3873459082 | CP35: 48.50315847 | CQ35: -2325.091575 | CU35: 46.79270763 | CV35: 350.7326007 | CW35: 18.25 | CX35: 7014.652015 | CY35: 3461 | CZ35: 1095 | DA35: 14250 | DB35: -13155 | DC35: 7768 | DD35: 5701 | DG35: -39 | DH35: 3 | DI35: 278 | DJ35: 378 | DK35: 0 | DL35: 0 | DM35: -100 | DN35: 0 | DO35: 0 | DP35: 0 | DQ35: -100 | DR35: -378 | DS35: 283 | DU35: 411 | DV35: -650 | DW35: 946 | DX35: 7768 | DY35: 6757 | DZ35: 409 | EA35: 602 | EB35: 22 | ED35: 169 | EE35: 10137 | EF35: 10070 | EG35: 9827 | EJ35: 310 | EK35: -685 | EL35: 45 | EM35: 63 | EN35: -2323 | EO35: 105 | EP35: 1 | EQ35: -372 | ER35: 35 | ES35: 1000 | ET35: 3000 | EU35: -1423 | EV35: 2000 | EW35: 200 | EX35: 0 | EY35: 0 | EZ35: 4775 | FA35: 3525 | FB35: 1250 | FC35: 386 | FD35: 6525 | FE35: 4875 | FF35: 1650 | FG35: 377 | FH35: 5875 | FI35: 4225 | FJ35: 1650 | FK35: 373 | FL35: 3275.10917 | FM35: 3998.210291 | FN35: 3704.212454 | FO35: 307.1363636 | FP35: 140.6302031 | FV35: 958 | FW35: -958
A36: 105 | B36: Hyrynsalmi | C36: 2326 | E36: 3.344322344 | F36: 24.70621549 | G36: -1473.344798 | K36: 67.87812041 | L36: 423.0438521 | M36: 17.78900446 | N36: 8680.137575 | O36: 4110 | P36: 2121 | Q36: 19286 | R36: -17165 | S36: 7899 | T36: 11169 | W36: -18 | X36: -80 | Y36: 1805 | Z36: 474 | AA36: 0 | AB36: 0 | AC36: 1331 | AD36: 52 | AE36: 0 | AF36: 0 | AG36: 1383 | AH36: 141 | AI36: 1805 | AK36: 104 | AL36: -525 | AM36: 1546 | AN36: 7899 | AO36: 6247 | AP36: 801 | AQ36: 851 | AR36: 21.75 | AT36: 40 | AU36: 2287 | AW36: 1.790744467 | AX36: 26.69128438 | AY36: -1425.010931 | BC36: 67.01103134 | BD36: 714.9103629 | BE36: 27.72602676 | BF36: 9411.456056 | BG36: 4204 | BH36: 2063 | BI36: 20238 | BJ36: -18175 | BK36: 7717 | BL36: 11343 | BO36: -14 | BP36: 2 | BQ36: 873 | BR36: 486 | BS36: 0 | BT36: 0 | BU36: 387 | BV36: 52 | BW36: 0 | BX36: 0 | BY36: 439 | BZ36: 580 | CA36: 878 | CC36: 80 | CD36: -480 | CE36: 168 | CF36: 7717 | CG36: 5826 | CH36: 701 | CI36: 1190 | CJ36: 21.75 | CL36: 76 | CM36: 2271 | CO36: 2.146862483 | CP36: 21.48141212 | CQ36: -1128.137384 | CU36: 72.25973713 | CV36: 586.0854249 | CW36: 22.92661633 | CX36: 9330.691325 | CY36: 4287 | CZ36: 2209 | DA36: 20376 | DB36: -18167 | DC36: 8145 | DD36: 11004 | DG36: -11 | DH36: 20 | DI36: 991 | DJ36: 488 | DK36: 0 | DL36: 0 | DM36: 503 | DN36: 52 | DO36: 0 | DP36: 0 | DQ36: 555 | DR36: 1136 | DS36: 986 | DU36: 49 | DV36: -465 | DW36: 693 | DX36: 8145 | DY36: 6197 | DZ36: 772 | EA36: 1176 | EB36: 21.75 | ED36: 47 | EE36: 13350 | EF36: 14189 | EG36: 14267 | EK36: -269 | EL36: 10 | EM36: 0 | EN36: -785 | EO36: 57 | EP36: 18 | EQ36: -333 | ER36: 34 | ES36: 6 | ET36: 0 | EU36: -100 | EV36: 0 | EW36: 0 | EX36: 0 | EY36: 0 | EZ36: 4189 | FA36: 1809 | FB36: 2380 | FC36: 0 | FD36: 3710 | FE36: 1344 | FF36: 2366 | FG36: 0 | FH36: 3243 | FI36: 878 | FJ36: 2365 | FK36: 0 | FL36: 3938.950989 | FM36: 4822.474858 | FN36: 5142.228093 | FO36: 284.9195402 | FP36: 125.4599473 | FV36: 734 | FW36: -734
A37: 106 | B37: Hyvinkää | C37: 46739 | E37: 2.670318448 | F37: 51.57121168 | G37: -1995.207428 | K37: 55.22732843 | L37: 986.2641477 | M37: 54.28513123 | N37: 6631.399902 | O37: 118733 | P37: 62570 | Q37: 284253 | R37: -221683 | S37: 198343 | T37: 51169 | W37: -1947 | X37: 864 | Y37: 26746 | Z37: 19221 | AA37: 0 | AB37: 0 | AC37: 7525 | AD37: 0 | AE37: -5000 | AF37: -250 | AG37: 2275 | AH37: 30160 | AI37: 19283 | AK37: 295 | AL37: -8755 | AM37: 8291 | AN37: 198343 | AO37: 173516 | AP37: 11471 | AQ37: 13356 | AR37: 19.75 | AT37: 99 | AU37: 46504 | AW37: 1.553455992 | AX37: 39.06294065 | AY37: -1973.013074 | BC37: 55.50698024 | BD37: 976.0020643 | BE37: 40.67654201 | BF37: 8757.891794 | BG37: 121194 | BH37: 145372 | BI37: 378991 | BJ37: -233619 | BK37: 199497 | BL37: 51806 | BO37: -1770 | BP37: 995 | BQ37: 16909 | BR37: 19199 | BS37: 0 | BT37: 0 | BU37: -2290 | BV37: 0 | BW37: 0 | BX37: 0 | BY37: -2290 | BZ37: 27870 | CA37: 10629 | CC37: 1939 | CD37: -10231 | CE37: 1771 | CF37: 199497 | CG37: 174257 | CH37: 13476 | CI37: 11764 | CJ37: 19.75 | CL37: 89 | CM37: 46470 | CO37: 0.08358259461 | CP37: 66.09423026 | CQ37: -2797.245535 | CU37: 47.21259544 | CV37: 1114.202711 | CW37: 55.47058081 | CX37: 7331.525716 | CY37: 79193 | CZ37: 41121 | DA37: 295137 | DB37: -251376 | DC37: 199029 | DD37: 52983 | DG37: -1758 | DH37: 1031 | DI37: -91 | DJ37: 19285 | DK37: 0 | DL37: 0 | DM37: -19376 | DN37: 0 | DO37: 0 | DP37: 0 | DQ37: -19376 | DR37: 8494 | DS37: -3204 | DU37: 4624 | DV37: -7851 | DW37: -37123 | DX37: 199029 | DY37: 171907 | DZ37: 14104 | EA37: 13018 | EB37: 19.75 | ED37: 232 | EE37: 129382 | EF37: 218216 | EG37: 187375 | EK37: -21296 | EL37: 715 | EM37: 9589 | EN37: -19129 | EO37: 403 | EP37: 9868 | EQ37: -38329 | ER37: 73 | ES37: 4337 | ET37: 0 | EU37: 0 | EV37: 0 | EW37: 1534 | EX37: 42636 | EY37: -7020 | EZ37: 104740 | FA37: 95509 | FB37: 9231 | FC37: 3280 | FD37: 111782 | FE37: 86827 | FF37: 24955 | FG37: 3227 | FH37: 139547 | FI37: 116853 | FJ37: 22694 | FK37: 3173 | FL37: 5059.778771 | FM37: 5582.100464 | FN37: 6487.540349 | FO37: 8704.151899 | FP37: 187.3069055 | FV37: 14443 | FW37: -14443
A38: 108 | B38: Hämeenkyrö | C38: 10599 | E38: 2.225077882 | F38: 77.8931138 | G38: -4333.710727 | K38: 36.88061375 | L38: 715.3505048 | M38: 35.59395498 | N38: 7335.597698 | O38: 30892 | P38: 12719 | Q38: 67560 | R38: -54841 | S38: 38239 | T38: 21765 | W38: -193 | X38: 482 | Y38: 5452 | Z38: 5113 | AA38: 0 | AB38: 0 | AC38: 339 | AD38: 77 | AE38: 0 | AF38: 0 | AG38: 416 | AH38: 310 | AI38: 5319 | AK38: -147 | AL38: -2306 | AM38: -1625 | AN38: 38239 | AO38: 34472 | AP38: 1636 | AQ38: 2131 | AR38: 22 | AT38: 137 | AU38: 10510 | AW38: 2.365892083 | AX38: 83.9080301 | AY38: -4728.639391 | BC38: 35.53853468 | BD38: 815.3187441 | BE38: 39.11708793 | BF38: 7607.706946 | BG38: 30813 | BH38: 13513 | BI38: 67038 | BJ38: -53525 | BK38: 37419 | BL38: 21575 | BO38: -193 | BP38: 498 | BQ38: 5774 | BR38: 5352 | BS38: 0 | BT38: 0 | BU38: 422 | BV38: 77 | BW38: 0 | BX38: 0 | BY38: 499 | BZ38: 808 | CA38: 5466 | CC38: 570 | CD38: -2306 | CE38: -3839 | CF38: 37419 | CG38: 33656 | CH38: 1656 | CI38: 2107 | CJ38: 22 | CL38: 31 | CM38: 10404 | CO38: 0.582766977 | CP38: 82.62695367 | CQ38: -4711.168781 | CU38: 34.91935396 | CV38: 754.9980777 | CW38: 30.07747343 | CX38: 9162.149173 | CY38: 31469 | CZ38: 12205 | DA38: 68308 | DB38: -56051 | DC38: 37870 | DD38: 21841 | DG38: -202 | DH38: 314 | DI38: 3772 | DJ38: 5687 | DK38: 0 | DL38: 0 | DM38: -1915 | DN38: 77 | DO38: 0 | DP38: 0 | DQ38: -1838 | DR38: -733 | DS38: 3739 | DU38: -55 | DV38: -22321 | DW38: 326 | DX38: 37870 | DY38: 33825 | DZ38: 1901 | EA38: 2144 | EB38: 22 | ED38: 69 | EE38: 28861 | EF38: 28622 | EG38: 29133 | EK38: -7524 | EL38: 234 | EM38: 346 | EN38: -10428 | EO38: 490 | EP38: 633 | EQ38: -4443 | ER38: 970 | ES38: 60 | ET38: 6767 | EU38: -1033 | EV38: 1800 | EW38: 4250 | EX38: 0 | EY38: 21265 | EZ38: 47727 | FA38: 33421 | FB38: 14306 | FC38: 275 | FD38: 51471 | FE38: 32915 | FF38: 18556 | FG38: 248 | FH38: 50415 | FI38: 10594 | FJ38: 39821 | FK38: 223 | FL38: 5826.587414 | FM38: 6383.349191 | FN38: 6448.28912 | FO38: 1537.5 | FP38: 147.7797001 | FV38: 704 | FW38: -704
A39: 109 | B39: Hämeenlinna | C39: 67662 | E39: 0.7012914502 | F39: 62.06507516 | G39: -2139.487452 | K39: 55.22819631 | L39: 1513.789128 | M39: 75.42963154 | N39: 7325.145577 | O39: 145526 | P39: 91374 | Q39: 440942 | R39: -349568 | S39: 281071 | T39: 90782 | W39: -3366 | X39: 4513 | Y39: 23432 | Z39: 18108 | AA39: 0 | AB39: 0 | AC39: 5324 | AD39: -68 | AE39: 257 | AF39: 0 | AG39: 5513 | AH39: 677 | AI39: 13928 | AK39: -6049 | AL39: -35737 | AM39: 314 | AN39: 281071 | AO39: 238140 | AP39: 16011 | AQ39: 26920 | AR39: 20.75 | AT39: 224 | AU39: 67532 | AW39: 0.4647930171 | AX39: 65.28118101 | AY39: -2422.969851 | BC39: 53.26297967 | BD39: 1574.660901 | BE39: 73.41616763 | BF39: 7828.673814 | BG39: 148166 | BH39: 99058 | BI39: 455555 | BJ39: -356497 | BK39: 281231 | BL39: 91264 | BO39: -3939 | BP39: 1652 | BQ39: 13711 | BR39: 25569 | BS39: 0 | BT39: 0 | BU39: -11858 | BV39: 741 | BW39: -542 | BX39: 7489 | BY39: -4170 | BZ39: -2233 | CA39: -473 | CC39: 3675 | CD39: -36582 | CE39: -21109 | CF39: 281231 | CG39: 237794 | CH39: 15868 | CI39: 27569 | CJ39: 20.75 | CL39: 166 | CM39: 67633 | CO39: 0.2986175225 | CP39: 72.2271552 | CQ39: -2797.850162 | CU39: 49.87104604 | CV39: 1690.920113 | CW39: 76.64492662 | CX39: 8052.533527 | CY39: 152590 | CZ39: 86214 | DA39: 465332 | DB39: -370118 | DC39: 283424 | DD39: 90981 | DG39: -3608 | DH39: 6073 | DI39: 6752 | DJ39: 18370 | DK39: 0 | DL39: 0 | DM39: -11618 | DN39: 98 | DO39: 45 | DP39: 0 | DQ39: -11475 | DR39: -13709 | DS39: 2947 | DU39: 2248 | DV39: -45697 | DW39: -26363 | DX39: 283424 | DY39: 239750 | DZ39: 15997 | EA39: 27677 | EB39: 20.75 | ED39: 181 | EE39: 227949 | EF39: 236210 | EG39: 242400 | EK39: -21397 | EL39: 174 | EM39: 7609 | EN39: -36177 | EO39: 271 | EP39: 15270 | EQ39: -36604 | ER39: 524 | ES39: 6770 | ET39: 25571 | EU39: 1820 | EV39: 49570 | EW39: 2613 | EX39: 60000 | EY39: 19440 | EZ39: 222264 | FA39: 152396 | FB39: 69868 | FC39: 41788 | FD39: 237865 | FE39: 165589 | FF39: 72276 | FG39: 40934 | FH39: 271609 | FI39: 180363 | FJ39: 91246 | FK39: 39923 | FL39: 6300.198043 | FM39: 6404.71184 | FN39: 6972.956988 | FO39: 11554.21687 | FP39: 170.8369711 | FV39: 20186 | FW39: -20186
A40: 139 | B40: Ii | C40: 9966 | E40: 0.9085312225 | F40: 65.34414894 | G40: -3789.584588 | K40: 43.93719896 | L40: 399.9598635 | M40: 19.46862037 | N40: 7498.494883 | O40: 18524 | P40: 7507 | Q40: 62833 | R40: -55326 | S40: 31638 | T40: 27677 | W40: -279 | X40: 124 | Y40: 3834 | Z40: 3075 | AA40: 0 | AB40: 0 | AC40: 759 | AD40: 83 | AE40: -700 | AF40: 0 | AG40: 142 | AH40: 5939 | AI40: 3645 | AK40: 58 | AL40: -4250 | AM40: -3230 | AN40: 31638 | AO40: 26592 | AP40: 1526 | AQ40: 3520 | AR40: 21.25 | AT40: 206 | AU40: 9862 | AW40: 0.3060174188 | AX40: 69.67873866 | AY40: -4279.050902 | BC40: 40.7825643 | BD40: 263.0298114 | BE40: 12.20414792 | BF40: 7866.659907 | BG40: 19093 | BH40: 7955 | BI40: 66096 | BJ40: -58141 | BK40: 32090 | BL40: 27439 | BO40: -305 | BP40: 132 | BQ40: 1215 | BR40: 3148 | BS40: 0 | BT40: 0 | BU40: -1933 | BV40: 83 | BW40: 0 | BX40: 0 | BY40: -1850 | BZ40: 4089 | CA40: 1080 | CC40: -320 | CD40: -4721 | CE40: -4683 | CF40: 32090 | CG40: 26489 | CH40: 1373 | CI40: 4228 | CJ40: 21.25 | CL40: 208 | CM40: 9844 | CO40: 0.09796986486 | CP40: 75.71811621 | CQ40: -4954.896384 | CU40: 36.19836251 | CV40: 264.221861 | CW40: 11.38095352 | CX40: 8473.892727 | CY40: 20207 | CZ40: 8576 | DA40: 69652 | DB40: -61055 | DC40: 33886 | DD40: 27652 | DG40: -275 | DH40: 83 | DI40: 291 | DJ40: 3362 | DK40: 0 | DL40: 0 | DM40: -3071 | DN40: -618 | DO40: 700 | DP40: 0 | DQ40: -2989 | DR40: 1701 | DS40: 117 | DU40: 515 | DV40: -5466 | DW40: -7135 | DX40: 33886 | DY40: 28154 | DZ40: 1453 | EA40: 4279 | EB40: 21.25 | ED40: 219 | EE40: 37376 | EF40: 39588 | EG40: 42085 | EK40: -7352 | EL40: 175 | EM40: 302 | EN40: -6429 | EO40: 255 | EP40: 411 | EQ40: -8004 | ER40: 571 | ES40: 181 | ET40: 8096 | EU40: 1572 | EV40: 10000 | EW40: -2129 | EX40: 10000 | EY40: 1745 | EZ40: 35135 | FA40: 18285 | FB40: 16850 | FC40: 890 | FD40: 38285 | FE40: 23564 | FF40: 14721 | FG40: 890 | FH40: 44564 | FI40: 28098 | FJ40: 16466 | FK40: 890 | FL40: 5289.082882 | FM40: 5780.267694 | FN40: 6390.999594 | FO40: 1324.894118 | FP40: 134.5890002 | FV40: 2843 | FW40: -2843
A41: 140 | B41: Iisalmi | C41: 21639 | E41: 1.762044653 | F41: 41.69485204 | G41: -1818.383474 | K41: 57.43732487 | L41: 972.7344147 | M41: 45.57547086 | N41: 7790.33227 | O41: 42202 | P41: 28489 | Q41: 145418 | R41: -116929 | S41: 75573 | T41: 51456 | W41: -190 | X41: 1830 | Y41: 11740 | Z41: 8526 | AA41: 0 | AB41: 0 | AC41: 3214 | AD41: -987 | AE41: 0 | AF41: -29 | AG41: 2198 | AH41: 9378 | AI41: 11791 | AK41: 142 | AL41: -6552 | AM41: -4076 | AN41: 75573 | AO41: 64544 | AP41: 5255 | AQ41: 5774 | AR41: 20.5 | AT41: 115 | AU41: 21472 | AW41: 1.18706974 | AX41: 47.23215753 | AY41: -1915.23845 | BC41: 54.64421354 | BD41: 1361.773472 | BE41: 62.07851281 | BF41: 8006.752981 | BG41: 42171 | BH41: 29285 | BI41: 147305 | BJ41: -118020 | BK41: 75247 | BL41: 53714 | BO41: -292 | BP41: 915 | BQ41: 11564 | BR41: 9398 | BS41: 0 | BT41: 0 | BU41: 2166 | BV41: -788 | BW41: 0 | BX41: 400 | BY41: 1778 | BZ41: 11156 | CA41: 10850 | CC41: 67 | CD41: -9689 | CE41: -1940 | CF41: 75247 | CG41: 63744 | CH41: 5766 | CI41: 5737 | CJ41: 20.5 | CL41: 36 | CM41: 21368 | CO41: 1.027872281 | CP41: 43.352244 | CQ41: -2076.001498 | CU41: 56.34755063 | CV41: 1034.444028 | CW41: 45.95635606 | CX41: 8215.883564 | CY41: 42402 | CZ41: 28723 | DA41: 153787 | DB41: -125064 | DC41: 77076 | DD41: 54428 | DG41: -307 | DH41: 1766 | DI41: 7899 | DJ41: 7372 | DK41: 0 | DL41: 0 | DM41: 527 | DN41: -281 | DO41: 0 | DP41: 764 | DQ41: 1010 | DR41: 12166 | DS41: 7455 | DU41: 1279 | DV41: -9773 | DW41: -3225 | DX41: 77076 | DY41: 65351 | DZ41: 5852 | EA41: 5873 | EB41: 20.5 | ED41: 65 | EE41: 87167 | EF41: 88678 | EG41: 93305 | EK41: -16113 | EL41: 24 | EM41: 222 | EN41: -13805 | EO41: 123 | EP41: 892 | EQ41: -11482 | ER41: 46 | ES41: 756 | ET41: 15050 | EU41: -1400 | EV41: 17342 | EW41: 0 | EX41: 3500 | EY41: 0 | EZ41: 53965 | FA41: 44593 | FB41: 9372 | FC41: 1928 | FD41: 61618 | FE41: 51962 | FF41: 9656 | FG41: 1810 | FH41: 55346 | FI41: 46043 | FJ41: 9303 | FK41: 1697 | FL41: 4545.404131 | FM41: 5082.805514 | FN41: 4729.221265 | FO41: 3187.853659 | FP41: 149.1882094 | FV41: 4886 | FW41: -4886
A42: 142 | B42: Iitti | C42: 6820 | E42: 1.186128183 | F42: 31.05523167 | G42: -1244.721408 | K42: 65.4434487 | L42: 577.8592375 | M42: 32.74522525 | N42: 6441.202346 | O42: 9357 | P42: 3364 | Q42: 41445 | R42: -38081 | S42: 24167 | T42: 15180 | W42: -69 | X42: 83 | Y42: 1280 | Z42: 1633 | AA42: 0 | AB42: 0 | AC42: -353 | AD42: 70 | AE42: 0 | AF42: 0 | AG42: -283 | AH42: 1821 | AI42: 1251 | AK42: -220 | AL42: -1068 | AM42: 221 | AN42: 24167 | AO42: 20213 | AP42: 2463 | AQ42: 1491 | AR42: 20.25 | AT42: 276 | AU42: 6765 | AW42: 0.4433887569 | AX42: 34.54880207 | AY42: -1332.002956 | BC42: 62.39620707 | BD42: 704.6563193 | BE42: 39.47176788 | BF42: 6516.038433 | BG42: 9725 | BH42: 3652 | BI42: 41517 | BJ42: -37865 | BK42: 23236 | BL42: 14934 | BO42: -60 | BP42: 253 | BQ42: 498 | BR42: 1625 | BS42: 62 | BT42: 0 | BU42: -1065 | BV42: 70 | BW42: 0 | BX42: 0 | BY42: -995 | BZ42: 825 | CA42: 476 | CC42: 162 | CD42: -1201 | CE42: -369 | CF42: 23236 | CG42: 19362 | CH42: 1421 | CI42: 2453 | CJ42: 20.75 | CL42: 221 | CM42: 6711 | CO42: -0.947000269 | CP42: 39.45327016 | CQ42: -1694.233348 | CU42: 55.2876997 | CV42: 744.4494114 | CW42: 38.57139835 | CX42: 7044.702727 | CY42: 10526 | CZ42: 3514 | DA42: 44515 | DB42: -41001 | DC42: 24311 | DD42: 15231 | DG42: -51 | DH42: 135 | DI42: -1375 | DJ42: 1689 | DK42: 0 | DL42: 0 | DM42: -3064 | DN42: 70 | DO42: 0 | DP42: 0 | DQ42: -2994 | DR42: -2169 | DS42: -1387 | DU42: 51 | DV42: -1383 | DW42: -2360 | DX42: 24311 | DY42: 19979 | DZ42: 1389 | EA42: 2943 | EB42: 20.75 | ED42: 272 | EE42: 29014 | EF42: 28908 | EG42: 31041 | EK42: -1337 | EL42: 214 | EM42: 93 | EN42: -1271 | EO42: 286 | EP42: 140 | EQ42: -1312 | ER42: 202 | ES42: 137 | ET42: 1300 | EU42: 0 | EV42: 1800 | EW42: 0 | EX42: 1700 | EY42: 0 | EZ42: 8977 | FA42: 7777 | FB42: 1200 | FC42: 0 | FD42: 9577 | FE42: 8194 | FF42: 1383 | FG42: 0 | FH42: 9894 | FI42: 8341 | FJ42: 1553 | FK42: 0 | FL42: 3029.912023 | FM42: 2999.408721 | FN42: 2905.528237 | FO42: 962.8433735 | FP42: 143.4724145 | FV42: 555 | FW42: -555
A43: 143 | B43: Ikaalinen | C43: 7119 | E43: 2.189944134 | F43: 66.07876541 | G43: -3785.222644 | K43: 39.43514836 | L43: 247.9280798 | M43: 12.24785642 | N43: 7388.537716 | O43: 21906 | P43: 6452 | Q43: 48401 | R43: -41949 | S43: 25376 | T43: 18067 | W43: -7 | X43: 435 | Y43: 1922 | Z43: 1799 | AA43: 0 | AB43: 0 | AC43: 123 | AD43: 2 | AE43: 0 | AF43: 0 | AG43: 125 | AH43: 212 | AI43: 1828 | AK43: 196 | AL43: -857 | AM43: -1238 | AN43: 25376 | AO43: 20748 | AP43: 1732 | AQ43: 2896 | AR43: 21.25 | AT43: 257 | AU43: 7003 | AW43: 0.3441164577 | AX43: 71.68885208 | AY43: -4206.34014 | BC43: 35.88510715 | BD43: 261.8877624 | BE43: 12.0974067 | BF43: 7901.613594 | BG43: 22783 | BH43: 6913 | BI43: 49168 | BJ43: -42255 | BK43: 24827 | BL43: 17767 | BO43: -88 | BP43: 484 | BQ43: 735 | BR43: 2326 | BS43: 0 | BT43: 0 | BU43: -1591 | BV43: 2 | BW43: 0 | BX43: 0 | BY43: -1589 | BZ43: -1377 | CA43: 666 | CC43: 59 | CD43: -2357 | CE43: -2833 | CF43: 24827 | CG43: 20257 | CH43: 1663 | CI43: 2907 | CJ43: 21.25 | CL43: 214 | CM43: 6942 | CO43: 0.02425188342 | CP43: 71.24969658 | CQ43: -4397.147796 | CU43: 33.15343677 | CV43: 136.127917 | CW43: 6.434807753 | CX43: 7721.549986 | CY43: 22421 | CZ43: 7275 | DA43: 49603 | DB43: -42328 | DC43: 24486 | DD43: 17675 | DG43: -157 | DH43: 239 | DI43: -85 | DJ43: 2185 | DK43: 0 | DL43: 0 | DM43: -2270 | DN43: 2 | DO43: 0 | DP43: 0 | DQ43: -2268 | DR43: -3610 | DS43: -140 | DU43: 444 | DV43: -2357 | DW43: -1454 | DX43: 24486 | DY43: 19957 | DZ43: 1770 | EA43: 2759 | EB43: 21.75 | ED43: 236 | EE43: 20680 | EF43: 20893 | EG43: 21752 | EK43: -3266 | EL43: 26 | EM43: 174 | EN43: -3679 | EO43: 90 | EP43: 90 | EQ43: -1448 | ER43: 4 | ES43: 130 | ET43: 12000 | EU43: -10200 | EV43: 10000 | EW43: -5800 | EX43: 0 | EY43: 3300 | EZ43: 26928 | FA43: 13071 | FB43: 13857 | FC43: 275 | FD43: 28771 | FE43: 20714 | FF43: 8057 | FG43: 0 | FH43: 29714 | FI43: 18357 | FJ43: 11357 | FK43: 0 | FL43: 5990.167158 | FM43: 6533.057261 | FN43: 6869.922213 | FO43: 917.5632184 | FP43: 132.1756293 | FV43: 744 | FW43: -744
A44: 145 | B44: Ilmajoki | C44: 12205 | E44: 1.212259372 | F44: 67.93583802 | G44: -4037.935272 | K44: 43.67005136 | L44: 41.13068415 | M44: 2.275018624 | N44: 6598.934863 | O44: 25109 | P44: 9395 | Q44: 72678 | R44: -63283 | S44: 38942 | T44: 29014 | W44: -409 | X44: 93 | Y44: 4357 | Z44: 3072 | AA44: 0 | AB44: 0 | AC44: 1285 | AD44: 0 | AE44: 0 | AF44: 0 | AG44: 1285 | AH44: 9708 | AI44: 3796 | AK44: 237 | AL44: -3519 | AM44: 883 | AN44: 38942 | AO44: 35206 | AP44: 1430 | AQ44: 2306 | AR44: 20.25 | AT44: 221 | AU44: 12187 | AW44: 0.6312364425 | AX44: 69.05965622 | AY44: -4119.553623 | BC44: 42.511039 | BD44: 67.94124887 | BE44: 3.622655079 | BF44: 6845.409042 | BG44: 26920 | BH44: 10214 | BI44: 75765 | BJ44: -65551 | BK44: 39149 | BL44: 28873 | BO44: -351 | BP44: 128 | BQ44: 2248 | BR44: 3023 | BS44: 0 | BT44: 0 | BU44: -775 | BV44: 0 | BW44: 0 | BX44: 0 | BY44: -775 | BZ44: 8934 | CA44: 1601 | CC44: -235 | CD44: -3778 | CE44: -1126 | CF44: 39149 | CG44: 35062 | CH44: 1571 | CI44: 2516 | CJ44: 20.75 | CL44: 178 | CM44: 12269 | CO44: -0.05465122485 | CP44: 73.74586738 | CQ44: -4509.739995 | CU44: 37.88096713 | CV44: 95.85133263 | CW44: 4.609536082 | CX44: 7589.860624 | CY44: 28326 | CZ44: 9963 | DA44: 80786 | DB44: -70749 | DC44: 40904 | DD44: 29288 | DG44: -335 | DH44: 155 | DI44: -737 | DJ44: 3135 | DK44: 0 | DL44: 0 | DM44: -3872 | DN44: 0 | DO44: 0 | DP44: 0 | DQ44: -3872 | DR44: 5062 | DS44: -1265 | DU44: 318 | DV44: -7390 | DW44: -5129 | DX44: 40904 | DY44: 36607 | DZ44: 1626 | EA44: 2671 | EB44: 20.75 | ED44: 248 | EE44: 39772 | EF44: 40794 | EG44: 44362 | EK44: -4008 | EL44: 320 | EM44: 775 | EN44: -3539 | EO44: 0 | EP44: 812 | EQ44: -4482 | ER44: 0 | ES44: 618 | ET44: 0 | EU44: 2501 | EV44: 3450 | EW44: 173 | EX44: 13450 | EY44: -1077 | EZ44: 43630 | FA44: 35111 | FB44: 8519 | FC44: 1052 | FD44: 43476 | FE44: 34784 | FF44: 8692 | FG44: 1058 | FH44: 48459 | FI44: 40844 | FJ44: 7615 | FK44: 1073 | FL44: 5601.147071 | FM44: 5690.161648 | FN44: 6111.826555 | FO44: 1764.192771 | FP44: 143.792711 | FV44: 2979 | FW44: -2979
A45: 146 | B45: Ilomantsi | C45: 5128 | E45: 1.725620836 | F45: 31.45838746 | G45: -2017.940718 | K45: 64.09028728 | L45: 518.1357254 | M45: 20.33688427 | N45: 9299.336973 | O45: 10284 | P45: 6158 | Q45: 43979 | R45: -37821 | S45: 18359 | T45: 21915 | W45: -137 | X45: 391 | Y45: 2707 | Z45: 2653 | AA45: 256 | AB45: 0 | AC45: 310 | AD45: 49 | AE45: 0 | AF45: 0 | AG45: 359 | AH45: 6201 | AI45: 2671 | AK45: 639 | AL45: -1509 | AM45: 413 | AN45: 18359 | AO45: 13573 | AP45: 3414 | AQ45: 1372 | AR45: 20.75 | AT45: 128 | AU45: 4973 | AW45: 0.5871172122 | AX45: 31.29568858 | AY45: -2014.679268 | BC45: 64.26216941 | BD45: 369.3947316 | BE45: 14.4726845 | BF45: 9316.106978 | BG45: 10416 | BH45: 6019 | BI45: 43575 | BJ45: -37556 | BK45: 17060 | BL45: 21278 | BO45: -114 | BP45: 327 | BQ45: 995 | BR45: 2083 | BS45: 0 | BT45: 0 | BU45: -1088 | BV45: 49 | BW45: 0 | BX45: 0 | BY45: -1039 | BZ45: 5163 | CA45: 992 | CC45: -449 | CD45: -1777 | CE45: 9 | CF45: 17060 | CG45: 12588 | CH45: 3121 | CI45: 1351 | CJ45: 20.75 | CL45: 171 | CM45: 4857 | CO45: 0.6798020357 | CP45: 26.09300968 | CQ45: -1906.526663 | CU45: 67.08320549 | CV45: 195.1822112 | CW45: 7.138112429 | CX45: 9980.440601 | CY45: 10243 | CZ45: 5691 | DA45: 44058 | DB45: -38269 | DC45: 17290 | DD45: 21552 | DG45: -104 | DH45: 337 | DI45: 806 | DJ45: 1903 | DK45: 0 | DL45: 0 | DM45: -1097 | DN45: 94 | DO45: 0 | DP45: 0 | DQ45: -1003 | DR45: 4159 | DS45: 533 | DU45: 562 | DV45: -1777 | DW45: 834 | DX45: 17290 | DY45: 12804 | DZ45: 3002 | EA45: 1484 | EB45: 21 | ED45: 143 | EE45: 29840 | EF45: 29737 | EG45: 30618 | EK45: -2295 | EL45: 0 | EM45: 37 | EN45: -1015 | EO45: 0 | EP45: 32 | EQ45: -2521 | ER45: 0 | ES45: 2822 | ET45: 2500 | EU45: 0 | EV45: 1000 | EW45: 0 | EX45: 0 | EY45: 0 | EZ45: 11641 | FA45: 9864 | FB45: 1777 | FC45: 1334 | FD45: 10864 | FE45: 9087 | FF45: 1777 | FG45: 1017 | FH45: 9086 | FI45: 7493 | FJ45: 1593 | FK45: 1017 | FL45: 4169.851794 | FM45: 3916.147195 | FN45: 3959.234095 | FO45: 609.7142857 | FP45: 125.5331039 | FV45: 0 | FW45: 0
A46: 153 | B46: Imatra | C46: 27269 | E46: 1.213256067 | F46: 46.81285306 | G46: -2307.858741 | K46: 62.30154945 | L46: 375.5179875 | M46: 18.01365869 | N46: 7608.896549 | O46: 37786 | P46: 24478 | Q46: 169478 | R46: -145000 | S46: 105590 | T46: 55631 | W46: -423 | X46: 153 | Y46: 15951 | Z46: 10002 | AA46: 854 | AB46: 0 | AC46: 6803 | AD46: 0 | AE46: 0 | AF46: 123 | AG46: 6926 | AH46: 65782 | AI46: 12912 | AK46: -2108 | AL46: -13007 | AM46: 10174 | AN46: 105590 | AO46: 91183 | AP46: 4487 | AQ46: 9920 | AR46: 20 | AT46: 91 | AU46: 26932 | AW46: 0.6991108288 | AX46: 57.45967517 | AY46: -2693.153126 | BC46: 58.18237866 | BD46: 669.3153126 | BE46: 31.70487127 | BF46: 7705.443339 | BG46: 37348 | BH46: 20345 | BI46: 171119 | BJ46: -150774 | BK46: 103034 | BL46: 56039 | BO46: -368 | BP46: 162 | BQ46: 8093 | BR46: 8355 | BS46: 0 | BT46: 0 | BU46: -262 | BV46: 0 | BW46: 0 | BX46: 380 | BY46: 118 | BZ46: 65900 | CA46: 9830 | CC46: 1224 | CD46: -11883 | CE46: -9584 | CF46: 103034 | CG46: 89509 | CH46: 3740 | CI46: 9785 | CJ46: 20 | CL46: 111 | CM46: 26508 | CO46: 1.125910077 | CP46: 63.76255006 | CQ46: -3333.672853 | CU46: 54.55650014 | CV46: 613.3620039 | CW46: 25.68328962 | CX46: 8716.840199 | CY46: 37857 | CZ46: 20192 | DA46: 170102 | DB46: -149910 | DC46: 105975 | DD46: 56103 | DG46: -291 | DH46: 1748 | DI46: 13625 | DJ46: 11611 | DK46: 7 | DL46: 0 | DM46: 2021 | DN46: 0 | DO46: -2678 | DP46: 1301 | DQ46: 644 | DR46: 66544 | DS46: 13466 | DU46: 941 | DV46: -30146 | DW46: -15838 | DX46: 105975 | DY46: 90624 | DZ46: 3372 | EA46: 11979 | EB46: 20 | ED46: 27 | EE46: 115172 | EF46: 115382 | EG46: 115371 | EK46: -15612 | EL46: 188 | EM46: 12686 | EN46: -23806 | EO46: 223 | EP46: 4169 | EQ46: -30000 | ER46: 256 | ES46: 440 | ET46: 13000 | EU46: 0 | EV46: 13844 | EW46: 0 | EX46: 49156 | EY46: 8300 | EZ46: 61146 | FA46: 49264 | FB46: 11882 | FC46: 0 | FD46: 63108 | FE46: 52462 | FF46: 10646 | FG46: 0 | FH46: 90418 | FI46: 75378 | FJ46: 15040 | FK46: 0 | FL46: 7352.378158 | FM46: 8160.329719 | FN46: 8994.039535 | FO46: 4531.2 | FP46: 170.9370756 | FV46: 11458 | FW46: -11458
A47: 148 | B47: Inari | C47: 6869 | E47: 2.324640288 | F47: 37.24272236 | G47: -1348.231184 | K47: 69.54931507 | L47: 1262.483622 | M47: 49.87363313 | N47: 9239.48173 | O47: 24699 | P47: 9433 | Q47: 55337 | R47: -45904 | S47: 26677 | T47: 23456 | W47: -168 | X47: 858 | Y47: 4919 | Z47: 2050 | AA47: 0 | AB47: 0 | AC47: 2869 | AD47: 0 | AE47: 0 | AF47: -30 | AG47: 2839 | AH47: 9313 | AI47: 4482 | AK47: -673 | AL47: -1973 | AM47: 2053 | AN47: 26677 | AO47: 19854 | AP47: 2578 | AQ47: 4245 | AR47: 19 | AT47: 48 | AU47: 6930 | AW47: 1.806088993 | AX47: 33.87436378 | AY47: -1128.282828 | BC47: 71.90630403 | BD47: 1387.590188 | BE47: 56.19880232 | BF47: 9012.121212 | BG47: 25667 | BH47: 8901 | BI47: 57447 | BJ47: -48546 | BK47: 27992 | BL47: 23428 | BO47: -137 | BP47: 860 | BQ47: 3597 | BR47: 1967 | BS47: 0 | BT47: 0 | BU47: 1630 | BV47: 0 | BW47: 0 | BX47: 23 | BY47: 1653 | BZ47: 10966 | CA47: 3558 | CC47: 1412 | CD47: -1876 | CE47: 1652 | CF47: 27992 | CG47: 21115 | CH47: 2487 | CI47: 4390 | CJ47: 19 | CL47: 40 | CM47: 6907 | CO47: 1.138860222 | CP47: 33.39602409 | CQ47: -1578.253945 | CU47: 72.20226999 | CV47: 925.2931808 | CW47: 34.81924024 | CX47: 9699.580136 | CY47: 26306 | CZ47: 9595 | DA47: 59133 | DB47: -49538 | DC47: 27653 | DD47: 23367 | DG47: -31 | DH47: 877 | DI47: 2328 | DJ47: 2056 | DK47: 0 | DL47: 0 | DM47: 272 | DN47: 0 | DO47: 0 | DP47: 7 | DQ47: 279 | DR47: 11245 | DS47: 1879 | DU47: -370 | DV47: -1838 | DW47: -1931 | DX47: 27653 | DY47: 20440 | DZ47: 2705 | EA47: 4508 | EB47: 19 | ED47: 77 | EE47: 22989 | EF47: 23649 | EG47: 24454 | EK47: -4158 | EL47: 871 | EM47: 858 | EN47: -2641 | EO47: 428 | EP47: 307 | EQ47: -4636 | ER47: 49 | ES47: 777 | ET47: 775 | EU47: 0 | EV47: 1163 | EW47: 0 | EX47: 2000 | EY47: 0 | EZ47: 13833 | FA47: 12140 | FB47: 1693 | FC47: 5190 | FD47: 13119 | FE47: 11491 | FF47: 1628 | FG47: 5675 | FH47: 13280 | FI47: 9943 | FJ47: 3337 | FK47: 6826 | FL47: 6332.653953 | FM47: 6018.470418 | FN47: 6604.604025 | FO47: 1075.789474 | FP47: 155.7535071 | FV47: 1630 | FW47: -1630
A48: 149 | B48: Inkoo | C48: 5481 | E48: 0.8592057762 | F48: 52.32523657 | G48: -2873.015873 | K48: 43.86359054 | L48: 424.5575625 | M48: 21.91770747 | N48: 7070.242656 | O48: 11969 | P48: 5397 | Q48: 35007 | R48: -29610 | S48: 25578 | T48: 6118 | W48: -136 | X48: 56 | Y48: 2006 | Z48: 1592 | AA48: 0 | AB48: 0 | AC48: 414 | AD48: 0 | AE48: -15 | AF48: 0 | AG48: 399 | AH48: 7380 | AI48: 1745 | AK48: 253 | AL48: -2357 | AM48: 800 | AN48: 25578 | AO48: 21433 | AP48: 1107 | AQ48: 3038 | AR48: 20.75 | AT48: 216 | AU48: 5403 | AW48: 1.162650602 | AX48: 53.54371849 | AY48: -2817.693874 | BC48: 43.80962795 | BD48: 749.9537294 | BE48: 37.0597374 | BF48: 7386.266889 | BG48: 11977 | BH48: 5358 | BI48: 35441 | BJ48: -30083 | BK48: 25975 | BL48: 6946 | BO48: -122 | BP48: 57 | BQ48: 2773 | BR48: 1953 | BS48: 0 | BT48: 0 | BU48: 820 | BV48: 0 | BW48: -15 | BX48: 0 | BY48: 805 | BZ48: 8185 | CA48: 2773 | CC48: 213 | CD48: -2368 | CE48: 811 | CF48: 25975 | CG48: 21994 | CH48: 1042 | CI48: 2939 | CJ48: 20.75 | CL48: 43 | CM48: 5386 | CO48: 0.3133703159 | CP48: 51.43509196 | CQ48: -3095.61827 | CU48: 43.90101552 | CV48: 302.6364649 | CW48: 14.4795444 | CX48: 7628.852581 | CY48: 12535 | CZ48: 4425 | DA48: 36613 | DB48: -32188 | DC48: 25953 | DD48: 6867 | DG48: -111 | DH48: 60 | DI48: 581 | DJ48: 1563 | DK48: 0 | DL48: 0 | DM48: -982 | DN48: 0 | DO48: -15 | DP48: 0 | DQ48: -997 | DR48: 7188 | DS48: 501 | DU48: 367 | DV48: -2311 | DW48: -1307 | DX48: 25953 | DY48: 21925 | DZ48: 1129 | EA48: 2899 | EB48: 20.75 | ED48: 177 | EE48: 19936 | EF48: 20582 | EG48: 21357 | EK48: -1250 | EL48: 0 | EM48: 305 | EN48: -1976 | EO48: 14 | EP48: 0 | EQ48: -1903 | ER48: 10 | ES48: 85 | ET48: 2600 | EU48: -1000 | EV48: 3900 | EW48: 0 | EX48: 0 | EY48: 1000 | EZ48: 15143 | FA48: 12775 | FB48: 2368 | FC48: 0 | FD48: 16676 | FE48: 14368 | FF48: 2308 | FG48: 0 | FH48: 15365 | FI48: 12158 | FJ48: 3207 | FK48: 134 | FL48: 3045.977011 | FM48: 3387.747548 | FN48: 3340.326773 | FO48: 1056.626506 | FP48: 196.1801905 | FV48: 2239 | FW48: -2239
A49: 151 | B49: Isojoki | C49: 2032 | E49: 4.389558233 | F49: 15.20379945 | G49: -341.5354331 | K49: 81.68790906 | L49: 768.2086614 | M49: 35.50822635 | N49: 7896.653543 | O49: 3279 | P49: 1805 | Q49: 15555 | R49: -13750 | S49: 6512 | T49: 8317 | W49: -23 | X49: 13 | Y49: 1069 | Z49: 497 | AA49: 0 | AB49: 0 | AC49: 572 | AD49: 2 | AE49: 0 | AF49: 0 | AG49: 574 | AH49: 2396 | AI49: 1069 | AK49: 504 | AL49: -225 | AM49: 843 | AN49: 6512 | AO49: 5409 | AP49: 656 | AQ49: 447 | AR49: 22 | AT49: 130 | AU49: 1976 | AW49: 0.2205882353 | AX49: 20.96015061 | AY49: -317.3076923 | BC49: 74.99672903 | BD49: 1176.11336 | BE49: 50.51271363 | BF49: 8498.481781 | BG49: 3114 | BH49: 1856 | BI49: 15828 | BJ49: -13972 | BK49: 6172 | BL49: 7907 | BO49: -19 | BP49: 13 | BQ49: 101 | BR49: 494 | BS49: 0 | BT49: 0 | BU49: -393 | BV49: 2 | BW49: 0 | BX49: 0 | BY49: -391 | BZ49: 2005 | CA49: 141 | CC49: -116 | CD49: -525 | CE49: 45 | CF49: 6172 | CG49: 5099 | CH49: 619 | CI49: 454 | CJ49: 22 | CL49: 231 | CM49: 1951 | CO49: 0.3102111159 | CP49: 17.22317624 | CQ49: -413.1214762 | CU49: 77.69961308 | CV49: 790.8764736 | CW49: 34.6517566 | CX49: 8330.599692 | CY49: 3108 | CZ49: 1792 | DA49: 15649 | DB49: -13857 | DC49: 6099 | DD49: 7832 | DG49: -16 | DH49: 16 | DI49: 74 | DJ49: 493 | DK49: 0 | DL49: 0 | DM49: -419 | DN49: 3 | DO49: 0 | DP49: 0 | DQ49: -416 | DR49: 1589 | DS49: 82 | DU49: 29 | DV49: -225 | DW49: -201 | DX49: 6099 | DY49: 4983 | DZ49: 659 | EA49: 457 | EB49: 22 | ED49: 216 | EE49: 11078 | EF49: 11424 | EG49: 11351 | EK49: -231 | EL49: 0 | EM49: 5 | EN49: -409 | EO49: 49 | EP49: 264 | EQ49: -352 | ER49: 22 | ES49: 47 | ET49: 0 | EU49: -50 | EV49: 0 | EW49: 0 | EX49: 0 | EY49: 0 | EZ49: 1587 | FA49: 1362 | FB49: 225 | FC49: 152 | FD49: 1062 | FE49: 837 | FF49: 225 | FG49: 130 | FH49: 837 | FI49: 612 | FJ49: 225 | FK49: 108 | FL49: 1726.377953 | FM49: 1946.862348 | FN49: 2182.470528 | FO49: 226.5 | FP49: 116.0943106 | FV49: 172 | FW49: -172
A50: 152 | B50: Isokyrö | C50: 4673 | E50: 4.544041451 | F50: 20.5187411 | G50: -513.588701 | K50: 76.49844552 | L50: 607.1046437 | M50: 32.49152808 | N50: 6820.029959 | O50: 11480 | P50: 3420 | Q50: 29036 | R50: -25616 | S50: 15063 | T50: 13132 | W50: -22 | X50: 45 | Y50: 2602 | Z50: 1131 | AA50: 142 | AB50: 0 | AC50: 1613 | AD50: 0 | AE50: 0 | AF50: 0 | AG50: 1613 | AH50: 9974 | AI50: 2744 | AK50: -20 | AL50: -550 | AM50: 676 | AN50: 15063 | AO50: 13541 | AP50: 636 | AQ50: 886 | AR50: 21.5 | AT50: 107 | AU50: 4601 | AW50: 4.457597173 | AX50: 21.40714742 | AY50: -352.9667464 | BC50: 77.01829373 | BD50: 809.3892632 | BE50: 43.5562534 | BF50: 6782.655944 | BG50: 11601 | BH50: 3771 | BI50: 28880 | BJ50: -25109 | BK50: 14644 | BL50: 12925 | BO50: -9 | BP50: 56 | BQ50: 2507 | BR50: 1145 | BS50: 0 | BT50: 0 | BU50: 1362 | BV50: 0 | BW50: 0 | BX50: 0 | BY50: 1362 | BZ50: 11337 | CA50: 2485 | CC50: -110 | CD50: -550 | CE50: 773 | CF50: 14644 | CG50: 13175 | CH50: 574 | CI50: 895 | CJ50: 21.5 | CL50: 32 | CM50: 4522 | CO50: 1.549235575 | CP50: 29.11651004 | CQ50: -1199.911544 | CU50: 70.74132492 | CV50: 673.5957541 | CW50: 30.16414347 | CX50: 8150.818222 | CY50: 11382 | CZ50: 3445 | DA50: 30726 | DB50: -27281 | DC50: 15214 | DD50: 13158 | DG50: -7 | DH50: 83 | DI50: 1167 | DJ50: 1265 | DK50: 0 | DL50: 0 | DM50: -98 | DN50: 0 | DO50: 0 | DP50: 0 | DQ50: -98 | DR50: 11238 | DS50: 1167 | DU50: 569 | DV50: -450 | DW50: -3730 | DX50: 15214 | DY50: 13658 | DZ50: 627 | EA50: 929 | EB50: 21.5 | ED50: 104 | EE50: 14540 | EF50: 14206 | EG50: 16036 | EK50: -2255 | EL50: 0 | EM50: 187 | EN50: -1755 | EO50: 0 | EP50: 43 | EQ50: -5598 | ER50: 615 | ES50: 86 | ET50: 0 | EU50: 0 | EV50: 0 | EW50: 0 | EX50: 2700 | EY50: 0 | EZ50: 1875 | FA50: 1325 | FB50: 550 | FC50: 431 | FD50: 1325 | FE50: 875 | FF50: 450 | FG50: 431 | FH50: 3575 | FI50: 2955 | FJ50: 620 | FK50: 503 | FL50: 2074.470362 | FM50: 2069.11541 | FN50: 2654.798762 | FO50: 635.255814 | FP50: 140.4811619 | FV50: 1420 | FW50: -1420
A51: 165 | B51: Janakkala | C51: 16607 | E51: 0.7755467035 | F51: 57.68140453 | G51: -2621.244054 | K51: 45.34821092 | L51: 754.0193894 | M51: 40.72358397 | N51: 6758.174264 | O51: 42258 | P51: 15205 | Q51: 94893 | R51: -79688 | S51: 64804 | T51: 24227 | W51: -456 | X51: 131 | Y51: 9018 | Z51: 5254 | AA51: 0 | AB51: 0 | AC51: 3764 | AD51: 0 | AE51: 0 | AF51: 0 | AG51: 3764 | AH51: 4425 | AI51: 7829 | AK51: 791 | AL51: -11779 | AM51: 3623 | AN51: 64804 | AO51: 58492 | AP51: 2676 | AQ51: 3636 | AR51: 21 | AT51: 114 | AU51: 16447 | AW51: 0.6018269118 | AX51: 60.35583495 | AY51: -2810.299751 | BC51: 44.48922077 | BD51: 621.9979328 | BE51: 33.11002536 | BF51: 6856.812793 | BG51: 42786 | BH51: 16010 | BI51: 97437 | BJ51: -81427 | BK51: 63292 | BL51: 23120 | BO51: -428 | BP51: 89 | BQ51: 4646 | BR51: 5527 | BS51: 0 | BT51: 0 | BU51: -881 | BV51: 0 | BW51: 0 | BX51: 0 | BY51: -881 | BZ51: 3477 | CA51: 3413 | CC51: -1217 | CD51: -8046 | CE51: -2652 | CF51: 63292 | CG51: 57504 | CH51: 2130 | CI51: 3658 | CJ51: 21 | CL51: 119 | CM51: 16413 | CO51: 0.2526420667 | CP51: 62.07965634 | CQ51: -3162.432218 | CU51: 41.20137603 | CV51: 373.4844331 | CW51: 19.03969706 | CX51: 7159.873271 | CY51: 43972 | CZ51: 15788 | DA51: 101624 | DB51: -85532 | DC51: 62814 | DD51: 24290 | DG51: -368 | DH51: 138 | DI51: 1342 | DJ51: 6091 | DK51: 333 | DL51: 0 | DM51: -4416 | DN51: 0 | DO51: 0 | DP51: 0 | DQ51: -4416 | DR51: -939 | DS51: 1215 | DU51: -653 | DV51: -8013 | DW51: -5722 | DX51: 62814 | DY51: 57028 | DZ51: 1999 | EA51: 3787 | EB51: 21 | ED51: 192 | EE51: 40243 | EF51: 41575 | EG51: 43180 | EK51: -5211 | EL51: 272 | EM51: 733 | EN51: -7017 | EO51: 220 | EP51: 732 | EQ51: -7676 | ER51: 284 | ES51: 455 | ET51: 8000 | EU51: -745 | EV51: 6500 | EW51: 355 | EX51: 11000 | EY51: -422 | EZ51: 47001 | FA51: 39012 | FB51: 7989 | FC51: 1003 | FD51: 45811 | FE51: 37627 | FF51: 8184 | FG51: 1003 | FH51: 48374 | FI51: 39987 | FJ51: 8387 | FK51: 1003 | FL51: 4231.408442 | FM51: 4244.847085 | FN51: 4467.921769 | FO51: 2715.619048 | FP51: 165.4553736 | FV51: 5623 | FW51: -5623
A52: 167 | B52: Joensuu | C52: 76067 | E52: 1.652911775 | F52: 54.11184554 | G52: -1988.536422 | K52: 57.34703057 | L52: 1131.883734 | M52: 58.91575492 | N52: 7012.344381 | O52: 100083 | P52: 83118 | Q52: 447041 | R52: -363923 | S52: 262380 | T52: 139028 | W52: -751 | X52: 4705 | Y52: 41439 | Z52: 33847 | AA52: 3277 | AB52: 827 | AC52: 10042 | AD52: 2735 | AE52: -8500 | AF52: -267 | AG52: 4010 | AH52: 31595 | AI52: 36661 | AK52: 1331 | AL52: -24588 | AM52: -275 | AN52: 262380 | AO52: 220248 | AP52: 21356 | AQ52: 20776 | AR52: 20.5 | AT52: 112 | AU52: 76551 | AW52: 1.093995161 | AX52: 55.73092137 | AY52: -2027.863777 | BC52: 56.4438425 | BD52: 1163.799297 | BE52: 62.58475579 | BF52: 6787.383574 | BG52: 102354 | BH52: 79777 | BI52: 455718 | BJ52: -375941 | BK52: 260636 | BL52: 142927 | BO52: -1002 | BP52: 1855 | BQ52: 28475 | BR52: 32926 | BS52: 0 | BT52: 0 | BU52: -4451 | BV52: -3096 | BW52: 5046 | BX52: 101 | BY52: -2400 | BZ52: 29196 | CA52: 23865 | CC52: 152 | CD52: -25911 | CE52: -9490 | CF52: 260636 | CG52: 218368 | CH52: 21169 | CI52: 21099 | CJ52: 20.5 | CL52: 85 | CM52: 76850 | CO52: 0.911671647 | CP52: 58.08642749 | CQ52: -2220.130124 | CU52: 54.38398863 | CV52: 1224.528302 | CW52: 62.80492042 | CX52: 7116.525699 | CY52: 105733 | CZ52: 73023 | DA52: 466038 | DB52: -387072 | DC52: 268565 | DD52: 145271 | DG52: -1070 | DH52: 3991 | DI52: 29685 | DJ52: 35429 | DK52: 0 | DL52: 0 | DM52: -5744 | DN52: -3167 | DO52: 5867 | DP52: 4 | DQ52: -3040 | DR52: 26156 | DS52: 27098 | DU52: 3595 | DV52: -31215 | DW52: -17644 | DX52: 268565 | DY52: 225883 | DZ52: 21103 | EA52: 21579 | EB52: 20.5 | ED52: 61 | EE52: 296730 | EF52: 301762 | EG52: 310419 | EK52: -64949 | EL52: 1091 | EM52: 26922 | EN52: -40426 | EO52: 1534 | EP52: 5537 | EQ52: -53298 | ER52: 1310 | ES52: 7246 | ET52: 42000 | EU52: 27721 | EV52: 62000 | EW52: -30336 | EX52: 52000 | EY52: -3465 | EZ52: 228879 | FA52: 144512 | FB52: 84367 | FC52: 30257 | FD52: 234631 | FE52: 175297 | FF52: 59334 | FG52: 24753 | FH52: 251951 | FI52: 193996 | FJ52: 57955 | FK52: 22439 | FL52: 6389.551317 | FM52: 6623.584277 | FN52: 7174.886142 | FO52: 11018.68293 | FP52: 143.3790882 | FV52: 9446 | FW52: -9446
A53: 169 | B53: Jokioinen | C53: 5286 | E53: 1.448534424 | F53: 59.19884938 | G53: -3202.799849 | K53: 49.21272077 | L53: 115.5883466 | M53: 6.793645475 | N53: 6210.177828 | O53: 9350 | P53: 4295 | Q53: 30635 | R53: -26340 | S53: 18647 | T53: 9736 | W53: -156 | X53: 82 | Y53: 1969 | Z53: 1701 | AA53: 0 | AB53: 0 | AC53: 268 | AD53: 0 | AE53: 0 | AF53: 0 | AG53: 268 | AH53: 6193 | AI53: 1899 | AK53: -12 | AL53: -1311 | AM53: 1223 | AN53: 18647 | AO53: 16672 | AP53: 1080 | AQ53: 895 | AR53: 20.5 | AT53: 211 | AU53: 5195 | AW53: 1.125084976 | AX53: 55.8326703 | AY53: -3094.321463 | BC53: 50.08844417 | BD53: 102.0211742 | BE53: 5.834187828 | BF53: 6382.67565 | BG53: 9454 | BH53: 4355 | BI53: 31045 | BJ53: -26690 | BK53: 18793 | BL53: 9530 | BO53: -135 | BP53: 22 | BQ53: 1520 | BR53: 1551 | BS53: 0 | BT53: 0 | BU53: -31 | BV53: 0 | BW53: 0 | BX53: 0 | BY53: -31 | BZ53: 6162 | CA53: 1390 | CC53: 163 | CD53: -1336 | CE53: 858 | CF53: 18793 | CG53: 16786 | CH53: 1021 | CI53: 986 | CJ53: 21.25 | CL53: 113 | CM53: 5133 | CO53: 0.7576726701 | CP53: 55.90725623 | CQ53: -2938.047925 | CU53: 49.96971692 | CV53: 169.6863433 | CW53: 9.418308399 | CX53: 6576.076369 | CY53: 9238 | CZ53: 4377 | DA53: 31296 | DB53: -26919 | DC53: 19094 | DD53: 9480 | DG53: -125 | DH53: 33 | DI53: 1563 | DJ53: 1560 | DK53: 0 | DL53: 0 | DM53: 3 | DN53: 0 | DO53: 0 | DP53: 0 | DQ53: 3 | DR53: 6166 | DS53: 1457 | DU53: -829 | DV53: -1391 | DW53: 535 | DX53: 19094 | DY53: 17212 | DZ53: 869 | EA53: 1013 | EB53: 21.25 | ED53: 87 | EE53: 18638 | EF53: 19091 | EG53: 19460 | EK53: -724 | EL53: 24 | EM53: 24 | EN53: -639 | EO53: 28 | EP53: 79 | EQ53: -940 | ER53: 0 | ES53: 18 | ET53: 700 | EU53: -200 | EV53: 0 | EW53: -600 | EX53: 1100 | EY53: 1300 | EZ53: 17022 | FA53: 10386 | FB53: 6636 | FC53: 416 | FD53: 15085 | FE53: 9049 | FF53: 6036 | FG53: 416 | FH53: 16094 | FI53: 8748 | FJ53: 7346 | FK53: 0 | FL53: 3997.351495 | FM53: 3610.202117 | FN53: 3743.814533 | FO53: 809.9764706 | FP53: 157.7978708 | FV53: 2224 | FW53: -2224
A54: 171 | B54: Joroinen | C54: 4917 | E54: 0.8576449912 | F54: 60.90550718 | G54: -657.5147448 | K54: 51.70593954 | L54: 3362.009355 | M54: 165.9054414 | N54: 7396.583282 | O54: 8469 | P54: 4191 | Q54: 32266 | R54: -28075 | S54: 17421 | T54: 12420 | W54: -100 | X54: 123 | Y54: 1789 | Z54: 1497 | AA54: 0 | AB54: 0 | AC54: 292 | AD54: 32 | AE54: 0 | AF54: 0 | AG54: 324 | AH54: 6580 | AI54: 1739 | AK54: 1963 | AL54: -2113 | AM54: 287 | AN54: 17421 | AO54: 14749 | AP54: 1489 | AQ54: 1183 | AR54: 20.75 | AT54: 219 | AU54: 4812 | AW54: -0.3099838969 | AX54: 74.96743378 | AY54: -2056.525353 | BC54: 45.70873873 | BD54: 2766.001663 | BE54: 117.2588159 | BF54: 8609.9335 | BG54: 8573 | BH54: 3896 | BI54: 33104 | BJ54: -29208 | BK54: 16215 | BL54: 12205 | BO54: 0 | BP54: -142 | BQ54: -930 | BR54: 925 | BS54: 0 | BT54: 0 | BU54: -1855 | BV54: 31 | BW54: 100 | BX54: 0 | BY54: -1724 | BZ54: 4856 | CA54: -933 | CC54: 0 | CD54: -2324 | CE54: -6607 | CF54: 16215 | CG54: 13705 | CH54: 1385 | CI54: 1125 | CJ54: 20.75 | CL54: 286 | CM54: 4767 | CO54: 0.2918081575 | CP54: 78.87573609 | CQ54: -3024.124187 | CU54: 43.37194337 | CV54: 2325.361863 | CW54: 98.34771512 | CX54: 8630.165723 | CY54: 8569 | CZ54: 3947 | DA54: 32751 | DB54: -28726 | DC54: 16984 | DD54: 12353 | DG54: -27 | DH54: 202 | DI54: 786 | DJ54: 1050 | DK54: 0 | DL54: 0 | DM54: -264 | DN54: 31 | DO54: 0 | DP54: 0 | DQ54: -233 | DR54: 4624 | DS54: 769 | DU54: 17 | DV54: -2845 | DW54: -4452 | DX54: 16984 | DY54: 14427 | DZ54: 1439 | EA54: 1118 | EB54: 21.25 | ED54: 145 | EE54: 21000 | EF54: 21720 | EG54: 21723 | EJ54: 660 | EK54: -1781 | EL54: 206 | EM54: 123 | EN54: -5723 | EO54: 45 | EP54: 4 | EQ54: -5347 | ER54: 106 | ES54: 20 | ET54: 3900 | EU54: 0 | EV54: 5000 | EW54: 0 | EX54: 5000 | EY54: 0 | EZ54: 17959 | FA54: 15635 | FB54: 2324 | FC54: 302 | FD54: 20635 | FE54: 17790 | FF54: 2845 | FG54: 302 | FH54: 22790 | FI54: 19419 | FJ54: 3371 | FK54: 302 | FL54: 5659.345129 | FM54: 6479.426434 | FN54: 7215.019929 | FO54: 678.9176471 | FP54: 142.4203161 | FV54: 1768 | FW54: -1768
A55: 172 | B55: Joutsa | C55: 4567 | E55: 0.9043956044 | F55: 47.72683464 | G55: -3129.406613 | K55: 35.66376217 | L55: 365.0098533 | M55: 15.57983817 | N55: 8551.346617 | O55: 12495 | P55: 5213 | Q55: 34746 | R55: -29533 | S55: 15542 | T55: 15563 | W55: -70 | X55: 71 | Y55: 1573 | Z55: 1388 | AA55: 0 | AB55: 1039 | AC55: -854 | AD55: 23 | AE55: 0 | AF55: 0 | AG55: -831 | AH55: 3780 | AI55: 585 | AK55: 102 | AL55: -1747 | AM55: -1491 | AN55: 15542 | AO55: 12364 | AP55: 1492 | AQ55: 1686 | AR55: 21 | AT55: 226 | AU55: 4467 | AW55: 0.9417334304 | AX55: 46.94442858 | AY55: -3017.23752 | BC55: 36.88640045 | BD55: 343.6310723 | BE55: 15.60219994 | BF55: 8038.952317 | BG55: 12163 | BH55: 4954 | BI55: 33843 | BJ55: -28889 | BK55: 14898 | BL55: 15166 | BO55: -71 | BP55: 114 | BQ55: 1218 | BR55: 1267 | BS55: 169 | BT55: 82 | BU55: 38 | BV55: 23 | BW55: 0 | BX55: 0 | BY55: 61 | BZ55: 3841 | CA55: 1401 | CC55: -53 | CD55: -1298 | CE55: 759 | CF55: 14898 | CG55: 11668 | CH55: 1476 | CI55: 1754 | CJ55: 21 | CL55: 124 | CM55: 4377 | CO55: 0.4824692412 | CP55: 45.24847181 | CQ55: -3326.479324 | CU55: 36.0875603 | CV55: 25.13136852 | CW55: 1.048713595 | CX55: 8746.858579 | CY55: 12045 | CZ55: 4581 | DA55: 34675 | DB55: -30088 | DC55: 15570 | DD55: 15185 | DG55: -63 | DH55: 177 | DI55: 781 | DJ55: 1380 | DK55: 0 | DL55: 0 | DM55: -599 | DN55: 17 | DO55: 0 | DP55: 0 | DQ55: -582 | DR55: 3259 | DS55: 788 | DU55: 107 | DV55: -1530 | DW55: -1108 | DX55: 15570 | DY55: 12176 | DZ55: 1618 | EA55: 1776 | EB55: 21 | ED55: 136 | EE55: 17845 | EF55: 16717 | EG55: 17072 | EK55: -2462 | EL55: 24 | EM55: 362 | EN55: -671 | EO55: 0 | EP55: 29 | EQ55: -1983 | ER55: 53 | ES55: 34 | ET55: 4000 | EU55: -500 | EV55: 0 | EW55: -1000 | EX55: 50 | EY55: 2800 | EZ55: 13467 | FA55: 8669 | FB55: 4798 | FC55: 965 | FD55: 11169 | FE55: 7180 | FF55: 3989 | FG55: 965 | FH55: 12488 | FI55: 5649 | FJ55: 6839 | FK55: 965 | FL55: 5161.375082 | FM55: 5179.53884 | FN55: 5977.381768 | FO55: 579.8095238 | FP55: 132.4673347 | FV55: 2380 | FW55: -2380
A56: 176 | B56: Juuka | C56: 4817 | E56: 3.513098464 | F56: 16.41455779 | G56: -184.9698983 | K56: 81.23626737 | L56: 864.2308491 | M56: 36.73649727 | N56: 8586.672203 | O56: 8158 | P56: 6355 | Q56: 38399 | R56: -32044 | S56: 14781 | T56: 20711 | W56: 46 | X56: 359 | Y56: 3853 | Z56: 2397 | AA56: 275 | AB56: 818 | AC56: 913 | AD56: 198 | AE56: -1073 | AF56: 0 | AG56: 38 | AH56: 10169 | AI56: 3159 | AK56: 827 | AL56: -1071 | AM56: 2755 | AN56: 14781 | AO56: 11708 | AP56: 1860 | AQ56: 1213 | AR56: 20.75 | AT56: 34 | AU56: 4709 | AW56: 2.986504723 | AX56: 16.42651297 | AY56: 147.8020811 | BC56: 81.22016472 | BD56: 1361.860268 | BE56: 58.19274562 | BF56: 8541.940964 | BG56: 8123 | BH56: 6177 | BI56: 38135 | BJ56: -31958 | BK56: 13654 | BL56: 20074 | BO56: 55 | BP56: 361 | BQ56: 2186 | BR56: 1906 | BS56: 0 | BT56: 0 | BU56: 280 | BV56: 121 | BW56: -369 | BX56: 0 | BY56: 32 | BZ56: 10200 | CA56: 2450 | CC56: 976 | CD56: -714 | CE56: 1300 | CF56: 13654 | CG56: 10804 | CH56: 1646 | CI56: 1204 | CJ56: 20.75 | CL56: 53 | CM56: 4606 | CO56: 3.623166791 | CP56: 15.22425931 | CQ56: 68.17194963 | CU56: 82.62632229 | CV56: 1166.521928 | CW56: 47.22009535 | CX56: 9016.934433 | CY56: 8054 | CZ56: 6003 | DA56: 38879 | DB56: -32876 | DC56: 13877 | DD56: 20319 | DG56: 19 | DH56: 460 | DI56: 1799 | DJ56: 1824 | DK56: 0 | DL56: 165 | DM56: -190 | DN56: -967 | DO56: 1221 | DP56: 0 | DQ56: 64 | DR56: 10263 | DS56: 1315 | DU56: -223 | DV56: -714 | DW56: -371 | DX56: 13877 | DY56: 10964 | DZ56: 1703 | EA56: 1210 | EB56: 20.75 | ED56: 60 | EE56: 26933 | EF56: 27089 | EG56: 27768 | EK56: -1856 | EL56: 8 | EM56: 1444 | EN56: -1348 | EO56: 32 | EP56: 166 | EQ56: -1899 | ER56: 0 | ES56: 213 | ET56: 5000 | EU56: -4286 | EV56: 0 | EW56: 0 | EX56: 0 | EY56: 0 | EZ56: 4643 | FA56: 3929 | FB56: 714 | FC56: 3179 | FD56: 3928 | FE56: 3214 | FF56: 714 | FG56: 2880 | FH56: 3214 | FI56: 2500 | FJ56: 714 | FK56: 2880 | FL56: 2627.984223 | FM56: 2344.234445 | FN56: 2359.09683 | FO56: 528.3855422 | FP56: 114.7167916 | FV56: 0 | FW56: 0
A57: 177 | B57: Juupajoki | C57: 1904 | E57: 7.585185185 | F57: 34.58821703 | G57: -1834.033613 | K57: 66.99380165 | L57: 326.6806723 | M57: 17.39027193 | N57: 6856.617647 | O57: 2972 | P57: 1424 | Q57: 11965 | R57: -10541 | S57: 7174 | T57: 4285 | W57: -14 | X57: 82 | Y57: 986 | Z57: 491 | AA57: 0 | AB57: 0 | AC57: 495 | AD57: 11 | AE57: 0 | AF57: 0 | AG57: 506 | AH57: 2276 | AI57: 986 | AK57: 50 | AL57: -97 | AM57: 236 | AN57: 7174 | AO57: 5707 | AP57: 924 | AQ57: 543 | AR57: 21 | AT57: 135 | AU57: 1884 | AW57: 0.8657718121 | AX57: 37.36769815 | AY57: -1824.840764 | BC57: 65.77453366 | BD57: 359.3418259 | BE57: 18.98179444 | BF57: 6909.766454 | BG57: 3113 | BH57: 1227 | BI57: 12117 | BJ57: -10890 | BK57: 6911 | BL57: 4239 | BO57: -13 | BP57: 106 | BQ57: 353 | BR57: 513 | BS57: 0 | BT57: 0 | BU57: -160 | BV57: 11 | BW57: 0 | BX57: 0 | BY57: -149 | BZ57: 2128 | CA57: 353 | CC57: -167 | CD57: -413 | CE57: 14 | CF57: 6911 | CG57: 5424 | CH57: 1003 | CI57: 484 | CJ57: 21 | CL57: 176 | CM57: 1844 | CO57: 1.725856698 | CP57: 36.0711788 | CQ57: -1814.533623 | CU57: 66.38049203 | CV57: 375.813449 | CW57: 19.64621359 | CX57: 6982.104121 | CY57: 3125 | CZ57: 1297 | DA57: 12059 | DB57: -10762 | DC57: 7159 | DD57: 4413 | DG57: -32 | DH57: 21 | DI57: 799 | DJ57: 517 | DK57: 0 | DL57: 0 | DM57: 282 | DN57: 10 | DO57: 0 | DP57: 0 | DQ57: 292 | DR57: 2419 | DS57: 799 | DU57: -93 | DV57: -13 | DW57: 88 | DX57: 7159 | DY57: 5542 | DZ57: 1114 | EA57: 503 | EB57: 21 | ED57: 48 | EE57: 7992 | EF57: 7931 | EG57: 7889 | EK57: -950 | EL57: 192 | EM57: 8 | EN57: -467 | EO57: 128 | EP57: 0 | EQ57: -711 | ER57: 0 | ES57: 0 | ET57: 300 | EU57: -488 | EV57: 0 | EW57: 315 | EX57: 447 | EY57: -400 | EZ57: 3273 | FA57: 2276 | FB57: 997 | FC57: 105 | FD57: 3176 | FE57: 1863 | FF57: 1313 | FG57: 67 | FH57: 3210 | FI57: 2297 | FJ57: 913 | FK57: 63 | FL57: 3182.773109 | FM57: 3399.681529 | FN57: 3667.570499 | FO57: 263.9047619 | FP57: 143.1153806 | FV57: 532 | FW57: -532
A58: 178 | B58: Juva | C58: 6334 | E58: 1.450630252 | F58: 52.26702176 | G58: -3067.571835 | K58: 65.53755523 | L58: 500.7893906 | M58: 23.84765907 | N58: 7664.824755 | O58: 8131 | P58: 4736 | Q58: 42293 | R58: -37557 | S58: 19293 | T58: 21780 | W58: -111 | X58: 617 | Y58: 4022 | Z58: 3303 | AA58: 0 | AB58: 0 | AC58: 719 | AD58: 261 | AE58: -700 | AF58: 0 | AG58: 280 | AH58: 5233 | AI58: 3995 | AK58: 453 | AL58: -2735 | AM58: 840 | AN58: 19293 | AO58: 15240 | AP58: 2548 | AQ58: 1505 | AR58: 19.75 | AT58: 73 | AU58: 6225 | AW58: 0.8781800391 | AX58: 52.71314417 | AY58: -3486.425703 | BC58: 65.43216952 | BD58: 91.56626506 | BE58: 4.150871873 | BF58: 8051.726908 | BG58: 8170 | BH58: 4397 | BI58: 44114 | BJ58: -39717 | BK58: 19482 | BL58: 21548 | BO58: -85 | BP58: 480 | BQ58: 1708 | BR58: 1740 | BS58: 0 | BT58: 131 | BU58: -163 | BV58: 10 | BW58: 0 | BX58: 0 | BY58: -153 | BZ58: 5080 | CA58: 1567 | CC58: -266 | CD58: -1957 | CE58: -2271 | CF58: 19482 | CG58: 15564 | CH58: 2405 | CI58: 1513 | CJ58: 20.75 | CL58: 122 | CM58: 6116 | CO58: 0.3992199965 | CP58: 54.32022707 | CQ58: -3712.393721 | CU58: 64.35142726 | CV58: 138.8162198 | CW58: 6.133664542 | CX58: 8260.627861 | CY58: 8124 | CZ58: 4440 | DA58: 44986 | DB58: -40546 | DC58: 19813 | DD58: 21196 | DG58: -90 | DH58: 662 | DI58: 1035 | DJ58: 1811 | DK58: 12 | DL58: 0 | DM58: -764 | DN58: -461 | DO58: 475 | DP58: 0 | DQ58: -750 | DR58: 4330 | DS58: 1848 | DU58: 588 | DV58: -2113 | DW58: -1000 | DX58: 19813 | DY58: 15734 | DZ58: 2553 | EA58: 1526 | EB58: 20.75 | ED58: 139 | EE58: 32416 | EF58: 34031 | EG58: 34179 | EK58: -3399 | EL58: 0 | EM58: 244 | EN58: -3957 | EO58: 0 | EP58: 119 | EQ58: -3325 | ER58: 225 | ES58: 252 | ET58: 6000 | EU58: -1100 | EV58: 0 | EW58: 1500 | EX58: 3500 | EY58: 0 | EZ58: 19657 | FA58: 11200 | FB58: 8457 | FC58: 1037 | FD58: 19200 | FE58: 9262 | FF58: 9938 | FG58: 1037 | FH58: 20587 | FI58: 10441 | FJ58: 10146 | FK58: 1037 | FL58: 5015.94569 | FM58: 5124.97992 | FN58: 5626.716808 | FO58: 758.2650602 | FP58: 123.9805527 | FV58: 941 | FW58: -941
A59: 179 | B59: Jyväskylä | C59: 140188 | E59: 0.9041190467 | F59: 56.09528453 | G59: -2999.208206 | K59: 49.65519454 | L59: 214.1267441 | M59: 11.70603733 | N59: 6676.577168 | O59: 327157 | P59: 173676 | Q59: 801386 | R59: -627710 | S59: 514407 | T59: 173337 | W59: 2685 | X59: 4380 | Y59: 67099 | Z59: 53588 | AA59: 0 | AB59: 0 | AC59: 13511 | AD59: 340 | AE59: 0 | AF59: -5 | AG59: 13846 | AH59: 50647 | AI59: 48317 | AK59: 1485 | AL59: -74876 | AM59: 20395 | AN59: 514407 | AO59: 440260 | AP59: 27051 | AQ59: 47096 | AR59: 20 | AT59: 156 | AU59: 141305 | AW59: 1.703221025 | AX59: 54.37257466 | AY59: -3051.590531 | BC59: 50.41485076 | BD59: 47.68408761 | BE59: 2.652229522 | BF59: 6562.287251 | BG59: 340413 | BH59: 175549 | BI59: 827099 | BJ59: -651550 | BK59: 513761 | BL59: 173454 | BO59: 2845 | BP59: 10542 | BQ59: 49052 | BR59: 49087 | BS59: 0 | BT59: 0 | BU59: -35 | BV59: 340 | BW59: 0 | BX59: -5 | BY59: 300 | BZ59: 51010 | CA59: 32590 | CC59: 1719 | CD59: -26281 | CE59: -14819 | CF59: 513761 | CG59: 438821 | CH59: 25942 | CI59: 48998 | CJ59: 20 | CL59: 96 | CM59: 142400 | CO59: 0.4500199773 | CP59: 58.36972226 | CQ59: -3323.946629 | CU59: 46.82326243 | CV59: 17.20505618 | CW59: 0.9353590293 | CX59: 6713.83427 | CY59: 355050 | CZ59: 168753 | DA59: 855710 | DB59: -686957 | DC59: 524204 | DD59: 173607 | DG59: 3631 | DH59: 7722 | DI59: 22207 | DJ59: 53776 | DK59: 0 | DL59: 0 | DM59: -31569 | DN59: 340 | DO59: 0 | DP59: 75 | DQ59: -31154 | DR59: 19856 | DS59: 12604 | DU59: 1131 | DV59: -26686 | DW59: -42549 | DX59: 524204 | DY59: 448187 | DZ59: 26652 | EA59: 49365 | EB59: 20 | ED59: 152 | EE59: 344737 | EF59: 351647 | EG59: 363032 | EK59: -53174 | EL59: 1409 | EM59: 23843 | EN59: -67501 | EO59: 1674 | EP59: 18418 | EQ59: -68107 | ER59: 1059 | ES59: 11895 | ET59: 30000 | EU59: 17593 | EV59: 20000 | EW59: -18421 | EX59: 23000 | EY59: 69578 | EZ59: 365843 | FA59: 249571 | FB59: 116272 | FC59: 160966 | FD59: 341144 | FE59: 242386 | FF59: 98758 | FG59: 158852 | FH59: 407036 | FI59: 233700 | FJ59: 173336 | FK59: 7797 | FL59: 7386.267013 | FM59: 7781.76993 | FN59: 8539.002809 | FO59: 22409.35 | FP59: 157.3690309 | FV59: 25477 | FW59: -25477
A60: 181 | B60: Jämijärvi | C60: 1867 | E60: 0.4146341463 | F60: 56.75032808 | G60: -3406.534547 | K60: 18.80112176 | L60: 106.5881093 | M60: 5.658694297 | N60: 6875.200857 | O60: 2260 | P60: 625 | Q60: 11853 | R60: -11228 | S60: 5705 | T60: 5862 | W60: -34 | X60: 1 | Y60: 306 | Z60: 359 | AA60: 0 | AB60: 0 | AC60: -53 | AD60: 0 | AE60: 0 | AF60: 0 | AG60: -53 | AH60: -1941 | AI60: 296 | AK60: 1 | AL60: -786 | AM60: 154 | AN60: 5705 | AO60: 5008 | AP60: 305 | AQ60: 392 | AR60: 22.5 | AT60: 280 | AU60: 1809 | AW60: 0.7698924731 | AX60: 52.24079155 | AY60: -3105.583195 | BC60: 27.77141548 | BD60: 71.31011609 | BE60: 3.713913867 | BF60: 7008.291874 | BG60: 2216 | BH60: 722 | BI60: 11318 | BJ60: -10596 | BK60: 5770 | BL60: 5535 | BO60: -34 | BP60: 7 | BQ60: 682 | BR60: 349 | BS60: 408 | BT60: 0 | BU60: 741 | BV60: 0 | BW60: 0 | BX60: 0 | BY60: 741 | BZ60: -1125 | CA60: 584 | CC60: -177 | CD60: -896 | CE60: 852 | CF60: 5770 | CG60: 4775 | CH60: 274 | CI60: 721 | CJ60: 22.5 | CL60: 81 | CM60: 1739 | CO60: 0.8628678773 | CP60: 53.20884984 | CQ60: -2789.534215 | CU60: 28.39790576 | CV60: 512.3634273 | CW60: 24.82557252 | CX60: 7533.06498 | CY60: 2500 | CZ60: 1184 | DA60: 12056 | DB60: -10872 | DC60: 6134 | DD60: 5428 | DG60: -29 | DH60: -1 | DI60: 660 | DJ60: 361 | DK60: 0 | DL60: 0 | DM60: 299 | DN60: 0 | DO60: 0 | DP60: 0 | DQ60: 299 | DR60: -838 | DS60: 412 | DU60: -503 | DV60: -771 | DW60: 798 | DX60: 6134 | DY60: 5140 | DZ60: 286 | EA60: 708 | EB60: 22.5 | ED60: 62 | EE60: 8652 | EF60: 8095 | EG60: 8652 | EJ60: 250 | EK60: -159 | EL60: 0 | EM60: 17 | EN60: -326 | EO60: 32 | EP60: 562 | EQ60: -226 | ER60: 34 | ES60: 578 | ET60: 1220 | EU60: -200 | EV60: 0 | EW60: -150 | EX60: 900 | EY60: 300 | EZ60: 5876 | FA60: 4141 | FB60: 1735 | FC60: 267 | FD60: 4831 | FE60: 3460 | FF60: 1371 | FG60: 367 | FH60: 5259 | FI60: 3433 | FJ60: 1826 | FK60: 381 | FL60: 3788.966256 | FM60: 3383.084577 | FN60: 3802.185164 | FO60: 228.4444444 | FP60: 131.365408 | FV60: 716 | FW60: -716
A61: 182 | B61: Jämsä | C61: 20877 | E61: 1.161607525 | F61: 35.07533685 | G61: -1894.956172 | K61: 59.63803524 | L61: 511.9030512 | M61: 22.16514382 | N61: 8429.659434 | O61: 43424 | P61: 39436 | Q61: 164260 | R61: -124824 | S61: 85413 | T61: 43851 | W61: -362 | X61: 941 | Y61: 5019 | Z61: 10786 | AA61: 0 | AB61: 0 | AC61: -5767 | AD61: 247 | AE61: 0 | AF61: 2240 | AG61: -3280 | AH61: 252 | AI61: 4973 | AK61: -353 | AL61: -4263 | AM61: -2066 | AN61: 85413 | AO61: 69890 | AP61: 9416 | AQ61: 6107 | AR61: 21 | AT61: 264 | AU61: 20607 | AW61: 1.160365854 | AX61: 35.70808406 | AY61: -1782.743728 | BC61: 59.55030901 | BD61: 537.584316 | BE61: 22.91787817 | BF61: 8561.799389 | BG61: 43359 | BH61: 42359 | BI61: 164615 | BJ61: -122256 | BK61: 84038 | BL61: 42252 | BO61: -355 | BP61: 1640 | BQ61: 5319 | BR61: 8183 | BS61: 4252 | BT61: 0 | BU61: 1388 | BV61: 247 | BW61: 0 | BX61: -120 | BY61: 1515 | BZ61: 1766 | CA61: 5174 | CC61: -3490 | CD61: -4530 | CE61: 3643 | CF61: 84038 | CG61: 69472 | CH61: 8479 | CI61: 6087 | CJ61: 21 | CL61: 133 | CM61: 20182 | CO61: 0.8896318529 | CP61: 34.54164435 | CQ61: -1889.356853 | CU61: 59.409993 | CV61: 335.3978793 | CW61: 13.84331139 | CX61: 8843.276187 | CY61: 43063 | CZ61: 42473 | DA61: 165470 | DB61: -122655 | DC61: 84863 | DD61: 42543 | DG61: -313 | DH61: 1057 | DI61: 5495 | DJ61: 8110 | DK61: 0 | DL61: 0 | DM61: -2615 | DN61: 247 | DO61: 0 | DP61: 0 | DQ61: -2368 | DR61: -602 | DS61: 5369 | DU61: -684 | DV61: -4532 | DW61: -1724 | DX61: 84863 | DY61: 69037 | DZ61: 9669 | EA61: 6157 | EB61: 21 | ED61: 98 | EE61: 101529 | EF61: 102482 | EG61: 103228 | EK61: -7478 | EL61: 286 | EM61: 153 | EN61: -6534 | EO61: 501 | EP61: 4502 | EQ61: -7504 | ER61: 126 | ES61: 285 | ET61: 10000 | EU61: 0 | EV61: 4000 | EW61: 0 | EX61: 0 | EY61: 1025 | EZ61: 43449 | FA61: 38921 | FB61: 4528 | FC61: 5438 | FD61: 42918 | FE61: 38390 | FF61: 4528 | FG61: 5961 | FH61: 41217 | FI61: 33410 | FJ61: 7807 | FK61: 5590 | FL61: 3438.56876 | FM61: 3377.735721 | FN61: 3184.570409 | FO61: 3287.47619 | FP61: 162.8914969 | FV61: 6948 | FW61: -6948
A62: 186 | B62: Järvenpää | C62: 42572 | E62: 3965.5 | F62: 50.20649648 | G62: -2705.909988 | K62: 55.26894763 | L62: 11.55689185 | M62: 0.6527309802 | N62: 6462.487081 | O62: 99695 | P62: 54339 | Q62: 246357 | R62: -192018 | S62: 181900 | T62: 25193 | W62: 392 | X62: 391 | Y62: 15858 | Z62: 17617 | AA62: 0 | AB62: 128 | AC62: -1887 | AD62: 193 | AE62: 2000 | AF62: 0 | AG62: 306 | AH62: 54009 | AI62: 4566 | AK62: -1937 | AL62: 0 | AM62: -10405 | AN62: 181900 | AO62: 163681 | AP62: 5316 | AQ62: 12903 | AR62: 19.75 | AT62: 210 | AU62: 43410 | AX62: 54.60503975 | AY62: -3951.485833 | BC62: 44.60398251 | BD62: 14.81225524 | BE62: 0.5848251219 | BF62: 9244.598019 | BG62: 100690 | BH62: 127520 | BI62: 333502 | BJ62: -205982 | BK62: 187816 | BL62: 27387 | BO62: 456 | BP62: 565 | BQ62: 10242 | BR62: 22499 | BS62: 0 | BT62: 0 | BU62: -12257 | BV62: 170 | BW62: 0 | BX62: 0 | BY62: -12087 | BZ62: 41920 | CA62: 135 | CC62: 642 | CD62: 0 | CE62: -55847 | CF62: 187816 | CG62: 168830 | CH62: 5198 | CI62: 13788 | CJ62: 19.75 | CL62: 146 | CM62: 43711 | CO62: -0.341276395 | CP62: 86.6968685 | CQ62: -5201.551097 | CU62: 33.07471401 | CV62: 56.37025005 | CW62: 2.650993061 | CX62: 7761.295784 | CY62: 65950 | CZ62: 51616 | DA62: 285483 | DB62: -232567 | DC62: 193842 | DD62: 29139 | DG62: 195 | DH62: 544 | DI62: -8847 | DJ62: 23684 | DK62: 137 | DL62: 0 | DM62: -32394 | DN62: 150 | DO62: 0 | DP62: 0 | DQ62: -32244 | DR62: 9677 | DS62: -13166 | DU62: 6118 | DV62: -2750 | DW62: -55861 | DX62: 193842 | DY62: 174569 | DZ62: 4677 | EA62: 14596 | EB62: 19.75 | ED62: 271 | EE62: 108888 | EF62: 195372 | EG62: 181344 | EK62: -29649 | EL62: 423 | EM62: 14255 | EN62: -68676 | EO62: 551 | EP62: 12143 | EQ62: -50488 | ER62: 784 | ES62: 7009 | ET62: 0 | EU62: 11802 | EV62: 0 | EW62: 44394 | EX62: 183000 | EY62: -124064 | EZ62: 91273 | FA62: 0 | FB62: 91273 | FC62: 4991 | FD62: 135667 | FE62: 0 | FF62: 135667 | FG62: 4991 | FH62: 191852 | FI62: 174814 | FJ62: 17038 | FK62: 4991 | FL62: 7033.261299 | FM62: 7852.038701 | FN62: 9130.516346 | FO62: 8838.936709 | FP62: 202.2130976 | FV62: 2326 | FW62: -2326
A63: 202 | B63: Kaarina | C63: 33099 | E63: 131.89 | F63: 54.33671042 | G63: -2603.945739 | K63: 49.44821498 | L63: 450.0135956 | M63: 25.89114781 | N63: 6344.058733 | O63: 75850 | P63: 34078 | Q63: 188147 | R63: -154069 | S63: 137266 | T63: 28774 | W63: 599 | X63: 586 | Y63: 13156 | Z63: 9145 | AA63: 0 | AB63: 0 | AC63: 4011 | AD63: 17 | AE63: 0 | AF63: 0 | AG63: 4028 | AH63: 31238 | AI63: 9445 | AK63: 555 | AL63: -67 | AM63: -8418 | AN63: 137266 | AO63: 125226 | AP63: 4979 | AQ63: 7061 | AR63: 19.75 | AT63: 202 | AU63: 33458 | AW63: 7.367724868 | AX63: 56.26532314 | AY63: -2876.501883 | BC63: 47.5784496 | BD63: 267.2305577 | BE63: 15.33374211 | BF63: 6361.079562 | BG63: 78576 | BH63: 33714 | BI63: 196221 | BJ63: -162507 | BK63: 139346 | BL63: 27618 | BO63: -245 | BP63: 669 | BQ63: 4881 | BR63: 8786 | BS63: 0 | BT63: 0 | BU63: -3905 | BV63: 17 | BW63: 0 | BX63: 0 | BY63: -3888 | BZ63: 27350 | CA63: 2362 | CC63: -82 | CD63: -67 | CE63: -9794 | CF63: 139346 | CG63: 127265 | CH63: 4896 | CI63: 7185 | CJ63: 19.75 | CL63: 199 | CM63: 33937 | CO63: 0.2577698563 | CP63: 62.85677318 | CQ63: -3152.252704 | CU63: 41.5521133 | CV63: 487.7272593 | CW63: 26.92305636 | CX63: 6612.193181 | CY63: 81452 | CZ63: 35114 | DA63: 206974 | DB63: -171510 | DC63: 145290 | DD63: 28272 | DG63: -1422 | DH63: 1294 | DI63: 1924 | DJ63: 11670 | DK63: 0 | DL63: 0 | DM63: -9746 | DN63: 17 | DO63: 0 | DP63: 0 | DQ63: -9729 | DR63: 17620 | DS63: -2075 | DU63: -139 | DV63: -1192 | DW63: -12290 | DX63: 145290 | DY63: 132499 | DZ63: 5375 | EA63: 7416 | EB63: 19.75 | ED63: 211 | EE63: 83720 | EF63: 86051 | EG63: 92819 | EK63: -22164 | EL63: 34 | EM63: 4267 | EN63: -16237 | EO63: 56 | EP63: 4025 | EQ63: -15027 | ER63: 0 | ES63: 4812 | ET63: 0 | EU63: 5710 | EV63: 0 | EW63: 0 | EX63: 50000 | EY63: -33250 | EZ63: 69300 | FA63: 233 | FB63: 69067 | FC63: 2291 | FD63: 69234 | FE63: 167 | FF63: 69067 | FG63: 2291 | FH63: 84792 | FI63: 48975 | FJ63: 35817 | FK63: 2291 | FL63: 3581.074957 | FM63: 3636.678821 | FN63: 3934.849869 | FO63: 6708.810127 | FP63: 197.6842422 | FV63: 460 | FW63: -460
A64: 204 | B64: Kaavi | C64: 3048 | E64: 0.3955500618 | F64: 41.83437151 | G64: -2962.598425 | K64: 44.21265823 | L64: 148.9501312 | M64: 6.282367214 | N64: 8653.871391 | O64: 6959 | P64: 3331 | Q64: 24931 | R64: -21600 | S64: 9034 | T64: 12679 | W64: -126 | X64: 201 | Y64: 188 | Z64: 783 | AA64: 0 | AB64: 0 | AC64: -595 | AD64: 12 | AE64: 0 | AF64: 0 | AG64: -583 | AH64: -213 | AI64: 257 | AK64: 338 | AL64: -677 | AM64: -257 | AN64: 9034 | AO64: 6988 | AP64: 1051 | AQ64: 995 | AR64: 21.25 | AT64: 285 | AU64: 2990 | AW64: 0.6894618834 | AX64: 40.17966195 | AY64: -2585.953177 | BC64: 43.88418153 | BD64: 420.735786 | BE64: 17.38950956 | BF64: 8831.103679 | BG64: 7018 | BH64: 3269 | BI64: 24982 | BJ64: -21713 | BK64: 9219 | BL64: 12893 | BO64: -126 | BP64: 213 | BQ64: 486 | BR64: 776 | BS64: 0 | BT64: 0 | BU64: -290 | BV64: 13 | BW64: 0 | BX64: 0 | BY64: -277 | BZ64: -490 | CA64: 704 | CC64: -214 | CD64: -763 | CE64: 1182 | CF64: 9219 | CG64: 7148 | CH64: 967 | CI64: 1104 | CJ64: 21.75 | CL64: 188 | CM64: 2893 | CO64: 0.6236226959 | CP64: 38.86466344 | CQ64: -2365.710335 | CU64: 44.01189654 | CV64: 402.0048393 | CW64: 15.96085878 | CX64: 9193.225026 | CY64: 6900 | CZ64: 3316 | DA64: 24656 | DB64: -21340 | DC64: 9442 | DD64: 12468 | DG64: -111 | DH64: 184 | DI64: 643 | DJ64: 797 | DK64: 0 | DL64: 0 | DM64: -154 | DN64: 12 | DO64: 0 | DP64: 0 | DQ64: -142 | DR64: -632 | DS64: 542 | DU64: -589 | DV64: -1086 | DW64: 561 | DX64: 9442 | DY64: 7195 | DZ64: 1099 | EA64: 1148 | EB64: 22 | ED64: 118 | EE64: 15184 | EF64: 15203 | EG64: 15024 | EK64: -576 | EL64: 0 | EM64: 62 | EN64: -524 | EO64: 63 | EP64: 939 | EQ64: -739 | ER64: 0 | ES64: 758 | ET64: 1000 | EU64: 0 | EV64: 0 | EW64: 0 | EX64: 0 | EY64: 1000 | EZ64: 8746 | FA64: 7478 | FB64: 1268 | FC64: 501 | FD64: 7982 | FE64: 6775 | FF64: 1207 | FG64: 507 | FH64: 7897 | FI64: 5739 | FJ64: 2158 | FK64: 507 | FL64: 5645.997375 | FM64: 5546.488294 | FN64: 5766.678189 | FO64: 327.0454545 | FP64: 113.0471671 | FV64: 479 | FW64: -479
A65: 205 | B65: Kajaani | C65: 37239 | E65: 0.9523809524 | F65: 50.85643337 | G65: -3634.603507 | K65: 59.8846977 | L65: 37.21904455 | M65: 1.566378093 | N65: 8672.842987 | O65: 86220 | P65: 51082 | Q65: 283357 | R65: -232275 | S65: 138654 | T65: 102583 | W65: 3330 | X65: 598 | Y65: 12890 | Z65: 15654 | AA65: 0 | AB65: 0 | AC65: -2764 | AD65: -2276 | AE65: 4048 | AF65: 12 | AG65: -980 | AH65: 69564 | AI65: 13625 | AK65: 1953 | AL65: -13606 | AM65: -7880 | AN65: 138654 | AO65: 122933 | AP65: 5736 | AQ65: 9985 | AR65: 21 | AT65: 225 | AU65: 36973 | AW65: 0.1901963403 | AX65: 60.6591216 | AY65: -4189.624861 | BC65: 54.84854248 | BD65: 136.2075028 | BE65: 5.649644235 | BF65: 8799.799854 | BG65: 86629 | BH65: 45115 | BI65: 286577 | BJ65: -241462 | BK65: 135606 | BL65: 103186 | BO65: 3580 | BP65: 652 | BQ65: 1562 | BR65: 14882 | BS65: 0 | BT65: 0 | BU65: -13320 | BV65: 500 | BW65: 552 | BX65: 24 | BY65: -12244 | BZ65: 57320 | CA65: -208 | CC65: -139 | CD65: -13688 | CE65: -19027 | CF65: 135606 | CG65: 120067 | CH65: 5397 | CI65: 10142 | CJ65: 21 | CL65: 235 | CM65: 36709 | CO65: 2.08598921 | CP65: 65.7909202 | CQ65: 1589.88259 | CU65: 64.26089106 | CV65: 6115.802664 | CW65: 233.7826484 | CX65: 9548.475851 | CY65: 89966 | CZ65: 43202 | DA65: 298956 | DB65: -254859 | DC65: 138418 | DD65: 104003 | DG65: 2575 | DH65: 50798 | DI65: 40935 | DJ65: 17821 | DK65: 119904 | DL65: 0 | DM65: 143018 | DN65: -39 | DO65: -20000 | DP65: 14 | DQ65: 122993 | DR65: 180314 | DS65: 47546 | DU65: -10093 | DV65: -15428 | DW65: 143980 | DX65: 138418 | DY65: 122364 | DZ65: 5465 | EA65: 10589 | EB65: 21 | ED65: 5 | EE65: 160986 | EF65: 164648 | EG65: 171594 | EK65: -22299 | EL65: 401 | EM65: 393 | EN65: -21794 | EO65: 1064 | EP65: 1911 | EQ65: -30514 | ER65: 686 | ES65: 126262 | ET65: 12312 | EU65: 9551 | EV65: 24000 | EW65: -2491 | EX65: 15460 | EY65: 14982 | EZ65: 118627 | FA65: 80024 | FB65: 38603 | FC65: 73031 | FD65: 126450 | FE65: 88598 | FF65: 37852 | FG65: 74196 | FH65: 141463 | FI65: 87686 | FJ65: 53777 | FK65: 6216 | FL65: 9023.523725 | FM65: 10379.43905 | FN65: 16321.99188 | FO65: 5826.857143 | FP65: 158.7310235 | FV65: 9462 | FW65: -9462
A66: 208 | B66: Kalajoki | C66: 12516 | E66: 2.016339869 | F66: 59.30511491 | G66: -2160.754235 | K66: 55.98789486 | L66: 1556.248003 | M66: 71.43831831 | N66: 7951.342282 | O66: 41651 | P66: 21805 | Q66: 86584 | R66: -64779 | S66: 38755 | T66: 30189 | W66: -86 | X66: 699 | Y66: 4778 | Z66: 5503 | AA66: 906 | AB66: 0 | AC66: 181 | AD66: 54 | AE66: 0 | AF66: 0 | AG66: 235 | AH66: 18287 | AI66: 4428 | AK66: 612 | AL66: -2290 | AM66: -2534 | AN66: 38755 | AO66: 32482 | AP66: 2716 | AQ66: 3557 | AR66: 20 | AT66: 207 | AU66: 12387 | AW66: 2.364829396 | AX66: 66.91013505 | AY66: -2941.470897 | BC66: 52.32986538 | BD66: 1447.727456 | BE66: 60.85822006 | BF66: 8682.812626 | BG66: 42041 | BH66: 22001 | BI66: 86179 | BJ66: -64178 | BK66: 39005 | BL66: 30873 | BO66: -91 | BP66: 510 | BQ66: 6119 | BR66: 7189 | BS66: 0 | BT66: 0 | BU66: -1070 | BV66: 54 | BW66: 0 | BX66: 0 | BY66: -1016 | BZ66: 17271 | CA66: 5407 | CC66: -327 | CD66: -2479 | CE66: -7474 | CF66: 39005 | CG66: 31797 | CH66: 2129 | CI66: 5079 | CJ66: 20 | CL66: 48 | CM66: 12373 | CO66: 0.9333047394 | CP66: 65.39240267 | CQ66: -3105.633234 | CU66: 51.90644835 | CV66: 1436.35335 | CW66: 63.16610513 | CX66: 8299.84644 | CY66: 42897 | CZ66: 21961 | DA66: 90507 | DB66: -68249 | DC66: 41540 | DD66: 31822 | DG66: 1 | DH66: 713 | DI66: 5827 | DJ66: 5866 | DK66: 0 | DL66: 0 | DM66: -39 | DN66: 54 | DO66: 0 | DP66: 0 | DQ66: 15 | DR66: 17286 | DS66: 5454 | DU66: 873 | DV66: -2884 | DW66: -2120 | DX66: 41540 | DY66: 34278 | DZ66: 1911 | EA66: 5351 | EB66: 21 | ED66: 39 | EE66: 33626 | EF66: 33066 | EG66: 35046 | EK66: -9842 | EL66: 858 | EM66: 2022 | EN66: -16586 | EO66: 1967 | EP66: 1738 | EQ66: -9345 | ER66: 762 | ES66: 1009 | ET66: 6000 | EU66: 0 | EV66: 10000 | EW66: 0 | EX66: 6000 | EY66: -2000 | EZ66: 36309 | FA66: 16975 | FB66: 19334 | FC66: 2767 | FD66: 43830 | FE66: 23946 | FF66: 19884 | FG66: 4653 | FH66: 44946 | FI66: 26746 | FJ66: 18200 | FK66: 4455 | FL66: 4746.883988 | FM66: 5524.905142 | FN66: 5722.864301 | FO66: 1632.285714 | FP66: 131.9231968 | FV66: 3053 | FW66: -3053
A67: 211 | B67: Kangasala | C67: 31437 | E67: 2.107899187 | F67: 40.58955947 | G67: -1004.739638 | K67: 60.68655297 | L67: 1370.423386 | M67: 73.93912749 | N67: 6765.085727 | O67: 82506 | P67: 43579 | Q67: 187364 | R67: -143785 | S67: 128741 | T67: 38279 | W67: -1044 | X67: 2939 | Y67: 25130 | Z67: 13403 | AA67: 0 | AB67: 0 | AC67: 11727 | AD67: 7 | AE67: -8000 | AF67: 0 | AG67: 3734 | AH67: 54913 | AI67: 24853 | AK67: -649 | AL67: -11371 | AM67: 13110 | AN67: 128741 | AO67: 117566 | AP67: 4095 | AQ67: 7080 | AR67: 21 | AT67: 35 | AU67: 31676 | AW67: 0.7737379022 | AX67: 43.05932195 | AY67: -1385.212779 | BC67: 58.94248279 | BD67: 1033.305973 | BE67: 50.73539217 | BF67: 7433.798459 | BG67: 85840 | BH67: 44427 | BI67: 200379 | BJ67: -155952 | BK67: 125371 | BL67: 37444 | BO67: -795 | BP67: 1937 | BQ67: 8005 | BR67: 11827 | BS67: 0 | BT67: 0 | BU67: -3822 | BV67: 7 | BW67: 2200 | BX67: 0 | BY67: -1615 | BZ67: 53297 | CA67: 6374 | CC67: -1829 | CD67: -10600 | CE67: -12741 | CF67: 125371 | CG67: 114129 | CH67: 4094 | CI67: 7148 | CJ67: 21 | CL67: 134 | CM67: 31868 | CO67: 1.393070089 | CP67: 50.05467596 | CQ67: -1667.440693 | CU67: 54.76080786 | CV67: 1416.687586 | CW67: 69.8310231 | CX67: 7404.888917 | CY67: 87922 | CZ67: 44354 | DA67: 203175 | DB67: -158821 | DC67: 131061 | DD67: 38573 | DG67: -720 | DH67: 3662 | DI67: 13755 | DJ67: 13335 | DK67: 0 | DL67: 0 | DM67: 420 | DN67: 7 | DO67: 0 | DP67: 0 | DQ67: 427 | DR67: 53725 | DS67: 12576 | DU67: 3800 | DV67: -10141 | DW67: -8609 | DX67: 131061 | DY67: 119533 | DZ67: 4316 | EA67: 7212 | EB67: 21 | ED67: 49 | EE67: 77826 | EF67: 85317 | EG67: 87101 | EK67: -12744 | EL67: 155 | EM67: 846 | EN67: -21177 | EO67: 20 | EP67: 2042 | EQ67: -22477 | ER67: 0 | ES67: 1292 | ET67: 3000 | EU67: 0 | EV67: 5000 | EW67: 0 | EX67: 31000 | EY67: 0 | EZ67: 53582 | FA67: 43034 | FB67: 10548 | FC67: 59 | FD67: 47983 | FE67: 38842 | FF67: 9141 | FG67: 49 | FH67: 68842 | FI67: 57355 | FJ67: 11487 | FK67: 39 | FL67: 3222.699367 | FM67: 3200.625079 | FN67: 4317.465796 | FO67: =(DY67/EB67) -> 5692.047619 | FP67: =(FO67/CM67)*1000 -> 178.6132678 | FV67: 7141 | FW67: =FV67*-1 -> -7141
A68: 213 | B68: Kangasniemi | C68: 5549 | E68: 1.868969625 | F68: 62.16759278 | G68: -3477.383312 | K68: 49.56304373 | L68: 136.2407641 | M68: 6.724011891 | N68: 7395.566769 | O68: 8038 | P68: 2951 | Q68: 37521 | R68: -34570 | S68: 18685 | T68: 18676 | W68: -158 | X68: 327 | Y68: 2960 | Z68: 1758 | AA68: 0 | AB68: 0 | AC68: 1202 | AD68: 0 | AE68: 0 | AF68: 0 | AG68: 1202 | AH68: 6763 | AI68: 2903 | AK68: 1424 | AL68: -1501 | AM68: 951 | AN68: 18685 | AO68: 14031 | AP68: 2828 | AQ68: 1826 | AR68: 20.75 | AT68: 124 | AU68: 5452 | AW68: 0.591607565 | AX68: 64.36385013 | AY68: -3666.544387 | BC68: 48.69179955 | BD68: 150.9537784 | BE68: 7.196641192 | BF68: 7656.089508 | BG68: 7872 | BH68: 2946 | BI68: 38304 | BJ68: -35358 | BK68: 18064 | BL68: 18116 | BO68: -96 | BP68: 161 | BQ68: 887 | BR68: 1669 | BS68: 0 | BT68: 0 | BU68: -782 | BV68: 0 | BW68: 0 | BX68: 0 | BY68: -782 | BZ68: 5980 | CA68: 883 | CC68: 638 | CD68: -1578 | CE68: -764 | CF68: 18064 | CG68: 13689 | CH68: 2568 | CI68: 1807 | CJ68: 20.75 | CL68: 187 | CM68: 5356 | CO68: 0.312626549 | CP68: 65.54343738 | CQ68: -3691.187453 | CU68: 46.5542102 | CV68: 476.2882748 | CW68: 22.06956625 | CX68: 7877.147125 | CY68: 8167 | CZ68: 3000 | DA68: 39199 | DB68: -36199 | DC68: 18513 | DD68: 18372 | DG68: -104 | DH68: 261 | DI68: 843 | DJ68: 1672 | DK68: 0 | DL68: 0 | DM68: -829 | DN68: 0 | DO68: 0 | DP68: 0 | DQ68: -829 | DR68: 5151 | DS68: 1058 | DU68: 548 | DV68: -1706 | DW68: -86 | DX68: =DC68 -> 18513 | DY68: 14009 | DZ68: 2660 | EA68: 1844 | EB68: 20.75 | ED68: 151 | EE68: 26487 | EF68: 27548 | EG68: 28049 | EK68: -1838 | EL68: -324 | EM68: 210 | EN68: -1745 | EO68: 90 | EP68: 8 | EQ68: -1162 | ER68: 6 | ES68: 12 | ET68: 5000 | EU68: -4000 | EV68: 0 | EW68: 1100 | EX68: 0 | EY68: 2100 | EZ68: 21828 | FA68: 13150 | FB68: 8678 | FC68: 1383 | FD68: 21350 | FE68: 11444 | FF68: 9906 | FG68: 1268 | FH68: 21743 | FI68: 9730 | FJ68: 12013 | FK68: 1153 | FL68: 5446.026311 | FM68: 5576.852531 | FN68: 5752.987304 | FO68: 675.1325301 | FP68: 126.05163 | FV68: 1782 | FW68: -1782
A69: 214 | B69: Kankaanpää | C69: 11585 | E69: 0.6648298217 | F69: 65.99289205 | G69: -3888.821752 | K69: 27.04104354 | L69: 125.6797583 | M69: 6.002665643 | N69: 7642.123435 | O69: 20935 | P69: 9515 | Q69: 73716 | R69: -64201 | S69: 39869 | T69: 27284 | W69: -177 | X69: 1148 | Y69: 3923 | Z69: 3910 | AA69: 0 | AB69: 0 | AC69: 13 | AD69: 0 | AE69: 0 | AF69: 0 | AG69: 13 | AH69: 3187 | AI69: 4191 | AK69: -698 | AL69: -5991 | AM69: -3549 | AN69: 39869 | AO69: 34115 | AP69: 2752 | AQ69: 3002 | AR69: 21.5 | AT69: 229 | AU69: 11471 | AW69: 0.2213057458 | AX69: 70.4476292 | AY69: -4361.694708 | BC69: 22.26960875 | BD69: 108.8832709 | BE69: 5.025131998 | BF69: 7908.726353 | BG69: 21043 | BH69: 9896 | BI69: 76464 | BJ69: -66568 | BK69: 39778 | BL69: 27313 | BO69: -182 | BP69: 1059 | BQ69: 1400 | BR69: 4610 | BS69: 0 | BT69: 0 | BU69: -3210 | BV69: 0 | BW69: 0 | BX69: 0 | BY69: -3210 | BZ69: -23 | CA69: 1275 | CC69: 1112 | CD69: -6970 | CE69: -5032 | CF69: 39778 | CG69: 33790 | CH69: 2546 | CI69: 3442 | CJ69: 21.5 | CL69: 209 | CM69: 11286 | CO69: 0.03273322422 | CP69: 81.32430081 | CQ69: -5072.833599 | CU69: 16.22888799 | CV69: 97.11146553 | CW69: 4.367105881 | CX69: 8116.516038 | CY69: 20468 | CZ69: 8978 | DA69: 76730 | DB69: -67752 | DC69: 39523 | DD69: 27373 | DG69: -161 | DH69: 1085 | DI69: 68 | DJ69: 3671 | DK69: 0 | DL69: 0 | DM69: -3603 | DN69: 0 | DO69: 0 | DP69: 0 | DQ69: -3603 | DR69: -3625 | DS69: 75 | DU69: -468 | DV69: -7123 | DW69: -7223 | DX69: 39523 | DY69: 33520 | DZ69: 2492 | EA69: 3511 | EB69: 21.5 | ED69: 228 | EE69: 45269 | EF69: 48112 | EG69: 48510 | EK69: -8738 | EL69: 824 | EM69: 174 | EN69: -7186 | EO69: 670 | EP69: 209 | EQ69: -7578 | ER69: 146 | ES69: 134 | ET69: 10000 | EU69: 0 | EV69: 9000 | EW69: 0 | EX69: 14000 | EY69: 2529 | EZ69: 41730 | FA69: 34815 | FB69: 6915 | FC69: 1544 | FD69: 43759 | FE69: 36636 | FF69: 7123 | FG69: 1508 | FH69: 53165 | FI69: 42374 | FJ69: 10791 | FK69: 1472 | FL69: 5845.92145 | FM69: 6366.750937 | FN69: 6933.28017 | FO69: 1559.069767 | FP69: 138.1419252 | FV69: 3569 | FW69: -3569
A70: 216 | B70: Kannonkoski | C70: 1408 | E70: 1.172614108 | F70: 60.97860513 | G70: -3575.994318 | K70: 61.60406091 | L70: 1968.039773 | M70: 57.33320107 | N70: 12529.11932 | O70: 4264 | P70: 5279 | Q70: 14135 | R70: -8856 | S70: 4229 | T70: 5963 | W70: 1 | X70: 65 | Y70: 1402 | Z70: 1349 | AA70: 320 | AB70: 0 | AC70: 373 | AD70: 1 | AE70: 0 | AF70: 0 | AG70: 374 | AH70: 11652 | AI70: 1722 | AK70: 319 | AL70: -1194 | AM70: -234 | AN70: 4229 | AO70: 3216 | AP70: 570 | AQ70: 443 | AR70: 21 | AT70: 13 | AU70: 1353 | AW70: 0.792746114 | AX70: 61.53796778 | AY70: -3663.710273 | BC70: 61.22300706 | BD70: 2345.158906 | BE70: 68.00616559 | BF70: 12586.84405 | BG70: 4297 | BH70: 5623 | BI70: 14597 | BJ70: -8974 | BK70: 4049 | BL70: 5907 | BO70: -6 | BP70: 81 | BQ70: 1057 | BR70: 1077 | BS70: 79 | BT70: 61 | BU70: -2 | BV70: 1 | BW70: 0 | BX70: 0 | BY70: -1 | BZ70: 11651 | CA70: 1075 | CC70: 170 | CD70: -1337 | CE70: 46 | CF70: 4049 | CG70: 3034 | CH70: 574 | CI70: 441 | CJ70: 21 | CL70: 9 | CM70: 1339 | CO70: -1.582714972 | CP70: 63.21078743 | CQ70: -3751.306945 | CU70: 49.46699467 | CV70: 2845.40702 | CW70: 71.04214559 | CX70: 14619.11875 | CY70: 4357 | CZ70: 5689 | DA70: 15161 | DB70: -9472 | DC70: 4304 | DD70: 5729 | DG70: -8 | DH70: -2378 | DI70: -1825 | DJ70: 1144 | DK70: 9 | DL70: 143 | DM70: -3103 | DN70: 1 | DO70: 0 | DP70: 0 | DQ70: -3102 | DR70: 8549 | DS70: 406 | DU70: 458 | DV70: -1448 | DW70: -86 | DX70: 4304 | DY70: 3217 | DZ70: 634 | EA70: 453 | EB70: 21 | ED70: 293 | EE70: 8161 | EF70: 8378 | EG70: 8774 | EK70: -2297 | EL70: 21 | EM70: 320 | EN70: -1029 | EO70: 0 | EP70: 0 | EQ70: -523 | ER70: 13 | ES70: 18 | ET70: 1252 | EU70: -400 | EV70: 1300 | EW70: -160 | EX70: 1850 | EY70: -160 | EZ70: 8323 | FA70: 5946 | FB70: 2377 | FC70: 0 | FD70: 8126 | FE70: 5858 | FF70: 2268 | FG70: 0 | FH70: 8366 | FI70: 6368 | FJ70: 1998 | FK70: 0 | FL70: 7498.579545 | FM70: 8674.796748 | FN70: 9901.418969 | FO70: 153.1904762 | FP70: 114.406629 | FV70: 707 | FW70: -707
A71: 217 | B71: Kannus | C71: 5520 | E71: 3.050420168 | F71: 49.52104754 | G71: -2561.413043 | K71: 48.2985666 | L71: 266.8478261 | M71: 15.42474753 | N71: 6314.492754 | O71: 9491 | P71: 2985 | Q71: 33425 | R71: -30440 | S71: 17621 | T71: 13531 | W71: 28 | X71: 11 | Y71: 751 | Z71: 1114 | AA71: 0 | AB71: 0 | AC71: -363 | AD71: 104 | AE71: 0 | AF71: 4 | AG71: -255 | AH71: 5798 | AI71: 729 | AK71: -92 | AL71: -263 | AM71: -393 | AN71: 17621 | AO71: 15135 | AP71: 1210 | AQ71: 1276 | AR71: 20.5 | AT71: 281 | AU71: 5502 | AW71: -3.441176471 | AX71: 53.61435239 | AY71: -2806.434024 | BC71: 44.87525868 | BD71: 296.8011632 | BE71: 16.76497061 | BF71: 6461.832061 | BG71: 9663 | BH71: 3162 | BI71: 34165 | BJ71: -31003 | BK71: 17779 | BL71: 13339 | BO71: 37 | BP71: -1 | BQ71: 151 | BR71: 1116 | BS71: 0 | BT71: 0 | BU71: -965 | BV71: 104 | BW71: 0 | BX71: 7 | BY71: -854 | BZ71: 4944 | CA71: 151 | CC71: -6 | CD71: 0 | CE71: -1323 | CF71: 17779 | CG71: 15347 | CH71: 1153 | CI71: 1279 | CJ71: 21.5 | CL71: 244 | CM71: 5464 | CO71: 0.03052180548 | CP71: 53.30416763 | CQ71: -3034.956076 | CU71: 42.71653543 | CV71: 245.6076135 | CW71: 13.62303927 | CX71: 6580.527086 | CY71: 9817 | CZ71: 3240 | DA71: 34679 | DB71: -31439 | DC71: 17802 | DD71: 13702 | DG71: 22 | DH71: -2 | DI71: 85 | DJ71: 1159 | DK71: 0 | DL71: 0 | DM71: -1074 | DN71: 104 | DO71: 0 | DP71: 0 | DQ71: -970 | DR71: 3974 | DS71: 60 | DU71: 713 | DV71: 0 | DW71: -1197 | DX71: 17802 | DY71: 15563 | DZ71: 950 | EA71: 1289 | EB71: 21.5 | ED71: 222 | EE71: 21035 | EF71: 21628 | EG71: 21810 | EK71: -1183 | EL71: 0 | EM71: 61 | EN71: -1474 | EO71: 0 | EP71: 0 | EQ71: -1336 | ER71: 0 | ES71: 79 | ET71: 0 | EU71: 900 | EV71: 0 | EW71: 1300 | EX71: 0 | EY71: 500 | EZ71: 14700 | FA71: 0 | FB71: 14700 | FC71: 706 | FD71: 16000 | FE71: 0 | FF71: 16000 | FG71: 672 | FH71: 16500 | FI71: 0 | FJ71: 16500 | FK71: 637 | FL71: 5122.282609 | FM71: 5206.10687 | FN71: 5330.710102 | FO71: 723.8604651 | FP71: 132.4781232 | FV71: 865 | FW71: -865
A72: 218 | B72: Karijoki | C72: 1329 | E72: 2.555932203 | F72: 29.62926051 | G72: -444.6952596 | K72: 63.88053287 | L72: 1643.340858 | M72: 80.60262892 | N72: 7441.685478 | O72: 1599 | P72: 1039 | Q72: 9285 | R72: -8246 | S72: 4242 | T72: 4753 | W72: -29 | X72: 5 | Y72: 725 | Z72: 254 | AA72: 0 | AB72: 0 | AC72: 471 | AD72: 0 | AE72: 0 | AF72: 0 | AG72: 471 | AH72: 2080 | AI72: 682 | AK72: 29 | AL72: -266 | AM72: 420 | AN72: 4242 | AO72: 3707 | AP72: 308 | AQ72: 227 | AR72: 22 | AT72: 111 | AU72: 1274 | AW72: 0.1660899654 | AX72: 29.11341451 | AY72: -1177.394035 | BC72: 63.68795905 | BD72: 906.5934066 | BE72: 37.6036928 | BF72: 8799.843014 | BG72: 1642 | BH72: 1264 | BI72: 9894 | BJ72: -8630 | BK72: 4033 | BL72: 4640 | BO72: -23 | BP72: 5 | BQ72: 25 | BR72: 248 | BS72: 0 | BT72: 0 | BU72: -223 | BV72: 0 | BW72: 0 | BX72: 0 | BY72: -223 | BZ72: 1857 | CA72: 45 | CC72: -41 | CD72: -266 | CE72: -949 | CF72: 4033 | CG72: 3509 | CH72: 281 | CI72: 243 | CJ72: 22 | CL72: 246 | CM72: 1245 | CO72: -1.187878788 | CP72: 32.05864261 | CQ72: -1922.891566 | CU72: 58.81451803 | CV72: 428.1124498 | CW72: 17.77315914 | CX72: 8791.967871 | CY72: 1807 | CZ72: 1062 | DA72: 10202 | DB72: -9140 | DC72: 3838 | DD72: 4854 | DG72: -20 | DH72: 7 | DI72: -461 | DJ72: 271 | DK72: 0 | DL72: 0 | DM72: -732 | DN72: 0 | DO72: 0 | DP72: 0 | DQ72: -732 | DR72: 1125 | DS72: -461 | DU72: 37 | DV72: -262 | DW72: -893 | DX72: 3838 | DY72: 3270 | DZ72: 282 | EA72: 286 | EB72: 22 | ED72: 283 | EE72: 6955 | EF72: 7518 | EG72: 7692 | EK72: -309 | EL72: 0 | EM72: 47 | EN72: -1027 | EO72: 0 | EP72: 33 | EQ72: -462 | ER72: 26 | ES72: 4 | ET72: 0 | EU72: 0 | EV72: 0 | EW72: 0 | EX72: 400 | EY72: 0 | EZ72: 2006 | FA72: 1739 | FB72: 267 | FC72: 33 | FD72: 1740 | FE72: 1498 | FF72: 242 | FG72: 0 | FH72: 1878 | FI72: 1619 | FJ72: 259 | FK72: 0 | FL72: 2234.010534 | FM72: 2381.475667 | FN72: 2727.710843 | FO72: 148.6363636 | FP72: 119.3866375 | FV72: 342 | FW72: -342
A73: 224 | B73: Karkkila | C73: 8900 | E73: 0.5815785244 | F73: 112.8600545 | G73: -6599.325843 | K73: 12.57313616 | L73: 68.53932584 | M73: 3.430398274 | N73: 7292.696629 | O73: 13413 | P73: 6468 | Q73: 52210 | R73: -45742 | S73: 31558 | T73: 17417 | W73: -606 | X73: 360 | Y73: 2987 | Z73: 2762 | AA73: 0 | AB73: 38 | AC73: 187 | AD73: 0 | AE73: 0 | AF73: 0 | AG73: 187 | AH73: 1654 | AI73: 2352 | AK73: 1014 | AL73: -5590 | AM73: -3744 | AN73: 31558 | AO73: 27960 | AP73: 1347 | AQ73: 2251 | AR73: 20.75 | AT73: 232 | AU73: 8778 | AW73: 0.1370383874 | AX73: 115.3029097 | AY73: -6604.46571 | BC73: 11.28334284 | BD73: 313.7388927 | BE73: 13.6875 | BF73: 8366.370472 | BG73: 13546 | BH73: 6758 | BI73: 52789 | BJ73: -46031 | BK73: 30720 | BL73: 17786 | BO73: -537 | BP73: 124 | BQ73: 2062 | BR73: 2957 | BS73: 0 | BT73: 0 | BU73: -895 | BV73: 0 | BW73: 0 | BX73: 0 | BY73: -895 | BZ73: 759 | CA73: 1570 | CC73: 237 | CD73: -18630 | CE73: 762 | CF73: 30720 | CG73: 27267 | CH73: 1193 | CI73: 2260 | CJ73: 20.75 | CL73: 147 | CM73: 8714 | CO73: -0.01289972573 | CP73: 117.9633475 | CQ73: -7014.803764 | CU73: 6.534131193 | CV73: 261.9921965 | CW73: 11.49340708 | CX73: 8320.174432 | CY73: 14534 | CZ73: 6508 | DA73: 55601 | DB73: -49093 | DC73: 30780 | DD73: 18097 | DG73: -495 | DH73: 107 | DI73: -604 | DJ73: 2897 | DK73: 0 | DL73: 0 | DM73: -3501 | DN73: 0 | DO73: 0 | DP73: 0 | DQ73: -3501 | DR73: -2742 | DS73: -873 | DU73: 1069 | DV73: -13656 | DW73: -3195 | DX73: 30780 | DY73: 27314 | DZ73: 1218 | EA73: 2248 | EB73: 20.75 | ED73: 254 | EE73: 34829 | EF73: 35247 | EG73: 37260 | EK73: -6711 | EL73: 4 | EM73: 611 | EN73: -1448 | EO73: 33 | EP73: 607 | EQ73: -2729 | ER73: 55 | ES73: 352 | ET73: 0 | EU73: 6850 | EV73: 35000 | EW73: -16500 | EX73: 9320 | EY73: 5200 | EZ73: 59205 | FA73: 30445 | FB73: 28760 | FC73: 0 | FD73: 59075 | FE73: 39932 | FF73: 19143 | FG73: 0 | FH73: 59939 | FI73: 39883 | FJ73: 20056 | FK73: 0 | FL73: 7076.067416 | FM73: 7174.755069 | FN73: 7561.16594 | FO73: 1316.337349 | FP73: 151.0600585 | FV73: 3101 | FW73: -3101
A74: 226 | B74: Karstula | C74: 4146 | E74: 2738 | F74: 47.13224739 | G74: -1644.958997 | K74: 55.03834493 | L74: 1816.44959 | M74: 89.50296301 | N74: 7407.621804 | O74: 7910 | P74: 4541 | Q74: 29392 | R74: -24851 | S74: 12130 | T74: 15375 | W74: 63 | X74: 20 | Y74: 2737 | Z74: 1954 | AA74: 0 | AB74: 0 | AC74: 783 | AD74: 0 | AE74: 0 | AF74: 0 | AG74: 783 | AH74: 4082 | AI74: 2737 | AK74: 284 | AL74: 0 | AM74: 2079 | AN74: 12130 | AO74: 9803 | AP74: 1365 | AQ74: 962 | AR74: 20 | AT74: 65 | AU74: 4031 | AW74: 1809 | AX74: 50.02235565 | AY74: -1384.271893 | BC74: 54.10325451 | BD74: 2322.50062 | BE74: 111.6307863 | BF74: 7593.897296 | BG74: 8073 | BH74: 4423 | BI74: 29587 | BJ74: -25164 | BK74: 12013 | BL74: 14876 | BO74: 62 | BP74: 21 | BQ74: 1808 | BR74: 1839 | BS74: 0 | BT74: 0 | BU74: -31 | BV74: 0 | BW74: 0 | BX74: 0 | BY74: -31 | BZ74: 4052 | CA74: 1803 | CC74: 32 | CD74: 0 | CE74: 952 | CF74: 12013 | CG74: 9626 | CH74: 1298 | CI74: 1089 | CJ74: 21 | CL74: 58 | CM74: 3949 | CO74: -1.73103796 | CP74: 48.77237049 | CQ74: -1282.349962 | CU74: 40.50727229 | CV74: 2451.000253 | CW74: 98.39669675 | CX74: 9091.922006 | CY74: 8245 | CZ74: 4628 | DA74: 34950 | DB74: -30310 | DC74: 12537 | DD74: 14685 | DG74: 51 | DH74: 32 | DI74: -3005 | DJ74: 1890 | DK74: 0 | DL74: 0 | DM74: -4895 | DN74: 0 | DO74: 0 | DP74: 0 | DQ74: -4895 | DR74: -843 | DS74: 1153 | DU74: -69 | DV74: 0 | DW74: 396 | DX74: 12537 | DY74: 10075 | DZ74: 1373 | EA74: 1089 | EB74: 21.5 | ED74: 289 | EE74: 19236 | EF74: 19257 | EG74: 19985 | EK74: -904 | EL74: 238 | EM74: 8 | EN74: -1022 | EO74: 100 | EP74: 71 | EQ74: -965 | ER74: -1 | ES74: 209 | ET74: 0 | EU74: 0 | EV74: 0 | EW74: 0 | EX74: 0 | EY74: 0 | EZ74: 13000 | FA74: 0 | FB74: 13000 | FC74: 895 | FD74: 13000 | FE74: 0 | FF74: 13000 | FG74: 611 | FH74: 13000 | FI74: 0 | FJ74: 13000 | FK74: 575 | FL74: 5388.567294 | FM74: 6008.930786 | FN74: 6708.027349 | FO74: 468.6046512 | FP74: 118.6641305 | FV74: 291 | FW74: -291
A75: 230 | B75: Karvia | C75: 2403 | E75: 57.5 | F75: 27.53907447 | G75: -569.2883895 | K75: 76.32122213 | L75: 1062.421973 | M75: 48.59687093 | N75: 7979.608822 | O75: 3627 | P75: 1366 | Q75: 15704 | R75: -14338 | S75: 6725 | T75: 8224 | W75: -18 | X75: 424 | Y75: 1017 | Z75: 798 | AA75: 0 | AB75: 0 | AC75: 219 | AD75: 0 | AE75: 0 | AF75: 0 | AG75: 219 | AH75: 9574 | AI75: 1021 | AK75: -11 | AL75: 0 | AM75: -2083 | AN75: 6725 | AO75: 5486 | AP75: 703 | AQ75: 536 | AR75: 19.75 | AT75: 191 | AU75: 2390 | AW75: -0.6495327103 | AX75: 31.25398648 | AY75: -764.8535565 | BC75: 73.53715545 | BD75: 1075.732218 | BE75: 55.9679728 | BF75: 7015.481172 | BG75: 3591 | BH75: 1469 | BI75: 16088 | BJ75: -14619 | BK75: 6411 | BL75: 7798 | BO75: -40 | BP75: 271 | BQ75: -179 | BR75: 923 | BS75: 0 | BT75: 0 | BU75: -1102 | BV75: 0 | BW75: 0 | BX75: 0 | BY75: -1102 | BZ75: 8472 | CA75: -342 | CC75: 71 | CD75: -174 | CE75: -404 | CF75: 6411 | CG75: 5092 | CH75: 615 | CI75: 704 | CJ75: 20.5 | CL75: 271 | CM75: 2342 | CO75: -1.171946927 | CP75: 26.1919778 | CQ75: -1134.073442 | CU75: 74.51315549 | CV75: 462.852263 | CW75: 22.66483359 | CX75: 7453.885568 | CY75: 3720 | CZ75: 1191 | DA75: 16665 | DB75: -15474 | DC75: 6814 | DD75: 7851 | DG75: -36 | DH75: 268 | DI75: -577 | DJ75: 903 | DK75: 0 | DL75: 0 | DM75: -1480 | DN75: 0 | DO75: 0 | DP75: 0 | DQ75: -1480 | DR75: 6992 | DS75: -487 | DU75: 88 | DV75: -347 | DW75: -825 | DX75: 6814 | DY75: 5453 | DZ75: 637 | EA75: 724 | EB75: 20.5 | ED75: 275 | EE75: 10629 | EF75: 11182 | EG75: 11430 | EK75: -3442 | EL75: 338 | EM75: 0 | EN75: -463 | EO75: 194 | EP75: 207 | EQ75: -409 | ER75: 2 | ES75: 69 | ET75: 3300 | EU75: 0 | EV75: 0 | EW75: 0 | EX75: 0 | EY75: 0 | EZ75: 3300 | FA75: 3126 | FB75: 174 | FC75: 246 | FD75: 3126 | FE75: 2779 | FF75: 347 | FG75: 246 | FH75: 2779 | FI75: 2432 | FJ75: 347 | FK75: 246 | FL75: 4449.854349 | FM75: 4277.824268 | FN75: 3717.335611 | FO75: 266 | FP75: 113.5781383 | FV75: 17 | FW75: -17
A76: 231 | B76: Kaskinen | C76: 1274 | E76: 0.9103448276 | F76: 56.36331939 | G76: -4445.054945 | K76: 65.0924244 | L76: 14.12872841 | M76: 0.5032554577 | N76: 10247.25275 | O76: 4271 | P76: 2617 | Q76: 10819 | R76: -8202 | S76: 6638 | T76: 2217 | W76: -43 | X76: 7 | Y76: 617 | Z76: 855 | AA76: 0 | AB76: 0 | AC76: -238 | AD76: 0 | AE76: 0 | AF76: 0 | AG76: -238 | AH76: 7474 | AI76: 617 | AK76: -107 | AL76: -682 | AM76: -860 | AN76: 6638 | AO76: 4837 | AP76: 1205 | AQ76: 596 | AR76: 22 | AT76: 152 | AU76: 1262 | AW76: 0.7078947368 | AX76: 55.97243492 | AY76: -4427.099842 | BC76: 61.87281381 | BD76: 15.05546751 | BE76: 0.5666775617 | BF76: 9697.305864 | BG76: 4444 | BH76: 3180 | BI76: 11490 | BJ76: -8310 | BK76: 6662 | BL76: 1912 | BO76: -38 | BP76: 5 | BQ76: 231 | BR76: 1625 | BS76: 0 | BT76: 0 | BU76: -1394 | BV76: 0 | BW76: 0 | BX76: 0 | BY76: -1394 | BZ76: 6080 | CA76: -358 | CC76: -188 | CD76: -342 | CE76: 76 | CF76: 6662 | CG76: 4970 | CH76: 1082 | CI76: 610 | CJ76: 22 | CL76: 179 | CM76: 1246 | CO76: -0.5836637589 | CP76: 59.97335702 | CQ76: -4450.24077 | CU76: 60.48074138 | CV76: 20.86677368 | CW76: 0.6888292081 | CX76: 11056.98234 | CY76: 4599 | CZ76: 3068 | DA76: 11721 | DB76: -8653 | DC76: 6360 | DD76: 1832 | DG76: -45 | DH76: 1 | DI76: -505 | DJ76: 955 | DK76: 0 | DL76: 0 | DM76: -1460 | DN76: 0 | DO76: 0 | DP76: 0 | DQ76: -1460 | DR76: 5732 | DS76: -571 | DU76: -208 | DV76: -1200 | DW76: -1070 | DX76: 6360 | DY76: 4745 | DZ76: 749 | EA76: 866 | EB76: 22 | ED76: 286 | EE76: 5375 | EF76: 5642 | EG76: 5573 | EK76: -1505 | EL76: 27 | EM76: 1 | EN76: -367 | EO76: 33 | EP76: 768 | EQ76: -810 | ER76: 5 | ES76: 306 | ET76: 1200 | EU76: 0 | EV76: 440 | EW76: 0 | EX76: -440 | EY76: 2482 | EZ76: 3941 | FA76: 3941 | FB76: 0 | FC76: 0 | FD76: 4040 | FE76: 1640 | FF76: 2400 | FG76: 0 | FH76: 4882 | FI76: 0 | FJ76: 4882 | FK76: 0 | FL76: 4292.77865 | FM76: 4313.787639 | FN76: 6292.134831 | FO76: 215.6818182 | FP76: 173.0993725 | FV76: 0 | FW76: 0
A77: 232 | B77: Kauhajoki | C77: 13610 | E77: 1.104475043 | F77: 58.69360975 | G77: -4203.379868 | K77: 29.96835588 | L77: 1103.747245 | M77: 40.81882882 | N77: 9869.654666 | O77: 22355 | P77: 45239 | Q77: 124923 | R77: -79684 | S77: 45865 | T77: 38877 | W77: -872 | X77: 1348 | Y77: 5534 | Z77: 4557 | AA77: 0 | AB77: 0 | AC77: 977 | AD77: 39 | AE77: 0 | AF77: 0 | AG77: 1016 | AH77: -10302 | AI77: 5335 | AK77: 1970 | AL77: -4927 | AM77: 2206 | AN77: 45865 | AO77: 38421 | AP77: 4023 | AQ77: 3421 | AR77: 22 | AT77: 199 | AU77: 13375 | AW77: 0.4384309831 | AX77: 58.98940315 | AY77: -4346.990654 | BC77: 28.16777335 | BD77: 968.5981308 | BE77: 34.57091366 | BF77: 10226.46729 | BG77: 22251 | BH77: 45184 | BI77: 126858 | BJ77: -81674 | BK77: 44520 | BL77: 38718 | BO77: -727 | BP77: 1075 | BQ77: 1912 | BR77: 4483 | BS77: 0 | BT77: 0 | BU77: -2571 | BV77: 38 | BW77: 0 | BX77: 0 | BY77: -2533 | BZ77: -13200 | CA77: 1782 | CC77: -625 | CD77: -5305 | CE77: -1018 | CF77: 44520 | CG77: 37191 | CH77: 3479 | CI77: 3850 | CJ77: 22 | CL77: 202 | CM77: 13184 | CO77: 1.140488689 | CP77: 61.20330041 | CQ77: -4033.222087 | CU77: 30.78047557 | CV77: 1654.202063 | CW77: 56.43150835 | CX77: 10699.40837 | CY77: 22386 | CZ77: 45874 | DA77: 128991 | DB77: -83016 | DC77: 44798 | DD77: 39736 | DG77: -690 | DH77: 9960 | DI77: 10788 | DJ77: 4940 | DK77: 0 | DL77: 0 | DM77: 5848 | DN77: 37 | DO77: 0 | DP77: 0 | DQ77: 5885 | DR77: -7315 | DS77: 10150 | DU77: -219 | DV77: -5210 | DW77: 4726 | DX77: 44798 | DY77: 37263 | DZ77: 3936 | EA77: 3599 | EB77: 22 | ED77: 9 | EE77: 95130 | EF77: 97454 | EG77: 99378 | EJ77: 1000 | EK77: -3702 | EL77: 219 | EM77: 354 | EN77: -3552 | EO77: -7 | EP77: 759 | EQ77: -6125 | ER77: 0 | ES77: 701 | ET77: 12800 | EU77: -6500 | EV77: 3500 | EW77: -1000 | EX77: 5500 | EY77: 2000 | EZ77: 65694 | FA77: 57389 | FB77: 8305 | FC77: 1095 | FD77: 62889 | FE77: 55679 | FF77: 7210 | FG77: 1191 | FH77: 65179 | FI77: 55419 | FJ77: 9760 | FK77: 1034 | FL77: 6840.191036 | FM77: 6989.009346 | FN77: 8225.500607 | FO77: 1693.772727 | FP77: 128.4718391 | FV77: 3128 | FW77: -3128
A78: 233 | B78: Kauhava | C78: 16278 | E78: 1.704871601 | F78: 42.62125458 | G78: -1720.420199 | K78: 53.59503064 | L78: 869.0871114 | M78: 43.9407645 | N78: 7219.191547 | O78: 31919 | P78: 11508 | Q78: 107373 | R78: -95865 | S78: 55113 | T78: 49422 | W78: -286 | X78: 265 | Y78: 8649 | Z78: 6186 | AA78: 0 | AB78: 0 | AC78: 2463 | AD78: 416 | AE78: 196 | AF78: -10 | AG78: 3065 | AH78: 14050 | AI78: 8509 | AK78: -4044 | AL78: -4916 | AM78: 3815 | AN78: 55113 | AO78: 47136 | AP78: 4064 | AQ78: 3913 | AR78: 21.75 | AT78: 125 | AU78: 16022 | AW78: 0.09201041249 | AX78: 54.93313282 | AY78: -2416.177756 | BC78: 45.81041565 | BD78: 929.5968044 | BE78: 40.90926878 | BF78: 8294.033204 | BG78: 31382 | BH78: 11391 | BI78: 111244 | BJ78: -99853 | BK78: 52045 | BL78: 48364 | BO78: -283 | BP78: 282 | BQ78: 555 | BR78: 5984 | BS78: 0 | BT78: 0 | BU78: -5429 | BV78: 571 | BW78: 8 | BX78: 27 | BY78: -4823 | BZ78: 9227 | CA78: 521 | CC78: -483 | CD78: -9624 | CE78: -10826 | CF78: 52045 | CG78: 44637 | CH78: 3319 | CI78: 4089 | CJ78: 21.75 | CL78: 240 | CM78: 15726 | CO78: -0.03753628874 | CP78: 58.33763687 | CQ78: -3045.338929 | CU78: 39.4454856 | CV78: 1038.344143 | CW78: 46.09822029 | CX78: 8221.480351 | CY78: 31628 | CZ78: 11117 | DA78: 115048 | DB78: -103850 | DC78: 53598 | DD78: 49532 | DG78: -284 | DH78: 365 | DI78: -639 | DJ78: 8008 | DK78: 0 | DL78: 0 | DM78: -8647 | DN78: 1738 | DO78: 0 | DP78: 75 | DQ78: -6834 | DR78: 2393 | DS78: -505 | DU78: 5333 | DV78: -4611 | DW78: -9329 | DX78: 53598 | DY78: 46472 | DZ78: 3262 | EA78: 3864 | EB78: 21.75 | ED78: 243 | EE78: 68658 | EF78: 73044 | EG78: 76187 | EK78: -4882 | EL78: 0 | EM78: 188 | EN78: -11692 | EO78: 291 | EP78: 54 | EQ78: -9350 | ER78: 393 | ES78: 133 | ET78: 6000 | EU78: 308 | EV78: 10389 | EW78: 4709 | EX78: 15000 | EY78: -5053 | EZ78: 42653 | FA78: 37737 | FB78: 4916 | FC78: 2781 | FD78: 48127 | FE78: 38502 | FF78: 9625 | FG78: 2758 | FH78: 53463 | FI78: 48890 | FJ78: 4573 | FK78: 2730 | FL78: 6660.093378 | FM78: 7588.628136 | FN78: 8454.915427 | FO78: 2136.643678 | FP78: 135.8669514 | FV78: 4056 | FW78: -4056
A79: 235 | B79: Kauniainen | C79: 9624 | F79: 13.46707954 | G79: 108.1670823 | K79: 90.0043501 | L79: 954.0731505 | M79: 38.70056236 | N79: 8998.233583 | O79: 31661 | P79: 15167 | Q79: 70442 | R79: -55275 | S79: 69270 | T79: -796 | W79: 251 | X79: 103 | Y79: 13553 | Z79: 7356 | AA79: 0 | AB79: 0 | AC79: 6197 | AD79: 0 | AE79: 0 | AF79: 0 | AG79: 6197 | AH79: 50976 | AI79: 12437 | AK79: -306 | AL79: 0 | AM79: -2183 | AN79: 69270 | AO79: 62530 | AP79: 2081 | AQ79: 4659 | AR79: 17 | AT79: 2 | AU79: 9615 | AX79: 13.39984613 | AY79: 101.0920437 | BC79: 90.56787985 | BD79: 914.300572 | BE79: 39.03451254 | BF79: 8549.349974 | BG79: 32807 | BH79: 15024 | BI79: 71769 | BJ79: -56745 | BK79: 69149 | BL79: -2284 | BO79: 238 | BP79: 115 | BQ79: 10473 | BR79: 7245 | BS79: 0 | BT79: 0 | BU79: 3228 | BV79: 0 | BW79: 0 | BX79: 0 | BY79: 3228 | BZ79: 54204 | CA79: 8774 | CC79: -31 | CD79: 0 | CE79: 50 | CF79: 69149 | CG79: 62301 | CH79: 1997 | CI79: 4851 | CJ79: 17 | CL79: 2 | CM79: 9797 | CO79: 6.024703202 | CP79: 17.92243083 | CQ79: -411.8607737 | CU79: 87.78102312 | CV79: 682.7600286 | CW79: 28.21938787 | CX79: 8831.070736 | CY79: 35950 | CZ79: 15831 | DA79: 75027 | DB79: -59196 | DC79: 66993 | DD79: -1864 | DG79: 232 | DH79: 114 | DI79: 6279 | DJ79: 7799 | DK79: 0 | DL79: 0 | DM79: -1520 | DN79: 0 | DO79: 0 | DP79: 0 | DQ79: -1520 | DR79: 52713 | DS79: 3653 | DU79: 0 | DV79: 0 | DW79: -5099 | DX79: 66993 | DY79: 61069 | DZ79: 1172 | EA79: 4752 | EB79: 17 | ED79: 13 | EE79: 29997 | EF79: 30019 | EG79: 29384 | EK79: -16150 | EL79: 225 | EM79: 1305 | EN79: -10400 | EO79: 0 | EP79: 1676 | EQ79: -11480 | ER79: 0 | ES79: 2728 | ET79: 0 | EU79: 2000 | EV79: 0 | EW79: -2000 | EX79: 0 | EY79: 2000 | EZ79: 2000 | FA79: 0 | FB79: 2000 | FC79: 5198 | FD79: 0 | FE79: 0 | FF79: 0 | FG79: 5199 | FH79: 2000 | FI79: 0 | FJ79: 2000 | FK79: 5131 | FL79: 2271.300914 | FM79: 2024.960998 | FN79: 2315.096458 | FO79: 3592.294118 | FP79: 366.672871 | FV79: 0 | FW79: 0
A80: 236 | B80: Kaustinen | C80: 4309 | E80: 0.6370800498 | F80: 101.4556414 | G80: -6893.478765 | K80: 22.8555577 | L80: 38.98816431 | M80: 1.766790561 | N80: 8054.537016 | O80: 10698 | P80: 6833 | Q80: 29675 | R80: -22842 | S80: 14090 | T80: 10266 | W80: -259 | X80: 18 | Y80: 1273 | Z80: 1486 | AA80: 0 | AB80: 0 | AC80: -213 | AD80: 0 | AE80: 0 | AF80: 0 | AG80: -213 | AH80: -210 | AI80: 1252 | AK80: 283 | AL80: -2148 | AM80: -1303 | AN80: 14090 | AO80: 11740 | AP80: 1457 | AQ80: 893 | AR80: 21.5 | AT80: 247 | AU80: 4273 | AW80: 0.4797942689 | AX80: 100.7268378 | AY80: -7121.226305 | BC80: 21.65528325 | BD80: 219.2838755 | BE80: 9.443999558 | BF80: 8475.076059 | BG80: 10734 | BH80: 7557 | BI80: 31346 | BJ80: -23789 | BK80: 14168 | BL80: 10882 | BO80: -241 | BP80: 34 | BQ80: 1054 | BR80: 1366 | BS80: 0 | BT80: 0 | BU80: -312 | BV80: 0 | BW80: 0 | BX80: 0 | BY80: -312 | BZ80: -522 | CA80: 204 | CC80: 294 | CD80: -2470 | CE80: -741 | CF80: 14168 | CG80: 12180 | CH80: 1031 | CI80: 957 | CJ80: 21.5 | CL80: 141 | CM80: 4261 | CO80: -0.0141364665 | CP80: 106.337108 | CQ80: -7533.208167 | CU80: 17.71223881 | CV80: 228.5848392 | CW80: 9.773202111 | CX80: 8536.963154 | CY80: 10945 | CZ80: 7230 | DA80: 32251 | DB80: -25021 | DC80: 13851 | DD80: 11063 | DG80: -220 | DH80: 38 | DI80: -289 | DJ80: 1456 | DK80: 0 | DL80: 0 | DM80: -1745 | DN80: 0 | DO80: 0 | DP80: 0 | DQ80: -1745 | DR80: -2268 | DS80: -546 | DU80: 369 | DV80: -2455 | DW80: -1582 | DX80: 13851 | DY80: 12079 | DZ80: 810 | EA80: 962 | EB80: 21.5 | ED80: 252 | EE80: 16497 | EF80: 18023 | EG80: 18678 | EK80: -2608 | EL80: 0 | EM80: 53 | EN80: -2144 | EO80: 0 | EP80: 1199 | EQ80: -1437 | ER80: 15 | ES80: 386 | ET80: 3000 | EU80: -200 | EV80: 3017 | EW80: 300 | EX80: 0 | EY80: 3000 | EZ80: 27988 | FA80: 21821 | FB80: 6167 | FC80: 0 | FD80: 28835 | FE80: 22379 | FF80: 6456 | FG80: 0 | FH80: 29379 | FI80: 19923 | FJ80: 9456 | FK80: 0 | FL80: 11103.73637 | FM80: 11615.2586 | FN80: 11926.30838 | FO80: 561.8139535 | FP80: 131.850259 | FV80: 1503 | FW80: -1503
A81: 239 | B81: Keitele | C81: 2309 | E81: -1 | F81: 45.77531207 | G81: -2927.24123 | K81: 44.47692894 | L81: 58.46686877 | M81: 2.586885762 | N81: 8249.45864 | O81: 6392 | P81: 3004 | Q81: 18305 | R81: -15301 | S81: 7315 | T81: 7706 | W81: -7 | X81: 163 | Y81: -124 | Z81: 597 | AA81: 0 | AB81: 0 | AC81: -721 | AD81: 0 | AE81: 0 | AF81: 0 | AG81: -721 | AH81: -584 | AI81: -116 | AK81: -21 | AL81: -110 | AM81: -684 | AN81: 7315 | AO81: 5995 | AP81: 759 | AQ81: 561 | AR81: 20.5 | AT81: 293 | AU81: 2244 | AW81: 0.1531791908 | AX81: 54.93392826 | AY81: -3389.928699 | BC81: 41.98926902 | BD81: 286.9875223 | BE81: 12.42454675 | BF81: 8430.926916 | BG81: 6136 | BH81: 3153 | BI81: 17684 | BJ81: -14531 | BK81: 6873 | BL81: 7455 | BO81: -11 | BP81: 256 | BQ81: 42 | BR81: 553 | BS81: 0 | BT81: 0 | BU81: -511 | BV81: 0 | BW81: 0 | BX81: 0 | BY81: -511 | BZ81: -1095 | CA81: 15 | CC81: 5 | CD81: -335 | CE81: -839 | CF81: 6873 | CG81: 5713 | CH81: 618 | CI81: 542 | CJ81: 20.5 | CL81: 247 | CM81: 2202 | CO81: 1.136374161 | CP81: 52.43029185 | CQ81: -3271.571299 | CU81: 43.23327184 | CV81: 455.9491371 | CW81: 20.13959112 | CX81: 8263.396912 | CY81: 6263 | CZ81: 3131 | DA81: 17377 | DB81: -14246 | DC81: 7134 | DD81: 8169 | DG81: -16 | DH81: 170 | DI81: 1211 | DJ81: 574 | DK81: 0 | DL81: 181 | DM81: 456 | DN81: 0 | DO81: 0 | DP81: 0 | DQ81: 456 | DR81: -639 | DS81: 1126 | DU81: -106 | DV81: 0 | DW81: 405 | DX81: 7134 | DY81: 5770 | DZ81: 804 | EA81: 560 | EB81: 20.5 | ED81: 22 | EE81: 9684 | EF81: 9501 | EG81: 8960 | EK81: -620 | EL81: 4 | EM81: 48 | EN81: -883 | EO81: 0 | EP81: 29 | EQ81: -802 | ER81: 57 | ES81: 24 | ET81: 0 | EU81: 800 | EV81: 3000 | EW81: -1248 | EX81: 0 | EY81: -260 | EZ81: 6726 | FA81: 668 | FB81: 6058 | FC81: 182 | FD81: 8143 | FE81: 3333 | FF81: 4810 | FG81: 160 | FH81: 7883 | FI81: 3073 | FJ81: 4810 | FK81: 137 | FL81: 7695.106107 | FM81: 8743.761141 | FN81: 9041.326067 | FO81: 281.4634146 | FP81: 127.8217142 | FV81: 61 | FW81: -61
A82: 240 | B82: Kemi | C82: 21256 | E82: 0.599926172 | F82: 64.41397488 | G82: -4427.832142 | K82: 40.78834389 | L82: 96.16108393 | M82: 4.373794519 | N82: 8024.793 | O82: 67355 | P82: 23789 | Q82: 151643 | R82: -127854 | S82: 87928 | T82: 46425 | W82: -843 | X82: 1119 | Y82: 6775 | Z82: 4149 | AA82: 0 | AB82: 0 | AC82: 2626 | AD82: 0 | AE82: 0 | AF82: 27 | AG82: 2653 | AH82: 5839 | AI82: 4085 | AK82: -140 | AL82: -12194 | AM82: 2353 | AN82: 87928 | AO82: 73192 | AP82: 8112 | AQ82: 6624 | AR82: 21.25 | AT82: 238 | AU82: 21021 | AW82: -0.1453802365 | AX82: 74.17779589 | AY82: -4893.868037 | BC82: 35.74916624 | BD82: 68.36021122 | BE82: 2.796718619 | BF82: 8921.69735 | BG82: 65080 | BH82: 21142 | BI82: 158054 | BJ82: -136912 | BK82: 86360 | BL82: 44851 | BO82: -428 | BP82: 2174 | BQ82: -3955 | BR82: 4616 | BS82: 0 | BT82: 0 | BU82: -8571 | BV82: 0 | BW82: 0 | BX82: 14 | BY82: -8557 | BZ82: -2718 | CA82: -4583 | CC82: -3051 | CD82: -19586 | CE82: -13064 | CF82: 86360 | CG82: 72619 | CH82: 7185 | CI82: 6556 | CJ82: 21.75 | CL82: 285 | CM82: 20707 | CO82: -0.4695577727 | CP82: 81.57912146 | CQ82: -5489.544598 | CU82: 30.11291072 | CV82: 65.5333945 | CW82: 2.783190888 | CX82: 8594.340078 | CY82: 62818 | CZ82: 20343 | DA82: 160128 | DB82: -139603 | DC82: 86724 | DD82: 44093 | DG82: -147 | DH82: 1063 | DI82: -7870 | DJ82: 5087 | DK82: 0 | DL82: 0 | DM82: -12957 | DN82: 0 | DO82: 0 | DP82: 2994 | DQ82: -9963 | DR82: -10795 | DS82: -8182 | DU82: 264 | DV82: -12491 | DW82: -12274 | DX82: 86724 | DY82: 74973 | DZ82: 5132 | EA82: 6619 | EB82: 21.75 | ED82: 284 | EE82: 64181 | EF82: 72499 | EG82: 76040 | EK82: -5688 | EL82: 137 | EM82: 3819 | EN82: -9125 | EO82: 0 | EP82: 644 | EQ82: -4777 | ER82: 0 | ES82: 685 | ET82: 10000 | EU82: -500 | EV82: 20000 | EW82: 10000 | EX82: 13000 | EY82: 10000 | EZ82: 85581 | FA82: 50495 | FB82: 35086 | FC82: 23256 | FD82: 95995 | FE82: 58003 | FF82: 37992 | FG82: 18949 | FH82: 106504 | FI82: 58835 | FJ82: 47669 | FK82: 18949 | FL82: 5670.869402 | FM82: 6438.561439 | FN82: 7206.307046 | FO82: 3447.034483 | FP82: 166.4671117 | FV82: 9559 | FW82: -9559
A83: 320 | B83: Kemijärvi | C83: 7534 | E83: 0.1544342508 | F83: 65.54466519 | G83: -4829.838067 | K83: 46.04843369 | L83: 250.0663658 | M83: 9.490332464 | N83: 9617.600212 | O83: 31869 | P83: 9319 | Q83: 65035 | R83: -55716 | S83: 29153 | T83: 25907 | W83: 130 | X83: 1053 | Y83: 527 | Z83: 2385 | AA83: 0 | AB83: 0 | AC83: -1858 | AD83: 0 | AE83: 0 | AF83: 15 | AG83: -1843 | AH83: -2878 | AI83: 519 | AK83: -326 | AL83: -4951 | AM83: -1237 | AN83: 29153 | AO83: 23514 | AP83: 1292 | AQ83: 4347 | AR83: 21 | AT83: 284 | AU83: 7370 | AW83: 0.2723772859 | AX83: 63.9231547 | AY83: -4858.480326 | BC83: 46.06501951 | BD83: 300.8141113 | BE83: 11.2652439 | BF83: 9746.540027 | BG83: 27916 | BH83: 9482 | BI83: 64611 | BJ83: -55129 | BK83: 29446 | BL83: 25357 | BO83: 189 | BP83: 1318 | BQ83: 1181 | BR83: 2419 | BS83: 0 | BT83: 0 | BU83: -1238 | BV83: 0 | BW83: 0 | BX83: 11 | BY83: -1227 | BZ83: -4105 | CA83: 646 | CC83: 855 | CD83: -4961 | CE83: 1472 | CF83: 29446 | CG83: 23822 | CH83: 1298 | CI83: 4326 | CJ83: 21.5 | CL83: 190 | CM83: 7274 | CO83: 0.4679135682 | CP83: 66.66242808 | CQ83: -5058.977179 | CU83: 45.36246507 | CV83: 135.5512785 | CW83: 4.891870217 | CX83: 10113.96756 | CY83: 26933 | CZ83: 9219 | DA83: 64578 | DB83: -55359 | DC83: 28496 | DD83: 25199 | DG83: 167 | DH83: 3589 | DI83: 2092 | DJ83: 2449 | DK83: 0 | DL83: 0 | DM83: -357 | DN83: 0 | DO83: 0 | DP83: 14 | DQ83: -343 | DR83: -4447 | DS83: 1882 | DU83: -1086 | DV83: -5284 | DW83: -700 | DX83: 28496 | DY83: 22775 | DZ83: 1184 | EA83: 4537 | EB83: 21.5 | ED83: 93 | EE83: 24563 | EF83: 26413 | EG83: 27201 | EK83: -1814 | EL83: 10 | EM83: 48 | EN83: -1576 | EO83: 100 | EP83: 2302 | EQ83: -2849 | ER83: 0 | ES83: 267 | ET83: 2500 | EU83: 4000 | EV83: 7200 | EW83: -4000 | EX83: 10000 | EY83: -3000 | EZ83: 34459 | FA83: 22548 | FB83: 11911 | FC83: 11620 | FD83: 32698 | FE83: 24664 | FF83: 8034 | FG83: 11529 | FH83: 34414 | FI83: 28880 | FJ83: 5534 | FK83: 11706 | FL83: 9511.813114 | FM83: 8987.516961 | FN83: 9228.347539 | FO83: 1059.302326 | FP83: 145.6285848 | FV83: 4403 | FW83: -4403
A84: 241 | B84: Keminmaa | C84: 8296 | E84: 0.9818625741 | F84: 47.6174223 | G84: -2090.284474 | K84: 50.87596899 | L84: 716.0077146 | M84: 39.32205234 | N84: 6646.215043 | O84: 21213 | P84: 5213 | Q84: 50333 | R84: -45120 | S84: 34821 | T84: 12703 | W84: -48 | X84: 195 | Y84: 2551 | Z84: 1978 | AA84: 0 | AB84: 359 | AC84: 214 | AD84: 0 | AE84: 0 | AF84: 0 | AG84: 214 | AH84: 3440 | AI84: 2077 | AK84: 339 | AL84: -2603 | AM84: 382 | AN84: 34821 | AO84: 30084 | AP84: 925 | AQ84: 3812 | AR84: 21.25 | AT84: 245 | AU84: 8147 | AW84: 0.1256560667 | AX84: 42.99020271 | AY84: -1439.057322 | BC84: 52.80348394 | BD84: 759.9116239 | BE84: 39.88623928 | BF84: 6953.970787 | BG84: 19866 | BH84: 4484 | BI84: 51725 | BJ84: -47241 | BK84: 34855 | BL84: 12410 | BO84: -22 | BP84: 173 | BQ84: 175 | BR84: 1909 | BS84: 1569 | BT84: 867 | BU84: -1032 | BV84: 0 | BW84: 0 | BX84: 0 | BY84: -1032 | BZ84: 2408 | CA84: 90 | CC84: -2595 | CD84: -3007 | CE84: 5527 | CF84: 34855 | CG84: 30057 | CH84: 1033 | CI84: 3765 | CJ84: 21.25 | CL84: 245 | CM84: 8079 | CO84: 0.3341714084 | CP84: 44.37809996 | CQ84: -1484.218344 | CU84: 50.71349477 | CV84: 1036.266865 | CW84: 53.72138814 | CX84: 7040.722862 | CY84: 16453 | CZ84: 3444 | DA84: 51866 | DB84: -48422 | DC84: 35862 | DD84: 13114 | DG84: 76 | DH84: 109 | DI84: 739 | DJ84: 1688 | DK84: 3 | DL84: 0 | DM84: -946 | DN84: 0 | DO84: 0 | DP84: 0 | DQ84: -946 | DR84: 1461 | DS84: 739 | DU84: 1432 | DV84: -3461 | DW84: -543 | DX84: 35862 | DY84: 30785 | DZ84: 1094 | EA84: 3983 | EB84: 21.25 | ED84: 186 | EE84: 24588 | EF84: 27358 | EG84: 31337 | EK84: -1919 | EL84: 0 | EM84: 224 | EN84: -1625 | EO84: 68 | EP84: 6994 | EQ84: -1327 | ER84: 39 | ES84: 6 | ET84: 2500 | EU84: 0 | EV84: 0 | EW84: 0 | EX84: 5000 | EY84: 700 | EZ84: 19282 | FA84: 16273 | FB84: 3009 | FC84: 5968 | FD84: 16274 | FE84: 12972 | FF84: 3302 | FG84: 5818 | FH84: 18514 | FI84: 15270 | FJ84: 3244 | FK84: 5583 | FL84: 3524.228544 | FM84: 3192.831717 | FN84: 3424.433717 | FO84: 1448.705882 | FP84: 179.3174752 | FV84: 2686 | FW84: -2686
A85: 322 | B85: Kemiönsaari | C85: 6793 | E85: 2.276936027 | F85: 57.60525585 | G85: -3370.822906 | K85: 54.98440829 | L85: 849.1093773 | M85: 36.42359129 | N85: 8508.906227 | O85: 23651 | P85: 8510 | Q85: 48656 | R85: -40146 | S85: 23382 | T85: 22148 | W85: -195 | X85: 26 | Y85: 5215 | Z85: 3479 | AA85: 0 | AB85: 0 | AC85: 1736 | AD85: 157 | AE85: 0 | AF85: 0 | AG85: 1893 | AH85: 17337 | AI85: 4021 | AK85: 12 | AL85: -2181 | AM85: -921 | AN85: 23382 | AO85: 19154 | AP85: 1007 | AQ85: 3221 | AR85: 19.75 | AT85: 43 | AU85: 6724 | AW85: 0.3196004994 | AX85: 54.71965096 | AY85: -3517.251636 | BC85: 55.64868466 | BD85: 293.5752528 | BE85: 13.31885317 | BF85: 8045.359905 | BG85: 24097 | BH85: 7422 | BI85: 50175 | BJ85: -42753 | BK85: 22262 | BL85: 21205 | BO85: -207 | BP85: 54 | BQ85: 561 | BR85: 3610 | BS85: 0 | BT85: 0 | BU85: -3049 | BV85: 157 | BW85: 0 | BX85: 0 | BY85: -2892 | BZ85: 14445 | CA85: 180 | CC85: 242 | CD85: -2196 | CE85: -733 | CF85: 22262 | CG85: 17833 | CH85: 1070 | CI85: 3359 | CJ85: 19.75 | CL85: 218 | CM85: 6640 | CO85: 0.4163996385 | CP85: 55.58815529 | CQ85: -3574.096386 | CU85: 53.16875578 | CV85: 408.5843373 | CW85: 18.42419112 | CX85: 8094.427711 | CY85: 23976 | CZ85: 7208 | DA85: 50235 | DB85: -43024 | DC85: 22657 | DD85: 21601 | DG85: -172 | DH85: 32 | DI85: 1094 | DJ85: 3673 | DK85: 0 | DL85: 0 | DM85: -2579 | DN85: 143 | DO85: 0 | DP85: 0 | DQ85: -2436 | DR85: 12009 | DS85: 1057 | DU85: 55 | DV85: -2076 | DW85: -129 | DX85: 22657 | DY85: 18239 | DZ85: 1064 | EA85: 3354 | EB85: 19.75 | ED85: 146 | EE85: 19345 | EF85: 20270 | EG85: 20394 | EK85: -6768 | EL85: 261 | EM85: 1565 | EN85: -1517 | EO85: 147 | EP85: 457 | EQ85: -1259 | ER85: 23 | ES85: 50 | ET85: 4000 | EU85: 1141 | EV85: 0 | EW85: -2000 | EX85: 0 | EY85: 3500 | EZ85: 24196 | FA85: 20000 | FB85: 4196 | FC85: 1 | FD85: 20001 | FE85: 17925 | FF85: 2076 | FG85: 1 | FH85: 21425 | FI85: 16003 | FJ85: 5422 | FK85: 1 | FL85: 5344.913882 | FM85: 4642.772159 | FN85: 4831.475904 | FO85: 923.4936709 | FP85: 139.0803721 | FV85: 3797 | FW85: -3797
A86: 244 | B86: Kempele | C86: 17535 | E86: 1.308645951 | F86: 55.23164668 | G86: -2556.943256 | K86: 51.64246618 | L86: 478.3005418 | M86: 25.16506778 | N86: 6937.382378 | O86: 43951 | P86: 13002 | Q86: 96224 | R86: -83222 | S86: 67244 | T86: 24037 | W86: -683 | X86: 69 | Y86: 7445 | Z86: 5468 | AA86: 0 | AB86: 0 | AC86: 1977 | AD86: 629 | AE86: 0 | AF86: 0 | AG86: 2606 | AH86: 10897 | AI86: 4079 | AK86: -798 | AL86: -5528 | AM86: -11139 | AN86: 67244 | AO86: 60190 | AP86: 3445 | AQ86: 3609 | AR86: 20.5 | AT86: 189 | AU86: 17923 | AW86: 1.031412875 | AX86: 64.9528121 | AY86: -3145.176589 | BC86: 47.47226206 | BD86: 521.7318529 | BE86: 27.15307998 | BF86: 7013.279027 | BG86: 45688 | BH86: 14482 | BI86: 99835 | BJ86: -85353 | BK86: 68664 | BL86: 24038 | BO86: -703 | BP86: -28 | BQ86: 6618 | BR86: 5144 | BS86: 0 | BT86: 0 | BU86: 1474 | BV86: -2338 | BW86: 3000 | BX86: 0 | BY86: 2136 | BZ86: 13033 | CA86: 2283 | CC86: 446 | CD86: -6395 | CE86: -11561 | CF86: 68664 | CG86: 61290 | CH86: 3686 | CI86: 3688 | CJ86: 20.5 | CL86: 86 | CM86: 18355 | CO86: 0.2486965995 | CP86: 71.96893924 | CQ86: -3845.164805 | CU86: 42.82055721 | CV86: 271.2612367 | CW86: 13.82908214 | CX86: 7159.575048 | CY86: 48110 | CZ86: 14103 | DA86: 107818 | DB86: -93476 | DC86: 71267 | DD86: 24608 | DG86: -695 | DH86: -3 | DI86: 1701 | DJ86: 5241 | DK86: 0 | DL86: 0 | DM86: -3540 | DN86: 729 | DO86: 0 | DP86: 0 | DQ86: -2811 | DR86: 10222 | DS86: -2406 | DU86: 128 | DV86: -6245 | DW86: -14208 | DX86: 71267 | DY86: 63456 | DZ86: 3972 | EA86: 3839 | EB86: 20.5 | ED86: 185 | EE86: 40135 | EF86: 40815 | EG86: 44474 | EK86: -19469 | EL86: 447 | EM86: 3804 | EN86: -18916 | EO86: 175 | EP86: 4897 | EQ86: -16861 | ER86: 492 | ES86: 4567 | ET86: 13000 | EU86: 0 | EV86: 18000 | EW86: 0 | EX86: 15000 | EY86: 0 | EZ86: 44958 | FA86: 38563 | FB86: 6395 | FC86: 0 | FD86: 56563 | FE86: 50318 | FF86: 6245 | FG86: 0 | FH86: 65317 | FI86: 58322 | FJ86: 6995 | FK86: 0 | FL86: 3484.858854 | FM86: 3966.523461 | FN86: 4385.344593 | FO86: 3095.414634 | FP86: 168.6414946 | FV86: 2648 | FW86: -2648
A87: 245 | B87: Kerava | C87: 35554 | E87: 2.477079202 | F87: 30.6442194 | G87: -1483.602408 | K87: 80.83477683 | L87: 166.3104011 | M87: 9.561560511 | N87: 6348.68088 | O87: 78602 | P87: 32737 | Q87: 190544 | R87: -157807 | S87: 156826 | T87: 21162 | W87: -45 | X87: 914 | Y87: 21050 | Z87: 12243 | AA87: 0 | AB87: 0 | AC87: 8807 | AD87: 0 | AE87: 0 | AF87: 3 | AG87: 8810 | AH87: 99968 | AI87: 18659 | AK87: 2041 | AL87: -8387 | AM87: -3847 | AN87: 156826 | AO87: 135457 | AP87: 11635 | AQ87: 9734 | AR87: 19.25 | AT87: 88 | AU87: 36254 | AW87: 1.555923961 | AX87: 36.56053207 | AY87: -1753.434104 | BC87: 78.14650213 | BD87: 154.9622111 | BE87: 8.903057459 | BF87: 6353.009323 | BG87: 81011 | BH87: 35059 | BI87: 196370 | BJ87: -161311 | BK87: 152531 | BL87: 21827 | BO87: -25 | BP87: 895 | BQ87: 13917 | BR87: 13995 | BS87: 0 | BT87: 0 | BU87: -78 | BV87: 0 | BW87: 0 | BX87: 3 | BY87: -75 | BZ87: 99893 | CA87: 10288 | CC87: -1448 | CD87: -8887 | CE87: -10921 | CF87: 152531 | CG87: 132745 | CH87: 9562 | CI87: 10224 | CJ87: 19.25 | CL87: 75 | CM87: 36756 | CO87: 1.108138664 | CP87: 39.61091064 | CQ87: -2048.427468 | CU87: 76.12733255 | CV87: 111.6280335 | CW87: 5.846577578 | CX87: 6968.903036 | CY87: 85846 | CZ87: 37419 | DA87: 209851 | DB87: -172241 | DC87: 157421 | DD87: 23259 | DG87: -64 | DH87: 848 | DI87: 9223 | DJ87: 21953 | DK87: 14166 | DL87: 0 | DM87: 1436 | DN87: 0 | DO87: 0 | DP87: 0 | DQ87: 1436 | DR87: 101329 | DS87: 19031 | DU87: 337 | DV87: -7887 | DW87: -13365 | DX87: 157421 | DY87: 138903 | DZ87: 7956 | EA87: 10562 | EB87: 19.25 | ED87: 110 | EE87: 84941 | EF87: 85800 | EG87: 94665 | EK87: -26552 | EL87: 823 | EM87: 3223 | EN87: -24914 | EO87: 29 | EP87: 3676 | EQ87: -38192 | ER87: 215 | ES87: 5581 | ET87: 13000 | EU87: -2000 | EV87: 15000 | EW87: 0 | EX87: 15000 | EY87: 0 | EZ87: 40542 | FA87: 21655 | FB87: 18887 | FC87: 6057 | FD87: 46655 | FE87: 29143 | FF87: 17512 | FG87: 5918 | FH87: 53768 | FI87: 36006 | FJ87: 17762 | FK87: 5925 | FL87: 4997.01862 | FM87: 4959.866497 | FN87: 5208.020459 | FO87: 7215.74026 | FP87: 196.3146224 | FV87: 16684 | FW87: -16684
A88: 249 | B88: Keuruu | C88: 9919 | E88: 2.570612866 | F88: 81.78795409 | G88: -6385.119468 | K88: 39.89780895 | L88: 287.4281682 | M88: 12.08247219 | N88: 8682.931747 | O88: 35966 | P88: 22535 | Q88: 78082 | R88: -55547 | S88: 33813 | T88: 28162 | W88: -40 | X88: 321 | Y88: 6709 | Z88: 4852 | AA88: 0 | AB88: 0 | AC88: 1857 | AD88: 0 | AE88: 0 | AF88: 0 | AG88: 1857 | AH88: 8624 | AI88: 6621 | AK88: 492 | AL88: -2583 | AM88: 1451 | AN88: 33813 | AO88: 28769 | AP88: 2595 | AQ88: 2449 | AR88: 20.5 | AT88: 60 | AU88: 9762 | AW88: 1.809728183 | AX88: 82.03772607 | AY88: -6413.644745 | BC88: 39.92414036 | BD88: 374.1036673 | BE88: 15.17111867 | BF88: 9000.51219 | BG88: 36628 | BH88: 23334 | BI88: 80122 | BJ88: -56788 | BK88: 34273 | BL88: 27327 | BO88: -28 | BP88: 244 | BQ88: 5028 | BR88: 4903 | BS88: 0 | BT88: 0 | BU88: 125 | BV88: 0 | BW88: 0 | BX88: 0 | BY88: 125 | BZ88: 9078 | CA88: 4458 | CC88: -478 | CD88: -2764 | CE88: 666 | CF88: 34273 | CG88: 29644 | CH88: 2473 | CI88: 2156 | CJ88: 21.5 | CL88: 42 | CM88: 9605 | CO88: 0.2406516338 | CP88: 86.23576893 | CQ88: -6960.541385 | CU88: 37.62653644 | CV88: 102.6548673 | CW88: 3.983948636 | CX88: 9404.997397 | CY88: 36677 | CZ88: 21776 | DA88: 81405 | DB88: -59628 | DC88: 33713 | DD88: 27516 | DG88: -28 | DH88: 308 | DI88: 1881 | DJ88: 5031 | DK88: 0 | DL88: 0 | DM88: -3150 | DN88: 0 | DO88: 0 | DP88: 0 | DQ88: -3150 | DR88: 5931 | DS88: 2067 | DU88: -326 | DV88: -2415 | DW88: -4236 | DX88: 33713 | DY88: 28636 | DZ88: 2666 | EA88: 2411 | EB88: 21.5 | ED88: 131 | EE88: 32045 | EF88: 33260 | EG88: 33709 | EK88: -5391 | EL88: 53 | EM88: 168 | EN88: -4872 | EO88: 36 | EP88: 1044 | EQ88: -6471 | ER88: 0 | ES88: 168 | ET88: 5000 | EU88: -1000 | EV88: 500 | EW88: 1000 | EX88: 1800 | EY88: 4500 | EZ88: 56062 | FA88: 17298 | FB88: 38764 | FC88: 0 | FD88: 54798 | FE88: 15928 | FF88: 38870 | FG88: 0 | FH88: 58683 | FI88: 15133 | FJ88: 43550 | FK88: 0 | FL88: 10122.39137 | FM88: 10472.54661 | FN88: 11468.6101 | FO88: 1331.906977 | FP88: 138.6680871 | FV88: 2835 | FW88: -2835
A89: 250 | B89: Kihniö | C89: 1967 | E89: 0.9533898305 | F89: 74.82277121 | G89: -3768.683274 | K89: 37.21545791 | L89: 966.446365 | M89: 45.5232253 | N89: 7748.856126 | O89: 2802 | P89: 1167 | Q89: 13415 | R89: -12248 | S89: 5883 | T89: 6915 | W89: -128 | X89: 124 | Y89: 546 | Z89: 741 | AA89: 0 | AB89: 0 | AC89: -195 | AD89: 98 | AE89: 0 | AF89: 0 | AG89: -97 | AH89: -1167 | AI89: 606 | AK89: -350 | AL89: -579 | AM89: -411 | AN89: 5883 | AO89: 4685 | AP89: 706 | AQ89: 492 | AR89: 21.5 | AT89: 255 | AU89: 1910 | AW89: 1.029224905 | AX89: 69.75478765 | AY89: -3756.544503 | BC89: 38.82381501 | BD89: 1165.445026 | BE89: 54.7463109 | BF89: 7770.157068 | BG89: 2959 | BH89: 1678 | BI89: 13472 | BJ89: -11794 | BK89: 5778 | BL89: 6695 | BO89: -128 | BP89: 130 | BQ89: 681 | BR89: 611 | BS89: 0 | BT89: 0 | BU89: 70 | BV89: 91 | BW89: 0 | BX89: 0 | BY89: 161 | BZ89: -1006 | CA89: 343 | CC89: 665 | CD89: -658 | CE89: 211 | CF89: 5778 | CG89: 4554 | CH89: 664 | CI89: 560 | CJ89: 21.5 | CL89: 92 | CM89: 1865 | CO89: 0.3640567525 | CP89: 66.31322539 | CQ89: -4110.455764 | CU89: 39.243514 | CV89: 552.2788204 | CW89: 24.87593463 | CX89: 8103.485255 | CY89: 3010 | CZ89: 1352 | DA89: 13506 | DB89: -12154 | DC89: 5717 | DD89: 6889 | DG89: -118 | DH89: -21 | DI89: 313 | DJ89: 599 | DK89: 0 | DL89: 0 | DM89: -286 | DN89: 85 | DO89: 0 | DP89: 0 | DQ89: -201 | DR89: -1207 | DS89: 315 | DU89: -90 | DV89: -659 | DW89: -479 | DX89: 5717 | DY89: 4493 | DZ89: 682 | EA89: 542 | EB89: 21.5 | ED89: 140 | EE89: 9514 | EF89: 9479 | EG89: 9498 | EK89: -1102 | EL89: 2 | EM89: 83 | EN89: -565 | EO89: 32 | EP89: 401 | EQ89: -796 | ER89: 1 | ES89: 1 | ET89: 2100 | EU89: 0 | EV89: 0 | EW89: 0 | EX89: 0 | EY89: 0 | EZ89: 9465 | FA89: 8807 | FB89: 658 | FC89: 142 | FD89: 8807 | FE89: 8148 | FF89: 659 | FG89: 120 | FH89: 8147 | FI89: 7506 | FJ89: 641 | FK89: 132 | FL89: 5451.448907 | FM89: 5531.937173 | FN89: 5514.745308 | FO89: 208.9767442 | FP89: 112.0518736 | FV89: 226 | FW89: -226
A90: 256 | B90: Kinnula | C90: 1656 | F90: 52.8978389 | G90: -865.3381643 | K90: 65.15109509 | L90: 1965.57971 | M90: 89.38943646 | N90: 8025.966184 | O90: 5057 | P90: 2343 | Q90: 13064 | R90: -10721 | S90: 4781 | T90: 7128 | W90: 76 | X90: 1 | Y90: 1265 | Z90: 787 | AA90: 0 | AB90: 0 | AC90: 478 | AD90: 13 | AE90: 0 | AF90: 0 | AG90: 491 | AH90: 5618 | AI90: 1284 | AK90: -141 | AL90: 0 | AM90: 1188 | AN90: 4781 | AO90: 3838 | AP90: 578 | AQ90: 365 | AR90: 20.5 | AT90: 44 | AU90: 1615 | AX90: 57.4241857 | AY90: -1757.275542 | BC90: 62.94077867 | BD90: 1223.529412 | BE90: 48.51934073 | BF90: 9204.334365 | BG90: 3710 | BH90: 2172 | BI90: 13644 | BJ90: -11472 | BK90: 4603 | BL90: 6580 | BO90: 68 | BP90: 6 | BQ90: -215 | BR90: 855 | BS90: 0 | BT90: 0 | BU90: -1070 | BV90: 13 | BW90: 0 | BX90: 0 | BY90: -1057 | BZ90: 4561 | CA90: -225 | CC90: -3 | CD90: 0 | CE90: -1359 | CF90: 4603 | CG90: 3669 | CH90: 569 | CI90: 365 | CJ90: 20.5 | CL90: 281 | CM90: 1620 | CO90: -0.2856299793 | CP90: 54.55155947 | CQ90: -2334.567901 | CU90: 61.51741555 | CV90: 682.0987654 | CW90: 27.85008977 | CX90: 8939.506173 | CY90: 3810 | CZ90: 2432 | DA90: 13722 | DB90: -11281 | DC90: 4437 | DD90: 6533 | DG90: 54 | DH90: 13 | DI90: -244 | DJ90: 927 | DK90: 0 | DL90: 0 | DM90: -1171 | DN90: 13 | DO90: 0 | DP90: 0 | DQ90: -1158 | DR90: 3402 | DS90: -225 | DU90: 430 | DV90: 0 | DW90: -819 | DX90: 4437 | DY90: 3403 | DZ90: 615 | EA90: 419 | EB90: 21 | ED90: 266 | EE90: 6206 | EF90: 8159 | EG90: 8116 | EK90: -223 | EL90: 0 | EM90: 127 | EN90: -1165 | EO90: 15 | EP90: 16 | EQ90: -761 | ER90: 12 | ES90: 155 | ET90: 0 | EU90: 0 | EV90: 0 | EW90: 0 | EX90: 0 | EY90: 100 | EZ90: 5900 | FA90: 0 | FB90: 5900 | FC90: 100 | FD90: 5900 | FE90: 0 | FF90: 5900 | FG90: 100 | FH90: 6000 | FI90: 0 | FJ90: 6000 | FK90: 100 | FL90: 4818.84058 | FM90: 5695.975232 | FN90: 6412.345679 | FO90: 162.047619 | FP90: 100.0293945 | FV90: 115 | FW90: -115
A91: 257 | B91: Kirkkonummi | C91: 39170 | E91: 1.247587231 | F91: 61.67686962 | G91: -3142.58361 | K91: 36.45506781 | L91: 425.9637478 | M91: 23.19382186 | N91: 6703.369926 | O91: 92864 | P91: 29697 | Q91: 225385 | R91: -195688 | S91: 189719 | T91: 22344 | W91: -921 | X91: 395 | Y91: 15849 | Z91: 14150 | AA91: 0 | AB91: 0 | AC91: 1699 | AD91: 19 | AE91: 0 | AF91: 74 | AG91: 1792 | AH91: 26954 | AI91: 14362 | AK91: -341 | AL91: -12514 | AM91: -7695 | AN91: 189719 | AO91: 171018 | AP91: 7265 | AQ91: 11436 | AR91: 19.5 | AT91: 201 | AU91: 39262 | AW91: 0.9051768324 | AX91: 69.90326372 | AY91: -3590.723855 | BC91: 32.42196311 | BD91: 510.4936071 | BE91: 26.57566169 | BF91: 7011.308644 | BG91: 96878 | BH91: 32529 | BI91: 231457 | BJ91: -198928 | BK91: 189347 | BL91: 21466 | BO91: -947 | BP91: 428 | BQ91: 11366 | BR91: 15554 | BS91: 0 | BT91: 189 | BU91: -4377 | BV91: 18 | BW91: 0 | BX91: 60 | BY91: -4299 | BZ91: 22655 | CA91: 7614 | CC91: 247 | CD91: -12661 | CE91: -18769 | CF91: 189347 | CG91: 171177 | CH91: 6599 | CI91: 11571 | CJ91: 19.5 | CL91: 114 | CM91: 39586 | CO91: -0.06220572673 | CP91: 89.53976424 | CQ91: -4823.624514 | CU91: 21.95961586 | CV91: 399.2573132 | CW91: 18.47413255 | CX91: 7888.26858 | CY91: 100958 | CZ91: 34217 | DA91: 248385 | DB91: -214168 | DC91: 189933 | DD91: 22202 | DG91: -1095 | DH91: 483 | DI91: -2645 | DJ91: 17602 | DK91: 0 | DL91: 0 | DM91: -20247 | DN91: 16 | DO91: 0 | DP91: -22 | DQ91: -20253 | DR91: 2402 | DS91: -6319 | DU91: -4749 | DV91: -15556 | DW91: -49284 | DX91: 189933 | DY91: 171819 | DZ91: 6289 | EA91: 11825 | EB91: 19.75 | ED91: 251 | EE91: 102556 | EF91: 102904 | EG91: 111717 | EK91: -23709 | EL91: 96 | EM91: 1556 | EN91: -30147 | EO91: 0 | EP91: 3764 | EQ91: -47194 | ER91: 0 | ES91: 4229 | ET91: 9500 | EU91: 1500 | EV91: 35000 | EW91: -8498 | EX91: 55000 | EY91: 5000 | EZ91: 109562 | FA91: 51404 | FB91: 58158 | FC91: 969 | FD91: 123405 | FE91: 70849 | FF91: 52556 | FG91: 890 | FH91: 167849 | FI91: 105579 | FJ91: 62270 | FK91: 890 | FL91: 4144.983406 | FM91: 4453.186287 | FN91: 5910.726014 | FO91: 8699.696203 | FP91: 219.7669934 | FV91: 7251 | FW91: -7251
A92: 260 | B92: Kitee | C92: 10486 | E92: 2.527763627 | F92: 15.54628056 | G92: -747.5681862 | K92: 76.47068992 | L92: 250.5245089 | M92: 12.0574292 | N92: 7583.826054 | O92: 14950 | P92: 8988 | Q92: 71814 | R92: -62826 | S92: 34322 | T92: 37912 | W92: -76 | X92: 495 | Y92: 9827 | Z92: 3905 | AA92: 529 | AB92: 0 | AC92: 6451 | AD92: 71 | AE92: 0 | AF92: 0 | AG92: 6522 | AH92: 16857 | AI92: 10298 | AK92: 831 | AL92: -3829 | AM92: 9468 | AN92: 34322 | AO92: 28980 | AP92: 2594 | AQ92: 2748 | AR92: 21.5 | AT92: 16 | AU92: 10358 | AW92: 1.698626045 | AX92: 13.04699123 | AY92: -372.079552 | BC92: 79.78898724 | BD92: 430.585055 | BE92: 20.57169575 | BF92: 7639.795327 | BG92: 15373 | BH92: 8668 | BI92: 72691 | BJ92: -64023 | BK92: 32159 | BL92: 37145 | BO92: -41 | BP92: 395 | BQ92: 5635 | BR92: 2909 | BS92: 0 | BT92: 0 | BU92: 2726 | BV92: 71 | BW92: 0 | BX92: 0 | BY92: 2797 | BZ92: 19655 | CA92: 6352 | CC92: 302 | CD92: -3296 | CE92: 3587 | CF92: 32159 | CG92: 27147 | CH92: 2167 | CI92: 2845 | CJ92: 21.5 | CL92: 34 | CM92: 10136 | CO92: 6.223073975 | CP92: 10.93033065 | CQ92: -155.1894238 | CU92: 81.43980662 | CV92: 470.7971586 | CW92: 22.21573154 | CX92: 7735.102605 | CY92: 16052 | CZ92: 8837 | DA92: 74604 | DB92: -65767 | DC92: 32236 | DD92: 37168 | DG92: -24 | DH92: 410 | DI92: 4023 | DJ92: 2871 | DK92: 0 | DL92: 0 | DM92: 1152 | DN92: 39 | DO92: 0 | DP92: 0 | DQ92: 1191 | DR92: 20572 | DS92: 4282 | DU92: -348 | DV92: -1312 | DW92: 2516 | DX92: 32236 | DY92: 27059 | DZ92: 2199 | EA92: 2978 | EB92: 21 | ED92: 59 | EE92: 50277 | EF92: 50475 | EG92: 51620 | EK92: -3480 | EL92: 0 | EM92: 2650 | EN92: -2867 | EO92: 38 | EP92: 64 | EQ92: -2183 | ER92: 317 | ES92: 100 | ET92: 0 | EU92: -1000 | EV92: 0 | EW92: 0 | EX92: 0 | EY92: 0 | EZ92: 8101 | FA92: 4805 | FB92: 3296 | FC92: 1052 | FD92: 4805 | FE92: 3493 | FF92: 1312 | FG92: 575 | FH92: 3493 | FI92: 2657 | FJ92: 836 | FK92: 837 | FL92: 2455.369064 | FM92: 1947.866383 | FN92: 1928.176796 | FO92: 1288.52381 | FP92: 127.1235013 | FV92: 3565 | FW92: -3565
A93: 261 | B93: Kittilä | C93: 6421 | E93: 1.561917746 | F93: 47.93353665 | G93: -3795.826195 | K93: 53.66354094 | L93: 106.5254633 | M93: 4.344028396 | N93: 8950.630743 | O93: 25056 | P93: 7508 | Q93: 51502 | R93: -43994 | S93: 29144 | T93: 20402 | W93: -377 | X93: 1322 | Y93: 6497 | Z93: 2771 | AA93: 1 | AB93: 0 | AC93: 3727 | AD93: 177 | AE93: -2000 | AF93: 0 | AG93: 1904 | AH93: 12769 | AI93: 6541 | AK93: -7 | AL93: -4024 | AM93: 5193 | AN93: 29144 | AO93: 19635 | AP93: 7107 | AQ93: 2402 | AR93: 20.25 | AT93: 10 | AU93: 6436 | AW93: 1.101673745 | AX93: 42.38083898 | AY93: -3417.184587 | BC93: 57.06004782 | BD93: 126.0099441 | BE93: 4.812313045 | BF93: 9557.489124 | BG93: 26720 | BH93: 9092 | BI93: 55790 | BJ93: -46698 | BK93: 28580 | BL93: 21114 | BO93: -241 | BP93: 1414 | BQ93: 4169 | BR93: 2644 | BS93: 0 | BT93: 0 | BU93: 1525 | BV93: 169 | BW93: 0 | BX93: 0 | BY93: 1694 | BZ93: 14464 | CA93: 2567 | CC93: 182 | CD93: -3762 | CE93: 2458 | CF93: 28580 | CG93: 19614 | CH93: 1926 | CI93: 7040 | CJ93: 20.25 | CL93: 16 | CM93: 6453 | CO93: 2.341940243 | CP93: 39.80931822 | CQ93: -3058.577406 | CU93: 60.48514192 | CV93: 251.3559585 | CW93: 9.207166296 | CX93: 9964.51263 | CY93: 26997 | CZ93: 7730 | DA93: 56383 | DB93: -48653 | DC93: 30552 | DD93: 22867 | DG93: -176 | DH93: 1583 | DI93: 6173 | DJ93: 2799 | DK93: 0 | DL93: 0 | DM93: 3374 | DN93: 162 | DO93: 0 | DP93: 0 | DQ93: 3536 | DR93: 18681 | DS93: 5897 | DU93: -539 | DV93: -2888 | DW93: 1758 | DX93: 30552 | DY93: 20938 | DZ93: 2580 | EA93: 7034 | EB93: 20.25 | ED93: 8 | EE93: 19743 | EF93: 21380 | EG93: 21679 | EK93: -1407 | EL93: 37 | EM93: 22 | EN93: -1714 | EO93: 30 | EP93: 1575 | EQ93: -4470 | ER93: 22 | ES93: 309 | ET93: 7 | EU93: -1245 | EV93: 5 | EW93: -262 | EX93: 2 | EY93: 2126 | EZ93: 21400 | FA93: 17376 | FB93: 4024 | FC93: 554 | FD93: 17380 | FE93: 13618 | FF93: 3762 | FG93: 467 | FH93: 16620 | FI93: 10732 | FJ93: 5888 | FK93: 301 | FL93: 7917.769818 | FM93: 6835.301429 | FN93: 7723.694406 | FO93: 1033.975309 | FP93: 160.231723 | FV93: 2822 | FW93: -2822
A94: 263 | B94: Kiuruvesi | C94: 8283 | E94: 1.387933729 | F94: 55.31027402 | G94: -3053.362308 | K94: 47.41462971 | L94: 838.3435953 | M94: 38.05531365 | N94: 8040.806471 | O94: 14998 | P94: 6660 | Q94: 59071 | R94: -52411 | S94: 24490 | T94: 31246 | W94: -185 | X94: 1096 | Y94: 4236 | Z94: 3949 | AA94: 0 | AB94: 0 | AC94: 287 | AD94: 19 | AE94: 0 | AF94: 0 | AG94: 306 | AH94: 1389 | AI94: 4278 | AK94: -989 | AL94: -2995 | AM94: 363 | AN94: 24490 | AO94: 20787 | AP94: 1986 | AQ94: 1717 | AR94: 20.75 | AT94: 138 | AU94: 8153 | AW94: 0.7189977799 | AX94: 58.62777934 | AY94: -3314.976082 | BC94: 45.5304481 | BD94: 799.4603214 | BE94: 35.88340875 | BF94: 8131.97596 | BG94: 14940 | BH94: 6663 | BI94: 58967 | BJ94: -52304 | BK94: 23055 | BL94: 30688 | BO94: -199 | BP94: 811 | BQ94: 2051 | BR94: 3141 | BS94: 0 | BT94: 459 | BU94: -1549 | BV94: 19 | BW94: 0 | BX94: 0 | BY94: -1530 | BZ94: -141 | CA94: 1610 | CC94: 426 | CD94: -2937 | CE94: -1913 | CF94: 23055 | CG94: 19533 | CH94: 1814 | CI94: 1708 | CJ94: 20.75 | CL94: 136 | CM94: 7998 | CO94: 0.1194411859 | CP94: 63.49001932 | CQ94: -3660.290073 | CU94: 40.51887949 | CV94: 823.2058015 | CW94: 35.83970889 | CX94: 8383.72093 | CY94: 15208 | CZ94: 6969 | DA94: 61202 | DB94: -54154 | DC94: 23546 | DD94: 30052 | DG94: -185 | DH94: 1100 | DI94: 359 | DJ94: 3639 | DK94: 0 | DL94: 0 | DM94: -3280 | DN94: 19 | DO94: 0 | DP94: 0 | DQ94: -3261 | DR94: -3402 | DS94: 482 | DU94: -781 | DV94: -2267 | DW94: -2437 | DX94: 23546 | DY94: 19910 | DZ94: 1917 | EA94: 1719 | EB94: 20.75 | ED94: 214 | EE94: 38423 | EF94: 38538 | EG94: 39822 | EK94: -4322 | EL94: 392 | EM94: 15 | EN94: -3964 | EO94: 419 | EP94: 22 | EQ94: -3302 | ER94: 317 | ES94: 66 | ET94: 5000 | EU94: 200 | EV94: 0 | EW94: 1800 | EX94: 5000 | EY94: 0 | EZ94: 31379 | FA94: 15242 | FB94: 16137 | FC94: 1059 | FD94: 30242 | FE94: 12975 | FF94: 17267 | FG94: 919 | FH94: 32975 | FI94: 15508 | FJ94: 17467 | FK94: 729 | FL94: 6821.200048 | FM94: 6908.867901 | FN94: 7203.550888 | FO94: 959.5180723 | FP94: 119.9697515 | FV94: 3038 | FW94: -3038
A95: 265 | B95: Kivijärvi | C95: 1132 | E95: 2.72173913 | F95: 49.92245056 | G95: -2604.240283 | K95: 59.66888419 | L95: 1285.335689 | M95: 53.32078313 | N95: 8798.586572 | O95: 2089 | P95: 1548 | Q95: 9382 | R95: -7834 | S95: 3516 | T95: 5252 | W95: -37 | X95: 5 | Y95: 902 | Z95: 1010 | AA95: 0 | AB95: 0 | AC95: -108 | AD95: 20 | AE95: 0 | AF95: 0 | AG95: -88 | AH95: 3841 | AI95: 902 | AK95: -133 | AL95: -308 | AM95: 671 | AN95: 3516 | AO95: 2518 | AP95: 619 | AQ95: 379 | AR95: 21 | AT95: 37 | AU95: 1103 | AW95: 0.2157434402 | AX95: 49.74772957 | AY95: -2675.430644 | BC95: 58.84529978 | BD95: 1341.795104 | BE95: 51.06825487 | BF95: 9590.208522 | BG95: 2065 | BH95: 1596 | BI95: 9632 | BJ95: -8036 | BK95: 3489 | BL95: 4825 | BO95: -35 | BP95: -204 | BQ95: 39 | BR95: 777 | BS95: 0 | BT95: 0 | BU95: -738 | BV95: 20 | BW95: 0 | BX95: 0 | BY95: -718 | BZ95: 3123 | CA95: 39 | CC95: 248 | CD95: -308 | CE95: -313 | CF95: 3489 | CG95: 2441 | CH95: 609 | CI95: 439 | CJ95: 21.5 | CL95: 239 | CM95: 1096 | CO95: -2.982344952 | CP95: 45.94150847 | CQ95: -2693.430657 | CU95: 43.67071525 | CV95: 843.9781022 | CW95: 28.10964949 | CX95: 10958.94161 | CY95: 2033 | CZ95: 1537 | DA95: 9685 | DB95: -8148 | DC95: 3571 | DD95: 4637 | DG95: -33 | DH95: -1707 | DI95: -1680 | DJ95: 620 | DK95: 0 | DL95: 0 | DM95: -2300 | DN95: 20 | DO95: 0 | DP95: 0 | DQ95: -2280 | DR95: 843 | DS95: 150 | DU95: -102 | DV95: -308 | DW95: 4 | DX95: 3571 | DY95: 2464 | DZ95: 660 | EA95: 447 | EB95: 21.5 | ED95: 294 | EE95: 6226 | EF95: 6422 | EG95: 6379 | EK95: -233 | EL95: 0 | EM95: 2 | EN95: -396 | EO95: 44 | EP95: 0 | EQ95: -274 | ER95: 101 | ES95: 27 | ET95: 0 | EU95: 0 | EV95: 0 | EW95: 0 | EX95: 0 | EY95: 0 | EZ95: 4558 | FA95: 4250 | FB95: 308 | FC95: 691 | FD95: 4250 | FE95: 3942 | FF95: 308 | FG95: 360 | FH95: 3942 | FI95: 3634 | FJ95: 308 | FK95: 360 | FL95: 6864.840989 | FM95: 7793.291024 | FN95: 8514.59854 | FO95: 114.6046512 | FP95: 104.5662876 | FV95: 97 | FW95: -97
A96: 271 | B96: Kokemäki | C96: 7381 | E96: 0.6968514907 | F96: 58.20263425 | G96: -3470.667931 | K96: 29.43389975 | L96: 133.4507519 | M96: 6.847964801 | N96: 7112.992819 | O96: 16493 | P96: 4631 | Q96: 47136 | R96: -42505 | S96: 26828 | T96: 17891 | W96: 11 | X96: 115 | Y96: 2340 | Z96: 1720 | AA96: 0 | AB96: 0 | AC96: 620 | AD96: 0 | AE96: 0 | AF96: 0 | AG96: 620 | AH96: 280 | AI96: 2334 | AK96: 100 | AL96: -3428 | AM96: 621 | AN96: 26828 | AO96: 22874 | AP96: 1653 | AQ96: 2301 | AR96: 21.75 | AT96: 240 | AU96: 7226 | AW96: 0.6382695507 | AX96: 59.28616155 | AY96: -3532.798229 | BC96: 29.41190677 | BD96: 136.5900913 | BE96: 7.038292468 | BF96: 7083.448658 | BG96: 16499 | BH96: 4763 | BI96: 46266 | BJ96: -41503 | BK96: 25801 | BL96: 17346 | BO96: 33 | BP96: 109 | BQ96: 1786 | BR96: 1590 | BS96: 0 | BT96: 455 | BU96: -259 | BV96: 0 | BW96: 0 | BX96: 0 | BY96: -259 | BZ96: 21 | CA96: 1327 | CC96: 232 | CD96: -2873 | CE96: -81 | CF96: 25801 | CG96: 22047 | CH96: 1229 | CI96: 2525 | CJ96: 21.75 | CL96: 140 | CM96: 7103 | CO96: 0.1607071113 | CP96: 60.00863878 | CQ96: -3871.603548 | CU96: 27.70549109 | CV96: 3.660425172 | CW96: 0.1780688258 | CX96: 7503.02689 | CY96: 17184 | CZ96: 4945 | DA96: 48291 | DB96: -43346 | DC96: 25863 | DD96: 17810 | DG96: 34 | DH96: 66 | DI96: 427 | DJ96: 1658 | DK96: 93 | DL96: 0 | DM96: -1138 | DN96: 0 | DO96: 0 | DP96: 0 | DQ96: -1138 | DR96: -744 | DS96: 484 | DU96: 239 | DV96: -2364 | DW96: -1632 | DX96: 25863 | DY96: 22135 | DZ96: 1247 | EA96: 2481 | EB96: 21.75 | ED96: 208 | EE96: 25266 | EF96: 24547 | EG96: 25780 | EK96: -1769 | EL96: 49 | EM96: 7 | EN96: -1578 | EO96: 162 | EP96: 8 | EQ96: -2159 | ER96: 0 | ES96: 43 | ET96: 3000 | EU96: -1000 | EV96: 0 | EW96: 1800 | EX96: 2500 | EY96: 500 | EZ96: 23274 | FA96: 12702 | FB96: 10572 | FC96: 5324 | FD96: 22202 | FE96: 10339 | FF96: 11863 | FG96: 4954 | FH96: 22838 | FI96: 10225 | FJ96: 12613 | FK96: 5069 | FL96: 4812.627015 | FM96: 4741.489067 | FN96: 4837.392651 | FO96: 1017.701149 | FP96: 143.2776502 | FV96: 2577 | FW96: -2577
A97: 272 | B97: Kokkola | C97: 47723 | E97: 0.4763243658 | F97: 82.87041042 | G97: -4613.540641 | K97: 42.71189301 | L97: 723.8019404 | M97: 34.1978664 | N97: 7725.268738 | O97: 95488 | P97: 47737 | Q97: 304324 | R97: -256587 | S97: 190705 | T97: 86873 | W97: -2010 | X97: 1280 | Y97: 20261 | Z97: 17298 | AA97: 24471 | AB97: 0 | AC97: 27434 | AD97: 322 | AE97: -24770 | AF97: -781 | AG97: 2205 | AH97: 14803 | AI97: 42076 | AK97: 8890 | AL97: -44846 | AM97: 29025 | AN97: 190705 | AO97: 159221 | AP97: 16028 | AQ97: 15456 | AR97: 21.75 | AT97: 190 | AU97: 47657 | AW97: 0.1661060347 | AX97: 76.76693469 | AY97: -4671.968441 | BC97: 44.55333357 | BD97: 176.5113205 | BE97: 7.439449888 | BF97: 8660.133873 | BG97: 96984 | BH97: 45568 | BI97: 311029 | BJ97: -265461 | BK97: 188014 | BL97: 87938 | BO97: -1759 | BP97: 2644 | BQ97: 11376 | BR97: 15085 | BS97: 0 | BT97: 0 | BU97: -3709 | BV97: 322 | BW97: 2194 | BX97: 148 | BY97: -1045 | BZ97: 13759 | CA97: 9283 | CC97: -986 | CD97: -77814 | CE97: -3961 | CF97: 188014 | CG97: 156967 | CH97: 15715 | CI97: 15332 | CJ97: 21.75 | CL97: 144 | CM97: 47681 | CO97: 0.4512604532 | CP97: 77.04671523 | CQ97: -4900.987815 | CU97: 43.36584385 | CV97: 235.7123382 | CW97: 10.63714178 | CX97: 8088.169292 | CY97: 100013 | CZ97: 44984 | DA97: 320050 | DB97: -273234 | DC97: 195196 | DD97: 89006 | DG97: -2026 | DH97: 2873 | DI97: 11815 | DJ97: 15059 | DK97: 0 | DL97: 0 | DM97: -3244 | DN97: 452 | DO97: 137 | DP97: 162 | DQ97: -2493 | DR97: 11374 | DS97: 7817 | DU97: 5791 | DV97: -40982 | DW97: -9714 | DX97: 195196 | DY97: 162710 | DZ97: 16757 | EA97: 15729 | EB97: 21.75 | ED97: 111 | EE97: 175909 | EF97: 183505 | EG97: 187835 | EK97: -18738 | EL97: 1839 | EM97: 3848 | EN97: -23100 | EO97: 1541 | EP97: 8315 | EQ97: -23678 | ER97: 332 | ES97: 5815 | ET97: 47500 | EU97: 0 | EV97: 52900 | EW97: 1000 | EX97: 43300 | EY97: 0 | EZ97: 245489 | FA97: 200830 | FB97: 44659 | FC97: 3209 | FD97: 220573 | FE97: 180256 | FF97: 40317 | FG97: 2948 | FH97: 222890 | FI97: 184988 | FJ97: 37902 | FK97: 3361 | FL97: 9485.237726 | FM97: 8573.619825 | FN97: 8869.235125 | FO97: 7480.91954 | FP97: 156.8951897 | FV97: 25357 | FW97: -25357
B98: KOKO MAA (Manner-Suomi) | C98: 5483641 | E98: 1.84 | F98: 56.23004609 | G98: -2554.71538 | K98: 60.7 | L98: 945 | M98: 46 | N98: 7503.456736 | O98: 13444149 | P98: 7566028 | Q98: 35690549 | R98: -28124521 | S98: 22434785 | T98: 8503554 | W98: 76889 | X98: 375362 | Y98: 3266069 | Z98: 2195625 | AA98: 152502 | AB98: 29743 | AC98: 1193203 | AD98: 16321 | AE98: -50981 | AF98: 16773 | AG98: 1175316 | AH98: 11311167 | AI98: 2844484 | AK98: 151773 | AL98: -1846546 | AM98: 465219 | AN98: 22434785 | AO98: 18827691 | AP98: 1887798 | AQ98: 1719296 | AR98: 19.92 | AT98: - | AU98: 5488130 | AW98: 1.121866706 | AX98: 58.68132053 | AY98: -2782.626505 | BC98: 59.51387859 | BD98: 888.605044 | BE98: 41.79885351 | BF98: 7759.563093 | BG98: 13574638 | BH98: 7812168 | BI98: 36914895 | BJ98: -29102727 | BK98: 22321220 | BL98: 8456755 | BO98: 77497 | BP98: 312458 | BQ98: 2065203 | BR98: 2192453 | BS98: 45943 | BT98: 26114 | BU98: -107421 | BV98: -11544 | BW98: 49922 | BX98: 44732 | BY98: -24311 | BZ98: 11261407 | CA98: 1569289 | CC98: -95006 | CD98: -1822844 | CE98: -1214884 | CF98: 22321220 | CG98: 18664568 | CH98: 1866127 | CI98: 1790525 | CJ98: 19.87 | CL98: - | CM98: 5495408 | CO98: 0.7093755419 | CP98: 62.06715478 | CQ98: -3029.554312 | CU98: 57.82762771 | CV98: 920.9359887 | CW98: 41.94892614 | CX98: 8013.116588 | CY98: 13513374 | CZ98: 7215627 | DA98: 37903026 | DB98: -30356936 | DC98: 22912315 | DD98: 8640795 | DG98: 68795 | DH98: 482647 | DI98: 1747616 | DJ98: 2305725 | DK98: 403902 | DL98: 9885 | DM98: -164092 | DN98: -4535 | DO98: 8374 | DP98: 28188 | DQ98: -132065 | DR98: 11087957 | DS98: 1298911 | DU98: -66136 | DV98: -1779142 | DW98: -1434149 | DX98: 22912315 | DY98: 19142606 | DZ98: 1902907 | EA98: 1866802 | EB98: 19.9 | ED98: - | EE98: 17305811 | EF98: 18314272 | EG98: 19288076 | EJ98: 10000 | EK98: -3490721 | EL98: 137475 | EM98: 973981 | EN98: -3649545 | EO98: 120782 | EP98: 744590 | EQ98: -4048365 | ER98: 138051 | ES98: 1177254 | ET98: 1696115 | EU98: 173004 | EV98: 2263664 | EW98: 148751 | EX98: 2830766 | EY98: 632620 | EZ98: 16125610 | FA98: 11274403 | FB98: 4851207 | FC98: 5712937 | FD98: 16729981 | FE98: 11682746 | FF98: 5047235 | FG98: 5765559 | FH98: 18420037 | FI98: 12599485 | FJ98: 5820552 | FK98: 5548348 | FL98: 6314.227901 | FM98: 6557.643678 | FN98: 7105.3243 | FO98: 961940 | FP98: 175.0443279 | FV98: 1315633 | FW98: -1315633
A99: 273 | B99: Kolari | C99: 3854 | E99: 3.464527027 | F99: 31.65693894 | G99: -2134.405812 | K99: 64.96802491 | L99: 187.5973015 | M99: 7.882168459 | N99: 8687.07836 | O99: 13958 | P99: 4535 | Q99: 28987 | R99: -24452 | S99: 14131 | T99: 14401 | W99: -79 | X99: 11 | Y99: 4012 | Z99: 1530 | AA99: 0 | AB99: 0 | AC99: 2482 | AD99: 14 | AE99: 0 | AF99: 0 | AG99: 2496 | AH99: 12263 | AI99: 3988 | AK99: 217 | AL99: -1094 | AM99: 1910 | AN99: 14131 | AO99: 9989 | AP99: 3410 | AQ99: 732 | AR99: 20 | AT99: 7 | AU99: 3834 | AW99: 2.798183653 | AX99: 29.16233322 | AY99: -1603.286385 | BC99: 67.68202325 | BD99: 552.9473135 | BE99: 22.65885798 | BF99: 8907.146583 | BG99: 14743 | BH99: 4475 | BI99: 30894 | BJ99: -26419 | BK99: 14856 | BL99: 14322 | BO99: -70 | BP99: 12 | BQ99: 2701 | BR99: 1552 | BS99: 0 | BT99: 0 | BU99: 1149 | BV99: 14 | BW99: 0 | BX99: 0 | BY99: 1163 | BZ99: 13426 | CA99: 2633 | CC99: -27 | CD99: -919 | CE99: 1003 | CF99: 14856 | CG99: 10418 | CH99: 762 | CI99: 3676 | CJ99: 20 | CL99: 13 | CM99: 3846 | CO99: 2.868826341 | CP99: 26.34558464 | CQ99: -957.6183047 | CU99: 70.10850202 | CV99: 1064.222569 | CW99: 43.86086727 | CX99: 8856.214249 | CY99: 15360 | CZ99: 5012 | DA99: 32111 | DB99: -27099 | DC99: 15113 | DD99: 14674 | DG99: -57 | DH99: 12 | DI99: 2643 | DJ99: 1551 | DK99: 0 | DL99: 0 | DM99: 1092 | DN99: 14 | DO99: 0 | DP99: 0 | DQ99: 1106 | DR99: 14533 | DS99: 2558 | DU99: 105 | DV99: -921 | DW99: 1910 | DX99: 15113 | DY99: 10485 | DZ99: 847 | EA99: 3781 | EB99: 20 | ED99: 12 | EE99: 10962 | EF99: 11987 | EG99: 12584 | EK99: -2703 | EL99: 133 | EM99: 492 | EN99: -1899 | EO99: 70 | EP99: 199 | EQ99: -962 | ER99: 4 | ES99: 310 | ET99: 0 | EU99: 0 | EV99: 0 | EW99: 0 | EX99: 0 | EY99: 0 | EZ99: 7030 | FA99: 6111 | FB99: 919 | FC99: 2176 | FD99: 6111 | FE99: 5192 | FF99: 919 | FG99: 1066 | FH99: 5191 | FI99: 4510 | FJ99: 681 | FK99: 573 | FL99: 2857.291126 | FM99: 2578.247261 | FN99: 3728.549142 | FO99: 524.25 | FP99: 136.3104524 | FV99: 1391 | FW99: -1391
A100: 275 | B100: Konnevesi | C100: 2748 | E100: 0.02312295974 | F100: 116.4057434 | G100: -8001.091703 | K100: 33.02537963 | L100: 782.0232897 | M100: 27.45484774 | N100: 10396.65211 | O100: 8698 | P100: 3774 | Q100: 21702 | R100: -17928 | S100: 8814 | T100: 9002 | W100: -183 | X100: 173 | Y100: -122 | Z100: 1336 | AA100: 0 | AB100: 0 | AC100: -1458 | AD100: 0 | AE100: 0 | AF100: 0 | AG100: -1458 | AH100: 3995 | AI100: -122 | AK100: 3 | AL100: -3469 | AM100: -3131 | AN100: 8814 | AO100: 7241 | AP100: 808 | AQ100: 765 | AR100: 21.5 | AT100: 292 | AU100: 2698 | AW100: 0.08264862252 | AX100: 118.6592074 | AY100: -8502.22387 | BC100: 30.36283672 | BD100: 547.0719051 | BE100: 21.97324415 | BF100: 9087.472202 | BG100: 8943 | BH100: 3562 | BI100: 21272 | BJ100: -17710 | BK100: 8917 | BL100: 8792 | BO100: -178 | BP100: 150 | BQ100: -29 | BR100: 1365 | BS100: 0 | BT100: 0 | BU100: -1394 | BV100: 0 | BW100: 0 | BX100: 0 | BY100: -1394 | BZ100: 2601 | CA100: -29 | CC100: 171 | CD100: -1869 | CE100: -951 | CF100: 8917 | CG100: 7329 | CH100: 806 | CI100: 782 | CJ100: 22 | CL100: 256 | CM100: 2627 | CO100: -1.27485834 | CP100: 122.9943176 | CQ100: -8940.616673 | CU100: 15.73358521 | CV100: 510.0875523 | CW100: 17.76930064 | CX100: 10477.73125 | CY100: 9178 | CZ100: 3417 | DA100: 25048 | DB100: -21631 | DC100: 8824 | DD100: 8525 | DG100: -190 | DH100: 155 | DI100: -4317 | DJ100: 1232 | DK100: 0 | DL100: 0 | DM100: -5549 | DN100: 0 | DO100: 0 | DP100: 0 | DQ100: -5549 | DR100: -2948 | DS100: -495 | DU100: 112 | DV100: -1952 | DW100: -610 | DX100: 8824 | DY100: 7138 | DZ100: 874 | EA100: 812 | EB100: 22 | ED100: 295 | EE100: 11085 | EF100: 10500 | EG100: 10099 | EK100: -3169 | EL100: 14 | EM100: 146 | EN100: -1117 | EO100: 172 | EP100: 23 | EQ100: -258 | ER100: 26 | ES100: 117 | ET100: 6490 | EU100: 214 | EV100: 1864 | EW100: 66 | EX100: 1200 | EY100: 1023 | EZ100: 21543 | FA100: 19740 | FB100: 1803 | FC100: 837 | FD100: 21604 | FE100: 19735 | FF100: 1869 | FG100: 837 | FH100: 21875 | FI100: 18983 | FJ100: 2892 | FK100: 774 | FL100: 9833.697234 | FM100: 10363.97331 | FN100: 11118.38599 | FO100: 324.4545455 | FP100: 123.5076305 | FV100: 846 | FW100: -846
A101: 276 | B101: Kontiolahti | C101: 14830 | E101: 0.7609729583 | F101: 45.09074421 | G101: -2216.385705 | K101: 51.14524354 | L101: 168.5772084 | M101: 9.376958885 | N101: 6561.901551 | O101: 23505 | P101: 11867 | Q101: 80708 | R101: -68841 | S101: 50751 | T101: 23393 | W101: -681 | X101: 297 | Y101: 4919 | Z101: 3850 | AA101: 395 | AB101: 0 | AC101: 1464 | AD101: 80 | AE101: 0 | AF101: 0 | AG101: 1544 | AH101: 19289 | AI101: 4444 | AK101: 99 | AL101: -6678 | AM101: -640 | AN101: 50751 | AO101: 46157 | AP101: 1873 | AQ101: 2721 | AR101: 20.5 | AT101: 233 | AU101: 14849 | AW101: 0.09216131781 | AX101: 52.77202504 | AY101: -2608.458482 | BC101: 45.68004793 | BD101: 140.2114621 | BE101: 7.737964321 | BF101: 6613.778706 | BG101: 24031 | BH101: 11689 | BI101: 83688 | BJ101: -71999 | BK101: 49314 | BL101: 23015 | BO101: -551 | BP101: 311 | BQ101: 90 | BR101: 3829 | BS101: 36 | BT101: 0 | BU101: -3703 | BV101: 80 | BW101: 0 | BX101: 0 | BY101: -3623 | BZ101: 15667 | CA101: -65 | CC101: -109 | CD101: -6483 | CE101: -6844 | CF101: 49314 | CG101: 45058 | CH101: 1444 | CI101: 2812 | CJ101: 20.5 | CL101: 250 | CM101: 14821 | CO101: 0.9652728864 | CP101: 52.63777566 | CQ101: -2613.116524 | CU101: 44.58360594 | CV101: 310.6403077 | CW101: 17.57307037 | CX101: 6452.128736 | CY101: 24649 | CZ101: 11231 | DA101: 83014 | DB101: -71783 | DC101: 52704 | DD101: 24397 | DG101: -466 | DH101: 322 | DI101: 5174 | DJ101: 5134 | DK101: 0 | DL101: 0 | DM101: 40 | DN101: 173 | DO101: 0 | DP101: 0 | DQ101: 213 | DR101: 15880 | DS101: 4695 | DU101: 362 | DV101: -6712 | DW101: -118 | DX101: 52704 | DY101: 47876 | DZ101: 1923 | EA101: 2905 | EB101: 20.5 | ED101: 73 | EE101: 48914 | EF101: 50463 | EG101: 48747 | EK101: -9244 | EL101: 200 | EM101: 3960 | EN101: -7474 | EO101: 448 | EP101: 247 | EQ101: -5394 | ER101: 75 | ES101: 506 | ET101: 0 | EU101: 0 | EV101: 5000 | EW101: 6000 | EX101: 10000 | EY101: -3366 | EZ101: 32452 | FA101: 26219 | FB101: 6233 | FC101: 904 | FD101: 36971 | FE101: 24758 | FF101: 12213 | FG101: 23 | FH101: 39821 | FI101: 27814 | FJ101: 12007 | FK101: 44 | FL101: 4001.618341 | FM101: 4643.275641 | FN101: 4835.301262 | FO101: 2335.414634 | FP101: 157.5747004 | FV101: 5816 | FW101: -5816
A102: 280 | B102: Korsnäs | C102: 2154 | E102: 5.842911877 | F102: 17.4231421 | G102: -843.082637 | K102: 71.71088497 | L102: 294.8003714 | M102: 13.90205134 | N102: 7740.01857 | O102: 5676 | P102: 2609 | Q102: 15017 | R102: -12408 | S102: 7091 | T102: 6824 | W102: -33 | X102: 18 | Y102: 1492 | Z102: 960 | AA102: 0 | AB102: 0 | AC102: 532 | AD102: -689 | AE102: 500 | AF102: 0 | AG102: 343 | AH102: 5344 | AI102: 1474 | AK102: 248 | AL102: -228 | AM102: 168 | AN102: 7091 | AO102: 5407 | AP102: 975 | AQ102: 709 | AR102: 21 | AT102: 53 | AU102: 2122 | AW102: 0.2892156863 | AX102: 18.02025607 | AY102: -929.3119698 | BC102: 71.10220067 | BD102: 211.1215834 | BE102: 9.197885026 | BF102: 8377.945335 | BG102: 5846 | BH102: 2525 | BI102: 15177 | BJ102: -12652 | BK102: 6639 | BL102: 6535 | BO102: -30 | BP102: 9 | BQ102: 501 | BR102: 1035 | BS102: 0 | BT102: 0 | BU102: -534 | BV102: 320 | BW102: 0 | BX102: 0 | BY102: -214 | BZ102: 5130 | CA102: 501 | CC102: 20 | CD102: -1806 | CE102: -166 | CF102: 6639 | CG102: 5066 | CH102: 852 | CI102: 721 | CJ102: 21 | CL102: 145 | CM102: 2077 | CO102: 1.380156076 | CP102: 25.99137931 | CQ102: -1249.39817 | CU102: 65.34045035 | CV102: 588.8300433 | CW102: 27.37444042 | CX102: 7851.227732 | CY102: 5971 | CZ102: 2328 | DA102: 15633 | DB102: -13305 | DC102: 6917 | DD102: 6995 | DG102: -24 | DH102: 12 | DI102: 595 | DJ102: 1277 | DK102: 0 | DL102: 0 | DM102: -682 | DN102: 568 | DO102: 0 | DP102: 0 | DQ102: -114 | DR102: 5015 | DS102: 595 | DU102: 5 | DV102: 0 | DW102: -52 | DX102: 6917 | DY102: 5472 | DZ102: 717 | EA102: 728 | EB102: 21.5 | ED102: 94 | EE102: 7494 | EF102: 7570 | EG102: 7893 | EK102: -1387 | EL102: 60 | EM102: 21 | EN102: -759 | EO102: 92 | EP102: 0 | EQ102: -650 | ER102: 3 | ES102: 0 | ET102: 0 | EU102: 0 | EV102: 0 | EW102: 1078 | EX102: 1000 | EY102: -78 | EZ102: 1590 | FA102: 862 | FB102: 728 | FC102: 0 | FD102: 862 | FE102: 684 | FF102: 178 | FG102: 0 | FH102: 2184 | FI102: 506 | FJ102: 1678 | FK102: 0 | FL102: 1643.454039 | FM102: 1514.137606 | FN102: 2440.539239 | FO102: 254.5116279 | FP102: 122.5380972 | FV102: 240 | FW102: -240
A103: 284 | B103: Koski tl | C103: 2359 | F103: 17.41304467 | G103: -57.22763883 | K103: 79.57786293 | L103: 758.7961 | M103: 35.50622249 | N103: 7800.339127 | O103: 6787 | P103: 3364 | Q103: 16693 | R103: -13329 | S103: 7438 | T103: 7397 | W103: 7 | X103: 20 | Y103: 1533 | Z103: 695 | AA103: 0 | AB103: 0 | AC103: 838 | AD103: -62 | AE103: -400 | AF103: 0 | AG103: 376 | AH103: 4335 | AI103: 1559 | AK103: -485 | AL103: 0 | AM103: -85 | AN103: 7438 | AO103: 6359 | AP103: 543 | AQ103: 536 | AR103: 19.5 | AT103: 68 | AU103: 2340 | AX103: 20.56325181 | AY103: -513.2478632 | BC103: 76.31136951 | BD103: 760.6837607 | BE103: 34.76748542 | BF103: 7985.897436 | BG103: 7204 | BH103: 3312 | BI103: 17620 | BJ103: -14308 | BK103: 6712 | BL103: 7517 | BO103: 0 | BP103: 18 | BQ103: -61 | BR103: 793 | BS103: 0 | BT103: 0 | BU103: -854 | BV103: 40 | BW103: 0 | BX103: 0 | BY103: -814 | BZ103: 3520 | CA103: -56 | CC103: 618 | CD103: 0 | CE103: -1064 | CF103: 6712 | CG103: 5587 | CH103: 599 | CI103: 526 | CJ103: 19.5 | CL103: 260 | CM103: 2308 | CO103: 7.131034483 | CP103: 18.33988593 | CQ103: -692.8076256 | CU103: 77.34999664 | CV103: 337.5216638 | CW103: 15.32968514 | CX103: 8036.395147 | CY103: 7358 | CZ103: 3512 | DA103: 17561 | DB103: -14049 | DC103: 6966 | DD103: 7581 | DG103: 0 | DH103: 19 | DI103: 517 | DJ103: 817 | DK103: 0 | DL103: 0 | DM103: -300 | DN103: 40 | DO103: 0 | DP103: 0 | DQ103: -260 | DR103: 3260 | DS103: 495 | DU103: -308 | DV103: 0 | DW103: -408 | DX103: 6966 | DY103: 5858 | DZ103: 580 | EA103: 528 | EB103: 19.5 | ED103: 116 | EE103: 8285 | EF103: 8768 | EG103: 8531 | EK103: -1708 | EL103: 45 | EM103: 19 | EN103: -1062 | EO103: 50 | EP103: 4 | EQ103: -985 | ER103: 53 | ES103: 29 | ET103: 0 | EU103: -100 | EV103: 0 | EW103: 0 | EX103: 0 | EY103: 0 | EZ103: 0 | FA103: 0 | FB103: 0 | FC103: 0 | FD103: 0 | FE103: 0 | FF103: 0 | FG103: 0 | FH103: 0 | FI103: 0 | FJ103: 0 | FK103: 0 | FL103: 642.2212802 | FM103: 616.6666667 | FN103: 590.1213172 | FO103: 300.4102564 | FP103: 130.1604231 | FV103: 100 | FW103: -100
A104: 285 | B104: Kotka | C104: 53539 | E104: 0.8148727051 | F104: 84.92649045 | G104: -3845.066213 | K104: 45.57418688 | L104: 1902.837184 | M104: 84.100401 | N104: 8258.409757 | O104: 144245 | P104: 86553 | Q104: 381106 | R104: -294553 | S104: 216188 | T104: 106223 | W104: -1233 | X104: 2264 | Y104: 28889 | Z104: 26616 | AA104: 40524 | AB104: 1327 | AC104: 41470 | AD104: 271 | AE104: 0 | AF104: 0 | AG104: 41741 | AH104: -6259 | AI104: 63015 | AK104: -1511 | AL104: -35877 | AM104: 82225 | AN104: 216188 | AO104: 191014 | AP104: 10128 | AQ104: 15046 | AR104: 21.5 | AT104: 118 | AU104: 52883 | AW104: 0.1662898047 | AX104: 91.94370275 | AY104: -4013.066581 | BC104: 43.5292875 | BD104: 1767.940548 | BE104: 66.89715673 | BF104: 9646.124463 | BG104: 150538 | BH104: 86184 | BI104: 399115 | BJ104: -312931 | BK104: 212482 | BL104: 112200 | BO104: 199 | BP104: -13 | BQ104: 11937 | BR104: 20032 | BS104: 7872 | BT104: 0 | BU104: -223 | BV104: 271 | BW104: 0 | BX104: 0 | BY104: 48 | BZ104: -6211 | CA104: 10647 | CC104: -32259 | CD104: -78673 | CE104: -3003 | CF104: 212482 | CG104: 187770 | CH104: 9500 | CI104: 15212 | CJ104: 21.5 | CL104: 150 | CM104: 52126 | CO104: 0.5467381814 | CP104: 79.59655579 | CQ104: -4109.177762 | CU104: 48.17982089 | CV104: 835.0918927 | CW104: 34.0681902 | CX104: 8947.013007 | CY104: 92676 | CZ104: 81165 | DA104: 393669 | DB104: -310247 | DC104: 218060 | DD104: 112480 | DG104: 748 | DH104: -109 | DI104: 20932 | DJ104: 21647 | DK104: 586 | DL104: 0 | DM104: -129 | DN104: 271 | DO104: 0 | DP104: 0 | DQ104: 142 | DR104: 9128 | DS104: 17323 | DU104: 4747 | DV104: -29246 | DW104: -17089 | DX104: 218060 | DY104: 193221 | DZ104: 9538 | EA104: 15301 | EB104: 21.5 | ED104: 56 | EE104: 174946 | EF104: 184404 | EG104: 247423 | EK104: -21889 | EL104: 1365 | EM104: 39734 | EN104: -24660 | EO104: 247 | EP104: 10763 | EQ104: -41245 | ER104: 1457 | ES104: 5376 | ET104: 30000 | EU104: -3784 | EV104: 0 | EW104: 100108 | EX104: 0 | EY104: 4676 | EZ104: 300666 | FA104: 172666 | FB104: 128000 | FC104: 263 | FD104: 322101 | FE104: 109367 | FF104: 212734 | FG104: 5263 | FH104: 297061 | FI104: 95302 | FJ104: 201759 | FK104: 5263 | FL104: 10465.38038 | FM104: 10535.06798 | FN104: 10462.20696 | FO104: 8987.023256 | FP104: 172.4096086 | FV104: 26950 | FW104: -26950
A105: 286 | B105: Kouvola | C105: 84196 | E105: 0.973556395 | F105: 47.20589026 | G105: -2524.977434 | K105: 54.11491177 | L105: 316.689629 | M105: 15.67609098 | N105: 7373.758848 | O105: 255872 | P105: 71747 | Q105: 564903 | R105: -493156 | S105: 338135 | T105: 169167 | W105: -583 | X105: 9112 | Y105: 22675 | Z105: 25517 | AA105: 0 | AB105: 0 | AC105: -2842 | AD105: 102 | AE105: 0 | AF105: 0 | AG105: -2740 | AH105: 2174 | AI105: 18452 | AK105: 2147 | AL105: -23361 | AM105: -11159 | AN105: 338135 | AO105: 289198 | AP105: 20631 | AQ105: 28306 | AR105: 20.75 | AT105: 258 | AU105: 83177 | AW105: -0.1342439351 | AX105: 54.63740921 | AY105: -3052.52654 | BC105: 48.68898472 | BD105: 320.2928694 | BE105: 15.01828642 | BF105: 7784.303353 | BG105: 239493 | BH105: 71324 | BI105: 584511 | BJ105: -513187 | BK105: 331075 | BL105: 170036 | BO105: -620 | BP105: 6947 | BQ105: -5749 | BR105: 20279 | BS105: 0 | BT105: 0 | BU105: -26028 | BV105: 102 | BW105: 0 | BX105: 5 | BY105: -25921 | BZ105: 10140 | CA105: -7417 | CC105: 2410 | CD105: -21322 | CE105: -37357 | CF105: 331075 | CG105: 283094 | CH105: 27768 | CI105: 20213 | CJ105: 20.75 | CL105: 268 | CM105: 82113 | CO105: -0.05330581294 | CP105: 63.64670461 | CQ105: -3715.087745 | CU105: 43.16779646 | CV105: 339.4712165 | CW105: 15.52240093 | CX105: 7982.463191 | CY105: 150723 | CZ105: 52221 | DA105: 578792 | DB105: -523161 | DC105: 338080 | DD105: 172333 | DG105: -860 | DH105: 8422 | DI105: -5186 | DJ105: 22575 | DK105: 0 | DL105: 0 | DM105: -27761 | DN105: 102 | DO105: 0 | DP105: 0 | DQ105: -27659 | DR105: -13653 | DS105: -4618 | DU105: 5266 | DV105: -24023 | DW105: -45781 | DX105: 338080 | DY105: 286569 | DZ105: 23064 | EA105: 28447 | EB105: 20.75 | ED105: 250 | EE105: 221157 | EF105: 261731 | EG105: 382710 | EK105: -32369 | EL105: 242 | EM105: 2516 | EN105: -33288 | EO105: 1078 | EP105: 2270 | EQ105: -46962 | ER105: 4800 | ES105: 999 | ET105: 22850 | EU105: 5606 | EV105: 43500 | EW105: 10798 | EX105: 70000 | EY105: 34089 | EZ105: 199712 | FA105: 159833 | FB105: 39879 | FC105: 37234 | FD105: 232688 | FE105: 178960 | FF105: 53728 | FG105: 42416 | FH105: 312755 | FI105: 220300 | FJ105: 92455 | FK105: 46372 | FL105: 4118.045988 | FM105: 4420.019957 | FN105: 5956.291939 | FO105: 13810.55422 | FP105: 168.1896194 | FV105: 21744 | FW105: -21744
A106: 287 | B106: Kristiinankaupunki | C106: 6638 | E106: 1.320441989 | F106: 50.34615884 | G106: -3482.675505 | K106: 45.94317794 | L106: 241.3377523 | M106: 9.583224072 | N106: 9191.925279 | O106: 21724 | P106: 9118 | Q106: 47965 | R106: -38848 | S106: 24097 | T106: 20662 | W106: -426 | X106: 64 | Y106: 5549 | Z106: 2526 | AA106: 0 | AB106: 3 | AC106: 3020 | AD106: 0 | AE106: 0 | AF106: 0 | AG106: 3020 | AH106: 9469 | AI106: 3955 | AK106: -163 | AL106: -4099 | AM106: -2970 | AN106: 24097 | AO106: 20406 | AP106: 1573 | AQ106: 2118 | AR106: 21.5 | AT106: 26 | AU106: 6596 | AW106: 0.6227764888 | AX106: 70.03981292 | AY106: -3966.191631 | BC106: 39.38323575 | BD106: 914.7968466 | BE106: 36.12106998 | BF106: 9243.935719 | BG106: 22048 | BH106: 8072 | BI106: 48609 | BJ106: -40537 | BK106: 23469 | BL106: 20205 | BO106: -393 | BP106: 84 | BQ106: 2828 | BR106: 2550 | BS106: 0 | BT106: 0 | BU106: 278 | BV106: 0 | BW106: 0 | BX106: 0 | BY106: 278 | BZ106: 9746 | CA106: 2340 | CC106: -1934 | CD106: -4779 | CE106: -3049 | CF106: 23469 | CG106: 19548 | CH106: 1369 | CI106: 2552 | CJ106: 21.5 | CL106: 64 | CM106: 6486 | CO106: 0.3005957648 | CP106: 67.11249237 | CQ106: -4595.898859 | CU106: 35.96458512 | CV106: 565.2173913 | CW106: 20.44227508 | CX106: 10092.0444 | CY106: 23523 | CZ106: 8695 | DA106: 52847 | DB106: -44152 | DC106: 24648 | DD106: 20714 | DG106: -369 | DH106: 64 | DI106: 905 | DJ106: 3095 | DK106: 0 | DL106: 0 | DM106: -2190 | DN106: 0 | DO106: 0 | DP106: 0 | DQ106: -2190 | DR106: 7556 | DS106: 2112 | DU106: 687 | DV106: -5389 | DW106: -3565 | DX106: 24648 | DY106: 20363 | DZ106: 1408 | EA106: 2877 | EB106: 21.5 | ED106: 159 | EE106: 21498 | EF106: 21675 | EG106: 24361 | EK106: -8501 | EL106: 0 | EM106: 1576 | EN106: -7165 | EO106: 1303 | EP106: 473 | EQ106: -6830 | ER106: 565 | ES106: 588 | ET106: 2500 | EU106: 0 | EV106: 13112 | EW106: 0 | EX106: 4000 | EY106: 410 | EZ106: 19382 | FA106: 15534 | FB106: 3848 | FC106: 0 | FD106: 27716 | FE106: 23261 | FF106: 4455 | FG106: 0 | FH106: 26737 | FI106: 21872 | FJ106: 4865 | FK106: 0 | FL106: 3984.784574 | FM106: 5611.43117 | FN106: 5865.710762 | FO106: 947.1162791 | FP106: 146.0247115 | FV106: 2310 | FW106: -2310
A107: 288 | B107: Kruunupyy | C107: 6531 | E107: 0.6725268176 | F107: 61.84818325 | G107: -3668.197826 | K107: 30.8942226 | L107: 78.854693 | M107: 4.09683325 | N107: 7025.417241 | O107: 9813 | P107: 2616 | Q107: 39973 | R107: -37357 | S107: 22757 | T107: 16625 | W107: -337 | X107: 232 | Y107: 1920 | Z107: 1132 | AA107: 0 | AB107: 0 | AC107: 788 | AD107: 0 | AE107: 0 | AF107: 0 | AG107: 788 | AH107: 6287 | AI107: 1912 | AK107: -531 | AL107: -3019 | AM107: -622 | AN107: 22757 | AO107: 18706 | AP107: 1585 | AQ107: 2466 | AR107: 21.25 | AT107: 248 | AU107: 6509 | AW107: 0.4729290742 | AX107: 57.1129461 | AY107: -3610.38562 | BC107: 31.76054758 | BD107: 26.11768321 | BE107: 1.363466567 | BF107: 6991.703795 | BG107: 9900 | BH107: 2559 | BI107: 41094 | BJ107: -38535 | BK107: 23584 | BL107: 16364 | BO107: -328 | BP107: 334 | BQ107: 1419 | BR107: 1464 | BS107: 0 | BT107: 0 | BU107: -45 | BV107: 0 | BW107: 0 | BX107: 0 | BY107: -45 | BZ107: 5973 | CA107: 1398 | CC107: 896 | CD107: -3366 | CE107: 724 | CF107: 23584 | CG107: 19461 | CH107: 2316 | CI107: 1807 | CJ107: 22 | CL107: 157 | CM107: 6428 | CO107: 0.5854920418 | CP107: 63.240012 | CQ107: -4052.738021 | CU107: 30.21304724 | CV107: 104.3870566 | CW107: 4.871409818 | CX107: 7821.406347 | CY107: 9985 | CZ107: 3248 | DA107: 41519 | DB107: -38271 | DC107: 24129 | DD107: 15950 | DG107: -282 | DH107: 229 | DI107: 1755 | DJ107: 1192 | DK107: 0 | DL107: 0 | DM107: 563 | DN107: 0 | DO107: 0 | DP107: 0 | DQ107: 563 | DR107: 6536 | DS107: 1138 | DU107: -71 | DV107: -3685 | DW107: -2511 | DX107: 24129 | DY107: 20132 | DZ107: 2193 | EA107: 1804 | EB107: 22 | ED107: 97 | EE107: 27674 | EF107: 28735 | EG107: 28992 | EK107: -2547 | EL107: 2 | EM107: 11 | EN107: -717 | EO107: 4 | EP107: 39 | EQ107: -4746 | ER107: 186 | ES107: 911 | ET107: 2755 | EU107: 1749 | EV107: 4189 | EW107: -1613 | EX107: 5679 | EY107: 602 | EZ107: 22392 | FA107: 14951 | FB107: 7441 | FC107: 0 | FD107: 21600 | FE107: 15529 | FF107: 6071 | FG107: 0 | FH107: 24196 | FI107: 17106 | FJ107: 7090 | FK107: 0 | FL107: 4018.833257 | FM107: 3881.702258 | FN107: 4452.08463 | FO107: 915.0909091 | FP107: 142.360129 | FV107: 1528 | FW107: -1528
A108: 290 | B108: Kuhmo | C108: 8499 | E108: 0.8964096527 | F108: 64.21641081 | G108: -2119.425815 | K108: 45.13160945 | L108: 2604.659372 | M108: 96.0293436 | N108: 9900.105895 | O108: 16398 | P108: 7003 | Q108: 66663 | R108: -59660 | S108: 29097 | T108: 32233 | W108: -115 | X108: 1308 | Y108: 2863 | Z108: 2311 | AA108: 0 | AB108: 0 | AC108: 552 | AD108: 42 | AE108: 0 | AF108: 0 | AG108: 594 | AH108: 2922 | AI108: 3500 | AK108: 197 | AL108: -3215 | AM108: -9529 | AN108: 29097 | AO108: 23766 | AP108: 3190 | AQ108: 2141 | AR108: 21.5 | AT108: 231 | AU108: 8329 | AW108: -0.1102172164 | AX108: 70.34899409 | AY108: -2601.272662 | BC108: 41.35844721 | BD108: 2579.901549 | BE108: 103.5231382 | BF108: 9096.170008 | BG108: 15722 | BH108: 6672 | BI108: 67164 | BJ108: -60492 | BK108: 27788 | BL108: 32246 | BO108: -125 | BP108: -18 | BQ108: -601 | BR108: 2546 | BS108: 0 | BT108: 0 | BU108: -3147 | BV108: 43 | BW108: 0 | BX108: 0 | BY108: -3104 | BZ108: -182 | CA108: -655 | CC108: -42 | CD108: -3539 | CE108: -4025 | CF108: 27788 | CG108: 22756 | CH108: 2888 | CI108: 2144 | CJ108: 21.5 | CL108: 269 | CM108: 8190 | CO108: 0.2787359001 | CP108: 72.26227724 | CQ108: -2720.512821 | CU108: 39.82788892 | CV108: 2731.990232 | CW108: 111.4201615 | CX108: 8949.69475 | CY108: 15495 | CZ108: 5809 | DA108: 66242 | DB108: -60433 | DC108: 28258 | DD108: 32092 | DG108: -120 | DH108: 1517 | DI108: 1314 | DJ108: 2939 | DK108: 0 | DL108: 0 | DM108: -1625 | DN108: 43 | DO108: 0 | DP108: 0 | DQ108: -1582 | DR108: -1764 | DS108: 1117 | DU108: 622 | DV108: -3226 | DW108: -720 | DX108: 28258 | DY108: 23205 | DZ108: 2912 | EA108: 2141 | EB108: 21.5 | ED108: 148 | EE108: 43943 | EF108: 45107 | EG108: 45066 | EK108: -13701 | EL108: 146 | EM108: 526 | EN108: -3833 | EO108: 341 | EP108: 122 | EQ108: -2836 | ER108: 276 | ES108: 723 | ET108: 13000 | EU108: 500 | EV108: 9000 | EW108: -5500 | EX108: 7000 | EY108: 0 | EZ108: 36524 | FA108: 27486 | FB108: 9038 | FC108: 396 | FD108: 36486 | FE108: 33260 | FF108: 3226 | FG108: 149 | FH108: 40260 | FI108: 36620 | FJ108: 3640 | FK108: 50 | FL108: 5930.344746 | FM108: 6673.670309 | FN108: 7610.37851 | FO108: 1079.302326 | FP108: 131.7829457 | FV108: 3111 | FW108: -3111
A109: 291 | B109: Kuhmoinen | C109: 2252 | E109: 2.473629783 | F109: 12.66924565 | G109: 943.1616341 | K109: 85.72081334 | L109: 1532.415631 | M109: 64.87176186 | N109: 8622.113677 | O109: 4092 | P109: 2327 | Q109: 17383 | R109: -15056 | S109: 8067 | T109: 9252 | W109: 96 | X109: 13 | Y109: 2372 | Z109: 1304 | AA109: 0 | AB109: 0 | AC109: 1068 | AD109: 37 | AE109: 0 | AF109: 0 | AG109: 1105 | AH109: 6075 | AI109: 2372 | AK109: -645 | AL109: -947 | AM109: 1402 | AN109: 8067 | AO109: 5721 | AP109: 1005 | AQ109: 1341 | AR109: 20.75 | AT109: 6 | AU109: 2238 | AW109: 24.92 | AX109: 17.10153878 | AY109: 335.1206434 | BC109: 82.78566421 | BD109: 1556.300268 | BE109: 60.21955379 | BF109: 9432.975871 | BG109: 4219 | BH109: 2746 | BI109: 18326 | BJ109: -15580 | BK109: 8040 | BL109: 8645 | BO109: 91 | BP109: 47 | BQ109: 1243 | BR109: 1108 | BS109: 0 | BT109: 0 | BU109: 135 | BV109: 0 | BW109: 0 | BX109: 0 | BY109: 135 | BZ109: 6210 | CA109: 1228 | CC109: 571 | CD109: -47 | CE109: -1339 | CF109: 8040 | CG109: 5685 | CH109: 1013 | CI109: 1342 | CJ109: 20.75 | CL109: 28 | CM109: 2206 | CO109: 1.99682035 | CP109: 24.15471444 | CQ109: 104.7144152 | CU109: 77.77592252 | CV109: 1617.407072 | CW109: 64.51919742 | CX109: 9150.045331 | CY109: 4590 | CZ109: 2933 | DA109: 18634 | DB109: -15701 | DC109: 8139 | DD109: 8241 | DG109: 72 | DH109: 189 | DI109: 940 | DJ109: 1203 | DK109: 0 | DL109: 0 | DM109: -263 | DN109: 0 | DO109: 0 | DP109: 0 | DQ109: -263 | DR109: 5947 | DS109: 940 | DU109: -739 | DV109: -47 | DW109: -553 | DX109: 8139 | DY109: 5657 | DZ109: 1110 | EA109: 1372 | EB109: 20.75 | ED109: 51 | EE109: 11464 | EF109: 12249 | EG109: 12263 | EK109: -998 | EL109: 24 | EM109: 4 | EN109: -2653 | EO109: 14 | EP109: 72 | EQ109: -1496 | ER109: 3 | ES109: 0 | ET109: 0 | EU109: 300 | EV109: 0 | EW109: -300 | EX109: 0 | EY109: 2000 | EZ109: 812 | FA109: 465 | FB109: 347 | FC109: 548 | FD109: 465 | FE109: 418 | FF109: 47 | FG109: 537 | FH109: 2418 | FI109: 371 | FJ109: 2047 | FK109: 526 | FL109: 3373.001776 | FM109: 3202.412869 | FN109: 3766.999093 | FO109: 272.626506 | FP109: 123.5840916 | FV109: 780 | FW109: -780
A110: 297 | B110: Kuopio | C110: 118209 | E110: 1.095732309 | F110: 51.34104539 | G110: -2910.336776 | K110: 55.56432072 | L110: 427.336328 | M110: 20.56845563 | N110: 7583.348138 | O110: 317144 | P110: 201705 | Q110: 800818 | R110: -599113 | S110: 452739 | T110: 197311 | W110: 2972 | X110: 3613 | Y110: 57522 | Z110: 48339 | AA110: 0 | AB110: 0 | AC110: 9183 | AD110: 389 | AE110: 0 | AF110: 0 | AG110: 9572 | AH110: 106091 | AI110: 56259 | AK110: -842 | AL110: -52089 | AM110: 7139 | AN110: 452739 | AO110: 388768 | AP110: 38434 | AQ110: 25537 | AR110: 20.5 | AT110: 149 | AU110: 118664 | AW110: 0.7288845972 | AX110: 55.48425233 | AY110: -3176.709027 | BC110: 53.74720392 | BD110: 341.2492416 | BE110: 15.64721251 | BF110: 7960.265961 | BG110: 327176 | BH110: 210324 | BI110: 830447 | BJ110: -620123 | BK110: 441274 | BL110: 197256 | BO110: 3614 | BP110: 9564 | BQ110: 31585 | BR110: 48135 | BS110: 13284 | BT110: 898 | BU110: -4164 | BV110: 216 | BW110: 0 | BX110: 0 | BY110: -3948 | BZ110: 102143 | CA110: 31335 | CC110: -6587 | CD110: -44781 | CE110: -34976 | CF110: 441274 | CG110: 378301 | CH110: 24219 | CI110: 38754 | CJ110: 20.5 | CL110: 130 | CM110: 119282 | CO110: 0.3467387096 | CP110: 58.07427341 | CQ110: -3551.893831 | CU110: 53.92654447 | CV110: 295.4175819 | CW110: 11.17751855 | CX110: 9646.811757 | CY110: 338519 | CZ110: 186664 | DA110: 870959 | DB110: -660008 | DC110: 464000 | DD110: 203289 | DG110: 4234 | DH110: 4971 | DI110: 16486 | DJ110: 54646 | DK110: 92867 | DL110: 0 | DM110: 54707 | DN110: 211 | DO110: 0 | DP110: 0 | DQ110: 54918 | DR110: 157061 | DS110: 11469 | DU110: 2649 | DV110: -51734 | DW110: 74613 | DX110: 464000 | DY110: 399893 | DZ110: 24028 | EA110: 40079 | EB110: 20.5 | ED110: 161 | EE110: 380061 | EF110: 393377 | EG110: 414031 | EK110: -57109 | EL110: 913 | EM110: 7076 | EN110: -86501 | EO110: 1551 | EP110: 18639 | EQ110: -123173 | ER110: 1657 | ES110: 184660 | ET110: 35000 | EU110: 7300 | EV110: 83000 | EW110: -25000 | EX110: 105000 | EY110: 0 | EZ110: 329808 | FA110: 262028 | FB110: 67780 | FC110: 135943 | FD110: 343027 | FE110: 294293 | FF110: 48734 | FG110: 135416 | FH110: 396294 | FI110: 346506 | FJ110: 49788 | FK110: 256682 | FL110: 8013.08699 | FM110: 8053.487157 | FN110: 9020.044936 | FO110: 19506.97561 | FP110: 163.5366242 | FV110: 12990 | FW110: -12990
A111: 300 | B111: Kuortane | C111: 3637 | E111: -723.6666667 | F111: 34.14090582 | G111: -1914.489964 | K111: 63.81613312 | L111: 360.4619192 | M111: 17.11427039 | N111: 7687.65466 | O111: 7278 | P111: 3004 | Q111: 25515 | R111: -22511 | S111: 11305 | T111: 13511 | W111: 18 | X111: -147 | Y111: 2176 | Z111: 1522 | AA111: 0 | AB111: 0 | AC111: 654 | AD111: 0 | AE111: 0 | AF111: 0 | AG111: 654 | AH111: 2365 | AI111: 2053 | AK111: -332 | AL111: -2 | AM111: 1305 | AN111: 11305 | AO111: 9700 | AP111: 755 | AQ111: 850 | AR111: 21 | AT111: 85 | AU111: 3572 | AW111: -482.6666667 | AX111: 35.58320487 | AY111: -2035.834267 | BC111: 63.66973824 | BD111: 376.8197088 | BE111: 17.62981304 | BF111: 7801.511758 | BG111: 7444 | BH111: 2973 | BI111: 25966 | BJ111: -22993 | BK111: 10776 | BL111: 13497 | BO111: 38 | BP111: 138 | BQ111: 1456 | BR111: 1217 | BS111: 0 | BT111: 0 | BU111: 239 | BV111: 0 | BW111: 0 | BX111: 0 | BY111: 239 | BZ111: 2604 | CA111: 1411 | CC111: 147 | CD111: -5 | CE111: -338 | CF111: 10776 | CG111: 9230 | CH111: 707 | CI111: 839 | CJ111: 21 | CL111: 70 | CM111: 3551 | CO111: 0.7826086957 | CP111: 41.4786785 | CQ111: -2533.652492 | CU111: 59.42723267 | CV111: 364.1227823 | CW111: 15.84612027 | CX111: 8387.214869 | CY111: 7685 | CZ111: 2990 | DA111: 26551 | DB111: -23561 | DC111: 11113 | DD111: 13381 | DG111: -30 | DH111: 31 | DI111: 934 | DJ111: 1268 | DK111: 0 | DL111: 0 | DM111: -334 | DN111: 0 | DO111: 0 | DP111: 0 | DQ111: -334 | DR111: 2256 | DS111: 940 | DU111: -33 | DV111: -338 | DW111: -1756 | DX111: 11113 | DY111: 9561 | DZ111: 722 | EA111: 830 | EB111: 21 | ED111: 103 | EE111: 16130 | EF111: 16315 | EG111: 16551 | EK111: -1091 | EL111: 188 | EM111: 155 | EN111: -1868 | EO111: 28 | EP111: 91 | EQ111: -2800 | ER111: 84 | ES111: 20 | ET111: 0 | EU111: -1030 | EV111: 5000 | EW111: -5100 | EX111: 0 | EY111: 1560 | EZ111: 6979 | FA111: 674 | FB111: 6305 | FC111: 2219 | FD111: 6874 | FE111: 5336 | FF111: 1538 | FG111: 2175 | FH111: 8096 | FI111: 4998 | FJ111: 3098 | FK111: 2145 | FL111: 4143.799835 | FM111: 4348.824188 | FN111: 5237.116305 | FO111: 455.2857143 | FP111: 128.2133805 | FV111: 0 | FW111: 0
A112: 301 | B112: Kurikka | C112: 21203 | E112: 1.076038904 | F112: 61.49585597 | G112: -2558.364382 | K112: 55.21548639 | L112: 1675.894921 | M112: 78.35809353 | N112: 7806.489648 | O112: 44572 | P112: 21779 | Q112: 148519 | R112: -126740 | S112: 66489 | T112: 61586 | W112: -5 | X112: 8876 | Y112: 10206 | Z112: 6508 | AA112: 0 | AB112: 0 | AC112: 3698 | AD112: 382 | AE112: 0 | AF112: 0 | AG112: 4080 | AH112: 18383 | AI112: 10229 | AK112: 13 | AL112: -9432 | AM112: 4756 | AN112: 66489 | AO112: 57835 | AP112: 4318 | AQ112: 4336 | AR112: 21 | AT112: 155 | AU112: 20952 | AW112: 1.004982448 | AX112: 65.33219237 | AY112: -2678.216877 | BC112: 54.29835203 | BD112: 1770.093547 | BE112: 80.74847442 | BF112: 8001.193204 | BG112: 44258 | BH112: 21077 | BI112: 147481 | BJ112: -126404 | BK112: 63772 | BL112: 61226 | BO112: 7 | BP112: 9570 | BQ112: 8171 | BR112: 6714 | BS112: 0 | BT112: 0 | BU112: 1457 | BV112: 313 | BW112: 0 | BX112: 0 | BY112: 1770 | BZ112: 22516 | CA112: 8350 | CC112: 141 | CD112: -8127 | CE112: -2717 | CF112: 63772 | CG112: 55377 | CH112: 4019 | CI112: 4376 | CJ112: 21 | CL112: 74 | CM112: 20678 | CO112: 0.3682198484 | CP112: 64.11487191 | CQ112: -2666.989071 | CU112: 52.22288235 | CV112: 1749.105329 | CW112: 77.6840693 | CX112: 8218.202921 | CY112: 44862 | CZ112: 20161 | DA112: 152925 | DB112: -132764 | DC112: 64910 | DD112: 60761 | DG112: 135 | DH112: 10590 | DI112: 3632 | DJ112: 14932 | DK112: 0 | DL112: 0 | DM112: -11300 | DN112: 305 | DO112: 0 | DP112: 0 | DQ112: -10995 | DR112: 11520 | DS112: 3377 | DU112: 50 | DV112: -11236 | DW112: 153 | DX112: 64910 | DY112: 56851 | DZ112: 3524 | EA112: 4535 | EB112: 21 | ED112: 137 | EE112: 90705 | EF112: 91337 | EG112: 95484 | EK112: -6526 | EL112: 165 | EM112: 888 | EN112: -11182 | EO112: 20 | EP112: 95 | EQ112: -5068 | ER112: 81 | ES112: 1763 | ET112: 6000 | EU112: 3000 | EV112: 3201 | EW112: 6000 | EX112: 12442 | EY112: -1000 | EZ112: 80288 | FA112: 63209 | FB112: 17079 | FC112: 24834 | FD112: 81362 | FE112: 58367 | FF112: 22995 | FG112: 24033 | FH112: 81568 | FI112: 58736 | FJ112: 22832 | FK112: 23379 | FL112: 6485.87464 | FM112: 6436.330661 | FN112: 6638.214528 | FO112: 2707.190476 | FP112: 130.921292 | FV112: 1962 | FW112: -1962
A113: 304 | B113: Kustavi | C113: 923 | E113: 2.808259587 | F113: 32.61087447 | G113: -1204.767064 | K113: 74.35068117 | L113: 890.5742145 | M113: 35.82875567 | N113: 9072.589382 | O113: 2299 | P113: 1587 | Q113: 7033 | R113: -5446 | S113: 4028 | T113: 2367 | W113: -24 | X113: 3 | Y113: 928 | Z113: 300 | AA113: 0 | AB113: 0 | AC113: 628 | AD113: -382 | AE113: 400 | AF113: 0 | AG113: 646 | AH113: 3319 | AI113: 927 | AK113: 19 | AL113: -315 | AM113: -73 | AN113: 4028 | AO113: 2425 | AP113: 201 | AQ113: 1402 | AR113: 19 | AT113: 12 | AU113: 926 | AW113: 1.901098901 | AX113: 27.39775173 | AY113: -649.0280778 | BC113: 77.35088926 | BD113: 1265.658747 | BE113: 51.72046911 | BF113: 8931.965443 | BG113: 2643 | BH113: 1588 | BI113: 7661 | BJ113: -6073 | BK113: 4471 | BL113: 2303 | BO113: -21 | BP113: -9 | BQ113: 671 | BR113: 385 | BS113: 0 | BT113: 0 | BU113: 286 | BV113: 28 | BW113: 0 | BX113: 0 | BY113: 314 | BZ113: 3633 | CA113: 667 | CC113: 161 | CD113: -343 | CE113: 460 | CF113: 4471 | CG113: 2827 | CH113: 223 | CI113: 1421 | CJ113: 18.75 | CL113: 11 | CM113: 949 | CO113: 1.205557535 | CP113: 37.98373182 | CQ113: -1265.542677 | CU113: 71.80725087 | CV113: 1412.012645 | CW113: 53.65291795 | CX113: 9605.900948 | CY113: 2591 | CZ113: 1396 | DA113: 7691 | DB113: -6295 | DC113: 4586 | DD113: 2132 | DG113: -20 | DH113: 0 | DI113: 403 | DJ113: 392 | DK113: 0 | DL113: 0 | DM113: 11 | DN113: 28 | DO113: 0 | DP113: 0 | DQ113: 39 | DR113: 3672 | DS113: 403 | DU113: -34 | DV113: -353 | DW113: -544 | DX113: 4586 | DY113: 2913 | DZ113: 232 | EA113: 1441 | EB113: 18.5 | ED113: 53 | EE113: 3731 | EF113: 3946 | EG113: 4117 | EK113: -1002 | EL113: 0 | EM113: 2 | EN113: -223 | EO113: 10 | EP113: 6 | EQ113: -1046 | ER113: 50 | ES113: 49 | ET113: 430 | EU113: 0 | EV113: 0 | EW113: 0 | EX113: 780 | EY113: 0 | EZ113: 1999 | FA113: 1671 | FB113: 328 | FC113: 0 | FD113: 1656 | FE113: 1342 | FF113: 314 | FG113: 0 | FH113: 2084 | FI113: 1698 | FJ113: 386 | FK113: 0 | FL113: 4775.731311 | FM113: 4332.613391 | FN113: 4635.40569 | FO113: 157.4594595 | FP113: 165.9214536 | FV113: 174 | FW113: -174
A114: 305 | B114: Kuusamo | C114: 15386 | E114: 1.820403826 | F114: 34.61270121 | G114: -590.2768751 | K114: 65.6661567 | L114: 1768.880801 | M114: 78.91578421 | N114: 8181.398674 | O114: 50419 | P114: 22209 | Q114: 113229 | R114: -91020 | S114: 52585 | T114: 46187 | W114: -495 | X114: 797 | Y114: 8054 | Z114: 7051 | AA114: 0 | AB114: 0 | AC114: 1003 | AD114: 0 | AE114: 0 | AF114: 414 | AG114: 1417 | AH114: 15999 | AI114: 8024 | AK114: 887 | AL114: -4194 | AM114: 472 | AN114: 52585 | AO114: 41781 | AP114: 4067 | AQ114: 6737 | AR114: 20 | AT114: 132 | AU114: 15207 | AW114: 0.3834124245 | AX114: 43.27082859 | AY114: -589.0050635 | BC114: 60.65669293 | BD114: 2130.334714 | BE114: 87.4175877 | BF114: 8894.916815 | BG114: 51921 | BH114: 23143 | BI114: 115834 | BJ114: -92691 | BK114: 51250 | BL114: 44886 | BO114: -454 | BP114: 96 | BQ114: 3087 | BR114: 5135 | BS114: 0 | BT114: 0 | BU114: -2048 | BV114: 0 | BW114: 0 | BX114: 417 | BY114: -1631 | BZ114: 15450 | CA114: 2785 | CC114: -3487 | CD114: -8804 | CE114: -5891 | CF114: 51250 | CG114: 40189 | CH114: 3843 | CI114: 7218 | CJ114: 20 | CL114: 167 | CM114: 15134 | CO114: 0.7392201258 | CP114: 37.46096694 | CQ114: -780.8907097 | CU114: 62.74230146 | CV114: 1659.970926 | CW114: 70.04346431 | CX114: 8650.191622 | CY114: 52372 | CZ114: 22401 | DA114: 119513 | DB114: -96328 | DC114: 52605 | DD114: 45725 | DG114: -371 | DH114: 1661 | DI114: 3292 | DJ114: 6023 | DK114: 0 | DL114: 0 | DM114: -2731 | DN114: 0 | DO114: 0 | DP114: 474 | DQ114: -2257 | DR114: 13192 | DS114: 3298 | DU114: 1658 | DV114: -5255 | DW114: -2859 | DX114: 52605 | DY114: 41462 | DZ114: 3766 | EA114: 7377 | EB114: 20 | ED114: 120 | EE114: 46310 | EF114: 47350 | EG114: 46775 | EK114: -8379 | EL114: 580 | EM114: 247 | EN114: -9896 | EO114: 843 | EP114: 377 | EQ114: -6324 | ER114: 45 | ES114: 122 | ET114: 0 | EU114: 0 | EV114: 15375 | EW114: 0 | EX114: 0 | EY114: 0 | EZ114: 28066 | FA114: 23937 | FB114: 4129 | FC114: 4885 | FD114: 34637 | FE114: 29382 | FF114: 5255 | FG114: 4545 | FH114: 29381 | FI114: 24426 | FJ114: 4955 | FK114: 4100 | FL114: 3599.051085 | FM114: 3952.587624 | FN114: 3609.752874 | FO114: 2073.1 | FP114: 136.9829523 | FV114: 4686 | FW114: -4686
A115: 312 | B115: Kyyjärvi | C115: 1352 | E115: 2.242424242 | F115: 106.7217899 | G115: -4099.852071 | K115: 35.65859664 | L115: 3887.573964 | M115: 176.538143 | N115: 8037.721893 | O115: 2506 | P115: 1581 | Q115: 10100 | R115: -8519 | S115: 4319 | T115: 4420 | W115: 18 | X115: 340 | Y115: 578 | Z115: 556 | AA115: 0 | AB115: 0 | AC115: 22 | AD115: 0 | AE115: 0 | AF115: 0 | AG115: 22 | AH115: 596 | AI115: 578 | AK115: 84 | AL115: -250 | AM115: 42 | AN115: 4319 | AO115: 3421 | AP115: 577 | AQ115: 321 | AR115: 21 | AT115: 188 | AU115: 1343 | AW115: 0.478021978 | AX115: 119.7414222 | AY115: -4577.810871 | BC115: 32.11407316 | BD115: 4208.488459 | BE115: 178.7367874 | BF115: 8594.192107 | BG115: 2569 | BH115: 1549 | BI115: 10440 | BJ115: -8891 | BK115: 4384 | BL115: 4149 | BO115: 4 | BP115: 439 | BQ115: 85 | BR115: 470 | BS115: 0 | BT115: 0 | BU115: -385 | BV115: 0 | BW115: 0 | BX115: 0 | BY115: -385 | BZ115: 211 | CA115: 83 | CC115: -67 | CD115: -180 | CE115: -653 | CF115: 4384 | CG115: 3406 | CH115: 597 | CI115: 381 | CJ115: 21.75 | CL115: 226 | CM115: 1313 | CO115: -1.077786688 | CP115: 107.1726439 | CQ115: -4145.468393 | CU115: 11.0674483 | CV115: 4581.873572 | CW115: 167.8263528 | CX115: 9964.965727 | CY115: 2531 | CZ115: 2034 | DA115: 12782 | DB115: -10745 | DC115: 4415 | DD115: 4342 | DG115: 2 | DH115: 471 | DI115: -1515 | DJ115: 2662 | DK115: 196 | DL115: 0 | DM115: -3981 | DN115: 0 | DO115: 0 | DP115: 0 | DQ115: -3981 | DR115: -3769 | DS115: 149 | DU115: 134 | DV115: -140 | DW115: 662 | DX115: 4415 | DY115: 3310 | DZ115: 720 | EA115: 385 | EB115: 21.75 | ED115: 291 | EE115: 6605 | EF115: 6865 | EG115: 6865 | EJ115: 200 | EK115: -538 | EL115: 2 | EM115: 0 | EN115: -811 | EO115: 32 | EP115: 43 | EQ115: -196 | ER115: 0 | ES115: 709 | ET115: 0 | EU115: 400 | EV115: 0 | EW115: 1100 | EX115: 0 | EY115: -100 | EZ115: 10272 | FA115: 292 | FB115: 9980 | FC115: 657 | FD115: 11192 | FE115: 152 | FF115: 11040 | FG115: 613 | FH115: 10952 | FI115: 52 | FJ115: 10900 | FK115: 570 | FL115: 11081.36095 | FM115: 12299.32986 | FN115: 12939.83244 | FO115: 152.183908 | FP115: 115.9054898 | FV115: 780 | FW115: -780
A116: 316 | B116: Kärkölä | C116: 4508 | E116: 2.702673797 | F116: 40.99550764 | G116: -1781.943212 | K116: 55.7813828 | L116: 369.3433895 | M116: 22.80222873 | N116: 5912.156167 | O116: 5737 | P116: 2935 | Q116: 25341 | R116: -22406 | S116: 16687 | T116: 8203 | W116: -91 | X116: -3 | Y116: 2390 | Z116: 999 | AA116: 0 | AB116: 0 | AC116: 1391 | AD116: 0 | AE116: 0 | AF116: 0 | AG116: 1391 | AH116: 4626 | AI116: 2314 | AK116: -1057 | AL116: -798 | AM116: 2115 | AN116: 16687 | AO116: 14790 | AP116: 736 | AQ116: 1161 | AR116: 21.75 | AT116: 126 | AU116: 4451 | AW116: 0.4931129477 | AX116: 44.51875769 | AY116: -1857.784767 | BC116: 54.31451004 | BD116: 470.2314087 | BE116: 28.22109346 | BF116: 6081.779375 | BG116: 5921 | BH116: 2491 | BI116: 25724 | BJ116: -23233 | BK116: 15664 | BL116: 7861 | BO116: -70 | BP116: 8 | BQ116: 230 | BR116: 936 | BS116: 0 | BT116: 0 | BU116: -706 | BV116: 0 | BW116: 0 | BX116: 0 | BY116: -706 | BZ116: 3920 | CA116: 210 | CC116: 414 | CD116: -598 | CE116: -367 | CF116: 15664 | CG116: 13911 | CH116: 616 | CI116: 1137 | CJ116: 21.75 | CL116: 230 | CM116: 4368 | CO116: 0.1476483429 | CP116: 80.61685622 | CQ116: -3013.736264 | CU116: 38.90114185 | CV116: 1747.02381 | CW116: 85.35009499 | CX116: 7471.153846 | CY116: 6071 | CZ116: 2737 | DA116: 26365 | DB116: -23628 | DC116: 15837 | DD116: 7980 | DG116: -59 | DH116: 124 | DI116: 254 | DJ116: 956 | DK116: 0 | DL116: 0 | DM116: -702 | DN116: 0 | DO116: 0 | DP116: 0 | DQ116: -702 | DR116: 3465 | DS116: 134 | DU116: 608 | DV116: -598 | DW116: -5171 | DX116: 15837 | DY116: 14235 | DZ116: 698 | EA116: 904 | EB116: 22 | ED116: 210 | EE116: 17021 | EF116: 17367 | EG116: 17960 | EK116: -353 | EL116: 20 | EM116: 134 | EN116: -597 | EO116: 0 | EP116: 20 | EQ116: -5531 | ER116: 0 | ES116: 226 | ET116: 200 | EU116: 0 | EV116: 0 | EW116: 0 | EX116: 0 | EY116: 10000 | EZ116: 8890 | FA116: 8292 | FB116: 598 | FC116: 3740 | FD116: 8292 | FE116: 7694 | FF116: 598 | FG116: 3638 | FH116: 17694 | FI116: 7229 | FJ116: 10465 | FK116: 3536 | FL116: 2215.173026 | FM116: 2094.136149 | FN116: 4266.941392 | FO116: 647.0454545 | FP116: 148.1331169 | FV116: 524 | FW116: -524
A117: 317 | B117: Kärsämäki | C117: 2611 | E117: 1.070159858 | F117: 71.2622016 | G117: -1761.011107 | K117: 45.45757072 | L117: 3576.790502 | M117: 150.2704549 | N117: 8687.859058 | O117: 5796 | P117: 2547 | Q117: 19959 | R117: -17412 | S117: 6877 | T117: 11270 | W117: -56 | X117: 464 | Y117: 1143 | Z117: 1030 | AA117: 0 | AB117: 0 | AC117: 113 | AD117: 0 | AE117: 55 | AF117: 278 | AG117: 446 | AH117: 4986 | AI117: 1154 | AK117: 1256 | AL117: -1064 | AM117: 491 | AN117: 6877 | AO117: 5781 | AP117: 626 | AQ117: 470 | AR117: 21.5 | AT117: 184 | AU117: 2613 | AW117: 1.092445328 | AX117: 88.6047858 | AY117: -1613.088404 | BC117: 40.89446589 | BD117: 3653.272101 | BE117: 157.1127745 | BF117: 8487.179487 | BG117: 5795 | BH117: 2215 | BI117: 19889 | BJ117: -17674 | BK117: 7030 | BL117: 11483 | BO117: -37 | BP117: 242 | BQ117: 1044 | BR117: 628 | BS117: 0 | BT117: 0 | BU117: 416 | BV117: 0 | BW117: 55 | BX117: 0 | BY117: 471 | BZ117: 5457 | CA117: 1128 | CC117: -3793 | CD117: -951 | CE117: 507 | CF117: 7030 | CG117: 5855 | CH117: 589 | CI117: 586 | CJ117: 21.5 | CL117: 73 | CM117: 2576 | CO117: 0.859654097 | CP117: 70.75716736 | CQ117: -1512.810559 | CU117: 48.37545126 | CV117: 3781.444099 | CW117: 161.7370241 | CX117: 8533.773292 | CY117: 5633 | CZ117: 1952 | DA117: 19532 | DB117: -17580 | DC117: 7511 | DD117: 10942 | DG117: -48 | DH117: 637 | DI117: 1462 | DJ117: 638 | DK117: 0 | DL117: 0 | DM117: 824 | DN117: 0 | DO117: 55 | DP117: 0 | DQ117: 879 | DR117: 6336 | DS117: 1477 | DU117: 3805 | DV117: -976 | DW117: 787 | DX117: 7511 | DY117: 6295 | DZ117: 621 | EA117: 595 | EB117: 21.5 | ED117: 19 | EE117: 12245 | EF117: 12210 | EG117: 12145 | EK117: -846 | EL117: 118 | EM117: 65 | EN117: -825 | EO117: 172 | EP117: 32 | EQ117: -891 | ER117: 163 | ES117: 38 | ET117: 0 | EU117: 2144 | EV117: 0 | EW117: 531 | EX117: 0 | EY117: 932 | EZ117: 12908 | FA117: 8601 | FB117: 4307 | FC117: 1290 | FD117: 12490 | FE117: 7713 | FF117: 4777 | FG117: 1420 | FH117: 12445 | FI117: 6824 | FJ117: 5621 | FK117: 1890 | FL117: 7767.905017 | FM117: 7485.64868 | FN117: 8148.291925 | FO117: 292.7906977 | FP117: 113.6609851 | FV117: 1691 | FW117: -1691
A118: 398 | B118: Lahti | C118: 119573 | E118: 1.124795399 | F118: 112.4938406 | G118: -5510.608582 | K118: 41.87448355 | L118: 883.4937653 | M118: 44.14600721 | N118: 7304.742709 | O118: 160471 | P118: 92017 | Q118: 684870 | R118: -592853 | S118: 452800 | T118: 188981 | W118: -3524 | X118: 15280 | Y118: 60684 | Z118: 45557 | AA118: 2116 | AB118: 0 | AC118: 17243 | AD118: 227 | AE118: 0 | AF118: -136 | AG118: 17334 | AH118: 152028 | AI118: 53881 | AK118: 63684 | AL118: -52526 | AM118: 16309 | AN118: 452800 | AO118: 390185 | AP118: 26717 | AQ118: 35898 | AR118: 20.25 | AT118: 141 | AU118: 119951 | AW118: 0.7865087235 | AX118: 117.2652615 | AY118: -6017.907312 | BC118: 40.44263458 | BD118: 733.9330227 | BE118: 34.03364691 | BF118: 7871.197406 | BG118: 159265 | BH118: 92614 | BI118: 714825 | BJ118: -622211 | BK118: 465139 | BL118: 191367 | BO118: -3891 | BP118: 15264 | BQ118: 45668 | BR118: 45146 | BS118: 0 | BT118: 0 | BU118: 522 | BV118: 227 | BW118: 0 | BX118: -115 | BY118: 634 | BZ118: 152662 | CA118: 40630 | CC118: -7400 | CD118: -61600 | CE118: -60822 | CF118: 465139 | CG118: 396744 | CH118: 27427 | CI118: 40968 | CJ118: 20.75 | CL118: 77 | CM118: 119823 | CO118: 0.3188904932 | CP118: 121.5037462 | CQ118: -6701.601529 | CU118: 38.12084027 | CV118: 336.3377649 | CW118: 15.23875652 | CX118: 8055.99092 | CY118: 161824 | CZ118: 93283 | DA118: 745758 | DB118: -651477 | DC118: 475356 | DD118: 193870 | DG118: -4639 | DH118: 13333 | DI118: 26443 | DJ118: 47927 | DK118: 941 | DL118: 0 | DM118: -20543 | DN118: 227 | DO118: 0 | DP118: 0 | DQ118: -20316 | DR118: 131404 | DS118: 25956 | DU118: -16174 | DV118: -44601 | DW118: -66186 | DX118: 475356 | DY118: 403837 | DZ118: 29403 | EA118: 42116 | EB118: 20.75 | ED118: 119 | EE118: 450503 | EF118: 479686 | EG118: 504871 | EK118: -67950 | EL118: 459 | EM118: 29919 | EN118: -117711 | EO118: 653 | EP118: 15606 | EQ118: -102365 | ER118: 628 | ES118: 9595 | ET118: 59046 | EU118: 4038 | EV118: 110000 | EW118: -6255 | EX118: 90000 | EY118: -771 | EZ118: 755017 | FA118: 649716 | FB118: 105301 | FC118: 461696 | FD118: 797162 | FE118: 715116 | FF118: 82046 | FG118: 463551 | FH118: 841790 | FI118: 764770 | FJ118: 77020 | FK118: 478109 | FL118: 9182.884096 | FM118: 9682.320281 | FN118: 9955.94335 | FO118: 19462.0241 | FP118: 162.4231082 | FV118: 19835 | FW118: -19835
A119: 399 | B119: Laihia | C119: 8051 | E119: 0.7523498161 | F119: 65.19509389 | G119: -3802.757421 | K119: 33.19600109 | L119: 113.4020619 | M119: 5.625147699 | N119: 7358.340579 | O119: 19922 | P119: 6233 | Q119: 49471 | R119: -43238 | S119: 30009 | T119: 15041 | W119: -169 | X119: 23 | Y119: 1666 | Z119: 1825 | AA119: 0 | AB119: 0 | AC119: -159 | AD119: 105 | AE119: 0 | AF119: 0 | AG119: -54 | AH119: -1168 | AI119: 1617 | AK119: 393 | AL119: -2272 | AM119: -5546 | AN119: 30009 | AO119: 27660 | AP119: 1217 | AQ119: 1132 | AR119: 21.75 | AT119: 269 | AU119: 8058 | AW119: 0.2253685027 | AX119: 73.23805324 | AY119: -4033.382973 | BC119: 29.22475349 | BD119: 55.84512286 | BE119: 2.887607461 | BF119: 7058.94763 | BG119: 18738 | BH119: 5648 | BI119: 49486 | BJ119: -43838 | BK119: 29190 | BL119: 15050 | BO119: -158 | BP119: 177 | BQ119: 421 | BR119: 1953 | BS119: 0 | BT119: 0 | BU119: -1532 | BV119: 105 | BW119: 0 | BX119: 0 | BY119: -1427 | BZ119: -2593 | CA119: 271 | CC119: -1682 | CD119: -2418 | CE119: -1931 | CF119: 29190 | CG119: 26941 | CH119: 1015 | CI119: 1234 | CJ119: 21.75 | CL119: 229 | CM119: 8017 | CO119: 0.2766775052 | CP119: 74.16044411 | CQ119: -4232.38119 | CU119: 28.50078132 | CV119: 260.4465511 | CW119: 13.20671669 | CX119: 7198.079082 | CY119: 16249 | CZ119: 4842 | DA119: 49962 | DB119: -45120 | DC119: 30725 | DD119: 15591 | DG119: -149 | DH119: 86 | DI119: 1133 | DJ119: 2045 | DK119: 945 | DL119: 0 | DM119: 33 | DN119: 34 | DO119: 0 | DP119: 0 | DQ119: 67 | DR119: -2527 | DS119: 1011 | DU119: 1666 | DV119: -2710 | DW119: -587 | DX119: 30725 | DY119: 28304 | DZ119: 998 | EA119: 1423 | EB119: 21.75 | ED119: 158 | EE119: 23411 | EF119: 24709 | EG119: 24903 | EK119: -7309 | EL119: 65 | EM119: 81 | EN119: -4806 | EO119: 233 | EP119: 2371 | EQ119: -3515 | ER119: 60 | ES119: 1857 | ET119: 8000 | EU119: -1750 | EV119: 5000 | EW119: 1500 | EX119: 4000 | EY119: 0 | EZ119: 27203 | FA119: 17493 | FB119: 9710 | FC119: 897 | FD119: 31285 | FE119: 19908 | FF119: 11377 | FG119: 812 | FH119: 32575 | FI119: 20865 | FJ119: 11710 | FK119: 2112 | FL119: 4401.440815 | FM119: 5073.343261 | FN119: 5383.93414 | FO119: 1301.333333 | FP119: 162.321733 | FV119: 926 | FW119: -926
A120: 400 | B120: Laitila | C120: 8610 | E120: 28.68115942 | F120: 39.69048931 | G120: -2135.772358 | K120: 60.52146009 | L120: 50.17421603 | M120: 2.624107574 | N120: 6978.977933 | O120: 26778 | P120: 10160 | Q120: 56030 | R120: -45870 | S120: 29232 | T120: 20509 | W120: -8 | X120: 87 | Y120: 3950 | Z120: 4630 | AA120: 0 | AB120: 0 | AC120: -680 | AD120: 293 | AE120: 0 | AF120: 0 | AG120: -387 | AH120: 5824 | AI120: 3715 | AK120: 676 | AL120: -130 | AM120: 78 | AN120: 29232 | AO120: 25112 | AP120: 2046 | AQ120: 2074 | AR120: 20.75 | AT120: 173 | AU120: 8647 | AW120: 10.7721519 | AX120: 54.97416899 | AY120: -2981.496473 | BC120: 52.59190254 | BD120: 269.2263213 | BE120: 12.73370298 | BF120: 7717.127327 | BG120: 27410 | BH120: 9486 | BI120: 57253 | BJ120: -47767 | BK120: 29006 | BL120: 20352 | BO120: -28 | BP120: 111 | BQ120: 1674 | BR120: 2698 | BS120: 0 | BT120: 0 | BU120: -1024 | BV120: 121 | BW120: 0 | BX120: 0 | BY120: -903 | BZ120: 4921 | CA120: 1674 | CC120: 715 | CD120: -130 | CE120: -7419 | CF120: 29006 | CG120: 24995 | CH120: 1948 | CI120: 2063 | CJ120: 20.5 | CL120: 175 | CM120: 8588 | CO120: 0.03333002678 | CP120: 61.48264826 | CQ120: -3669.888216 | CU120: 47.45341961 | CV120: 162.5523987 | CW120: 7.61906186 | CX120: 7787.261295 | CY120: 27899 | CZ120: 9119 | DA120: 59563 | DB120: -50444 | DC120: 30346 | DD120: 20212 | DG120: -10 | DH120: 12 | DI120: 116 | DJ120: 2786 | DK120: 0 | DL120: 0 | DM120: -2670 | DN120: 121 | DO120: 0 | DP120: 0 | DQ120: -2549 | DR120: 2372 | DS120: 116 | DU120: 462 | DV120: -1130 | DW120: -5933 | DX120: 30346 | DY120: 26313 | DZ120: 1934 | EA120: 2099 | EB120: 20.75 | ED120: 225 | EE120: 22986 | EF120: 22042 | EG120: 25197 | EK120: -3918 | EL120: 15 | EM120: 266 | EN120: -9314 | EO120: 2 | EP120: 219 | EQ120: -6061 | ER120: 8 | ES120: 4 | ET120: 0 | EU120: -1100 | EV120: 10000 | EW120: -1100 | EX120: 0 | EY120: 5500 | EZ120: 14315 | FA120: 585 | FB120: 13730 | FC120: 774 | FD120: 23085 | FE120: 8955 | FF120: 14130 | FG120: 774 | FH120: 27455 | FI120: 7825 | FJ120: 19630 | FK120: 774 | FL120: 3678.629501 | FM120: 4083.150226 | FN120: 5552.049371 | FO120: 1268.096386 | FP120: 147.659104 | FV120: 271 | FW120: -271
A121: 407 | B121: Lapinjärvi | C121: 2706 | E121: -0.5667655786 | F121: 47.13107951 | G121: -2722.099039 | K121: 50.41097476 | L121: 171.8403548 | M121: 7.46043956 | N121: 8407.243163 | O121: 4888 | P121: 2637 | Q121: 19059 | R121: -16422 | S121: 8650 | T121: 6800 | W121: -36 | X121: 778 | Y121: -230 | Z121: 759 | AA121: 728 | AB121: 0 | AC121: -261 | AD121: 0 | AE121: 0 | AF121: 0 | AG121: -261 | AH121: 1413 | AI121: 486 | AK121: 28 | AL121: -298 | AM121: -655 | AN121: 8650 | AO121: 7595 | AP121: 508 | AQ121: 547 | AR121: 20.5 | AT121: 294 | AU121: 2665 | AW121: 0.04594594595 | AX121: 51.32330332 | AY121: -3118.198874 | BC121: 46.24857469 | BD121: 22.51407129 | BE121: 1.077384759 | BF121: 7627.39212 | BG121: 4972 | BH121: 2941 | BI121: 19038 | BJ121: -16097 | BK121: 8456 | BL121: 6822 | BO121: -31 | BP121: 834 | BQ121: -16 | BR121: 581 | BS121: 0 | BT121: 0 | BU121: -597 | BV121: 0 | BW121: 0 | BX121: 0 | BY121: -597 | BZ121: 816 | CA121: -57 | CC121: -290 | CD121: -337 | CE121: -916 | CF121: 8456 | CG121: 7362 | CH121: 549 | CI121: 545 | CJ121: 20.5 | CL121: 254 | CM121: 2606 | CO121: 0.1816593886 | CP121: 53.74694831 | CQ121: -3283.576362 | CU121: 43.04794903 | CV121: 277.8204144 | CW121: 12.57363087 | CX121: 8064.850345 | CY121: 4892 | CZ121: 2776 | DA121: 19497 | DB121: -16714 | DC121: 8840 | DD121: 7226 | DG121: -33 | DH121: 855 | DI121: 174 | DJ121: 584 | DK121: 0 | DL121: 0 | DM121: -410 | DN121: 0 | DO121: 0 | DP121: 0 | DQ121: -410 | DR121: 407 | DS121: 238 | DU121: 131 | DV121: -402 | DW121: -273 | DX121: 8840 | DY121: 7678 | DZ121: 601 | EA121: 561 | EB121: 20.5 | ED121: 203 | EE121: 11723 | EF121: 11587 | EG121: 12213 | EK121: -3337 | EL121: 94 | EM121: 2102 | EN121: -910 | EO121: 0 | EP121: 51 | EQ121: -1087 | ER121: 28 | ES121: 548 | ET121: 0 | EU121: 1650 | EV121: 1000 | EW121: -400 | EX121: 1000 | EY121: 100 | EZ121: 6995 | FA121: 3358 | FB121: 3637 | FC121: 251 | FD121: 7258 | FE121: 3956 | FF121: 3302 | FG121: 251 | FH121: 7956 | FI121: 4554 | FJ121: 3402 | FK121: 251 | FL121: 5426.829268 | FM121: 6647.654784 | FN121: 7514.198005 | FO121: 374.5365854 | FP121: 143.7208693 | FV121: 213 | FW121: -213
A122: 402 | B122: Lapinlahti | C122: 9692 | E122: 1.528328612 | F122: 52.43971901 | G122: -3377.94057 | K122: 49.90324339 | L122: 35.69954602 | M122: 1.813547396 | N122: 7184.997936 | O122: 31408 | P122: 7894 | Q122: 65481 | R122: -57587 | S122: 29398 | T122: 31179 | W122: 238 | X122: 842 | Y122: 4070 | Z122: 2806 | AA122: 0 | AB122: 0 | AC122: 1264 | AD122: 59 | AE122: 0 | AF122: 0 | AG122: 1323 | AH122: 1015 | AI122: 3577 | AK122: -358 | AL122: -2578 | AM122: 2651 | AN122: 29398 | AO122: 25412 | AP122: 1767 | AQ122: 2219 | AR122: 20.25 | AT122: 196 | AU122: 9617 | AW122: 1.172220389 | AX122: 54.32304074 | AY122: -3492.149319 | BC122: 50.03974081 | BD122: 17.57304773 | BE122: 0.8557733661 | BF122: 7495.164812 | BG122: 30671 | BH122: 7308 | BI122: 64433 | BJ122: -57125 | BK122: 29188 | BL122: 30251 | BO122: 107 | BP122: 889 | BQ122: 3310 | BR122: 2784 | BS122: 0 | BT122: 0 | BU122: 526 | BV122: 59 | BW122: 0 | BX122: 0 | BY122: 585 | BZ122: 1600 | CA122: 3324 | CC122: 315 | CD122: -2788 | CE122: -1256 | CF122: 29188 | CG122: 25409 | CH122: 1555 | CI122: 2224 | CJ122: 21.25 | CL122: 97 | CM122: 9485 | CO122: 0.5594798805 | CP122: 55.67325592 | CQ122: -3727.042699 | CU122: 48.63916649 | CV122: 3.057459146 | CW122: 0.1424898366 | CX122: 7831.945177 | CY122: 31425 | CZ122: 7702 | DA122: 66670 | DB122: -58968 | DC122: 30200 | DD122: 29784 | DG122: 292 | DH122: 832 | DI122: 2140 | DJ122: 2686 | DK122: 0 | DL122: 0 | DM122: -546 | DN122: 59 | DO122: 0 | DP122: 0 | DQ122: -487 | DR122: 1113 | DS122: 2378 | DU122: 202 | DV122: -2737 | DW122: -2203 | DX122: 30200 | DY122: 26302 | DZ122: 1645 | EA122: 2253 | EB122: 21.25 | ED122: 115 | EE122: 25316 | EF122: 25036 | EG122: 25934 | EK122: -1330 | EL122: 18 | EM122: 386 | EN122: -4613 | EO122: 0 | EP122: 33 | EQ122: -4621 | ER122: 0 | ES122: 40 | ET122: 1300 | EU122: 0 | EV122: 2000 | EW122: 0 | EX122: 4000 | EY122: 525 | EZ122: 29230 | FA122: 26443 | FB122: 2787 | FC122: 11258 | FD122: 28443 | FE122: 25773 | FF122: 2670 | FG122: 10805 | FH122: 30231 | FI122: 27035 | FJ122: 3196 | FK122: 10351 | FL122: 5958.935204 | FM122: 5696.37101 | FN122: 5920.084344 | FO122: 1237.741176 | FP122: 130.494589 | FV122: 1488 | FW122: -1488
A123: 403 | B123: Lappajärvi | C123: 3140 | E123: 3.508684864 | F123: 61.07027216 | G123: -3683.121019 | K123: 55.57535075 | L123: 286.9426752 | M123: 13.92080088 | N123: 7523.566879 | O123: 4790 | P123: 2126 | Q123: 21454 | R123: -19328 | S123: 9906 | T123: 10822 | W123: -90 | X123: 14 | Y123: 1324 | Z123: 1238 | AA123: 0 | AB123: 0 | AC123: 86 | AD123: 27 | AE123: 0 | AF123: 1 | AG123: 114 | AH123: 1168 | AI123: 1276 | AK123: -496 | AL123: -313 | AM123: -231 | AN123: 9906 | AO123: 8038 | AP123: 982 | AQ123: 886 | AR123: 21 | AT123: 194 | AU123: 3078 | AW123: 0.3897637795 | AX123: 60.93494606 | AY123: -2047.433398 | BC123: 53.92358447 | BD123: 976.6081871 | BE123: 37.01221158 | BF123: 9630.929175 | BG123: 4814 | BH123: 4329 | BI123: 22646 | BJ123: -18317 | BK123: 9318 | BL123: 10825 | BO123: -39 | BP123: 54 | BQ123: 1841 | BR123: 1739 | BS123: 0 | BT123: 0 | BU123: 102 | BV123: 27 | BW123: 0 | BX123: 0 | BY123: 129 | BZ123: 1297 | CA123: -53 | CC123: -4113 | CD123: -4786 | CE123: 5342 | CF123: 9318 | CG123: 7532 | CH123: 757 | CI123: 1029 | CJ123: 21 | CL123: 22 | CM123: 2996 | CO123: 0.4818104392 | CP123: 41.29856763 | CQ123: -2805.740988 | CU123: 63.89220218 | CV123: 77.10280374 | CW123: 3.249007745 | CX123: 8661.88251 | CY123: 4573 | CZ123: 2554 | DA123: 22839 | DB123: -20285 | DC123: 9693 | DD123: 11071 | DG123: -17 | DH123: 14 | DI123: 476 | DJ123: 906 | DK123: 0 | DL123: 0 | DM123: -430 | DN123: 27 | DO123: 0 | DP123: 0 | DQ123: -403 | DR123: 894 | DS123: 476 | DU123: 4610 | DV123: -300 | DW123: -1922 | DX123: 9693 | DY123: 8040 | DZ123: 656 | EA123: 997 | EB123: 21.5 | ED123: 149 | EE123: 15176 | EF123: 15895 | EG123: 16130 | EK123: -1766 | EL123: 184 | EM123: 75 | EN123: -2172 | EO123: 202 | EP123: 7365 | EQ123: -2792 | ER123: 251 | ES123: 143 | ET123: 0 | EU123: 1050 | EV123: 0 | EW123: 850 | EX123: 0 | EY123: 0 | EZ123: 11636 | FA123: 5373 | FB123: 6263 | FC123: 1810 | FD123: 7700 | FE123: 600 | FF123: 7100 | FG123: 1810 | FH123: 7400 | FI123: 300 | FJ123: 7100 | FK123: 1810 | FL123: 5864.968153 | FM123: 4953.216374 | FN123: 5005.006676 | FO123: 373.9534884 | FP123: 124.8175862 | FV123: 651 | FW123: -651
A124: 405 | B124: Lappeenranta | C124: 72909 | E124: 1.024475222 | F124: 61.46303324 | G124: -3116.035057 | K124: 49.93354025 | L124: 424.460629 | M124: 22.78466063 | N124: 6799.668079 | O124: 97636 | P124: 70439 | Q124: 445405 | R124: -374966 | S124: 293933 | T124: 104995 | W124: 5953 | X124: 3294 | Y124: 33209 | Z124: 30844 | AA124: 0 | AB124: 0 | AC124: 2365 | AD124: -179 | AE124: -3 | AF124: 0 | AG124: 2183 | AH124: 62494 | AI124: 30981 | AK124: -3435 | AL124: -32359 | AM124: 24544 | AN124: 293933 | AO124: 244562 | AP124: 24745 | AQ124: 24626 | AR124: 21 | AT124: 176 | AU124: 72699 | AW124: 0.6017170149 | AX124: 61.01064713 | AY124: -3029.656529 | BC124: 49.42386321 | BD124: 522.6481795 | BE124: 28.33164796 | BF124: 6733.338835 | BG124: 99779 | BH124: 42948 | BI124: 431461 | BJ124: -388513 | BK124: 290688 | BL124: 106908 | BO124: 6775 | BP124: 3135 | BQ124: 18993 | BR124: 22268 | BS124: 0 | BT124: 0 | BU124: -3275 | BV124: -352 | BW124: 293 | BX124: 48 | BY124: -3286 | BZ124: 59210 | CA124: 24986 | CC124: 6354 | CD124: -32586 | CE124: 6230 | CF124: 290688 | CG124: 243607 | CH124: 22310 | CI124: 24771 | CJ124: 21 | CL124: 132 | CM124: 72634 | CO124: 0.9057366213 | CP124: 63.68158984 | CQ124: -3193.779773 | CU124: 48.23344001 | CV124: 607.2225129 | CW124: 29.4451212 | CX124: 7527.094749 | CY124: 103121 | CZ124: 46050 | DA124: 436615 | DB124: -389688 | DC124: 295558 | DD124: 109860 | DG124: 5274 | DH124: 5440 | DI124: 26444 | DJ124: 26247 | DK124: 0 | DL124: 0 | DM124: 197 | DN124: 119 | DO124: 33 | DP124: 0 | DQ124: 349 | DR124: 59557 | DS124: 12359 | DU124: -1551 | DV124: -62709 | DW124: -22478 | DX124: 295558 | DY124: 247955 | DZ124: 21726 | EA124: 25877 | EB124: 21 | ED124: 68 | EE124: 316486 | EF124: 304974 | EG124: 304937 | EK124: -26565 | EL124: 1018 | EM124: 19110 | EN124: -23631 | EO124: 1913 | EP124: 2962 | EQ124: -45944 | ER124: 1465 | ES124: 9642 | ET124: 30000 | EU124: -6573 | EV124: 20000 | EW124: -809 | EX124: 70000 | EY124: 15386 | EZ124: 218041 | FA124: 134098 | FB124: 83943 | FC124: 130333 | FD124: 204647 | FE124: 91389 | FF124: 113258 | FG124: 129756 | FH124: 227324 | FI124: 132252 | FJ124: 95072 | FK124: 119769 | FL124: 6864.982375 | FM124: 6601.64514 | FN124: 6827.862984 | FO124: 11807.38095 | FP124: 162.5599713 | FV124: 21416 | FW124: -21416
A125: 408 | B125: Lapua | C125: 14494 | E125: 1.390922895 | F125: 67.7423662 | G125: -3827.169863 | K125: 41.84512847 | L125: 493.3075755 | M125: 24.72337483 | N125: 7282.875673 | O125: 39530 | P125: 12584 | Q125: 89701 | R125: -77117 | S125: 48687 | T125: 36481 | W125: -428 | X125: 176 | Y125: 7799 | Z125: 4987 | AA125: 0 | AB125: 0 | AC125: 2812 | AD125: 0 | AE125: 0 | AF125: 0 | AG125: 2812 | AH125: 17605 | AI125: 7061 | AK125: 371 | AL125: -5482 | AM125: -1819 | AN125: 48687 | AO125: 43335 | AP125: 2468 | AQ125: 2884 | AR125: 21 | AT125: 119 | AU125: 14427 | AW125: 0.6845905669 | AX125: 79.79295678 | AY125: -4473.695155 | BC125: 37.83661425 | BD125: 596.1045262 | BE125: 27.84875262 | BF125: 7812.850905 | BG125: 40728 | BH125: 12639 | BI125: 92199 | BJ125: -79560 | BK125: 47777 | BL125: 35853 | BO125: -346 | BP125: 355 | BQ125: 4079 | BR125: 4994 | BS125: 0 | BT125: 0 | BU125: -915 | BV125: 0 | BW125: 0 | BX125: 0 | BY125: -915 | BZ125: 16691 | CA125: 3594 | CC125: -62 | CD125: -6132 | CE125: -9163 | CF125: 47777 | CG125: 42420 | CH125: 2343 | CI125: 3014 | CJ125: 21.5 | CL125: 118 | CM125: 14278 | CO125: 0.4172958133 | CP125: 90.99426021 | CQ125: -5521.081384 | CU125: 33.17791321 | CV125: 585.3761031 | CW125: 25.00692663 | CX125: 8544.123827 | CY125: 42583 | CZ125: 12799 | DA125: 95772 | DB125: -82820 | DC125: 49872 | DD125: 36810 | DG125: -378 | DH125: 285 | DI125: 3769 | DJ125: 5386 | DK125: 0 | DL125: 0 | DM125: -1617 | DN125: 0 | DO125: 0 | DP125: 0 | DQ125: -1617 | DR125: 15074 | DS125: 3061 | DU125: 62 | DV125: -7432 | DW125: -13998 | DX125: 49872 | DY125: 44615 | DZ125: 2326 | EA125: 2931 | EB125: 21.5 | ED125: 102 | EE125: 36805 | EF125: 37559 | EG125: 38872 | EK125: -10298 | EL125: 411 | EM125: 1007 | EN125: -14333 | EO125: 148 | EP125: 1428 | EQ125: -17990 | ER125: 82 | ES125: 849 | ET125: 5000 | EU125: 2000 | EV125: 14000 | EW125: 0 | EX125: 18000 | EY125: 2000 | EZ125: 47424 | FA125: 26491 | FB125: 20933 | FC125: 1873 | FD125: 55292 | FE125: 33259 | FF125: 22033 | FG125: 1811 | FH125: 67858 | FI125: 42776 | FJ125: 25082 | FK125: 1748 | FL125: 6371.119084 | FM125: 7020.517086 | FN125: 7877.083625 | FO125: 2075.116279 | FP125: 145.3366213 | FV125: 2937 | FW125: -2937
A126: 410 | B126: Laukaa | C126: 18978 | E126: -90.09302326 | F126: 87.32897829 | G126: -5251.290968 | K126: 28.22824669 | L126: 72.76846875 | M126: 3.938500125 | N126: 6743.808621 | O126: 39655 | P126: 14831 | Q126: 113087 | R126: -98256 | S126: 67931 | T126: 37252 | W126: 680 | X126: 243 | Y126: 7850 | Z126: 5474 | AA126: 0 | AB126: 0 | AC126: 2376 | AD126: 0 | AE126: 0 | AF126: 0 | AG126: 2376 | AH126: 8956 | AI126: 7415 | AK126: -745 | AL126: -16 | AM126: -5911 | AN126: 67931 | AO126: 60612 | AP126: 2606 | AQ126: 4713 | AR126: 21.5 | AT126: 198 | AU126: 18927 | AW126: 67.22222222 | AX126: 94.29762007 | AY126: -5512.653881 | BC126: 25.30605047 | BD126: 71.64368363 | BE126: 4.018707524 | BF126: 6507.053416 | BG126: 41046 | BH126: 13673 | BI126: 115842 | BJ126: -102169 | BK126: 66130 | BL126: 36587 | BO126: 546 | BP126: 705 | BQ126: 1799 | BR126: 5814 | BS126: 0 | BT126: 0 | BU126: -4015 | BV126: 0 | BW126: 0 | BX126: 0 | BY126: -4015 | BZ126: 4941 | CA126: 1320 | CC126: -292 | CD126: -11 | CE126: -4984 | CF126: 66130 | CG126: 58865 | CH126: 2511 | CI126: 4754 | CJ126: 21.5 | CL126: 216 | CM126: 18903 | CO126: 0.241888636 | CP126: 96.07838199 | CQ126: -5635.560493 | CU126: 22.51859451 | CV126: 272.0732159 | CW126: 14.04045655 | CX126: 7072.898482 | CY126: 42742 | CZ126: 13474 | DA126: 116749 | DB126: -103275 | DC126: 67580 | DD126: 38055 | DG126: 491 | DH126: 309 | DI126: 3160 | DJ126: 7108 | DK126: 0 | DL126: 0 | DM126: -3948 | DN126: 0 | DO126: 0 | DP126: 0 | DQ126: -3948 | DR126: 993 | DS126: 1936 | DU126: 1293 | DV126: -10011 | DW126: -3099 | DX126: 67580 | DY126: 60024 | DZ126: 2696 | EA126: 4860 | EB126: 21.5 | ED126: 141 | EE126: 57836 | EF126: 58244 | EG126: 56901 | EK126: -14834 | EL126: 708 | EM126: 800 | EN126: -7182 | EO126: 3 | EP126: 875 | EQ126: -6892 | ER126: 44 | ES126: 1813 | ET126: 6653 | EU126: -3494 | EV126: 0 | EW126: 4000 | EX126: 0 | EY126: 20000 | EZ126: 84102 | FA126: 18091 | FB126: 66011 | FC126: 23431 | FD126: 88091 | FE126: 18080 | FF126: 70011 | FG126: 22805 | FH126: 98080 | FI126: 8067 | FJ126: 90013 | FK126: 22003 | FL126: 6232.743176 | FM126: 6769.37708 | FN126: 7650.108448 | FO126: 2791.813953 | FP126: 147.6915809 | FV126: 63 | FW126: -63
A127: 416 | B127: Lemi | C127: 3063 | E127: 0.07251264755 | F127: 34.80202603 | G127: -1678.746327 | K127: 47.56106348 | L127: 121.4495593 | M127: 6.602801011 | N127: 6713.679399 | O127: 4897 | P127: 1773 | Q127: 18320 | R127: -16547 | S127: 10577 | T127: 6011 | W127: -9 | X127: -2 | Y127: 30 | Z127: 634 | AA127: 0 | AB127: 0 | AC127: -604 | AD127: 0 | AE127: 0 | AF127: 0 | AG127: -604 | AH127: -436 | AI127: 767 | AK127: -280 | AL127: -580 | AM127: -319 | AN127: 10577 | AO127: 9242 | AP127: 520 | AQ127: 815 | AR127: 21 | AT127: 289 | AU127: 3043 | AW127: -1.57994186 | AX127: 49.96431904 | AY127: -2645.087085 | BC127: 33.80449234 | BD127: 166.6118962 | BE127: 8.710110138 | BF127: 6981.925731 | BG127: 4979 | BH127: 1704 | BI127: 19317 | BJ127: -17613 | BK127: 10283 | BL127: 6230 | BO127: -20 | BP127: 10 | BQ127: -1110 | BR127: 660 | BS127: 0 | BT127: 0 | BU127: -1770 | BV127: 0 | BW127: 0 | BX127: 0 | BY127: -1770 | BZ127: -2206 | CA127: -1647 | CC127: 330 | CD127: -665 | CE127: -2863 | CF127: 10283 | CG127: 9046 | CH127: 421 | CI127: 816 | CJ127: 21 | CL127: 290 | CM127: 2971 | CO127: -0.01872001872 | CP127: 48.15090725 | CQ127: -2891.618984 | CU127: 30.53940687 | CV127: 19.52204645 | CW127: 1.041830709 | CX127: 6839.447997 | CY127: 5181 | CZ127: 1775 | DA127: 18836 | DB127: -17061 | DC127: 10290 | DD127: 6728 | DG127: -80 | DH127: 20 | DI127: -103 | DJ127: 579 | DK127: 0 | DL127: 0 | DM127: -682 | DN127: 0 | DO127: 0 | DP127: 0 | DQ127: -682 | DR127: -2887 | DS127: -294 | DU127: 145 | DV127: -848 | DW127: -501 | DX127: 10290 | DY127: 9048 | DZ127: 401 | EA127: 841 | EB127: 21 | ED127: 241 | EE127: 12124 | EF127: 12907 | EG127: 12354 | EJ127: 420 | EK127: -1312 | EL127: 0 | EM127: 226 | EN127: -1232 | EO127: 0 | EP127: 16 | EQ127: -551 | ER127: 28 | ES127: 316 | ET127: 1050 | EU127: 0 | EV127: 1540 | EW127: 15 | EX127: 2875 | EY127: 96 | EZ127: 4587 | FA127: 3937 | FB127: 650 | FC127: 582 | FD127: 5476 | FE127: 4672 | FF127: 804 | FG127: 582 | FH127: 7599 | FI127: 6543 | FJ127: 1056 | FK127: 582 | FL127: 3379.040157 | FM127: 3712.454814 | FN127: 4331.538203 | FO127: 430.8571429 | FP127: 145.0209165 | FV127: 110 | FW127: -110
A128: 418 | B128: Lempäälä | C128: 22829 | E128: 1.600660769 | F128: 63.4889428 | G128: -3455.166674 | K128: 41.26064454 | L128: 303.0794165 | M128: 17.04095197 | N128: 6491.655351 | O128: 57688 | P128: 26535 | Q128: 129393 | R128: -102858 | S128: 93965 | T128: 23179 | W128: -474 | X128: 727 | Y128: 14539 | Z128: 11440 | AA128: 0 | AB128: 0 | AC128: 3099 | AD128: 76 | AE128: -2100 | AF128: 0 | AG128: 1075 | AH128: 16273 | AI128: 12536 | AK128: -282 | AL128: -8903 | AM128: 6005 | AN128: 93965 | AO128: 83968 | AP128: 4684 | AQ128: 5313 | AR128: 20.5 | AT128: 71 | AU128: 23206 | AW128: 0.7499148984 | AX128: 71.34223171 | AY128: -3809.747479 | BC128: 37.26032996 | BD128: 209.0407653 | BE128: 10.98941783 | BF128: 6943.031974 | BG128: 60075 | BH128: 26532 | BI128: 134865 | BJ128: -108333 | BK128: 91950 | BL128: 22293 | BO128: -428 | BP128: 692 | BQ128: 6174 | BR128: 10740 | BS128: 0 | BT128: 0 | BU128: -4566 | BV128: -298 | BW128: 412 | BX128: 0 | BY128: -4452 | BZ128: 11820 | CA128: 4848 | CC128: -1690 | CD128: -8378 | CE128: -9565 | CF128: 91950 | CG128: 82103 | CH128: 4275 | CI128: 5572 | CJ128: 20.5 | CL128: 131 | CM128: 23523 | CO128: 0.7053510476 | CP128: 71.48870152 | CQ128: -3877.694172 | CU128: 43.68893729 | CV128: 108.3620287 | CW128: 4.260141122 | CX128: 9284.232453 | CY128: 62968 | CZ128: 27419 | DA128: 140848 | DB128: -113149 | DC128: 97179 | DD128: 23652 | DG128: -326 | DH128: 706 | DI128: 8062 | DJ128: 10828 | DK128: 25640 | DL128: 0 | DM128: 22874 | DN128: -469 | DO128: -13818 | DP128: 0 | DQ128: 8587 | DR128: 20408 | DS128: 5984 | DU128: -5260 | DV128: -14786 | DW128: 27237 | DX128: 97179 | DY128: 87219 | DZ128: 4091 | EA128: 5869 | EB128: 20.5 | ED128: 76 | EE128: 53692 | EF128: 56153 | EG128: 57607 | EK128: -9663 | EL128: 177 | EM128: 2955 | EN128: -17674 | EO128: 1134 | EP128: 2127 | EQ128: -32792 | ER128: 1899 | ES128: 52146 | ET128: 6000 | EU128: -1000 | EV128: 8500 | EW128: 5000 | EX128: 18000 | EY128: 8500 | EZ128: 69990 | FA128: 59113 | FB128: 10877 | FC128: 397 | FD128: 75113 | FE128: 58910 | FF128: 16203 | FG128: 397 | FH128: 86827 | FI128: 62199 | FJ128: 24628 | FK128: 30261 | FL128: 4931.884883 | FM128: 5556.235456 | FN128: 6563.746121 | FO128: 4254.585366 | FP128: 180.8691649 | FV128: 5084 | FW128: -5084
A129: 420 | B129: Leppävirta | C129: 9782 | E129: 3.43575419 | F129: 21.51124314 | G129: -709.159681 | K129: 77.58339993 | L129: 529.6462891 | M129: 25.08875622 | N129: 7705.479452 | O129: 20391 | P129: 9677 | Q129: 63842 | R129: -54165 | S129: 33198 | T129: 25146 | W129: -82 | X129: 704 | Y129: 4801 | Z129: 4796 | AA129: 0 | AB129: 0 | AC129: 5 | AD129: 83 | AE129: 0 | AF129: 49 | AG129: 137 | AH129: 5535 | AI129: 4665 | AK129: -431 | AL129: -1313 | AM129: -3841 | AN129: 33198 | AO129: 27957 | AP129: 2821 | AQ129: 2420 | AR129: 20 | AT129: 146 | AU129: 9650 | AW129: 1.493853941 | AX129: 25.44367536 | AY129: -1151.606218 | BC129: 73.870935 | BD129: 395.2331606 | BE129: 18.26292866 | BF129: 7899.067358 | BG129: 20894 | BH129: 9432 | BI129: 67492 | BJ129: -58060 | BK129: 34685 | BL129: 24798 | BO129: -86 | BP129: 609 | BQ129: 1946 | BR129: 3414 | BS129: 0 | BT129: 0 | BU129: -1468 | BV129: -724 | BW129: 820 | BX129: 13 | BY129: -1359 | BZ129: 4175 | CA129: 1863 | CC129: -99 | CD129: -1263 | CE129: -4192 | CF129: 34685 | CG129: 29588 | CH129: 2598 | CI129: 2499 | CJ129: 21 | CL129: 170 | CM129: 9454 | CO129: 0.4240687679 | CP129: 27.3974598 | CQ129: -1418.235667 | CU129: 70.26211326 | CV129: 336.5771102 | CW129: 15.83257222 | CX129: 7759.361117 | CY129: 21161 | CZ129: 9898 | DA129: 68705 | DB129: -58802 | DC129: 34789 | DD129: 23969 | DG129: -71 | DH129: 750 | DI129: 635 | DJ129: 3902 | DK129: 0 | DL129: 426 | DM129: -3693 | DN129: -342 | DO129: 580 | DP129: 0 | DQ129: -3455 | DR129: 721 | DS129: 783 | DU129: 387 | DV129: -1083 | DW129: -2444 | DX129: 34789 | DY129: 29588 | DZ129: 2627 | EA129: 2574 | EB129: 21 | ED129: 201 | EE129: 36996 | EF129: 39250 | EG129: 39148 | EK129: -10124 | EL129: 1447 | EM129: 171 | EN129: -7232 | EO129: 1065 | EP129: 112 | EQ129: -3422 | ER129: 117 | ES129: 78 | ET129: 2687 | EU129: 0 | EV129: 1792 | EW129: 0 | EX129: 0 | EY129: 3000 | EZ129: 8036 | FA129: 6723 | FB129: 1313 | FC129: 4761 | FD129: 8565 | FE129: 7482 | FF129: 1083 | FG129: 4761 | FH129: 10483 | FI129: 6450 | FJ129: 4033 | FK129: 4715 | FL129: 3646.800245 | FM129: 3760.621762 | FN129: 4038.184895 | FO129: 1408.952381 | FP129: 149.0324075 | FV129: 611 | FW129: -611
A130: 421 | B130: Lestijärvi | C130: 789 | E130: 3.526315789 | F130: 38.12940082 | G130: -1865.652725 | K130: 71.7820324 | L130: 855.513308 | M130: 32.30723839 | N130: 9665.39924 | O130: 2244 | P130: 1947 | Q130: 7334 | R130: -5387 | S130: 2569 | T130: 3011 | W130: -20 | X130: 3 | Y130: 176 | Z130: 286 | AA130: 0 | AB130: 0 | AC130: -110 | AD130: 0 | AE130: 0 | AF130: 0 | AG130: -110 | AH130: 1632 | AI130: 176 | AK130: 162 | AL130: -32 | AM130: -59 | AN130: 2569 | AO130: 1886 | AP130: 405 | AQ130: 278 | AR130: 21 | AT130: 266 | AU130: 737 | AW130: -2.584269663 | AX130: 39.73091708 | AY130: -2831.750339 | BC130: 69.9751089 | BD130: 483.0393487 | BE130: 16.43146181 | BF130: 10729.98643 | BG130: 2290 | BH130: 1899 | BI130: 7516 | BJ130: -5617 | BK130: 2420 | BL130: 2965 | BO130: -22 | BP130: -1 | BQ130: -255 | BR130: 309 | BS130: 0 | BT130: 0 | BU130: -564 | BV130: 0 | BW130: 0 | BX130: 0 | BY130: -564 | BZ130: 1068 | CA130: -395 | CC130: 272 | CD130: -64 | CE130: -695 | CF130: 2420 | CG130: 1763 | CH130: 384 | CI130: 273 | CJ130: 21 | CL130: 289 | CM130: 719 | CO130: -0.3649304432 | CP130: 52.72 | CQ130: -3713.49096 | CU130: 58.62861921 | CV130: 1155.771905 | CW130: 37.3678699 | CX130: 11289.29068 | CY130: 2326 | CZ130: 2012 | DA130: 7642 | DB130: -5630 | DC130: 2381 | DD130: 3107 | DG130: -23 | DH130: -1 | DI130: -166 | DJ130: 502 | DK130: 0 | DL130: 0 | DM130: -668 | DN130: 0 | DO130: 0 | DP130: 0 | DQ130: -668 | DR130: 400 | DS130: -166 | DU130: 16 | DV130: -4 | DW130: -584 | DX130: 2381 | DY130: 1728 | DZ130: 381 | EA130: 272 | EB130: 21 | ED130: 273 | EE130: 4355 | EF130: 4400 | EG130: 4554 | EJ130: 110 | EK130: -235 | EL130: 0 | EM130: 0 | EN130: -300 | EO130: 0 | EP130: 0 | EQ130: -429 | ER130: 0 | ES130: 11 | ET130: 92 | EU130: 0 | EV130: 0 | EW130: 0 | EX130: 902 | EY130: -10 | EZ130: 1838 | FA130: 1824 | FB130: 14 | FC130: 541 | FD130: 1774 | FE130: 1760 | FF130: 14 | FG130: 461 | FH130: 2662 | FI130: 2646 | FJ130: 16 | FK130: 461 | FL130: 5166.032953 | FM130: 5358.208955 | FN130: 7070.93185 | FO130: 82.28571429 | FP130: 114.4446652 | FV130: 502 | FW130: -502
A131: 422 | B131: Lieksa | C131: 11297 | E131: 3.80071885 | F131: 16.55067203 | G131: 117.9959281 | K131: 79.51348623 | L131: 777.8171196 | M131: 36.04143255 | N131: 7877.135523 | O131: 17358 | P131: 10454 | Q131: 81027 | R131: -70573 | S131: 40630 | T131: 38761 | W131: -10 | X131: 526 | Y131: 9334 | Z131: 5286 | AA131: 574 | AB131: 0 | AC131: 4622 | AD131: 94 | AE131: -1000 | AF131: 0 | AG131: 3716 | AH131: 16179 | AI131: 8978 | AK131: 2258 | AL131: -2321 | AM131: 6737 | AN131: 40630 | AO131: 32294 | AP131: 5054 | AQ131: 3282 | AR131: 21 | AT131: 29 | AU131: 11098 | AW131: 2.624680851 | AX131: 15.9545694 | AY131: 538.475401 | BC131: 81.45041538 | BD131: 622.4544963 | BE131: 29.50375025 | BF131: 7700.57668 | BG131: 16024 | BH131: 10453 | BI131: 80894 | BJ131: -70441 | BK131: 38545 | BL131: 37374 | BO131: 5 | BP131: 542 | BQ131: 6025 | BR131: 3421 | BS131: 0 | BT131: 0 | BU131: 2604 | BV131: 94 | BW131: -1000 | BX131: 0 | BY131: 1698 | BZ131: 17878 | CA131: 6020 | CC131: -5286 | CD131: -2207 | CE131: 3847 | CF131: 38545 | CG131: 30785 | CH131: 4483 | CI131: 3277 | CJ131: 21 | CL131: 35 | CM131: 10884 | CO131: 3.686532763 | CP131: 17.18268972 | CQ131: 657.0194781 | CU131: 80.59238401 | CV131: 658.5814039 | CW131: 29.95900607 | CX131: 8023.70452 | CY131: 16191 | CZ131: 9645 | DA131: 83296 | DB131: -70868 | DC131: 38548 | DD131: 37236 | DG131: 20 | DH131: 547 | DI131: 5483 | DJ131: 4549 | DK131: 0 | DL131: 0 | DM131: 934 | DN131: 95 | DO131: 0 | DP131: 0 | DQ131: 1029 | DR131: 18907 | DS131: 5449 | DU131: -1966 | DV131: -2383 | DW131: 1186 | DX131: 38548 | DY131: 31086 | DZ131: 4257 | EA131: 3205 | EB131: 21 | ED131: 31 | EE131: 55292 | EF131: 59644 | EG131: 62546 | EK131: -5484 | EL131: 211 | EM131: 3032 | EN131: -3164 | EO131: 959 | EP131: 32 | EQ131: -4318 | ER131: 3 | ES131: 52 | ET131: 0 | EU131: 0 | EV131: 0 | EW131: 39 | EX131: 3500 | EY131: 14 | EZ131: 10423 | FA131: 8215 | FB131: 2208 | FC131: 1158 | FD131: 8255 | FE131: 6008 | FF131: 2247 | FG131: 458 | FH131: 9385 | FI131: 6875 | FJ131: 2510 | FK131: 458 | FL131: 4024.077189 | FM131: 3370.336998 | FN131: 3434.490996 | FO131: =(DY131/EB131) -> 1480.285714 | FP131: =(FO131/CM131)*1000 -> 136.0056702 | FV131: 1317 | FW131: =FV131*-1 -> -1317
A132: 423 | B132: Lieto | C132: 19596 | E132: 2.102597069 | F132: 67.66684641 | G132: -3703.817106 | K132: 32.89218166 | L132: 169.2692386 | M132: 8.823544416 | N132: 7002.092264 | O132: 51848 | P132: 24522 | Q132: 112503 | R132: -87981 | S132: 75955 | T132: 20068 | W132: -370 | X132: 103 | Y132: 7775 | Z132: 6255 | AA132: 0 | AB132: 0 | AC132: 1520 | AD132: 9 | AE132: 0 | AF132: 0 | AG132: 1529 | AH132: 8516 | AI132: 5522 | AK132: -996 | AL132: -3487 | AM132: -9955 | AN132: 75955 | AO132: 68995 | AP132: 3393 | AQ132: 3567 | AR132: 19.5 | AT132: 203 | AU132: 19831 | AW132: 0.8712795726 | AX132: 75.75101579 | AY132: -4037.517019 | BC132: 28.02757841 | BD132: 309.7675357 | BE132: 16.90678701 | BF132: 6687.559881 | BG132: 53860 | BH132: 25246 | BI132: 116839 | BJ132: -91593 | BK132: 75125 | BL132: 19733 | BO132: -428 | BP132: 124 | BQ132: 2961 | BR132: 7580 | BS132: 0 | BT132: 0 | BU132: -4619 | BV132: 95 | BW132: 0 | BX132: 0 | BY132: -4524 | BZ132: 3992 | CA132: -553 | CC132: 903 | CD132: -3467 | CE132: -7576 | CF132: 75125 | CG132: 67828 | CH132: 3640 | CI132: 3657 | CJ132: 19.5 | CL132: 197 | CM132: 19994 | CO132: 0.5618327936 | CP132: 78.86080767 | CQ132: -4200.060018 | CU132: 25.31631106 | CV132: 379.0137041 | CW132: 21.12653142 | CX132: 6548.164449 | CY132: 55046 | CZ132: 23417 | DA132: 117810 | DB132: -94393 | DC132: 79437 | DD132: 20637 | DG132: -453 | DH132: 135 | DI132: 5363 | DJ132: 7820 | DK132: 0 | DL132: 0 | DM132: -2457 | DN132: 5 | DO132: 0 | DP132: 0 | DQ132: -2452 | DR132: 1540 | DS132: 3175 | DU132: -1062 | DV132: -2441 | DW132: -4130 | DX132: =DC132 -> 79437 | DY132: 71842 | DZ132: 3850 | EA132: 3745 | EB132: 19.5 | ED132: 99 | EE132: 44546 | EF132: 45440 | EG132: 45926 | EK132: -20808 | EL132: 2233 | EM132: 3098 | EN132: -11847 | EO132: 104 | EP132: 4720 | EQ132: -10175 | ER132: 19 | ES132: 2851 | ET132: 10000 | EU132: 0 | EV132: 0 | EW132: 12500 | EX132: 12500 | EY132: -5500 | EZ132: 60199 | FA132: 29728 | FB132: 30471 | FC132: 536 | FD132: 69233 | FE132: 27290 | FF132: 41943 | FG132: 513 | FH132: 73792 | FI132: 37351 | FJ132: 36441 | FK132: 490 | FL132: 4119.412125 | FM132: 4463.264586 | FN132: 4640.892268 | FO132: 3684.205128 | FP132: 184.2655361 | FV132: 2603 | FW132: -2603
A133: 425 | B133: Liminka | C133: 10133 | E133: 2.432805522 | F133: 38.7810607 | G133: -1898.944044 | K133: 64.25721237 | L133: 261.0283233 | M133: 13.89900662 | N133: 6854.830751 | O133: 28181 | P133: 8092 | Q133: 58764 | R133: -50672 | S133: 31384 | T133: 25236 | W133: -108 | X133: 42 | Y133: 5882 | Z133: 3990 | AA133: 0 | AB133: 0 | AC133: 1892 | AD133: 641 | AE133: -2532 | AF133: 0 | AG133: 1 | AH133: 8155 | AI133: 5148 | AK133: -374 | AL133: -2353 | AM133: -1588 | AN133: 31384 | AO133: 29443 | AP133: 758 | AQ133: 1183 | AR133: 21 | AT133: 93 | AU133: 10161 | AW133: 2.193877551 | AX133: 58.82815754 | AY133: -3059.147722 | BC133: 55.60371877 | BD133: 378.013975 | BE133: 17.30650059 | BF133: 7972.443657 | BG133: 28824 | BH133: 8536 | BI133: 59258 | BJ133: -50722 | BK133: 32098 | BL133: 24187 | BO133: -143 | BP133: 22 | BQ133: 5442 | BR133: 3812 | BS133: 0 | BT133: 0 | BU133: 1630 | BV133: -3599 | BW133: 2078 | BX133: 0 | BY133: 109 | BZ133: 8264 | CA133: 4802 | CC133: -724 | CD133: -2400 | CE133: -11831 | CF133: 32098 | CG133: 30159 | CH133: 684 | CI133: 1255 | CJ133: 21.5 | CL133: 37 | CM133: 10191 | CO133: 0.8752628778 | CP133: 66.98336936 | CQ133: -3435.580414 | CU133: 51.54703976 | CV133: 661.171622 | CW133: 32.91359974 | CX133: 7332.155824 | CY133: 29655 | CZ133: 8283 | DA133: 62337 | DB133: -54054 | DC133: 33743 | DD133: 24598 | DG133: -164 | DH133: 26 | DI133: 4149 | DJ133: 4830 | DK133: 0 | DL133: 0 | DM133: -681 | DN133: -3539 | DO133: 4321 | DP133: 0 | DQ133: 101 | DR133: 8364 | DS133: 3334 | DU133: 1056 | DV133: -3400 | DW133: -3868 | DX133: 33743 | DY133: 31728 | DZ133: 698 | EA133: 1317 | EB133: 21.5 | ED133: 55 | EE133: 20476 | EF133: 20055 | EG133: 22465 | EK133: -8158 | EL133: 522 | EM133: 900 | EN133: -19201 | EO133: 130 | EP133: 2438 | EQ133: -8730 | ER133: 475 | ES133: 1053 | ET133: 5000 | EU133: -2000 | EV133: 10000 | EW133: 5000 | EX133: 6000 | EY133: 3000 | EZ133: 17950 | FA133: 12550 | FB133: 5400 | FC133: 660 | FD133: 30550 | FE133: 19150 | FF133: 11400 | FG133: 647 | FH133: 36152 | FI133: 20452 | FJ133: 15700 | FK133: 1540 | FL133: 3314.418237 | FM133: 4471.213463 | FN133: 5021.882053 | FO133: 1475.72093 | FP133: 144.8062928 | FV133: 1949 | FW133: -1949
A134: 426 | B134: Liperi | C134: 12150 | E134: 0.978180055 | F134: 50.93227191 | G134: -3121.069959 | K134: 33.05647572 | L134: 132.5925926 | M134: 6.73225101 | N134: 7188.72428 | O134: 19888 | P134: 13195 | Q134: 74736 | R134: -61541 | S134: 40020 | T134: 27180 | W134: -322 | X134: 335 | Y134: 5672 | Z134: 4124 | AA134: 468 | AB134: 0 | AC134: 2016 | AD134: 119 | AE134: 0 | AF134: 0 | AG134: 2135 | AH134: 3915 | AI134: 4791 | AK134: 767 | AL134: -5807 | AM134: 1898 | AN134: 40020 | AO134: 36068 | AP134: 1533 | AQ134: 2419 | AR134: 21.5 | AT134: 166 | AU134: 12145 | AW134: 0.6023644752 | AX134: 52.30599876 | AY134: -3072.54014 | BC134: 34.13862708 | BD134: 228.1597365 | BE134: 11.76816569 | BF134: 7076.574722 | BG134: 20784 | BH134: 12575 | BI134: 75250 | BJ134: -62675 | BK134: 39488 | BL134: 26970 | BO134: -243 | BP134: 338 | BQ134: 3878 | BR134: 2857 | BS134: 0 | BT134: 0 | BU134: 1021 | BV134: 119 | BW134: 0 | BX134: 0 | BY134: 1140 | BZ134: 5056 | CA134: 3506 | CC134: 164 | CD134: -6636 | CE134: -88 | CF134: 39488 | CG134: 35753 | CH134: 1338 | CI134: 2397 | CJ134: 21.5 | CL134: 104 | CM134: 12084 | CO134: 0.5249279576 | CP134: 54.35038101 | CQ134: -3143.495531 | CU134: 32.58186142 | CV134: 303.9556438 | CW134: 15.45251789 | CX134: 7179.659053 | CY134: 21188 | CZ134: 11849 | DA134: 76936 | DB134: -65087 | DC134: 40749 | DD134: 26533 | DG134: -233 | DH134: 335 | DI134: 2297 | DJ134: 2951 | DK134: 0 | DL134: 0 | DM134: -654 | DN134: 119 | DO134: 0 | DP134: 0 | DQ134: -535 | DR134: 4522 | DS134: 2109 | DU134: -97 | DV134: -6471 | DW134: -654 | DX134: 40749 | DY134: 36988 | DZ134: 1345 | EA134: 2416 | EB134: 21.5 | ED134: 133 | EE134: 48544 | EF134: 48399 | EG134: 49397 | EK134: -6301 | EL134: 48 | EM134: 3360 | EN134: -3752 | EO134: 0 | EP134: 158 | EQ134: -3052 | ER134: 85 | ES134: 204 | ET134: 9000 | EU134: -2984 | EV134: 8000 | EW134: -1090 | EX134: 9000 | EY134: -895 | EZ134: 33167 | FA134: 23277 | FB134: 9890 | FC134: 2216 | FD134: 33442 | FE134: 24656 | FF134: 8786 | FG134: 1433 | FH134: 35076 | FI134: 26849 | FJ134: 8227 | FK134: 1433 | FL134: 4103.621399 | FM134: 4051.29683 | FN134: 4173.618007 | FO134: 1720.372093 | FP134: 142.3677667 | FV134: 3322 | FW134: -3322
A135: 444 | B135: Lohja | C135: 46785 | E135: 0.5472325839 | F135: 59.99733352 | G135: -3511.360479 | K135: 42.83049261 | L135: 169.8407609 | M135: 7.968902407 | N135: 7779.22411 | O135: 127911 | P135: 49780 | Q135: 292896 | R135: -243116 | S135: 189856 | T135: 68178 | W135: -726 | X135: 1161 | Y135: 15353 | Z135: 13996 | AA135: 0 | AB135: 0 | AC135: 1357 | AD135: 81 | AE135: 0 | AF135: 0 | AG135: 1438 | AH135: 10033 | AI135: 14401 | AK135: 2649 | AL135: -28826 | AM135: -24348 | AN135: 189856 | AO135: 170627 | AP135: 6613 | AQ135: 12616 | AR135: 20.5 | AT135: 236 | AU135: 46296 | AW135: 0.6100111425 | AX135: 66.50105247 | AY135: -4013.694488 | BC135: 38.84500446 | BD135: 117.4831519 | BE135: 5.81196919 | BF135: 7378.11042 | BG135: 131601 | BH135: 47832 | BI135: 299071 | BJ135: -251239 | BK135: 188458 | BL135: 68441 | BO135: -969 | BP135: 1245 | BQ135: 5936 | BR135: 15801 | BS135: 0 | BT135: 0 | BU135: -9865 | BV135: 67 | BW135: 0 | BX135: 0 | BY135: -9798 | BZ135: 235 | CA135: 5084 | CC135: 1027 | CD135: -10486 | CE135: -21828 | CF135: 188458 | CG135: 168400 | CH135: 6789 | CI135: 13269 | CJ135: 20.5 | CL135: 207 | CM135: 45965 | CO135: 0.3247064006 | CP135: 70.63024977 | CQ135: -4403.02404 | CU135: 35.31476852 | CV135: 98.98836071 | CW135: 4.885521559 | CX135: 7395.474818 | CY135: 128309 | CZ135: 49228 | DA135: 300779 | DB135: -251198 | DC135: 190089 | DD135: 67720 | DG135: -1517 | DH135: 1308 | DI135: 6402 | DJ135: 15919 | DK135: 0 | DL135: 0 | DM135: -9517 | DN135: 67 | DO135: 0 | DP135: 0 | DQ135: -9450 | DR135: -9215 | DS135: 5932 | DU135: 1327 | DV135: -12022 | DW135: -16306 | DX135: 190089 | DY135: 169133 | DZ135: 7157 | EA135: 13799 | EB135: 20.5 | ED135: 160 | EE135: 127897 | EF135: 129245 | EG135: 136356 | EK135: -41325 | EL135: 1051 | EM135: 1525 | EN135: -30761 | EO135: 2284 | EP135: 1565 | EQ135: -25559 | ER135: 203 | ES135: 3118 | ET135: 48000 | EU135: 5451 | EV135: 28000 | EW135: -3994 | EX135: 36500 | EY135: -8114 | EZ135: 143481 | FA135: 102641 | FB135: 40840 | FC135: 3189 | FD135: 157001 | FE135: 116793 | FF135: 40208 | FG135: 3123 | FH135: 173920 | FI135: 141640 | FJ135: 32280 | FK135: 3057 | FL135: 4461.152079 | FM135: 4808.255573 | FN135: 5329.315784 | FO135: 8250.390244 | FP135: 179.4928803 | FV135: 5677 | FW135: -5677
